{"text_format":"1","workbook":"xlsx","n_sheets":17,"sheets":["Notes","Summary","ICB Q1","Trusts Q1","Sites Q1","ICB Q2","Trusts Q2","Sites Q2","ICB Q3","Trusts Q3","Sites Q3","ICB Q4","Trusts Q4","BSQ1","BSQ2","BSQ3","BSQ4"],"not_rendered":{"charts":0,"images":0,"macros":1,"external_links":0,"defined_names":15,"comments":0,"pivot_tables":0},"unopened":[],"bounds":{"document_bytes":16777216,"sheet_cells":100000,"rows_first":2000,"rows_last":500,"rows_between":2000,"halvings":0,"cell_chars":16384,"cell_head_chars":4096},"cells_cut":0,"cells_raw":0,"read":"whole","date_system":"1900"}

{"sheet":"Notes","index":0,"n_rows":2,"n_cols":1,"rows_kept":2,"cut":false,"hidden":false,"merged":[[1,8,3,14]]}
[]
["Maternity Friends and Family Test (FFT) Data - September 2023"]

{"sheet":"Summary","index":1,"n_rows":23,"n_cols":10,"rows_kept":23,"cut":false,"hidden":false,"merged":[[6,1,7,1],[6,4,6,5],[6,6,6,7],[6,8,6,9]]}
[]
[]
[]
[]
[]
[]
[null,"FFT","Number of organisations submitting","Total responses to date","Responses",null,"Percentage Positive",null,"Percentage Negative"]
[null,null,"2023-09-01","2023-09-01","2023-09-01","2023-08-27","2023-09-01","2023-08-27","2023-09-01","2023-08-27"]
[null,"Maternity Total","NA",3255495,17501,18322,0.92194731729615453,0.92326165265800675,4.256899605736815E-2,4.1698504530073136E-2]
[null,"Maternity NHS Total","NA",3252092,17501,18322,0.92194731729615453,0.92326165265800675,4.256899605736815E-2,4.1698504530073136E-2]
[null,"Maternity IS Total","NA",3403,0,0,"NA","NA","NA","NA"]
[null,"Antenatal Total",111,683450,5429,5500,0.91177012341130959,0.91200000000000003,4.8996131884324924E-2,5.0545454545454546E-2]
[null,"Antenatal NHS ",111,682266,5429,5500,0.91177012341130959,0.91200000000000003,4.8996131884324924E-2,5.0545454545454546E-2]
[null,"Antenatal IS",0,1184,0,0,"NA","NA","NA","NA"]
[null,"Birth Total",116,1010448,5214,5124,0.93785960874568475,0.93754879000780644,3.5673187571921748E-2,3.8056206088992975E-2]
[null,"Birth NHS",116,1010024,5214,5124,0.93785960874568475,0.93754879000780644,3.5673187571921748E-2,3.8056206088992975E-2]
[null,"Birth IS",0,424,0,0,"NA","NA","NA","NA"]
[null,"Postnatal Ward Total",113,1110885,5552,6165,0.91948847262247835,0.92295214922952151,4.1966858789625361E-2,3.8118410381184104E-2]
[null,"Postnatal Ward Total NHS",113,1110885,5552,6165,0.91948847262247835,0.92295214922952151,4.1966858789625361E-2,3.8118410381184104E-2]
[null,"Postnatal Ward Total IS","NA","NA","NA","NA","NA","NA","NA","NA"]
[null,"Postnatal Community Total",118,450712,1306,1533,0.9111791730474732,0.91715590345727327,4.5941807044410414E-2,3.6529680365296802E-2]
[null,"Postnatal Community NHS",118,448917,1306,1533,0.9111791730474732,0.91715590345727327,4.5941807044410414E-2,3.6529680365296802E-2]
[null,"Postnatal Community IS",0,1795,0,0,"NA","NA","NA","NA"]

{"sheet":"ICB Q1","index":2,"n_rows":55,"n_cols":11,"rows_kept":55,"cut":false,"hidden":false,"merged":[[8,5,8,10],[8,0,9,0],[8,1,9,1],[8,2,9,2],[8,3,9,3],[8,4,9,4]]}
[]
[]
[]
[]
[]
[null,"   Sort data by:           "]
[]
[]
["ICB Code","ICB Name","Total Responses","Percentage Positive","Percentage Negative","Breakdown of Responses"]
[null,null,null,null,null,"Very Good","Good","Neither Good nor Poor","Poor","Very Poor","Don't Know"]
[null,"England (including Independent Sector providers)",5429,0.91177012341130959,4.8996131884324924E-2,4040,910,185,134,132,28]
[null,"England (excluding Independent Sector providers)",5429,0.91177012341130959,4.8996131884324924E-2,4040,910,185,134,132,28]
[null,"Selection (excluding suppressed data)",{"$f":"SUBTOTAL(9,C14:C55)","v":5429},{"$f":"IFERROR((F13+G13)/SUM(F13:K13), \"-\")","v":0.91182994454713495},{"$f":"IFERROR((I13+J13)/SUM(F13:K13), \"-\")","v":4.8983364140480594E-2},{"$f":"SUBTOTAL(9,F14:F55)","v":4027},{"$f":"SUBTOTAL(9,G14:G55)","v":906},184,134,131,28]
["QE1","LANCASHIRE AND SOUTH CUMBRIA ICB",94,0.82978723404255317,0.14893617021276595,62,16,2,5,9,0]
["QF7","SOUTH YORKSHIRE ICB",75,0.94666666666666666,0.04,64,7,1,3,0,0]
["QGH","HEREFORDSHIRE AND WORCESTERSHIRE ICB",3,"*","*","*","*","*","*","*","*"]
["QH8","MID AND SOUTH ESSEX ICB",3,"*","*","*","*","*","*","*","*"]
["QHG","BEDFORDSHIRE, LUTON AND MILTON KEYNES ICB",435,0.9264367816091954,2.2988505747126436E-2,266,137,19,6,4,3]
["QHL","BIRMINGHAM AND SOLIHULL ICB",312,0.81730769230769229,0.12820512820512819,191,64,15,13,27,2]
["QHM","NORTH EAST AND NORTH CUMBRIA ICB",202,0.95049504950495045,3.9603960396039604E-2,158,34,2,5,3,0]
["QJ2","DERBY AND DERBYSHIRE ICB",147,0.8231292517006803,0.10204081632653061,73,48,11,9,6,0]
["QJG","SUFFOLK AND NORTH EAST ESSEX ICB",64,0.96875,1.5625E-2,55,7,1,1,0,0]
["QJK","DEVON ICB",45,1,0,43,2,0,0,0,0]
["QJM","LINCOLNSHIRE ICB",0,"NA","NA",0,0,0,0,0,0]
["QK1","LEICESTER, LEICESTERSHIRE AND RUTLAND ICB",135,0.94074074074074077,7.4074074074074077E-3,96,31,4,1,0,3]
["QKK","SOUTH EAST LONDON ICB",118,0.94067796610169496,2.5423728813559324E-2,84,27,4,2,1,0]
["QKS","KENT AND MEDWAY ICB",501,0.94211576846307388,3.3932135728542916E-2,416,56,10,13,4,2]
["QM7","HERTFORDSHIRE AND WEST ESSEX ICB",28,0.8928571428571429,0,17,8,2,0,0,1]
["QMF","NORTH EAST LONDON ICB",259,0.88416988416988418,5.7915057915057917E-2,192,37,12,6,9,3]
["QMJ","NORTH CENTRAL LONDON ICB",108,0.88888888888888884,7.407407407407407E-2,83,13,4,7,1,0]
["QMM","NORFOLK AND WAVENEY ICB",154,0.90259740259740262,8.4415584415584416E-2,101,38,2,7,6,0]
["QNC","STAFFORDSHIRE AND STOKE-ON-TRENT ICB",19,0.94736842105263153,5.2631578947368418E-2,15,3,0,0,1,0]
["QNQ","FRIMLEY ICB",11,0.90909090909090906,9.0909090909090912E-2,9,1,0,0,1,0]
["QNX","SUSSEX ICB",0,"NA","NA",0,0,0,0,0,0]
["QOC","SHROPSHIRE, TELFORD AND WREKIN ICB",19,1,0,19,0,0,0,0,0]
["QOP","GREATER MANCHESTER ICB",387,0.94832041343669249,2.5839793281653745E-2,322,45,8,5,5,2]
["QOQ","HUMBER AND NORTH YORKSHIRE ICB",7,1,0,"*","*","*","*","*","*"]
["QOX","BATH AND NORTH EAST SOMERSET, SWINDON AND WILTSHIRE ICB",44,0.86363636363636365,6.8181818181818177E-2,32,6,3,2,1,0]
["QPM","NORTHAMPTONSHIRE ICB",2,"*","*","*","*","*","*","*","*"]
["QR1","GLOUCESTERSHIRE ICB",0,"NA","NA",0,0,0,0,0,0]
["QRL","HAMPSHIRE AND ISLE OF WIGHT ICB",231,0.93506493506493504,1.2987012987012988E-2,180,36,11,2,1,1]
["QRV","NORTH WEST LONDON ICB",222,0.85585585585585588,8.5585585585585586E-2,154,36,12,8,11,1]
["QSL","SOMERSET ICB",15,0.8666666666666667,6.6666666666666666E-2,13,0,1,0,1,0]
["QT1","NOTTINGHAM AND NOTTINGHAMSHIRE ICB",338,0.94378698224852076,2.0710059171597635E-2,282,37,12,4,3,0]
["QT6","CORNWALL AND THE ISLES OF SCILLY ICB",4,"*","*","*","*","*","*","*","*"]
["QU9","BUCKINGHAMSHIRE, OXFORDSHIRE AND BERKSHIRE WEST ICB",182,0.87362637362637363,6.043956043956044E-2,134,25,11,6,5,1]
["QUA","BLACK COUNTRY ICB",133,0.84962406015037595,9.7744360902255634E-2,98,15,4,4,9,3]
["QUE","CAMBRIDGESHIRE AND PETERBOROUGH ICB",98,0.97959183673469385,2.0408163265306121E-2,93,3,0,1,1,0]
["QUY","BRISTOL, NORTH SOMERSET AND SOUTH GLOUCESTERSHIRE ICB",30,1,0,24,6,0,0,0,0]
["QVV","DORSET ICB",59,0.9152542372881356,5.0847457627118647E-2,38,16,2,2,1,0]
["QWE","SOUTH WEST LONDON ICB",115,0.84347826086956523,6.9565217391304349E-2,78,19,8,4,4,2]
["QWO","WEST YORKSHIRE ICB",617,0.93354943273905999,4.0518638573743923E-2,484,92,15,13,12,1]
["QWU","COVENTRY AND WARWICKSHIRE ICB",80,0.83750000000000002,0.05,46,21,7,3,1,2]
["QXU","SURREY HEARTLANDS ICB",9,0.88888888888888884,0.1111111111111111,6,2,0,1,0,0]
["QYG","CHESHIRE AND MERSEYSIDE ICB",124,0.94354838709677424,4.0322580645161289E-2,99,18,1,1,4,1]

{"sheet":"Trusts Q1","index":3,"n_rows":124,"n_cols":20,"rows_kept":124,"cut":false,"hidden":false,"merged":[[8,6,8,11],[8,12,8,19],[8,0,9,0],[8,1,9,1],[8,2,9,2],[8,3,9,3],[8,4,9,4],[8,5,9,5]]}
[]
[]
[]
[]
[]
[null,"   Sort data by:           "]
[]
[]
["ICB Code","Trust Code","Trust Name","Total Responses","Percentage Positive","Percentage Negative","Breakdown of Responses",null,null,null,null,null,"Mode of Collection"]
[null,null,null,null,null,null,"Very Good","Good","Neither Good nor Poor","Poor","Very Poor","Don't Know","Mode SMS","Mode Electronic Discharge","Mode Electronic Home","Mode Paper Discharge","Mode Paper Home","Mode Telephone","Mode Online","Mode Other"]
[null,null,"England (including Independent Sector providers)",5429,0.91177012341130959,4.8996131884324924E-2,4040,910,185,134,132,28,1670,540,9,1824,73,7,1258,48]
[null,null,"England (excluding Independent Sector providers)",5429,0.91177012341130959,4.8996131884324924E-2,4040,910,185,134,132,28,1670,540,9,1824,73,7,1258,48]
[null,null,"Selection (excluding suppressed data)",{"$f":"SUBTOTAL(9,D14:D298)","v":5429},{"$f":"IFERROR((G13+H13)/SUM(G13:L13), \"-\")","v":0.91254901960784318},{"$f":"IFERROR((J13+K13)/SUM(G13:L13), \"-\")","v":4.8823529411764703E-2},{"$f":"SUBTOTAL(9,G14:G298)","v":3797},857,172,122,127,25,1579,477,0,1708,69,7,1213,47]
["QE1","RXN","LANCASHIRE TEACHING HOSPITALS NHS FOUNDATION TRUST",15,0.53333333333333333,0.46666666666666667,6,2,0,5,2,0,15,0,0,0,0,0,0,0]
["QE1","RTX","UNIVERSITY HOSPITALS OF MORECAMBE BAY NHS FOUNDATION TRUST",22,0.90909090909090906,9.0909090909090912E-2,17,3,0,0,2,0,0,0,0,0,0,0,22,0]
["QE1","RXR","EAST LANCASHIRE HOSPITALS NHS TRUST",27,0.92592592592592593,7.407407407407407E-2,24,1,0,0,2,0,0,0,0,27,0,0,0,0]
["QE1","RXL","BLACKPOOL TEACHING HOSPITALS NHS FOUNDATION TRUST",30,0.83333333333333337,0.1,15,10,2,0,3,0,30,0,0,0,0,0,0,0]
["QF7","RFR","THE ROTHERHAM NHS FOUNDATION TRUST",1,"*","*","*","*","*","*","*","*","*","*","*","*","*","*","*","*"]
["QF7","RFF","BARNSLEY HOSPITAL NHS FOUNDATION TRUST",3,"*","*","*","*","*","*","*","*","*","*","*","*","*","*","*","*"]
["QF7","RHQ","SHEFFIELD TEACHING HOSPITALS NHS FOUNDATION TRUST",20,0.85,0.1,12,5,1,2,0,0,10,0,0,0,6,0,4,0]
["QF7","RP5","DONCASTER AND BASSETLAW TEACHING HOSPITALS NHS FOUNDATION TRUST",51,0.98039215686274506,1.9607843137254902E-2,48,2,0,1,0,0,0,0,0,50,0,0,1,0]
["QGH","RLQ","WYE VALLEY NHS TRUST",0,"NA","NA",0,0,0,0,0,0,0,0,0,0,0,0,0,0]
["QGH","RWP","WORCESTERSHIRE ACUTE HOSPITALS NHS TRUST",3,"*","*","*","*","*","*","*","*","*","*","*","*","*","*","*","*"]
["QH8","RAJ","MID AND SOUTH ESSEX NHS FOUNDATION TRUST",3,"*","*","*","*","*","*","*","*","*","*","*","*","*","*","*","*"]
["QHG","RC9","BEDFORDSHIRE HOSPITALS NHS FOUNDATION TRUST",171,0.92982456140350878,1.1695906432748537E-2,83,76,9,2,0,1,0,171,0,0,0,0,0,0]
["QHG","RD8","MILTON KEYNES UNIVERSITY HOSPITAL NHS FOUNDATION TRUST",264,0.9242424242424242,3.0303030303030304E-2,183,61,10,4,4,2,208,0,0,46,0,0,10,0]
["QHL","RQ3","BIRMINGHAM WOMEN'S AND CHILDREN'S NHS FOUNDATION TRUST",118,0.84745762711864403,0.1271186440677966,69,31,3,3,12,0,0,0,0,0,0,0,118,0]
["QHL","RXK","SANDWELL AND WEST BIRMINGHAM HOSPITALS NHS TRUST",194,0.7989690721649485,0.12886597938144329,122,33,12,10,15,2,194,0,0,0,0,0,0,0]
["QHM","RTD","THE NEWCASTLE UPON TYNE HOSPITALS NHS FOUNDATION TRUST",1,"*","*","*","*","*","*","*","*","*","*","*","*","*","*","*","*"]
["QHM","RR7","GATESHEAD HEALTH NHS FOUNDATION TRUST",4,"*","*","*","*","*","*","*","*","*","*","*","*","*","*","*","*"]
["QHM","RVW","NORTH TEES AND HARTLEPOOL NHS FOUNDATION TRUST",6,0.83333333333333337,0.16666666666666666,4,1,0,1,0,0,6,0,0,0,0,0,0,0]
["QHM","R0B","SOUTH TYNESIDE AND SUNDERLAND NHS FOUNDATION TRUST",10,1,0,8,2,0,0,0,0,0,0,0,0,0,0,10,0]
["QHM","RNN","NORTH CUMBRIA INTEGRATED CARE NHS FOUNDATION TRUST",31,1,0,27,4,0,0,0,0,3,0,0,19,0,0,9,0]
["QHM","RTR","SOUTH TEES HOSPITALS NHS FOUNDATION TRUST",150,0.94,4.6666666666666669E-2,114,27,2,4,3,0,136,14,0,0,0,0,0,0]
["QJ2","RTG","UNIVERSITY HOSPITALS OF DERBY AND BURTON NHS FOUNDATION TRUST",44,0.75,0.22727272727272727,19,14,1,6,4,0,30,0,0,14,0,0,0,0]
["QJ2","RFS","CHESTERFIELD ROYAL HOSPITAL NHS FOUNDATION TRUST",103,0.85436893203883491,4.8543689320388349E-2,54,34,10,3,2,0,103,0,0,0,0,0,0,0]
["QJG","RGR","WEST SUFFOLK NHS FOUNDATION TRUST",8,1,0,7,1,0,0,0,0,0,0,0,0,0,0,8,0]
["QJG","RDE","EAST SUFFOLK AND NORTH ESSEX NHS FOUNDATION TRUST",56,0.9642857142857143,1.7857142857142856E-2,48,6,1,1,0,0,0,0,0,0,0,0,56,0]
["QJK","RA9","TORBAY AND SOUTH DEVON NHS FOUNDATION TRUST",0,"NA","NA",0,0,0,0,0,0,0,0,0,0,0,0,0,0]
["QJK","RK9","UNIVERSITY HOSPITALS PLYMOUTH NHS TRUST",10,1,0,10,0,0,0,0,0,0,1,0,9,0,0,0,0]
["QJK","RH8","ROYAL DEVON UNIVERSITY HEALTHCARE NHS FOUNDATION TRUST",35,1,0,33,2,0,0,0,0,0,0,0,35,0,0,0,0]
["QJM","RWD","UNITED LINCOLNSHIRE HOSPITALS NHS TRUST",0,"NA","NA",0,0,0,0,0,0,0,0,0,0,0,0,0,0]
["QK1","RWE","UNIVERSITY HOSPITALS OF LEICESTER NHS TRUST",135,0.94074074074074077,7.4074074074074077E-3,96,31,4,1,0,3,58,77,0,0,0,0,0,0]
["QKK","RJ1","GUY'S AND ST THOMAS' NHS FOUNDATION TRUST",8,0.625,0.25,3,2,1,1,1,0,0,0,0,1,0,0,7,0]
["QKK","RJZ","KING'S COLLEGE HOSPITAL NHS FOUNDATION TRUST",19,0.94736842105263153,0,14,4,1,0,0,0,9,4,0,0,0,6,0,0]
["QKK","RJ2","LEWISHAM AND GREENWICH NHS TRUST",91,0.96703296703296704,1.098901098901099E-2,67,21,2,1,0,0,0,0,0,70,0,0,21,0]
["QKS","RPA","MEDWAY NHS FOUNDATION TRUST",12,0.83333333333333337,8.3333333333333329E-2,8,2,1,0,1,0,0,0,0,0,12,0,0,0]
["QKS","RN7","DARTFORD AND GRAVESHAM NHS TRUST",143,0.91608391608391604,4.8951048951048952E-2,110,21,3,7,0,2,0,0,0,0,0,0,143,0]
["QKS","RVV","EAST KENT HOSPITALS UNIVERSITY NHS FOUNDATION TRUST",152,0.90789473684210531,5.2631578947368418E-2,107,31,6,5,3,0,152,0,0,0,0,0,0,0]
["QKS","RWF","MAIDSTONE AND TUNBRIDGE WELLS NHS TRUST",194,0.99484536082474229,5.1546391752577319E-3,191,2,0,1,0,0,0,0,0,29,0,0,165,0]
["QM7","RQW","THE PRINCESS ALEXANDRA HOSPITAL NHS TRUST",0,"NA","NA",0,0,0,0,0,0,0,0,0,0,0,0,0,0]
["QM7","RWG","WEST HERTFORDSHIRE TEACHING HOSPITALS NHS TRUST",3,"*","*","*","*","*","*","*","*","*","*","*","*","*","*","*","*"]
["QM7","RWH","EAST AND NORTH HERTFORDSHIRE NHS TRUST",25,0.88,0,"*","*","*","*","*","*","*","*","*","*","*","*","*","*"]
["QMF","RQX","HOMERTON HEALTHCARE NHS FOUNDATION TRUST",14,0.7142857142857143,0.14285714285714285,5,5,2,1,1,0,14,0,0,0,0,0,0,0]
["QMF","RF4","BARKING, HAVERING AND REDBRIDGE UNIVERSITY HOSPITALS NHS TRUST",68,0.95588235294117652,1.4705882352941176E-2,56,9,1,0,1,1,0,0,0,67,0,0,1,0]
["QMF","R1H","BARTS HEALTH NHS TRUST",177,0.87005649717514122,6.7796610169491525E-2,131,23,9,5,7,2,34,0,0,26,0,0,117,0]
["QMJ","RRV","UNIVERSITY COLLEGE LONDON HOSPITALS NHS FOUNDATION TRUST",2,"*","*","*","*","*","*","*","*","*","*","*","*","*","*","*","*"]
["QMJ","RAL","ROYAL FREE LONDON NHS FOUNDATION TRUST",10,0.6,0.4,"*","*","*","*","*","*","*","*","*","*","*","*","*","*"]
["QMJ","RAP","NORTH MIDDLESEX UNIVERSITY HOSPITAL NHS TRUST",48,0.89583333333333337,6.25E-2,34,9,2,3,0,0,45,3,0,0,0,0,0,0]
["QMJ","RKE","WHITTINGTON HEALTH NHS TRUST",48,0.9375,2.0833333333333332E-2,41,4,2,1,0,0,0,0,0,48,0,0,0,0]
["QMM","RGP","JAMES PAGET UNIVERSITY HOSPITALS NHS FOUNDATION TRUST",0,"NA","NA",0,0,0,0,0,0,0,0,0,0,0,0,0,0]
["QMM","RM1","NORFOLK AND NORWICH UNIVERSITY HOSPITALS NHS FOUNDATION TRUST",59,0.79661016949152541,0.16949152542372881,28,19,2,5,5,0,0,0,0,9,0,0,50,0]
["QMM","RCX","THE QUEEN ELIZABETH HOSPITAL, KING'S LYNN, NHS FOUNDATION TRUST",95,0.96842105263157896,3.1578947368421054E-2,73,19,0,2,1,0,0,0,0,93,0,0,2,0]
["QNC","RJE","UNIVERSITY HOSPITALS OF NORTH MIDLANDS NHS TRUST",19,0.94736842105263153,5.2631578947368418E-2,15,3,0,0,1,0,14,0,0,0,0,0,5,0]
["QNQ","RDU","FRIMLEY HEALTH NHS FOUNDATION TRUST",11,0.90909090909090906,9.0909090909090912E-2,9,1,0,0,1,0,0,0,0,11,0,0,0,0]
["QNX","RXC","EAST SUSSEX HEALTHCARE NHS TRUST",0,"NA","NA",0,0,0,0,0,0,0,0,0,0,0,0,0,0]
["QOC","RXW","THE SHREWSBURY AND TELFORD HOSPITAL NHS TRUST",19,1,0,19,0,0,0,0,0,0,0,0,19,0,0,0,0]
["QOP","RM3","NORTHERN CARE ALLIANCE NHS FOUNDATION TRUST",0,"NA","NA",0,0,0,0,0,0,0,0,0,0,0,0,0,0]
["QOP","RRF","WRIGHTINGTON, WIGAN AND LEIGH NHS FOUNDATION TRUST",2,"*","*","*","*","*","*","*","*","*","*","*","*","*","*","*","*"]
["QOP","RWJ","STOCKPORT NHS FOUNDATION TRUST",20,0.9,0.1,"*","*","*","*","*","*","*","*","*","*","*","*","*","*"]
["QOP","RMP","TAMESIDE AND GLOSSOP INTEGRATED CARE NHS FOUNDATION TRUST",22,0.90909090909090906,4.5454545454545456E-2,17,3,1,0,1,0,0,22,0,0,0,0,0,0]
["QOP","RMC","BOLTON NHS FOUNDATION TRUST",28,0.9285714285714286,3.5714285714285712E-2,24,2,1,1,0,0,0,4,0,24,0,0,0,0]
["QOP","R0A","MANCHESTER UNIVERSITY NHS FOUNDATION TRUST",315,0.9555555555555556,1.9047619047619049E-2,267,34,6,2,4,2,0,107,0,197,0,0,6,5]
["QOQ","RCB","YORK AND SCARBOROUGH TEACHING HOSPITALS NHS FOUNDATION TRUST",0,"NA","NA",0,0,0,0,0,0,0,0,0,0,0,0,0,0]
["QOQ","RCD","HARROGATE AND DISTRICT NHS FOUNDATION TRUST",0,"NA","NA",0,0,0,0,0,0,0,0,0,0,0,0,0,0]
["QOQ","RWA","HULL UNIVERSITY TEACHING HOSPITALS NHS TRUST",0,"NA","NA",0,0,0,0,0,0,0,0,0,0,0,0,0,0]
["QOQ","RJL","NORTHERN LINCOLNSHIRE AND GOOLE NHS FOUNDATION TRUST",7,1,0,"*","*","*","*","*","*","*","*","*","*","*","*","*","*"]
["QOX","RNZ","SALISBURY NHS FOUNDATION TRUST",0,"NA","NA",0,0,0,0,0,0,0,0,0,0,0,0,0,0]
["QOX","RD1","ROYAL UNITED HOSPITALS BATH NHS FOUNDATION TRUST",2,"*","*","*","*","*","*","*","*","*","*","*","*","*","*","*","*"]
["QOX","RN3","GREAT WESTERN HOSPITALS NHS FOUNDATION TRUST",42,0.8571428571428571,7.1428571428571425E-2,"*","*","*","*","*","*","*","*","*","*","*","*","*","*"]
["QPM","RNS","NORTHAMPTON GENERAL HOSPITAL NHS TRUST",0,"NA","NA",0,0,0,0,0,0,0,0,0,0,0,0,0,0]
["QPM","RNQ","KETTERING GENERAL HOSPITAL NHS FOUNDATION TRUST",2,"*","*","*","*","*","*","*","*","*","*","*","*","*","*","*","*"]
["QRL","R1F","ISLE OF WIGHT NHS TRUST",6,1,0,6,0,0,0,0,0,0,0,0,6,0,0,0,0]
["QRL","RN5","HAMPSHIRE HOSPITALS NHS FOUNDATION TRUST",7,0.8571428571428571,0,6,0,1,0,0,0,0,0,0,1,0,0,6,0]
["QRL","RHM","UNIVERSITY HOSPITAL SOUTHAMPTON NHS FOUNDATION TRUST",109,0.88990825688073394,2.7522935779816515E-2,71,26,8,2,1,1,0,0,0,0,2,0,107,0]
["QRL","RHU","PORTSMOUTH HOSPITALS UNIVERSITY NATIONAL HEALTH SERVICE TRUST",109,0.98165137614678899,0,97,10,2,0,0,0,0,0,0,109,0,0,0,0]
["QRV","R1K","LONDON NORTH WEST UNIVERSITY HEALTHCARE NHS TRUST",0,"NA","NA",0,0,0,0,0,0,0,0,0,0,0,0,0,0]
["QRV","RYJ","IMPERIAL COLLEGE HEALTHCARE NHS TRUST",49,0.97959183673469385,0,41,7,1,0,0,0,0,0,0,0,0,0,49,0]
["QRV","RQM","CHELSEA AND WESTMINSTER HOSPITAL NHS FOUNDATION TRUST",77,0.80519480519480524,0.14285714285714285,53,9,3,5,6,1,54,0,0,17,0,0,6,0]
["QRV","RAS","THE HILLINGDON HOSPITALS NHS FOUNDATION TRUST",96,0.83333333333333337,8.3333333333333329E-2,60,20,8,3,5,0,0,0,0,0,0,0,96,0]
["QSL","RH5","SOMERSET NHS FOUNDATION TRUST",15,0.8666666666666667,6.6666666666666666E-2,13,0,1,0,1,0,14,0,0,1,0,0,0,0]
["QT1","RK5","SHERWOOD FOREST HOSPITALS NHS FOUNDATION TRUST",9,0.88888888888888884,0,5,3,1,0,0,0,0,0,0,0,0,0,9,0]
["QT1","RX1","NOTTINGHAM UNIVERSITY HOSPITALS NHS TRUST",329,0.94528875379939215,2.1276595744680851E-2,277,34,11,4,3,0,0,11,0,307,0,0,11,0]
["QT6","REF","ROYAL CORNWALL HOSPITALS NHS TRUST",4,"*","*","*","*","*","*","*","*","*","*","*","*","*","*","*","*"]
["QU9","RTH","OXFORD UNIVERSITY HOSPITALS NHS FOUNDATION TRUST",5,0.6,0.2,3,0,1,0,1,0,0,0,0,0,0,0,5,0]
["QU9","RHW","ROYAL BERKSHIRE NHS FOUNDATION TRUST",32,0.875,6.25E-2,25,3,2,1,1,0,32,0,0,0,0,0,0,0]
["QU9","RXQ","BUCKINGHAMSHIRE HEALTHCARE NHS TRUST",145,0.88275862068965516,5.5172413793103448E-2,106,22,8,5,3,1,145,0,0,0,0,0,0,0]
["QUA","RL4","THE ROYAL WOLVERHAMPTON NHS TRUST",35,0.82857142857142863,0.14285714285714285,24,5,0,1,4,1,35,0,0,0,0,0,0,0]
["QUA","RNA","THE DUDLEY GROUP NHS FOUNDATION TRUST",39,0.84615384615384615,7.6923076923076927E-2,33,0,1,0,3,2,4,0,0,0,35,0,0,0]
["QUA","RBK","WALSALL HEALTHCARE NHS TRUST",59,0.86440677966101698,8.4745762711864403E-2,41,10,3,3,2,0,42,16,0,0,0,1,0,0]
["QUE","RGT","CAMBRIDGE UNIVERSITY HOSPITALS NHS FOUNDATION TRUST",4,"*","*","*","*","*","*","*","*","*","*","*","*","*","*","*","*"]
["QUE","RGN","NORTH WEST ANGLIA NHS FOUNDATION TRUST",94,0.97872340425531912,2.1276595744680851E-2,"*","*","*","*","*","*","*","*","*","*","*","*","*","*"]
["QUY","RVJ","NORTH BRISTOL NHS TRUST",5,1,0,5,0,0,0,0,0,0,0,0,0,0,0,5,0]
["QUY","RA7","UNIVERSITY HOSPITALS BRISTOL AND WESTON NHS FOUNDATION TRUST",25,1,0,19,6,0,0,0,0,0,0,0,25,0,0,0,0]
["QVV","RBD","DORSET COUNTY HOSPITAL NHS FOUNDATION TRUST",17,1,0,14,3,0,0,0,0,17,0,0,0,0,0,0,0]
["QVV","R0D","UNIVERSITY HOSPITALS DORSET NHS FOUNDATION TRUST",42,0.88095238095238093,7.1428571428571425E-2,24,13,2,2,1,0,28,0,0,0,14,0,0,0]
["QWE","RVR","EPSOM AND ST HELIER UNIVERSITY HOSPITALS NHS TRUST",15,0.73333333333333328,0.13333333333333333,11,0,0,2,0,2,0,0,0,15,0,0,0,0]
["QWE","RJ7","ST GEORGE'S UNIVERSITY HOSPITALS NHS FOUNDATION TRUST",30,0.8,0.1,15,9,3,0,3,0,0,0,0,0,0,0,0,30]
["QWE","RAX","KINGSTON HOSPITAL NHS FOUNDATION TRUST",70,0.88571428571428568,4.2857142857142858E-2,52,10,5,2,1,0,0,35,0,0,0,0,35,0]
["QWO","RAE","BRADFORD TEACHING HOSPITALS NHS FOUNDATION TRUST",42,0.8571428571428571,0.14285714285714285,34,2,0,2,4,0,0,0,0,0,0,0,42,0]
["QWO","RWY","CALDERDALE AND HUDDERSFIELD NHS FOUNDATION TRUST",61,0.96721311475409832,1.6393442622950821E-2,49,10,1,1,0,0,0,0,0,0,0,0,61,0]
["QWO","RR8","LEEDS TEACHING HOSPITALS NHS TRUST",83,0.90361445783132532,4.8192771084337352E-2,69,6,3,3,1,1,71,12,0,0,0,0,0,0]
["QWO","RXF","MID YORKSHIRE TEACHING NHS TRUST",431,0.94199535962877035,3.248259860788863E-2,332,74,11,7,7,0,25,0,0,397,0,0,9,0]
["QWU","RLT","GEORGE ELIOT HOSPITAL NHS TRUST",0,"NA","NA",0,0,0,0,0,0,0,0,0,0,0,0,0,0]
["QWU","RJC","SOUTH WARWICKSHIRE UNIVERSITY NHS FOUNDATION TRUST",3,"*","*","*","*","*","*","*","*","*","*","*","*","*","*","*","*"]
["QWU","RKB","UNIVERSITY HOSPITALS COVENTRY AND WARWICKSHIRE NHS TRUST",77,0.8441558441558441,3.896103896103896E-2,"*","*","*","*","*","*","*","*","*","*","*","*","*","*"]
["QXU","RTK","ASHFORD AND ST PETER'S HOSPITALS NHS FOUNDATION TRUST",0,"NA","NA",0,0,0,0,0,0,0,0,0,0,0,0,0,0]
["QXU","RTP","SURREY AND SUSSEX HEALTHCARE NHS TRUST",4,"*","*","*","*","*","*","*","*","*","*","*","*","*","*","*","*"]
["QXU","RA2","ROYAL SURREY COUNTY HOSPITAL NHS FOUNDATION TRUST",5,1,0,"*","*","*","*","*","*","*","*","*","*","*","*","*","*"]
["QYG","RWW","WARRINGTON AND HALTON TEACHING HOSPITALS NHS FOUNDATION TRUST",1,"*","*","*","*","*","*","*","*","*","*","*","*","*","*","*","*"]
["QYG","RBT","MID CHESHIRE HOSPITALS NHS FOUNDATION TRUST",7,1,0,"*","*","*","*","*","*","*","*","*","*","*","*","*","*"]
["QYG","REP","LIVERPOOL WOMEN'S NHS FOUNDATION TRUST",12,0.91666666666666663,0,9,2,0,0,0,1,0,0,0,0,0,0,0,12]
["QYG","RBL","WIRRAL UNIVERSITY TEACHING HOSPITAL NHS FOUNDATION TRUST",50,0.94,0.06,40,7,0,1,2,0,50,0,0,0,0,0,0,0]
["QYG","RBN","MERSEY AND WEST LANCASHIRE TEACHING HOSPITALS NHS TRUST",54,0.94444444444444442,3.7037037037037035E-2,45,6,1,0,2,0,1,0,0,36,0,0,17,0]

{"sheet":"Sites Q1","index":4,"n_rows":192,"n_cols":14,"rows_kept":192,"cut":false,"hidden":false,"merged":[[8,6,9,6],[8,7,9,7],[8,8,8,13],[8,0,9,0],[8,1,9,1],[8,2,9,2],[8,3,9,3],[8,4,9,4],[8,5,9,5]]}
[]
[]
[]
[]
[]
[null,"   Sort data by:           "]
[]
[]
["ICB Code","Trust Code","Trust Name","Site Code","Site Name","Total Responses","Percentage Positive","Percentage Negative","Breakdown of Responses"]
[null,null,null,null,null,null,null,null,"Very Good","Good","Neither Good nor Poor","Poor","Very Poor","Don't Know"]
[null,null,null,null,"England (including Independent Sector providers)",5429,0.91177012341130959,4.8996131884324924E-2,4040,910,185,134,132,28]
[null,null,null,null,"England (excluding Independent Sector providers)",5429,0.91177012341130959,4.8996131884324924E-2,4040,910,185,134,132,28]
[null,null,null,null,"Selection (excluding suppressed data)",{"$f":"SUBTOTAL(9,F14:F297)","v":5429},{"$f":"IFERROR((I13+J13)/SUM(I13:N13), \"-\")","v":0.9104542490762878},{"$f":"IFERROR((L13+M13)/SUM(I13:N13), \"-\")","v":4.9554444685937837E-2},{"$f":"SUBTOTAL(9,I14:I297)","v":3410},779,162,110,118,22]
["QE1","RXL","BLACKPOOL TEACHING HOSPITALS NHS FOUNDATION TRUST","RXL01","Blackpool Victoria Hospital",30,0.83333333333333337,0.1,15,10,2,0,3,0]
["QE1","RXR","EAST LANCASHIRE HOSPITALS NHS TRUST","RXR20","Royal Blackburn Hospital",27,0.92592592592592593,7.407407407407407E-2,24,1,0,0,2,0]
["QE1","RXN","LANCASHIRE TEACHING HOSPITALS NHS FOUNDATION TRUST","RXN01","Chorley and South Ribble Hospital",0,"NA","NA",0,0,0,0,0,0]
["QE1","RXN","LANCASHIRE TEACHING HOSPITALS NHS FOUNDATION TRUST","RXN02","Royal Preston Hospital",15,0.53333333333333333,0.46666666666666667,6,2,0,5,2,0]
["QE1","RTX","UNIVERSITY HOSPITALS OF MORECAMBE BAY NHS FOUNDATION TRUST","RTXBU","Furness General Hospital",3,"*","*","*","*","*","*","*","*"]
["QE1","RTX","UNIVERSITY HOSPITALS OF MORECAMBE BAY NHS FOUNDATION TRUST","RTX02","Royal Lancaster Infirmary",19,0.89473684210526316,0.10526315789473684,"*","*","*","*","*","*"]
["QF7","RFF","BARNSLEY HOSPITAL NHS FOUNDATION TRUST","RFFAA","Barnsley Hospital NHS Foundation Trust HQ",3,"*","*","*","*","*","*","*","*"]
["QF7","RP5","DONCASTER AND BASSETLAW TEACHING HOSPITALS NHS FOUNDATION TRUST","RP5BA","Bassetlaw Hospital",0,"NA","NA",0,0,0,0,0,0]
["QF7","RP5","DONCASTER AND BASSETLAW TEACHING HOSPITALS NHS FOUNDATION TRUST","RP5DR","Doncaster Royal Infirmary",0,"NA","NA",0,0,0,0,0,0]
["QF7","RP5","DONCASTER AND BASSETLAW TEACHING HOSPITALS NHS FOUNDATION TRUST","RP5XXX","Non-hospital site",51,0.98039215686274506,1.9607843137254902E-2,48,2,0,1,0,0]
["QF7","RHQ","SHEFFIELD TEACHING HOSPITALS NHS FOUNDATION TRUST","RHQHH","Royal Hallamshire Hospital",20,0.85,0.1,12,5,1,2,0,0]
["QF7","RFR","THE ROTHERHAM NHS FOUNDATION TRUST","RFRPA","Rotherham District General Hospital",1,"*","*","*","*","*","*","*","*"]
["QGH","RWP","WORCESTERSHIRE ACUTE HOSPITALS NHS TRUST","RWP01","Alexandra Hospital",0,"NA","NA",0,0,0,0,0,0]
["QGH","RWP","WORCESTERSHIRE ACUTE HOSPITALS NHS TRUST","RWP31","Kidderminster Hospital",0,"NA","NA",0,0,0,0,0,0]
["QGH","RWP","WORCESTERSHIRE ACUTE HOSPITALS NHS TRUST","RWP50","Worcestershire Royal Hospital",3,"*","*","*","*","*","*","*","*"]
["QGH","RLQ","WYE VALLEY NHS TRUST","RLQ01","Hereford County Hospital",0,"NA","NA",0,0,0,0,0,0]
["QH8","RAJ","MID AND SOUTH ESSEX NHS FOUNDATION TRUST","RAJ12","BASILDON HOSPITAL",1,"*","*","*","*","*","*","*","*"]
["QH8","RAJ","MID AND SOUTH ESSEX NHS FOUNDATION TRUST","RAJ32","MID ESSEX HOSPITAL",0,"NA","NA",0,0,0,0,0,0]
["QH8","RAJ","MID AND SOUTH ESSEX NHS FOUNDATION TRUST","RAJ01","Southend Hospital",2,"*","*","*","*","*","*","*","*"]
["QHG","RC9","BEDFORDSHIRE HOSPITALS NHS FOUNDATION TRUST","RC979","BEDFORD HOSPITAL SOUTH WING",93,0.967741935483871,0,49,41,3,0,0,0]
["QHG","RC9","BEDFORDSHIRE HOSPITALS NHS FOUNDATION TRUST","RC971","Luton and Dunstable Hospital",78,0.88461538461538458,2.564102564102564E-2,34,35,6,2,0,1]
["QHG","RD8","MILTON KEYNES UNIVERSITY HOSPITAL NHS FOUNDATION TRUST","RD816","Milton Keynes Hospital",264,0.9242424242424242,3.0303030303030304E-2,183,61,10,4,4,2]
["QHL","RQ3","BIRMINGHAM WOMEN'S AND CHILDREN'S NHS FOUNDATION TRUST","RQ370","Birmingham Women's Hospital",118,0.84745762711864403,0.1271186440677966,69,31,3,3,12,0]
["QHL","RXK","SANDWELL AND WEST BIRMINGHAM HOSPITALS NHS TRUST","RXK02","City Hospital",128,0.796875,0.125,78,24,8,5,11,2]
["QHL","RXK","SANDWELL AND WEST BIRMINGHAM HOSPITALS NHS TRUST","RXK01","Sandwell General Hospital",66,0.80303030303030298,0.13636363636363635,44,9,4,5,4,0]
["QHM","RR7","GATESHEAD HEALTH NHS FOUNDATION TRUST","RR7EN","Queen Elizabeth Hospital",4,"*","*","*","*","*","*","*","*"]
["QHM","RNN","NORTH CUMBRIA INTEGRATED CARE NHS FOUNDATION TRUST","RNN62","Cumberland Infirmary",22,1,0,20,2,0,0,0,0]
["QHM","RNN","NORTH CUMBRIA INTEGRATED CARE NHS FOUNDATION TRUST","RNNXXX","Non-hospital site",2,"*","*","*","*","*","*","*","*"]
["QHM","RNN","NORTH CUMBRIA INTEGRATED CARE NHS FOUNDATION TRUST","RNNBX","West Cumberland Hospital",7,1,0,"*","*","*","*","*","*"]
["QHM","RVW","NORTH TEES AND HARTLEPOOL NHS FOUNDATION TRUST","RVWXXX","Non-hospital site",2,"*","*","*","*","*","*","*","*"]
["QHM","RVW","NORTH TEES AND HARTLEPOOL NHS FOUNDATION TRUST","RVWAE","University Hospital Of North Tees",4,"*","*","*","*","*","*","*","*"]
["QHM","RTR","SOUTH TEES HOSPITALS NHS FOUNDATION TRUST","RTR45","Friarage Hospital Site",3,"*","*","*","*","*","*","*","*"]
["QHM","RTR","SOUTH TEES HOSPITALS NHS FOUNDATION TRUST","RTRAT","The James Cook University Hospital",147,0.93877551020408168,4.7619047619047616E-2,"*","*","*","*","*","*"]
["QHM","R0B","SOUTH TYNESIDE AND SUNDERLAND NHS FOUNDATION TRUST","R0BXXX","Non-hospital site",3,"*","*","*","*","*","*","*","*"]
["QHM","R0B","SOUTH TYNESIDE AND SUNDERLAND NHS FOUNDATION TRUST","R0B0Q","South Tyneside District Hospital",3,"*","*","*","*","*","*","*","*"]
["QHM","R0B","SOUTH TYNESIDE AND SUNDERLAND NHS FOUNDATION TRUST","R0B01","Sunderland Royal Hospital",4,"*","*","*","*","*","*","*","*"]
["QHM","RTD","THE NEWCASTLE UPON TYNE HOSPITALS NHS FOUNDATION TRUST","RTD02","The Royal Victoria Infirmary",1,"*","*","*","*","*","*","*","*"]
["QJ2","RFS","CHESTERFIELD ROYAL HOSPITAL NHS FOUNDATION TRUST","RFSDA","Chesterfield Royal Hospital",103,0.85436893203883491,4.8543689320388349E-2,54,34,10,3,2,0]
["QJ2","RTG","UNIVERSITY HOSPITALS OF DERBY AND BURTON NHS FOUNDATION TRUST","RTG02","Queens Hospital, Burton Upon Trent",26,0.92307692307692313,7.6923076923076927E-2,14,10,0,1,1,0]
["QJ2","RTG","UNIVERSITY HOSPITALS OF DERBY AND BURTON NHS FOUNDATION TRUST","RTGFG","Royal Derby Hospital",18,0.5,0.44444444444444442,5,4,1,5,3,0]
["QJG","RDE","EAST SUFFOLK AND NORTH ESSEX NHS FOUNDATION TRUST","RDEE4","Colchester General Hospital",2,"*","*","*","*","*","*","*","*"]
["QJG","RDE","EAST SUFFOLK AND NORTH ESSEX NHS FOUNDATION TRUST","RDE03","Ipswich Hospital",54,0.98148148148148151,1.8518518518518517E-2,"*","*","*","*","*","*"]
["QJG","RGR","WEST SUFFOLK NHS FOUNDATION TRUST","RGR50","West Suffolk Hospital",8,1,0,7,1,0,0,0,0]
["QJK","RH8","ROYAL DEVON UNIVERSITY HEALTHCARE NHS FOUNDATION TRUST","RH880","North Devon District Hospital",12,1,0,11,1,0,0,0,0]
["QJK","RH8","ROYAL DEVON UNIVERSITY HEALTHCARE NHS FOUNDATION TRUST","RH801","Royal Devon and Exeter Hospital (Wonford)",23,1,0,22,1,0,0,0,0]
["QJK","RA9","TORBAY AND SOUTH DEVON NHS FOUNDATION TRUST","RA901","Torbay Hospital",0,"NA","NA",0,0,0,0,0,0]
["QJK","RK9","UNIVERSITY HOSPITALS PLYMOUTH NHS TRUST","RK950","Derriford Hospital",4,"*","*","*","*","*","*","*","*"]
["QJK","RK9","UNIVERSITY HOSPITALS PLYMOUTH NHS TRUST","RK9XXX","Non-hospital site",6,1,0,"*","*","*","*","*","*"]
["QJM","RWD","UNITED LINCOLNSHIRE HOSPITALS NHS TRUST","RWDLP","Grantham and District Hospital",0,"NA","NA",0,0,0,0,0,0]
["QJM","RWD","UNITED LINCOLNSHIRE HOSPITALS NHS TRUST","RWDDA","Lincoln County Hospital",0,"NA","NA",0,0,0,0,0,0]
["QJM","RWD","UNITED LINCOLNSHIRE HOSPITALS NHS TRUST","RWDLA","Pilgrim Hospital",0,"NA","NA",0,0,0,0,0,0]
["QK1","RWE","UNIVERSITY HOSPITALS OF LEICESTER NHS TRUST","RWEAK","Leicester General Hospital",43,0.95348837209302328,0,32,9,2,0,0,0]
["QK1","RWE","UNIVERSITY HOSPITALS OF LEICESTER NHS TRUST","RWEAA","Leicester Royal Infirmary",24,0.95833333333333337,0,"*","*","*","*","*","*"]
["QK1","RWE","UNIVERSITY HOSPITALS OF LEICESTER NHS TRUST","RWEXXX","Non-hospital site",64,0.921875,1.5625E-2,47,12,1,1,0,3]
["QK1","RWE","UNIVERSITY HOSPITALS OF LEICESTER NHS TRUST","RWE10","St Mary's Hospital",4,"*","*","*","*","*","*","*","*"]
["QKK","RJ1","GUY'S AND ST THOMAS' NHS FOUNDATION TRUST","RJ122","St Thomas' Hospital",8,0.625,0.25,3,2,1,1,1,0]
["QKK","RJZ","KING'S COLLEGE HOSPITAL NHS FOUNDATION TRUST","RJZ01","King's College Hospital (Denmark Hill)",17,0.94117647058823528,0,"*","*","*","*","*","*"]
["QKK","RJZ","KING'S COLLEGE HOSPITAL NHS FOUNDATION TRUST","RJZ30","Princess Royal University Hospital",2,"*","*","*","*","*","*","*","*"]
["QKK","RJ2","LEWISHAM AND GREENWICH NHS TRUST","RJ231","Queen Elizabeth Hospital",19,0.84210526315789469,5.2631578947368418E-2,12,4,2,1,0,0]
["QKK","RJ2","LEWISHAM AND GREENWICH NHS TRUST","RJ224","University Hospital Lewisham",72,1,0,55,17,0,0,0,0]
["QKS","RN7","DARTFORD AND GRAVESHAM NHS TRUST","RN707","Darent Valley Hospital",143,0.91608391608391604,4.8951048951048952E-2,110,21,3,7,0,2]
["QKS","RVV","EAST KENT HOSPITALS UNIVERSITY NHS FOUNDATION TRUST","RVV01","William Harvey Hospital (Ashford)",152,0.90789473684210531,5.2631578947368418E-2,107,31,6,5,3,0]
["QKS","RWF","MAIDSTONE AND TUNBRIDGE WELLS NHS TRUST","RWF03","Maidstone District General Hospital",40,1,0,40,0,0,0,0,0]
["QKS","RWF","MAIDSTONE AND TUNBRIDGE WELLS NHS TRUST","RWFXXX","Non-hospital site",25,1,0,25,0,0,0,0,0]
["QKS","RWF","MAIDSTONE AND TUNBRIDGE WELLS NHS TRUST","RWFTW","The Tunbridge Wells Hospital",129,0.99224806201550386,7.7519379844961239E-3,126,2,0,1,0,0]
["QKS","RPA","MEDWAY NHS FOUNDATION TRUST","RPA02","Medway Maritime Hospital",12,0.83333333333333337,8.3333333333333329E-2,8,2,1,0,1,0]
["QM7","RWH","EAST AND NORTH HERTFORDSHIRE NHS TRUST","RWH01","Lister Hospital",25,0.88,0,"*","*","*","*","*","*"]
["QM7","RWH","EAST AND NORTH HERTFORDSHIRE NHS TRUST","RWHXXX","Non-hospital site",0,"NA","NA",0,0,0,0,0,0]
["QM7","RQW","THE PRINCESS ALEXANDRA HOSPITAL NHS TRUST","RQWG0","Princess Alexandra Hospital",0,"NA","NA",0,0,0,0,0,0]
["QM7","RWG","WEST HERTFORDSHIRE TEACHING HOSPITALS NHS TRUST","RWG02","Watford General Hospital",3,"*","*","*","*","*","*","*","*"]
["QMF","RF4","BARKING, HAVERING AND REDBRIDGE UNIVERSITY HOSPITALS NHS TRUST","RF4XXX","Non-hospital site",68,0.95588235294117652,1.4705882352941176E-2,56,9,1,0,1,1]
["QMF","R1H","BARTS HEALTH NHS TRUST","R1HNH","Newham General Hospital",91,0.82417582417582413,0.10989010989010989,63,12,6,4,6,0]
["QMF","R1H","BARTS HEALTH NHS TRUST","R1H12","The Royal London Hospital",25,0.84,0.08,16,5,0,1,1,2]
["QMF","R1H","BARTS HEALTH NHS TRUST","R1HKH","Whipps Cross University Hospital",61,0.95081967213114749,0,52,6,3,0,0,0]
["QMF","RQX","HOMERTON HEALTHCARE NHS FOUNDATION TRUST","RQXM1","Homerton University Hospital",14,0.7142857142857143,0.14285714285714285,5,5,2,1,1,0]
["QMJ","RAP","NORTH MIDDLESEX UNIVERSITY HOSPITAL NHS TRUST","RAPNM","North Middlesex Hospital",48,0.89583333333333337,6.25E-2,34,9,2,3,0,0]
["QMJ","RAL","ROYAL FREE LONDON NHS FOUNDATION TRUST","RAL26","Barnet Hospital",9,0.55555555555555558,0.44444444444444442,"*","*","*","*","*","*"]
["QMJ","RAL","ROYAL FREE LONDON NHS FOUNDATION TRUST","RAL01","Royal Free Hospital",1,"*","*","*","*","*","*","*","*"]
["QMJ","RRV","UNIVERSITY COLLEGE LONDON HOSPITALS NHS FOUNDATION TRUST","RRV11","University College Hospital Elizabeth Garrett Anderson Wing",2,"*","*","*","*","*","*","*","*"]
["QMJ","RKE","WHITTINGTON HEALTH NHS TRUST","RKEXXX","Non-hospital site",40,0.92500000000000004,2.5000000000000001E-2,33,4,2,1,0,0]
["QMJ","RKE","WHITTINGTON HEALTH NHS TRUST","RKEQ4","The Whittington Hospital",8,1,0,8,0,0,0,0,0]
["QMM","RGP","JAMES PAGET UNIVERSITY HOSPITALS NHS FOUNDATION TRUST","RGP75","James Paget University Hospital",0,"NA","NA",0,0,0,0,0,0]
["QMM","RM1","NORFOLK AND NORWICH UNIVERSITY HOSPITALS NHS FOUNDATION TRUST","RM102","Norfolk and Norwich University Hospital",59,0.79661016949152541,0.16949152542372881,28,19,2,5,5,0]
["QMM","RCX","THE QUEEN ELIZABETH HOSPITAL, KING'S LYNN, NHS FOUNDATION TRUST","RCXXXX","Non-hospital site",41,1,0,35,6,0,0,0,0]
["QMM","RCX","THE QUEEN ELIZABETH HOSPITAL, KING'S LYNN, NHS FOUNDATION TRUST","RCX66","North Cambridgeshire Hospital",0,"NA","NA",0,0,0,0,0,0]
["QMM","RCX","THE QUEEN ELIZABETH HOSPITAL, KING'S LYNN, NHS FOUNDATION TRUST","RCX70","The Queen Elizabeth Hospital",54,0.94444444444444442,5.5555555555555552E-2,38,13,0,2,1,0]
["QNC","RJE","UNIVERSITY HOSPITALS OF NORTH MIDLANDS NHS TRUST","RJEXXX","Non-hospital site",6,1,0,6,0,0,0,0,0]
["QNC","RJE","UNIVERSITY HOSPITALS OF NORTH MIDLANDS NHS TRUST","RJE01","Royal Stoke University Hospital",13,0.92307692307692313,7.6923076923076927E-2,9,3,0,0,1,0]
["QNQ","RDU","FRIMLEY HEALTH NHS FOUNDATION TRUST","RDU01","Frimley Park Hospital",11,0.90909090909090906,9.0909090909090912E-2,9,1,0,0,1,0]
["QNX","RXC","EAST SUSSEX HEALTHCARE NHS TRUST","RXC01","Conquest Hospital",0,"NA","NA",0,0,0,0,0,0]
["QNX","RXC","EAST SUSSEX HEALTHCARE NHS TRUST","RXC02","Eastbourne District General Hospital",0,"NA","NA",0,0,0,0,0,0]
["QNX","RXC","EAST SUSSEX HEALTHCARE NHS TRUST","RXCXXX","Non-hospital site",0,"NA","NA",0,0,0,0,0,0]
["QOC","RXW","THE SHREWSBURY AND TELFORD HOSPITAL NHS TRUST","RXWXXX","Non-hospital site",19,1,0,19,0,0,0,0,0]
["QOP","RMC","BOLTON NHS FOUNDATION TRUST","RMC01","Royal Bolton Hospital",28,0.9285714285714286,3.5714285714285712E-2,24,2,1,1,0,0]
["QOP","R0A","MANCHESTER UNIVERSITY NHS FOUNDATION TRUST","R0A05","St Mary's Hospital",315,0.9555555555555556,1.9047619047619049E-2,267,34,6,2,4,2]
["QOP","RM3","NORTHERN CARE ALLIANCE NHS FOUNDATION TRUST","RW603","Royal Oldham Hospital",0,"NA","NA",0,0,0,0,0,0]
["QOP","RWJ","STOCKPORT NHS FOUNDATION TRUST","RWJ09","Stepping Hill Hospital",20,0.9,0.1,"*","*","*","*","*","*"]
["QOP","RMP","TAMESIDE AND GLOSSOP INTEGRATED CARE NHS FOUNDATION TRUST","RMP01","Tameside General Hospital",22,0.90909090909090906,4.5454545454545456E-2,17,3,1,0,1,0]
["QOP","RRF","WRIGHTINGTON, WIGAN AND LEIGH NHS FOUNDATION TRUST","RRF02","Royal Albert Edward Infirmary",2,"*","*","*","*","*","*","*","*"]
["QOQ","RCD","HARROGATE AND DISTRICT NHS FOUNDATION TRUST","RCD01","Harrogate District Hospital",0,"NA","NA",0,0,0,0,0,0]
["QOQ","RWA","HULL UNIVERSITY TEACHING HOSPITALS NHS TRUST","RWA01","Hull Royal Infirmary",0,"NA","NA",0,0,0,0,0,0]
["QOQ","RJL","NORTHERN LINCOLNSHIRE AND GOOLE NHS FOUNDATION TRUST","RJL30","Diana, Princess Of Wales Hospital",4,"*","*","*","*","*","*","*","*"]
["QOQ","RJL","NORTHERN LINCOLNSHIRE AND GOOLE NHS FOUNDATION TRUST","RJL32","Scunthorpe General Hospital",3,"*","*","*","*","*","*","*","*"]
["QOQ","RCB","YORK AND SCARBOROUGH TEACHING HOSPITALS NHS FOUNDATION TRUST","RCBCA","Scarborough General Hospital",0,"NA","NA",0,0,0,0,0,0]
["QOQ","RCB","YORK AND SCARBOROUGH TEACHING HOSPITALS NHS FOUNDATION TRUST","RCB55","York Hospital",0,"NA","NA",0,0,0,0,0,0]
["QOX","RN3","GREAT WESTERN HOSPITALS NHS FOUNDATION TRUST","RN325","The Great Western Hospital",42,0.8571428571428571,7.1428571428571425E-2,"*","*","*","*","*","*"]
["QOX","RD1","ROYAL UNITED HOSPITALS BATH NHS FOUNDATION TRUST","RD130","Princess Anne Wing RUH",1,"*","*","*","*","*","*","*","*"]
["QOX","RD1","ROYAL UNITED HOSPITALS BATH NHS FOUNDATION TRUST","RD108","Trowbridge Community Hospital",1,"*","*","*","*","*","*","*","*"]
["QOX","RNZ","SALISBURY NHS FOUNDATION TRUST","RNZ02","Salisbury District Hospital",0,"NA","NA",0,0,0,0,0,0]
["QPM","RNQ","KETTERING GENERAL HOSPITAL NHS FOUNDATION TRUST","RNQ51","Kettering General Hospital",2,"*","*","*","*","*","*","*","*"]
["QPM","RNS","NORTHAMPTON GENERAL HOSPITAL NHS TRUST","RNS01","Northampton General Hospital (Acute)",0,"NA","NA",0,0,0,0,0,0]
["QRL","RN5","HAMPSHIRE HOSPITALS NHS FOUNDATION TRUST","RN542","Andover War Memorial Hospital",3,"*","*","*","*","*","*","*","*"]
["QRL","RN5","HAMPSHIRE HOSPITALS NHS FOUNDATION TRUST","RN506","Basingstoke and North Hampshire Hospital",2,"*","*","*","*","*","*","*","*"]
["QRL","RN5","HAMPSHIRE HOSPITALS NHS FOUNDATION TRUST","RN541","Royal Hampshire County Hospital",2,"*","*","*","*","*","*","*","*"]
["QRL","R1F","ISLE OF WIGHT NHS TRUST","R1F01","St Mary's Hospital",6,1,0,6,0,0,0,0,0]
["QRL","RHU","PORTSMOUTH HOSPITALS UNIVERSITY NATIONAL HEALTH SERVICE TRUST","RHU10","Gosport War Memorial Hospital",45,1,0,"*","*","*","*","*","*"]
["QRL","RHU","PORTSMOUTH HOSPITALS UNIVERSITY NATIONAL HEALTH SERVICE TRUST","RHU03","Queen Alexandra Hospital",1,"*","*","*","*","*","*","*","*"]
["QRL","RHU","PORTSMOUTH HOSPITALS UNIVERSITY NATIONAL HEALTH SERVICE TRUST","RHU02","St Mary's Hospital",63,0.96825396825396826,0,55,6,2,0,0,0]
["QRL","RHM","UNIVERSITY HOSPITAL SOUTHAMPTON NHS FOUNDATION TRUST","RHM01","Southampton General Hospital",109,0.88990825688073394,2.7522935779816515E-2,71,26,8,2,1,1]
["QRV","RQM","CHELSEA AND WESTMINSTER HOSPITAL NHS FOUNDATION TRUST","RQM01","Chelsea and Westminster Hospital",60,0.85,8.3333333333333329E-2,45,6,3,1,4,1]
["QRV","RQM","CHELSEA AND WESTMINSTER HOSPITAL NHS FOUNDATION TRUST","RQM91","West Middlesex University Hospital",17,0.6470588235294118,0.35294117647058826,8,3,0,4,2,0]
["QRV","RYJ","IMPERIAL COLLEGE HEALTHCARE NHS TRUST","RYJ04","Queen Charlotte's Hospital",30,1,0,25,5,0,0,0,0]
["QRV","RYJ","IMPERIAL COLLEGE HEALTHCARE NHS TRUST","RYJ01","St Mary's Hospital (HQ)",19,0.94736842105263153,0,16,2,1,0,0,0]
["QRV","R1K","LONDON NORTH WEST UNIVERSITY HEALTHCARE NHS TRUST","R1K01","Northwick Park Hospital",0,"NA","NA",0,0,0,0,0,0]
["QRV","RAS","THE HILLINGDON HOSPITALS NHS FOUNDATION TRUST","RAS01","Hillingdon Hospital",96,0.83333333333333337,8.3333333333333329E-2,60,20,8,3,5,0]
["QSL","RH5","SOMERSET NHS FOUNDATION TRUST","RH5K6","Bridgwater Hospital",1,"*","*","*","*","*","*","*","*"]
["QSL","RH5","SOMERSET NHS FOUNDATION TRUST","RH5A8","MUSGROVE PARK HOSPITAL",0,"NA","NA",0,0,0,0,0,0]
["QSL","RH5","SOMERSET NHS FOUNDATION TRUST","RH5XXXX","Non-hospital site home/in-transit births",0,"NA","NA",0,0,0,0,0,0]
["QSL","RH5","SOMERSET NHS FOUNDATION TRUST","RH5O4","Yeovil District Hospital",14,0.9285714285714286,0,"*","*","*","*","*","*"]
["QT1","RX1","NOTTINGHAM UNIVERSITY HOSPITALS NHS TRUST","RX1XXX","Non-hospital site",329,0.94528875379939215,2.1276595744680851E-2,277,34,11,4,3,0]
["QT1","RK5","SHERWOOD FOREST HOSPITALS NHS FOUNDATION TRUST","RK5BC","King's Mill Hospital",9,0.88888888888888884,0,5,3,1,0,0,0]
["QT6","REF","ROYAL CORNWALL HOSPITALS NHS TRUST","REFXXX","Non-hospital site",0,"NA","NA",0,0,0,0,0,0]
["QT6","REF","ROYAL CORNWALL HOSPITALS NHS TRUST","REF12","Royal Cornwall Hospital (Treliske)",4,"*","*","*","*","*","*","*","*"]
["QU9","RXQ","BUCKINGHAMSHIRE HEALTHCARE NHS TRUST","RXQ02","Stoke Mandeville Hospital",93,0.89247311827956988,5.3763440860215055E-2,70,13,4,3,2,1]
["QU9","RXQ","BUCKINGHAMSHIRE HEALTHCARE NHS TRUST","RXQ50","Wycombe Hospital",52,0.86538461538461542,5.7692307692307696E-2,36,9,4,2,1,0]
["QU9","RTH","OXFORD UNIVERSITY HOSPITALS NHS FOUNDATION TRUST","RTH05","Horton General Hospital",5,0.6,0.2,3,0,1,0,1,0]
["QU9","RHW","ROYAL BERKSHIRE NHS FOUNDATION TRUST","RHW01","Royal Berkshire Hospital",32,0.875,6.25E-2,25,3,2,1,1,0]
["QUA","RNA","THE DUDLEY GROUP NHS FOUNDATION TRUST","RNAXXX","Non-hospital site",13,1,0,13,0,0,0,0,0]
["QUA","RNA","THE DUDLEY GROUP NHS FOUNDATION TRUST","RNA01","Russells Hall Hospital",26,0.76923076923076927,0.11538461538461539,20,0,1,0,3,2]
["QUA","RL4","THE ROYAL WOLVERHAMPTON NHS TRUST","RL403","New Cross Hospital",35,0.82857142857142863,0.14285714285714285,24,5,0,1,4,1]
["QUA","RBK","WALSALL HEALTHCARE NHS TRUST","RBK02","Manor Hospital",59,0.86440677966101698,8.4745762711864403E-2,41,10,3,3,2,0]
["QUE","RGT","CAMBRIDGE UNIVERSITY HOSPITALS NHS FOUNDATION TRUST","RGT32","Rosie Hospital",4,"*","*","*","*","*","*","*","*"]
["QUE","RGN","NORTH WEST ANGLIA NHS FOUNDATION TRUST","RGN90","Hinchingbrooke Hospital",74,0.97297297297297303,2.7027027027027029E-2,"*","*","*","*","*","*"]
["QUE","RGN","NORTH WEST ANGLIA NHS FOUNDATION TRUST","RGN80","Peterborough City Hospital",20,1,0,"*","*","*","*","*","*"]
["QUY","RVJ","NORTH BRISTOL NHS TRUST","RVJ01","Southmead Hospital",5,1,0,5,0,0,0,0,0]
["QUY","RA7","UNIVERSITY HOSPITALS BRISTOL AND WESTON NHS FOUNDATION TRUST","RA707","St Michael's Hospital",25,1,0,19,6,0,0,0,0]
["QVV","RBD","DORSET COUNTY HOSPITAL NHS FOUNDATION TRUST","RBD01","Dorset County Hospital",17,1,0,14,3,0,0,0,0]
["QVV","R0D","UNIVERSITY HOSPITALS DORSET NHS FOUNDATION TRUST","R0D01","Poole Hospital",41,0.87804878048780488,7.3170731707317069E-2,"*","*","*","*","*","*"]
["QVV","R0D","UNIVERSITY HOSPITALS DORSET NHS FOUNDATION TRUST","R0D02","Royal Bournemouth Hospital",1,"*","*","*","*","*","*","*","*"]
["QWE","RVR","EPSOM AND ST HELIER UNIVERSITY HOSPITALS NHS TRUST","RVR50","Epsom Hospital",1,"*","*","*","*","*","*","*","*"]
["QWE","RVR","EPSOM AND ST HELIER UNIVERSITY HOSPITALS NHS TRUST","RVRXXX","Non-hospital site",0,"NA","NA",0,0,0,0,0,0]
["QWE","RVR","EPSOM AND ST HELIER UNIVERSITY HOSPITALS NHS TRUST","RVR05","St Helier Hospital",14,0.7857142857142857,0.14285714285714285,"*","*","*","*","*","*"]
["QWE","RAX","KINGSTON HOSPITAL NHS FOUNDATION TRUST","RAX01","Kingston Hospital",70,0.88571428571428568,4.2857142857142858E-2,52,10,5,2,1,0]
["QWE","RJ7","ST GEORGE'S UNIVERSITY HOSPITALS NHS FOUNDATION TRUST","RJ701","St George's Hospital (Tooting)",30,0.8,0.1,15,9,3,0,3,0]
["QWO","RAE","BRADFORD TEACHING HOSPITALS NHS FOUNDATION TRUST","RAE01","Bradford Royal Infirmary",42,0.8571428571428571,0.14285714285714285,34,2,0,2,4,0]
["QWO","RWY","CALDERDALE AND HUDDERSFIELD NHS FOUNDATION TRUST","RWY02","Calderdale Royal Hospital",49,0.95918367346938771,2.0408163265306121E-2,37,10,1,1,0,0]
["QWO","RWY","CALDERDALE AND HUDDERSFIELD NHS FOUNDATION TRUST","RWY01","Huddersfield Royal Infirmary",12,1,0,12,0,0,0,0,0]
["QWO","RWY","CALDERDALE AND HUDDERSFIELD NHS FOUNDATION TRUST","RWYXXX","Non-hospital site",0,"NA","NA",0,0,0,0,0,0]
["QWO","RR8","LEEDS TEACHING HOSPITALS NHS TRUST","RR801","Leeds General Infirmary",73,0.93150684931506844,2.7397260273972601E-2,62,6,3,1,1,0]
["QWO","RR8","LEEDS TEACHING HOSPITALS NHS TRUST","RR8XXX","Non-hospital site",7,0.7142857142857143,0.2857142857142857,"*","*","*","*","*","*"]
["QWO","RR8","LEEDS TEACHING HOSPITALS NHS TRUST","RR813","St James's University Hospital",3,"*","*","*","*","*","*","*","*"]
["QWO","RXF","MID YORKSHIRE TEACHING NHS TRUST","RXF10","Dewsbury and District Hospital",130,0.9538461538461539,7.6923076923076927E-3,94,30,5,0,1,0]
["QWO","RXF","MID YORKSHIRE TEACHING NHS TRUST","RXF05","Pinderfields General Hospital",201,0.93034825870646765,4.975124378109453E-2,152,35,4,5,5,0]
["QWO","RXF","MID YORKSHIRE TEACHING NHS TRUST","RXF03","Pontefract General Infirmary",100,0.95,0.03,86,9,2,2,1,0]
["QWU","RLT","GEORGE ELIOT HOSPITAL NHS TRUST","RLT01","George Eliot Hospital - Acute Services",0,"NA","NA",0,0,0,0,0,0]
["QWU","RJC","SOUTH WARWICKSHIRE UNIVERSITY NHS FOUNDATION TRUST","RJCXXX","Non-hospital site",1,"*","*","*","*","*","*","*","*"]
["QWU","RJC","SOUTH WARWICKSHIRE UNIVERSITY NHS FOUNDATION TRUST","RJC02","Warwick Hospital",2,"*","*","*","*","*","*","*","*"]
["QWU","RKB","UNIVERSITY HOSPITALS COVENTRY AND WARWICKSHIRE NHS TRUST","RKB03","Hospital Of St Cross",0,"NA","NA",0,0,0,0,0,0]
["QWU","RKB","UNIVERSITY HOSPITALS COVENTRY AND WARWICKSHIRE NHS TRUST","RKBXXX","Non-hospital site",22,0.86363636363636365,4.5454545454545456E-2,"*","*","*","*","*","*"]
["QWU","RKB","UNIVERSITY HOSPITALS COVENTRY AND WARWICKSHIRE NHS TRUST","RKB01","University Hospital (Coventry)",55,0.83636363636363631,3.6363636363636362E-2,"*","*","*","*","*","*"]
["QXU","RTK","ASHFORD AND ST PETER'S HOSPITALS NHS FOUNDATION TRUST","RTK02","Ashford Hospital",0,"NA","NA",0,0,0,0,0,0]
["QXU","RA2","ROYAL SURREY COUNTY HOSPITAL NHS FOUNDATION TRUST","RA201","Royal Surrey County Hospital",5,1,0,"*","*","*","*","*","*"]
["QXU","RTP","SURREY AND SUSSEX HEALTHCARE NHS TRUST","RTP04","East Surrey Hospital",4,"*","*","*","*","*","*","*","*"]
["QYG","REP","LIVERPOOL WOMEN'S NHS FOUNDATION TRUST","REP01","Liverpool Womens Hospital",12,0.91666666666666663,0,9,2,0,0,0,1]
["QYG","RBN","MERSEY AND WEST LANCASHIRE TEACHING HOSPITALS NHS TRUST","RBN52","Ormskirk and District General Hospital",3,"*","*","*","*","*","*","*","*"]
["QYG","RBN","MERSEY AND WEST LANCASHIRE TEACHING HOSPITALS NHS TRUST","RBN01","Whiston Hospital",51,0.94117647058823528,3.9215686274509803E-2,"*","*","*","*","*","*"]
["QYG","RBT","MID CHESHIRE HOSPITALS NHS FOUNDATION TRUST","RBT20","Leighton Hospital",7,1,0,"*","*","*","*","*","*"]
["QYG","RWW","WARRINGTON AND HALTON TEACHING HOSPITALS NHS FOUNDATION TRUST","RWWWH","Warrington Hospital",1,"*","*","*","*","*","*","*","*"]
["QYG","RBL","WIRRAL UNIVERSITY TEACHING HOSPITAL NHS FOUNDATION TRUST","RBL14","Arrowe Park Hospital",50,0.94,0.06,40,7,0,1,2,0]

{"sheet":"ICB Q2","index":5,"n_rows":55,"n_cols":12,"rows_kept":55,"cut":false,"hidden":false,"merged":[[8,6,8,11],[8,0,9,0],[8,1,9,1],[8,2,9,2],[8,3,9,3],[8,4,9,4],[8,5,9,5]]}
[]
[]
[]
[]
[]
[null,"   Sort data by:           "]
[]
[]
["ICB Code","ICB Name","Total Responses","Total Eligible","Percentage Positive","Percentage Negative","Breakdown of Responses"]
[null,null,null,null,null,null,"Very Good","Good","Neither Good nor Poor","Poor","Very Poor","Don't Know"]
[null,"England (including Independent Sector providers)",5214,42614,0.93785960874568475,3.5673187571921748E-2,4180,710,109,77,109,29]
[null,"England (excluding Independent Sector providers)",5214,42614,0.93785960874568475,3.5673187571921748E-2,4180,710,109,77,109,29]
[null,"Selection (excluding suppressed data)",{"$f":"SUBTOTAL(9,C14:C55)","v":5214},{"$f":"SUBTOTAL(9,D14:D55)","v":42614},{"$f":"IFERROR((G13+H13)/SUM(G13:L13), \"-\")","v":0.93785960874568475},{"$f":"IFERROR((J13+K13)/SUM(G13:L13), \"-\")","v":3.5673187571921748E-2},{"$f":"SUBTOTAL(9,G14:G55)","v":4180},{"$f":"SUBTOTAL(9,H14:H55)","v":710},109,77,109,29]
["QE1","LANCASHIRE AND SOUTH CUMBRIA ICB",86,1186,0.95348837209302328,1.1627906976744186E-2,73,9,3,0,1,0]
["QF7","SOUTH YORKSHIRE ICB",63,1305,0.95238095238095233,4.7619047619047616E-2,53,7,0,1,2,0]
["QGH","HEREFORDSHIRE AND WORCESTERSHIRE ICB",31,123,0.967741935483871,3.2258064516129031E-2,24,6,0,0,1,0]
["QH8","MID AND SOUTH ESSEX ICB",123,451,0.90243902439024393,6.5040650406504072E-2,94,17,3,3,5,1]
["QHG","BEDFORDSHIRE, LUTON AND MILTON KEYNES ICB",79,1399,0.94936708860759489,3.7974683544303799E-2,62,13,1,1,2,0]
["QHL","BIRMINGHAM AND SOLIHULL ICB",124,1792,0.77419354838709675,0.16935483870967741,72,24,4,9,12,3]
["QHM","NORTH EAST AND NORTH CUMBRIA ICB",294,2390,0.92517006802721091,4.0816326530612242E-2,227,45,9,5,7,1]
["QJ2","DERBY AND DERBYSHIRE ICB",165,822,0.96363636363636362,1.8181818181818181E-2,126,33,2,2,1,1]
["QJG","SUFFOLK AND NORTH EAST ESSEX ICB",43,832,0.97674418604651159,0,37,5,1,0,0,0]
["QJK","DEVON ICB",15,613,1,0,12,3,0,0,0,0]
["QJM","LINCOLNSHIRE ICB",56,354,0.9642857142857143,1.7857142857142856E-2,49,5,1,1,0,0]
["QK1","LEICESTER, LEICESTERSHIRE AND RUTLAND ICB",192,751,0.921875,3.6458333333333336E-2,143,34,5,3,4,3]
["QKK","SOUTH EAST LONDON ICB",228,1607,0.92982456140350878,3.5087719298245612E-2,159,53,8,5,3,0]
["QKS","KENT AND MEDWAY ICB",136,1166,0.9779411764705882,1.4705882352941176E-2,127,6,1,1,1,0]
["QM7","HERTFORDSHIRE AND WEST ESSEX ICB",27,966,0.88888888888888884,3.7037037037037035E-2,20,4,2,0,1,0]
["QMF","NORTH EAST LONDON ICB",270,2174,0.95925925925925926,2.9629629629629631E-2,201,58,2,3,5,1]
["QMJ","NORTH CENTRAL LONDON ICB",208,1403,0.92307692307692313,3.8461538461538464E-2,156,36,8,2,6,0]
["QMM","NORFOLK AND WAVENEY ICB",57,727,0.96491228070175439,3.5087719298245612E-2,52,3,0,2,0,0]
["QNC","STAFFORDSHIRE AND STOKE-ON-TRENT ICB",20,386,1,0,16,4,0,0,0,0]
["QNQ","FRIMLEY ICB",12,0,1,0,12,0,0,0,0,0]
["QNX","SUSSEX ICB",92,958,0.94565217391304346,5.434782608695652E-2,80,7,0,2,3,0]
["QOC","SHROPSHIRE, TELFORD AND WREKIN ICB",22,338,1,0,21,1,0,0,0,0]
["QOP","GREATER MANCHESTER ICB",328,4040,0.96036585365853655,2.7439024390243903E-2,264,51,4,2,7,0]
["QOQ","HUMBER AND NORTH YORKSHIRE ICB",82,1114,0.97560975609756095,0,77,3,2,0,0,0]
["QOX","BATH AND NORTH EAST SOMERSET, SWINDON AND WILTSHIRE ICB",79,779,0.86075949367088611,0.11392405063291139,51,17,2,6,3,0]
["QPM","NORTHAMPTONSHIRE ICB",54,636,0.87037037037037035,9.2592592592592587E-2,40,7,2,3,2,0]
["QR1","GLOUCESTERSHIRE ICB",89,240,0.898876404494382,3.3707865168539325E-2,63,17,5,1,2,1]
["QRL","HAMPSHIRE AND ISLE OF WIGHT ICB",269,1249,0.96282527881040891,1.1152416356877323E-2,238,21,4,1,2,3]
["QRV","NORTH WEST LONDON ICB",245,1465,0.91836734693877553,5.3061224489795916E-2,187,38,7,4,9,0]
["QSL","SOMERSET ICB",0,345,"NA","NA",0,0,0,0,0,0]
["QT1","NOTTINGHAM AND NOTTINGHAMSHIRE ICB",70,653,0.94285714285714284,4.2857142857142858E-2,56,10,1,2,1,0]
["QT6","CORNWALL AND THE ISLES OF SCILLY ICB",6,284,0.83333333333333337,0,4,1,1,0,0,0]
["QU9","BUCKINGHAMSHIRE, OXFORDSHIRE AND BERKSHIRE WEST ICB",179,1112,0.87150837988826813,6.7039106145251395E-2,126,30,11,5,7,0]
["QUA","BLACK COUNTRY ICB",118,1025,0.88135593220338981,3.3898305084745763E-2,90,14,1,1,3,9]
["QUE","CAMBRIDGESHIRE AND PETERBOROUGH ICB",63,950,0.96825396825396826,0,56,5,2,0,0,0]
["QUY","BRISTOL, NORTH SOMERSET AND SOUTH GLOUCESTERSHIRE ICB",150,699,0.97333333333333338,6.6666666666666671E-3,124,22,3,1,0,0]
["QVV","DORSET ICB",125,401,0.96,1.6E-2,105,15,1,0,2,2]
["QWE","SOUTH WEST LONDON ICB",117,1171,0.92307692307692313,4.2735042735042736E-2,97,11,4,1,4,0]
["QWO","WEST YORKSHIRE ICB",491,1578,0.9837067209775967,1.0183299389002037E-2,446,37,3,1,4,0]
["QWU","COVENTRY AND WARWICKSHIRE ICB",111,743,0.95495495495495497,3.6036036036036036E-2,93,13,1,3,1,0]
["QXU","SURREY HEARTLANDS ICB",42,839,0.88095238095238093,2.3809523809523808E-2,34,3,2,1,0,2]
["QYG","CHESHIRE AND MERSEYSIDE ICB",253,1548,0.92885375494071143,5.1383399209486168E-2,213,22,3,5,8,2]

{"sheet":"Trusts Q2","index":6,"n_rows":129,"n_cols":21,"rows_kept":129,"cut":false,"hidden":false,"merged":[[8,6,9,6],[8,7,8,12],[8,13,8,20],[8,0,9,0],[8,1,9,1],[8,2,9,2],[8,3,9,3],[8,4,9,4],[8,5,9,5]]}
[]
[]
[]
[]
[]
[null,"   Sort data by:           "]
[]
[]
["ICB Code","Trust Code","Trust Name","Total Responses","Total Eligible","Percentage Positive","Percentage Negative","Breakdown of Responses",null,null,null,null,null,"Mode of Collection"]
[null,null,null,null,null,null,null,"Very Good","Good","Neither Good nor Poor","Poor","Very Poor","Don't Know","Mode SMS","Mode Electronic Discharge","Mode Electronic Home","Mode Paper Discharge","Mode Paper Home","Mode Telephone","Mode Online","Mode Other"]
[null,null,"England (including Independent Sector providers)",5214,42614,0.93785960874568475,3.5673187571921748E-2,4180,710,109,77,109,29,2047,719,64,1376,42,21,728,217]
[null,null,"England (excluding Independent Sector providers)",5214,42614,0.93785960874568475,3.5673187571921748E-2,4180,710,109,77,109,29,2047,719,64,1376,42,21,728,217]
[null,null,"Selection (excluding suppressed data)",{"$f":"SUBTOTAL(9,D14:D299)","v":5214},{"$f":"SUBTOTAL(9,E14:E299)","v":42614},{"$f":"IFERROR((H13+I13)/SUM(H13:M13), \"-\")","v":0.93696559952276792},{"$f":"IFERROR((K13+L13)/SUM(H13:M13), \"-\")","v":3.6190097434877708E-2},{"$f":"SUBTOTAL(9,H14:H299)","v":4021},{"$f":"SUBTOTAL(9,I14:I299)","v":691},106,76,106,29,1933,694,64,1343,42,21,718,214]
["QE1","RXL","BLACKPOOL TEACHING HOSPITALS NHS FOUNDATION TRUST",31,213,0.967741935483871,0,24,6,1,0,0,0,31,0,0,0,0,0,0,0]
["QE1","RXR","EAST LANCASHIRE HOSPITALS NHS TRUST",10,485,0.9,0.1,9,0,0,0,1,0,0,0,0,10,0,0,0,0]
["QE1","RXN","LANCASHIRE TEACHING HOSPITALS NHS FOUNDATION TRUST",11,169,0.81818181818181823,0,6,3,2,0,0,0,11,0,0,0,0,0,0,0]
["QE1","RTX","UNIVERSITY HOSPITALS OF MORECAMBE BAY NHS FOUNDATION TRUST",34,319,1,0,34,0,0,0,0,0,28,0,0,0,0,0,6,0]
["QF7","RFF","BARNSLEY HOSPITAL NHS FOUNDATION TRUST",16,245,1,0,16,0,0,0,0,0,0,16,0,0,0,0,0,0]
["QF7","RP5","DONCASTER AND BASSETLAW TEACHING HOSPITALS NHS FOUNDATION TRUST",7,379,0.8571428571428571,0.14285714285714285,5,1,0,1,0,0,0,0,0,4,0,0,3,0]
["QF7","RHQ","SHEFFIELD TEACHING HOSPITALS NHS FOUNDATION TRUST",22,485,0.90909090909090906,9.0909090909090912E-2,14,6,0,0,2,0,2,0,0,17,0,0,3,0]
["QF7","RFR","THE ROTHERHAM NHS FOUNDATION TRUST",18,196,1,0,18,0,0,0,0,0,0,0,0,14,0,0,4,0]
["QGH","RWP","WORCESTERSHIRE ACUTE HOSPITALS NHS TRUST",4,123,"*","*","*","*","*","*","*","*","*","*","*","*","*","*","*","*"]
["QGH","RLQ","WYE VALLEY NHS TRUST",27,0,0.96296296296296291,3.7037037037037035E-2,"*","*","*","*","*","*","*","*","*","*","*","*","*","*"]
["QH8","RAJ","MID AND SOUTH ESSEX NHS FOUNDATION TRUST",123,451,0.90243902439024393,6.5040650406504072E-2,94,17,3,3,5,1,120,0,0,0,0,0,3,0]
["QHG","RC9","BEDFORDSHIRE HOSPITALS NHS FOUNDATION TRUST",36,1082,0.97222222222222221,0,31,4,1,0,0,0,0,35,0,0,0,0,1,0]
["QHG","RD8","MILTON KEYNES UNIVERSITY HOSPITAL NHS FOUNDATION TRUST",43,317,0.93023255813953487,6.9767441860465115E-2,31,9,0,1,2,0,6,0,0,26,0,0,11,0]
["QHL","RQ3","BIRMINGHAM WOMEN'S AND CHILDREN'S NHS FOUNDATION TRUST",7,542,0.8571428571428571,0.14285714285714285,5,1,0,1,0,0,0,0,0,0,0,0,7,0]
["QHL","RXK","SANDWELL AND WEST BIRMINGHAM HOSPITALS NHS TRUST",19,395,0.68421052631578949,0.15789473684210525,13,0,2,1,2,1,19,0,0,0,0,0,0,0]
["QHL","RRK","UNIVERSITY HOSPITALS BIRMINGHAM NHS FOUNDATION TRUST",98,855,0.7857142857142857,0.17346938775510204,54,23,2,7,10,2,98,0,0,0,0,0,0,0]
["QHM","RXP","COUNTY DURHAM AND DARLINGTON NHS FOUNDATION TRUST",92,348,0.98913043478260865,0,73,18,1,0,0,0,0,0,0,92,0,0,0,0]
["QHM","RR7","GATESHEAD HEALTH NHS FOUNDATION TRUST",4,158,"*","*","*","*","*","*","*","*","*","*","*","*","*","*","*","*"]
["QHM","RNN","NORTH CUMBRIA INTEGRATED CARE NHS FOUNDATION TRUST",29,219,1,0,26,3,0,0,0,0,3,0,0,17,0,0,9,0]
["QHM","RVW","NORTH TEES AND HARTLEPOOL NHS FOUNDATION TRUST",1,350,"*","*","*","*","*","*","*","*","*","*","*","*","*","*","*","*"]
["QHM","RTF","NORTHUMBRIA HEALTHCARE NHS FOUNDATION TRUST",75,266,0.88,0.10666666666666667,55,11,1,4,4,0,49,0,0,26,0,0,0,0]
["QHM","RTR","SOUTH TEES HOSPITALS NHS FOUNDATION TRUST",84,297,0.86904761904761907,4.7619047619047616E-2,63,10,6,1,3,1,80,0,4,0,0,0,0,0]
["QHM","R0B","SOUTH TYNESIDE AND SUNDERLAND NHS FOUNDATION TRUST",6,282,1,0,5,1,0,0,0,0,0,0,0,3,0,0,3,0]
["QHM","RTD","THE NEWCASTLE UPON TYNE HOSPITALS NHS FOUNDATION TRUST",3,470,"*","*","*","*","*","*","*","*","*","*","*","*","*","*","*","*"]
["QJ2","RFS","CHESTERFIELD ROYAL HOSPITAL NHS FOUNDATION TRUST",128,130,0.984375,7.8125E-3,103,23,0,1,0,1,65,25,38,0,0,0,0,0]
["QJ2","RTG","UNIVERSITY HOSPITALS OF DERBY AND BURTON NHS FOUNDATION TRUST",37,692,0.89189189189189189,5.4054054054054057E-2,23,10,2,1,1,0,23,0,0,14,0,0,0,0]
["QJG","RDE","EAST SUFFOLK AND NORTH ESSEX NHS FOUNDATION TRUST",15,517,0.93333333333333335,0,12,2,1,0,0,0,0,0,0,0,0,0,15,0]
["QJG","RGR","WEST SUFFOLK NHS FOUNDATION TRUST",28,315,1,0,25,3,0,0,0,0,0,27,0,0,0,0,1,0]
["QJK","RH8","ROYAL DEVON UNIVERSITY HEALTHCARE NHS FOUNDATION TRUST",3,396,"*","*","*","*","*","*","*","*","*","*","*","*","*","*","*","*"]
["QJK","RA9","TORBAY AND SOUTH DEVON NHS FOUNDATION TRUST",0,141,"NA","NA",0,0,0,0,0,0,0,0,0,0,0,0,0,0]
["QJK","RK9","UNIVERSITY HOSPITALS PLYMOUTH NHS TRUST",12,76,1,0,"*","*","*","*","*","*","*","*","*","*","*","*","*","*"]
["QJM","RWD","UNITED LINCOLNSHIRE HOSPITALS NHS TRUST",56,354,0.9642857142857143,1.7857142857142856E-2,49,5,1,1,0,0,0,0,0,56,0,0,0,0]
["QK1","RWE","UNIVERSITY HOSPITALS OF LEICESTER NHS TRUST",192,751,0.921875,3.6458333333333336E-2,143,34,5,3,4,3,0,192,0,0,0,0,0,0]
["QKK","RJ1","GUY'S AND ST THOMAS' NHS FOUNDATION TRUST",60,524,0.96666666666666667,0,46,12,2,0,0,0,0,0,0,57,0,0,3,0]
["QKK","RJZ","KING'S COLLEGE HOSPITAL NHS FOUNDATION TRUST",99,562,0.86868686868686873,7.0707070707070704E-2,65,21,6,5,2,0,45,33,0,0,0,21,0,0]
["QKK","RJ2","LEWISHAM AND GREENWICH NHS TRUST",69,521,0.98550724637681164,1.4492753623188406E-2,48,20,0,0,1,0,0,0,0,28,0,0,41,0]
["QKS","RN7","DARTFORD AND GRAVESHAM NHS TRUST",14,372,0.9285714285714286,7.1428571428571425E-2,12,1,0,1,0,0,0,0,0,0,0,0,14,0]
["QKS","RWF","MAIDSTONE AND TUNBRIDGE WELLS NHS TRUST",91,464,1,0,89,2,0,0,0,0,0,0,0,0,0,0,91,0]
["QKS","RPA","MEDWAY NHS FOUNDATION TRUST",31,330,0.93548387096774188,3.2258064516129031E-2,26,3,1,0,1,0,0,0,0,0,0,0,31,0]
["QM7","RWH","EAST AND NORTH HERTFORDSHIRE NHS TRUST",18,383,0.94444444444444442,0,14,3,1,0,0,0,0,4,8,2,0,0,4,0]
["QM7","RQW","THE PRINCESS ALEXANDRA HOSPITAL NHS TRUST",3,300,"*","*","*","*","*","*","*","*","*","*","*","*","*","*","*","*"]
["QM7","RWG","WEST HERTFORDSHIRE TEACHING HOSPITALS NHS TRUST",6,283,1,0,"*","*","*","*","*","*","*","*","*","*","*","*","*","*"]
["QMF","RF4","BARKING, HAVERING AND REDBRIDGE UNIVERSITY HOSPITALS NHS TRUST",69,555,0.94202898550724634,4.3478260869565216E-2,58,7,0,0,3,1,0,0,0,65,0,0,4,0]
["QMF","R1H","BARTS HEALTH NHS TRUST",130,1136,0.96923076923076923,2.3076923076923078E-2,109,17,1,1,2,0,18,0,0,111,0,0,1,0]
["QMF","RQX","HOMERTON HEALTHCARE NHS FOUNDATION TRUST",71,483,0.95774647887323938,2.8169014084507043E-2,34,34,1,2,0,0,68,0,0,0,0,0,3,0]
["QMJ","RAP","NORTH MIDDLESEX UNIVERSITY HOSPITAL NHS TRUST",25,282,0.8,0.2,17,3,0,0,5,0,21,0,0,4,0,0,0,0]
["QMJ","RAL","ROYAL FREE LONDON NHS FOUNDATION TRUST",140,665,0.93571428571428572,2.1428571428571429E-2,105,26,6,2,1,0,0,140,0,0,0,0,0,0]
["QMJ","RRV","UNIVERSITY COLLEGE LONDON HOSPITALS NHS FOUNDATION TRUST",29,215,0.93103448275862066,0,21,6,2,0,0,0,0,0,0,0,0,0,29,0]
["QMJ","RKE","WHITTINGTON HEALTH NHS TRUST",14,241,1,0,13,1,0,0,0,0,0,0,0,8,0,0,6,0]
["QMM","RGP","JAMES PAGET UNIVERSITY HOSPITALS NHS FOUNDATION TRUST",19,152,0.94736842105263153,5.2631578947368418E-2,17,1,0,1,0,0,0,0,0,19,0,0,0,0]
["QMM","RM1","NORFOLK AND NORWICH UNIVERSITY HOSPITALS NHS FOUNDATION TRUST",12,415,1,0,11,1,0,0,0,0,0,0,0,0,0,0,12,0]
["QMM","RCX","THE QUEEN ELIZABETH HOSPITAL, KING'S LYNN, NHS FOUNDATION TRUST",26,160,0.96153846153846156,3.8461538461538464E-2,24,1,0,1,0,0,0,0,0,24,0,0,2,0]
["QNC","RJE","UNIVERSITY HOSPITALS OF NORTH MIDLANDS NHS TRUST",20,386,1,0,16,4,0,0,0,0,0,0,0,20,0,0,0,0]
["QNQ","RDU","FRIMLEY HEALTH NHS FOUNDATION TRUST",12,0,1,0,12,0,0,0,0,0,0,0,0,12,0,0,0,0]
["QNX","RXC","EAST SUSSEX HEALTHCARE NHS TRUST",35,221,0.97142857142857142,2.8571428571428571E-2,31,3,0,0,1,0,0,0,0,35,0,0,0,0]
["QNX","RYR","UNIVERSITY HOSPITALS SUSSEX NHS FOUNDATION TRUST",57,737,0.92982456140350878,7.0175438596491224E-2,49,4,0,2,2,0,57,0,0,0,0,0,0,0]
["QOC","RXW","THE SHREWSBURY AND TELFORD HOSPITAL NHS TRUST",22,338,1,0,21,1,0,0,0,0,0,0,0,22,0,0,0,0]
["QOP","RMC","BOLTON NHS FOUNDATION TRUST",224,422,0.9508928571428571,3.5714285714285712E-2,189,24,3,1,7,0,136,0,0,88,0,0,0,0]
["QOP","R0A","MANCHESTER UNIVERSITY NHS FOUNDATION TRUST",56,3026,1,0,33,23,0,0,0,0,0,46,0,7,0,0,3,0]
["QOP","RWJ","STOCKPORT NHS FOUNDATION TRUST",8,230,1,0,8,0,0,0,0,0,0,0,0,8,0,0,0,0]
["QOP","RMP","TAMESIDE AND GLOSSOP INTEGRATED CARE NHS FOUNDATION TRUST",6,160,0.83333333333333337,0.16666666666666666,5,0,0,1,0,0,0,6,0,0,0,0,0,0]
["QOP","RRF","WRIGHTINGTON, WIGAN AND LEIGH NHS FOUNDATION TRUST",34,202,0.97058823529411764,0,29,4,1,0,0,0,0,0,0,32,0,0,2,0]
["QOQ","RCD","HARROGATE AND DISTRICT NHS FOUNDATION TRUST",4,85,"*","*","*","*","*","*","*","*","*","*","*","*","*","*","*","*"]
["QOQ","RWA","HULL UNIVERSITY TEACHING HOSPITALS NHS TRUST",35,431,0.94285714285714284,0,33,0,2,0,0,0,7,0,0,26,0,0,2,0]
["QOQ","RJL","NORTHERN LINCOLNSHIRE AND GOOLE NHS FOUNDATION TRUST",24,286,1,0,21,3,0,0,0,0,0,0,0,24,0,0,0,0]
["QOQ","RCB","YORK AND SCARBOROUGH TEACHING HOSPITALS NHS FOUNDATION TRUST",19,312,1,0,"*","*","*","*","*","*","*","*","*","*","*","*","*","*"]
["QOX","RN3","GREAT WESTERN HOSPITALS NHS FOUNDATION TRUST",68,287,0.86764705882352944,0.11764705882352941,45,14,1,5,3,0,68,0,0,0,0,0,0,0]
["QOX","RD1","ROYAL UNITED HOSPITALS BATH NHS FOUNDATION TRUST",11,333,0.81818181818181823,9.0909090909090912E-2,6,3,1,1,0,0,0,0,0,8,0,0,3,0]
["QOX","RNZ","SALISBURY NHS FOUNDATION TRUST",0,159,"NA","NA",0,0,0,0,0,0,0,0,0,0,0,0,0,0]
["QPM","RNQ","KETTERING GENERAL HOSPITAL NHS FOUNDATION TRUST",5,277,0.6,0,2,1,2,0,0,0,0,0,0,0,0,0,5,0]
["QPM","RNS","NORTHAMPTON GENERAL HOSPITAL NHS TRUST",49,359,0.89795918367346939,0.10204081632653061,38,6,0,3,2,0,43,0,0,0,6,0,0,0]
["QR1","RTE","GLOUCESTERSHIRE HOSPITALS NHS FOUNDATION TRUST",89,240,0.898876404494382,3.3707865168539325E-2,63,17,5,1,2,1,89,0,0,0,0,0,0,0]
["QRL","RN5","HAMPSHIRE HOSPITALS NHS FOUNDATION TRUST",122,349,0.99180327868852458,0,110,11,0,0,0,1,0,0,0,117,0,0,5,0]
["QRL","R1F","ISLE OF WIGHT NHS TRUST",5,80,1,0,5,0,0,0,0,0,0,0,0,5,0,0,0,0]
["QRL","RHU","PORTSMOUTH HOSPITALS UNIVERSITY NATIONAL HEALTH SERVICE TRUST",32,427,1,0,30,2,0,0,0,0,0,0,0,0,31,0,1,0]
["QRL","RHM","UNIVERSITY HOSPITAL SOUTHAMPTON NHS FOUNDATION TRUST",110,393,0.91818181818181821,2.7272727272727271E-2,93,8,4,1,2,2,0,0,0,0,2,0,108,0]
["QRV","RQM","CHELSEA AND WESTMINSTER HOSPITAL NHS FOUNDATION TRUST",91,148,0.92307692307692313,6.5934065934065936E-2,76,8,1,2,4,0,64,0,0,16,0,0,11,0]
["QRV","RYJ","IMPERIAL COLLEGE HEALTHCARE NHS TRUST",114,681,0.92982456140350878,3.5087719298245612E-2,86,20,4,1,3,0,0,0,0,42,0,0,72,0]
["QRV","R1K","LONDON NORTH WEST UNIVERSITY HEALTHCARE NHS TRUST",0,301,"NA","NA",0,0,0,0,0,0,0,0,0,0,0,0,0,0]
["QRV","RAS","THE HILLINGDON HOSPITALS NHS FOUNDATION TRUST",40,335,0.875,7.4999999999999997E-2,25,10,2,1,2,0,0,0,0,3,0,0,37,0]
["QSL","RH5","SOMERSET NHS FOUNDATION TRUST",0,345,"NA","NA",0,0,0,0,0,0,0,0,0,0,0,0,0,0]
["QT1","RX1","NOTTINGHAM UNIVERSITY HOSPITALS NHS TRUST",38,377,0.97368421052631582,2.6315789473684209E-2,33,4,0,1,0,0,0,7,0,26,0,0,5,0]
["QT1","RK5","SHERWOOD FOREST HOSPITALS NHS FOUNDATION TRUST",32,276,0.90625,6.25E-2,23,6,1,1,1,0,0,0,0,0,0,0,32,0]
["QT6","REF","ROYAL CORNWALL HOSPITALS NHS TRUST",6,284,0.83333333333333337,0,4,1,1,0,0,0,0,6,0,0,0,0,0,0]
["QU9","RXQ","BUCKINGHAMSHIRE HEALTHCARE NHS TRUST",33,308,0.87878787878787878,3.0303030303030304E-2,22,7,3,0,1,0,33,0,0,0,0,0,0,0]
["QU9","RTH","OXFORD UNIVERSITY HOSPITALS NHS FOUNDATION TRUST",81,439,0.81481481481481477,0.12345679012345678,50,16,5,5,5,0,70,0,0,0,0,0,11,0]
["QU9","RHW","ROYAL BERKSHIRE NHS FOUNDATION TRUST",65,365,0.93846153846153846,1.5384615384615385E-2,54,7,3,0,1,0,2,0,0,63,0,0,0,0]
["QUA","RNA","THE DUDLEY GROUP NHS FOUNDATION TRUST",26,331,0.61538461538461542,3.8461538461538464E-2,16,0,0,0,1,9,1,0,0,22,0,0,3,0]
["QUA","RL4","THE ROYAL WOLVERHAMPTON NHS TRUST",57,412,0.96491228070175439,3.5087719298245612E-2,50,5,0,1,1,0,57,0,0,0,0,0,0,0]
["QUA","RBK","WALSALL HEALTHCARE NHS TRUST",35,282,0.94285714285714284,2.8571428571428571E-2,24,9,1,0,1,0,20,15,0,0,0,0,0,0]
["QUE","RGT","CAMBRIDGE UNIVERSITY HOSPITALS NHS FOUNDATION TRUST",40,433,0.95,0,35,3,2,0,0,0,0,39,0,1,0,0,0,0]
["QUE","RGN","NORTH WEST ANGLIA NHS FOUNDATION TRUST",23,517,1,0,21,2,0,0,0,0,0,0,0,20,0,0,3,0]
["QUY","RVJ","NORTH BRISTOL NHS TRUST",98,358,0.97959183673469385,1.020408163265306E-2,83,13,1,1,0,0,98,0,0,0,0,0,0,0]
["QUY","RA7","UNIVERSITY HOSPITALS BRISTOL AND WESTON NHS FOUNDATION TRUST",52,341,0.96153846153846156,0,41,9,2,0,0,0,0,0,0,52,0,0,0,0]
["QVV","RBD","DORSET COUNTY HOSPITAL NHS FOUNDATION TRUST",42,91,0.95238095238095233,4.7619047619047616E-2,35,5,0,0,2,0,42,0,0,0,0,0,0,0]
["QVV","R0D","UNIVERSITY HOSPITALS DORSET NHS FOUNDATION TRUST",83,310,0.96385542168674698,0,70,10,1,0,0,2,80,0,0,0,3,0,0,0]
["QWE","RJ6","CROYDON HEALTH SERVICES NHS TRUST",17,250,0.88235294117647056,5.8823529411764705E-2,11,4,1,0,1,0,17,0,0,0,0,0,0,0]
["QWE","RVR","EPSOM AND ST HELIER UNIVERSITY HOSPITALS NHS TRUST",25,324,0.96,0.04,23,1,0,1,0,0,12,6,0,4,0,0,3,0]
["QWE","RAX","KINGSTON HOSPITAL NHS FOUNDATION TRUST",34,398,0.94117647058823528,0,29,3,2,0,0,0,0,0,14,0,0,0,20,0]
["QWE","RJ7","ST GEORGE'S UNIVERSITY HOSPITALS NHS FOUNDATION TRUST",41,199,0.90243902439024393,7.3170731707317069E-2,34,3,1,0,3,0,0,4,0,0,0,0,37,0]
["QWO","RCF","AIREDALE NHS FOUNDATION TRUST",23,121,0.86956521739130432,4.3478260869565216E-2,17,3,2,0,1,0,23,0,0,0,0,0,0,0]
["QWO","RAE","BRADFORD TEACHING HOSPITALS NHS FOUNDATION TRUST",182,113,1,0,166,16,0,0,0,0,0,0,0,0,0,0,16,166]
["QWO","RWY","CALDERDALE AND HUDDERSFIELD NHS FOUNDATION TRUST",16,284,1,0,16,0,0,0,0,0,0,0,0,0,0,0,16,0]
["QWO","RR8","LEEDS TEACHING HOSPITALS NHS TRUST",214,625,0.98130841121495327,1.4018691588785047E-2,196,14,1,1,2,0,174,31,0,0,0,0,9,0]
["QWO","RXF","MID YORKSHIRE TEACHING NHS TRUST",56,435,0.9821428571428571,1.7857142857142856E-2,51,4,0,0,1,0,4,0,0,47,0,0,5,0]
["QWU","RLT","GEORGE ELIOT HOSPITAL NHS TRUST",62,229,0.95161290322580649,4.8387096774193547E-2,49,10,0,2,1,0,62,0,0,0,0,0,0,0]
["QWU","RJC","SOUTH WARWICKSHIRE UNIVERSITY NHS FOUNDATION TRUST",2,0,"*","*","*","*","*","*","*","*","*","*","*","*","*","*","*","*"]
["QWU","RKB","UNIVERSITY HOSPITALS COVENTRY AND WARWICKSHIRE NHS TRUST",47,514,0.95744680851063835,2.1276595744680851E-2,"*","*","*","*","*","*","*","*","*","*","*","*","*","*"]
["QXU","RTK","ASHFORD AND ST PETER'S HOSPITALS NHS FOUNDATION TRUST",30,242,0.83333333333333337,3.3333333333333333E-2,23,2,2,1,0,2,0,30,0,0,0,0,0,0]
["QXU","RA2","ROYAL SURREY COUNTY HOSPITAL NHS FOUNDATION TRUST",1,249,"*","*","*","*","*","*","*","*","*","*","*","*","*","*","*","*"]
["QXU","RTP","SURREY AND SUSSEX HEALTHCARE NHS TRUST",11,348,1,0,"*","*","*","*","*","*","*","*","*","*","*","*","*","*"]
["QYG","REP","LIVERPOOL WOMEN'S NHS FOUNDATION TRUST",48,571,0.8125,0.125,35,4,2,3,3,1,0,0,0,0,0,0,0,48]
["QYG","RBN","MERSEY AND WEST LANCASHIRE TEACHING HOSPITALS NHS TRUST",89,490,0.9438202247191011,4.49438202247191E-2,75,9,1,2,2,0,87,0,0,0,0,0,2,0]
["QYG","RBT","MID CHESHIRE HOSPITALS NHS FOUNDATION TRUST",37,240,0.97297297297297303,2.7027027027027029E-2,"*","*","*","*","*","*","*","*","*","*","*","*","*","*"]
["QYG","RWW","WARRINGTON AND HALTON TEACHING HOSPITALS NHS FOUNDATION TRUST",1,1,"*","*","*","*","*","*","*","*","*","*","*","*","*","*","*","*"]
["QYG","RBL","WIRRAL UNIVERSITY TEACHING HOSPITAL NHS FOUNDATION TRUST",78,246,0.96153846153846156,2.564102564102564E-2,69,6,0,0,2,1,0,32,0,46,0,0,0,0]

{"sheet":"Sites Q2","index":7,"n_rows":220,"n_cols":14,"rows_kept":220,"cut":false,"hidden":false,"merged":[[8,6,9,6],[8,7,9,7],[8,8,8,13],[8,0,9,0],[8,1,9,1],[8,2,9,2],[8,3,9,3],[8,4,9,4],[8,5,9,5]]}
[]
[]
[]
[]
[]
[null,"   Sort data by:           "]
[]
[]
["ICB Code","Trust Code","Trust Name","Site Code","Site Name","Total Responses","Percentage Positive","Percentage Negative","Breakdown of Responses"]
[null,null,null,null,null,null,null,null,"Very Good","Good","Neither Good nor Poor","Poor","Very Poor","Don't Know"]
[null,null,null,null,"England (including Independent Sector providers)",5214,0.93785960874568475,3.5673187571921748E-2,4180,710,109,77,109,29]
[null,null,null,null,"England (excluding Independent Sector providers)",5214,0.93785960874568475,3.5673187571921748E-2,4180,710,109,77,109,29]
[null,null,null,null,"Selection (excluding suppressed data)",{"$f":"SUBTOTAL(9,F14:F299)","v":5214},{"$f":"IFERROR((I13+J13)/SUM(I13:N13), \"-\")","v":0.93475865109102929},{"$f":"IFERROR((L13+M13)/SUM(I13:N13), \"-\")","v":3.7910513555212695E-2},{"$f":"SUBTOTAL(9,I14:I299)","v":3609},{"$f":"SUBTOTAL(9,J14:J299)","v":632},98,70,102,26]
["QE1","RXL","BLACKPOOL TEACHING HOSPITALS NHS FOUNDATION TRUST","RXL01","Blackpool Victoria Hospital",31,0.967741935483871,0,24,6,1,0,0,0]
["QE1","RXR","EAST LANCASHIRE HOSPITALS NHS TRUST","RXR20","Royal Blackburn Hospital",10,0.9,0.1,9,0,0,0,1,0]
["QE1","RXN","LANCASHIRE TEACHING HOSPITALS NHS FOUNDATION TRUST","RXN01","Chorley and South Ribble Hospital",0,"NA","NA",0,0,0,0,0,0]
["QE1","RXN","LANCASHIRE TEACHING HOSPITALS NHS FOUNDATION TRUST","RXN02","Royal Preston Hospital",11,0.81818181818181823,0,6,3,2,0,0,0]
["QE1","RTX","UNIVERSITY HOSPITALS OF MORECAMBE BAY NHS FOUNDATION TRUST","RTXBU","Furness General Hospital",20,1,0,20,0,0,0,0,0]
["QE1","RTX","UNIVERSITY HOSPITALS OF MORECAMBE BAY NHS FOUNDATION TRUST","RTX02","Royal Lancaster Infirmary",14,1,0,14,0,0,0,0,0]
["QE1","RTX","UNIVERSITY HOSPITALS OF MORECAMBE BAY NHS FOUNDATION TRUST","RTXBW","Westmorland General Hospital",0,"NA","NA",0,0,0,0,0,0]
["QF7","RFF","BARNSLEY HOSPITAL NHS FOUNDATION TRUST","RFFAA","Barnsley Hospital NHS Foundation Trust HQ",16,1,0,16,0,0,0,0,0]
["QF7","RP5","DONCASTER AND BASSETLAW TEACHING HOSPITALS NHS FOUNDATION TRUST","RP5BA","Bassetlaw Hospital",2,"*","*","*","*","*","*","*","*"]
["QF7","RP5","DONCASTER AND BASSETLAW TEACHING HOSPITALS NHS FOUNDATION TRUST","RP5DR","Doncaster Royal Infirmary",4,"*","*","*","*","*","*","*","*"]
["QF7","RP5","DONCASTER AND BASSETLAW TEACHING HOSPITALS NHS FOUNDATION TRUST","RP5XXX","Non-hospital site",1,"*","*","*","*","*","*","*","*"]
["QF7","RHQ","SHEFFIELD TEACHING HOSPITALS NHS FOUNDATION TRUST","RHQHH","Royal Hallamshire Hospital",22,0.90909090909090906,9.0909090909090912E-2,14,6,0,0,2,0]
["QF7","RFR","THE ROTHERHAM NHS FOUNDATION TRUST","RFRPA","Rotherham District General Hospital",18,1,0,18,0,0,0,0,0]
["QGH","RWP","WORCESTERSHIRE ACUTE HOSPITALS NHS TRUST","RWP50","Worcestershire Royal Hospital",4,"*","*","*","*","*","*","*","*"]
["QGH","RLQ","WYE VALLEY NHS TRUST","RLQ01","Hereford County Hospital",27,0.96296296296296291,3.7037037037037035E-2,"*","*","*","*","*","*"]
["QH8","RAJ","MID AND SOUTH ESSEX NHS FOUNDATION TRUST","RAJ12","BASILDON HOSPITAL",31,0.87096774193548387,9.6774193548387094E-2,21,6,1,2,1,0]
["QH8","RAJ","MID AND SOUTH ESSEX NHS FOUNDATION TRUST","RAJ32","MID ESSEX HOSPITAL",45,0.84444444444444444,8.8888888888888892E-2,34,4,2,1,3,1]
["QH8","RAJ","MID AND SOUTH ESSEX NHS FOUNDATION TRUST","RAJ01","Southend Hospital",47,0.97872340425531912,2.1276595744680851E-2,39,7,0,0,1,0]
["QHG","RC9","BEDFORDSHIRE HOSPITALS NHS FOUNDATION TRUST","RC979","BEDFORD HOSPITAL SOUTH WING",22,1,0,21,1,0,0,0,0]
["QHG","RC9","BEDFORDSHIRE HOSPITALS NHS FOUNDATION TRUST","RC971","Luton and Dunstable Hospital",14,0.9285714285714286,0,10,3,1,0,0,0]
["QHG","RD8","MILTON KEYNES UNIVERSITY HOSPITAL NHS FOUNDATION TRUST","RD816","Milton Keynes Hospital",43,0.93023255813953487,6.9767441860465115E-2,31,9,0,1,2,0]
["QHL","RQ3","BIRMINGHAM WOMEN'S AND CHILDREN'S NHS FOUNDATION TRUST","RQ370","Birmingham Women's Hospital",7,0.8571428571428571,0.14285714285714285,5,1,0,1,0,0]
["QHL","RXK","SANDWELL AND WEST BIRMINGHAM HOSPITALS NHS TRUST","RXK02","City Hospital",19,0.68421052631578949,0.15789473684210525,13,0,2,1,2,1]
["QHL","RRK","UNIVERSITY HOSPITALS BIRMINGHAM NHS FOUNDATION TRUST","RRK98","Good Hope Hospital",45,0.77777777777777779,0.15555555555555556,22,13,2,2,5,1]
["QHL","RRK","UNIVERSITY HOSPITALS BIRMINGHAM NHS FOUNDATION TRUST","RRK97","Heartlands Hospital",53,0.79245283018867929,0.18867924528301888,32,10,0,5,5,1]
["QHL","RRK","UNIVERSITY HOSPITALS BIRMINGHAM NHS FOUNDATION TRUST","RRK99","Solihull Hospital",0,"NA","NA",0,0,0,0,0,0]
["QHM","RXP","COUNTY DURHAM AND DARLINGTON NHS FOUNDATION TRUST","RXPDA","Darlington Memorial Hospital",71,0.9859154929577465,0,57,13,1,0,0,0]
["QHM","RXP","COUNTY DURHAM AND DARLINGTON NHS FOUNDATION TRUST","RXPCP","University Hospital Of North Durham",21,1,0,16,5,0,0,0,0]
["QHM","RR7","GATESHEAD HEALTH NHS FOUNDATION TRUST","RR7EN","Queen Elizabeth Hospital",4,"*","*","*","*","*","*","*","*"]
["QHM","RNN","NORTH CUMBRIA INTEGRATED CARE NHS FOUNDATION TRUST","RNN62","Cumberland Infirmary",22,1,0,20,2,0,0,0,0]
["QHM","RNN","NORTH CUMBRIA INTEGRATED CARE NHS FOUNDATION TRUST","RNNBX","West Cumberland Hospital",7,1,0,6,1,0,0,0,0]
["QHM","RVW","NORTH TEES AND HARTLEPOOL NHS FOUNDATION TRUST","RVWXXX","Non-hospital site",1,"*","*","*","*","*","*","*","*"]
["QHM","RTF","NORTHUMBRIA HEALTHCARE NHS FOUNDATION TRUST","RTFDJ","Alnwick Infirmary",0,"NA","NA",0,0,0,0,0,0]
["QHM","RTF","NORTHUMBRIA HEALTHCARE NHS FOUNDATION TRUST","RTFDH","Berwick Infirmary",0,"NA","NA",0,0,0,0,0,0]
["QHM","RTF","NORTHUMBRIA HEALTHCARE NHS FOUNDATION TRUST","RTFDR","Hexham General Hospital",0,"NA","NA",0,0,0,0,0,0]
["QHM","RTF","NORTHUMBRIA HEALTHCARE NHS FOUNDATION TRUST","RTFXXX","Non-hospital site",0,"NA","NA",0,0,0,0,0,0]
["QHM","RTF","NORTHUMBRIA HEALTHCARE NHS FOUNDATION TRUST","RTF86","The Northumbria",75,0.88,0.10666666666666667,55,11,1,4,4,0]
["QHM","RTR","SOUTH TEES HOSPITALS NHS FOUNDATION TRUST","RTR45","Friarage Hospital Site",7,0.7142857142857143,0.14285714285714285,5,0,1,0,1,0]
["QHM","RTR","SOUTH TEES HOSPITALS NHS FOUNDATION TRUST","RTRAT","The James Cook University Hospital",77,0.88311688311688308,3.896103896103896E-2,58,10,5,1,2,1]
["QHM","R0B","SOUTH TYNESIDE AND SUNDERLAND NHS FOUNDATION TRUST","R0B0Q","South Tyneside District Hospital",0,"NA","NA",0,0,0,0,0,0]
["QHM","R0B","SOUTH TYNESIDE AND SUNDERLAND NHS FOUNDATION TRUST","R0B01","Sunderland Royal Hospital",6,1,0,5,1,0,0,0,0]
["QHM","RTD","THE NEWCASTLE UPON TYNE HOSPITALS NHS FOUNDATION TRUST","RTD02","The Royal Victoria Infirmary",3,"*","*","*","*","*","*","*","*"]
["QJ2","RFS","CHESTERFIELD ROYAL HOSPITAL NHS FOUNDATION TRUST","RFSDA","Chesterfield Royal Hospital",128,0.984375,7.8125E-3,103,23,0,1,0,1]
["QJ2","RTG","UNIVERSITY HOSPITALS OF DERBY AND BURTON NHS FOUNDATION TRUST","RTG02","Queens Hospital, Burton Upon Trent",21,1,0,13,8,0,0,0,0]
["QJ2","RTG","UNIVERSITY HOSPITALS OF DERBY AND BURTON NHS FOUNDATION TRUST","RTGFG","Royal Derby Hospital",16,0.75,0.125,10,2,2,1,1,0]
["QJG","RDE","EAST SUFFOLK AND NORTH ESSEX NHS FOUNDATION TRUST","RDEE2","Clacton and District Hospital",0,"NA","NA",0,0,0,0,0,0]
["QJG","RDE","EAST SUFFOLK AND NORTH ESSEX NHS FOUNDATION TRUST","RDEE4","Colchester General Hospital",0,"NA","NA",0,0,0,0,0,0]
["QJG","RDE","EAST SUFFOLK AND NORTH ESSEX NHS FOUNDATION TRUST","RDE03","Ipswich Hospital",15,0.93333333333333335,0,12,2,1,0,0,0]
["QJG","RDE","EAST SUFFOLK AND NORTH ESSEX NHS FOUNDATION TRUST","RDEXXX","Non-hospital site",0,"NA","NA",0,0,0,0,0,0]
["QJG","RGR","WEST SUFFOLK NHS FOUNDATION TRUST","RGR50","West Suffolk Hospital",28,1,0,25,3,0,0,0,0]
["QJK","RH8","ROYAL DEVON UNIVERSITY HEALTHCARE NHS FOUNDATION TRUST","RH8XXX","Non-hospital site",0,"NA","NA",0,0,0,0,0,0]
["QJK","RH8","ROYAL DEVON UNIVERSITY HEALTHCARE NHS FOUNDATION TRUST","RH880","North Devon District Hospital",3,"*","*","*","*","*","*","*","*"]
["QJK","RH8","ROYAL DEVON UNIVERSITY HEALTHCARE NHS FOUNDATION TRUST","RH801","Royal Devon and Exeter Hospital (Wonford)",0,"NA","NA",0,0,0,0,0,0]
["QJK","RH8","ROYAL DEVON UNIVERSITY HEALTHCARE NHS FOUNDATION TRUST","RH853","Tiverton and District Hospital",0,"NA","NA",0,0,0,0,0,0]
["QJK","RA9","TORBAY AND SOUTH DEVON NHS FOUNDATION TRUST","RA901","Torbay Hospital",0,"NA","NA",0,0,0,0,0,0]
["QJK","RK9","UNIVERSITY HOSPITALS PLYMOUTH NHS TRUST","RK950","Derriford Hospital",12,1,0,"*","*","*","*","*","*"]
["QJM","RWD","UNITED LINCOLNSHIRE HOSPITALS NHS TRUST","RWDLP","Grantham and District Hospital",0,"NA","NA",0,0,0,0,0,0]
["QJM","RWD","UNITED LINCOLNSHIRE HOSPITALS NHS TRUST","RWDDA","Lincoln County Hospital",32,0.9375,3.125E-2,27,3,1,1,0,0]
["QJM","RWD","UNITED LINCOLNSHIRE HOSPITALS NHS TRUST","RWDLA","Pilgrim Hospital",24,1,0,22,2,0,0,0,0]
["QK1","RWE","UNIVERSITY HOSPITALS OF LEICESTER NHS TRUST","RWEAK","Leicester General Hospital",51,0.96078431372549022,3.9215686274509803E-2,42,7,0,1,1,0]
["QK1","RWE","UNIVERSITY HOSPITALS OF LEICESTER NHS TRUST","RWEAA","Leicester Royal Infirmary",128,0.9140625,3.90625E-2,91,26,4,2,3,2]
["QK1","RWE","UNIVERSITY HOSPITALS OF LEICESTER NHS TRUST","RWEXXX","Non-hospital site",13,0.84615384615384615,0,10,1,1,0,0,1]
["QK1","RWE","UNIVERSITY HOSPITALS OF LEICESTER NHS TRUST","RWE10","St Mary's Hospital",0,"NA","NA",0,0,0,0,0,0]
["QKK","RJ1","GUY'S AND ST THOMAS' NHS FOUNDATION TRUST","RJ1XXX","Non-hospital site",0,"NA","NA",0,0,0,0,0,0]
["QKK","RJ1","GUY'S AND ST THOMAS' NHS FOUNDATION TRUST","RJ122","St Thomas' Hospital",60,0.96666666666666667,0,46,12,2,0,0,0]
["QKK","RJZ","KING'S COLLEGE HOSPITAL NHS FOUNDATION TRUST","RJZ01","King's College Hospital (Denmark Hill)",43,0.81395348837209303,0.13953488372093023,22,13,2,4,2,0]
["QKK","RJZ","KING'S COLLEGE HOSPITAL NHS FOUNDATION TRUST","RJZ30","Princess Royal University Hospital",56,0.9107142857142857,1.7857142857142856E-2,43,8,4,1,0,0]
["QKK","RJ2","LEWISHAM AND GREENWICH NHS TRUST","RJ231","Queen Elizabeth Hospital",40,1,0,31,9,0,0,0,0]
["QKK","RJ2","LEWISHAM AND GREENWICH NHS TRUST","RJ224","University Hospital Lewisham",29,0.96551724137931039,3.4482758620689655E-2,17,11,0,0,1,0]
["QKS","RN7","DARTFORD AND GRAVESHAM NHS TRUST","RN707","Darent Valley Hospital",14,0.9285714285714286,7.1428571428571425E-2,12,1,0,1,0,0]
["QKS","RWF","MAIDSTONE AND TUNBRIDGE WELLS NHS TRUST","RWF08","Crowborough Birthing Centre",6,1,0,"*","*","*","*","*","*"]
["QKS","RWF","MAIDSTONE AND TUNBRIDGE WELLS NHS TRUST","RWF03","Maidstone District General Hospital",56,1,0,55,1,0,0,0,0]
["QKS","RWF","MAIDSTONE AND TUNBRIDGE WELLS NHS TRUST","RWFXXX","Non-hospital site",4,"*","*","*","*","*","*","*","*"]
["QKS","RWF","MAIDSTONE AND TUNBRIDGE WELLS NHS TRUST","RWFTW","The Tunbridge Wells Hospital",25,1,0,24,1,0,0,0,0]
["QKS","RPA","MEDWAY NHS FOUNDATION TRUST","RPA02","Medway Maritime Hospital",31,0.93548387096774188,3.2258064516129031E-2,26,3,1,0,1,0]
["QM7","RWH","EAST AND NORTH HERTFORDSHIRE NHS TRUST","RWH01","Lister Hospital",18,0.94444444444444442,0,14,3,1,0,0,0]
["QM7","RWH","EAST AND NORTH HERTFORDSHIRE NHS TRUST","RWHXXX","Non-hospital site",0,"NA","NA",0,0,0,0,0,0]
["QM7","RQW","THE PRINCESS ALEXANDRA HOSPITAL NHS TRUST","RQWG0","Princess Alexandra Hospital",3,"*","*","*","*","*","*","*","*"]
["QM7","RWG","WEST HERTFORDSHIRE TEACHING HOSPITALS NHS TRUST","RWG02","Watford General Hospital",6,1,0,"*","*","*","*","*","*"]
["QMF","RF4","BARKING, HAVERING AND REDBRIDGE UNIVERSITY HOSPITALS NHS TRUST","RF4QH","Queen's Hospital",69,0.94202898550724634,4.3478260869565216E-2,58,7,0,0,3,1]
["QMF","R1H","BARTS HEALTH NHS TRUST","R1HNH","Newham General Hospital",56,0.9642857142857143,1.7857142857142856E-2,"*","*","*","*","*","*"]
["QMF","R1H","BARTS HEALTH NHS TRUST","R1H12","The Royal London Hospital",2,"*","*","*","*","*","*","*","*"]
["QMF","R1H","BARTS HEALTH NHS TRUST","R1HKH","Whipps Cross University Hospital",72,1,0,62,10,0,0,0,0]
["QMF","RQX","HOMERTON HEALTHCARE NHS FOUNDATION TRUST","RQXM1","Homerton University Hospital",71,0.95774647887323938,2.8169014084507043E-2,34,34,1,2,0,0]
["QMJ","RAP","NORTH MIDDLESEX UNIVERSITY HOSPITAL NHS TRUST","RAPNM","North Middlesex Hospital",25,0.8,0.2,17,3,0,0,5,0]
["QMJ","RAL","ROYAL FREE LONDON NHS FOUNDATION TRUST","RAL26","Barnet Hospital",44,0.97727272727272729,0,35,8,1,0,0,0]
["QMJ","RAL","ROYAL FREE LONDON NHS FOUNDATION TRUST","RAL01","Royal Free Hospital",96,0.91666666666666663,3.125E-2,70,18,5,2,1,0]
["QMJ","RRV","UNIVERSITY COLLEGE LONDON HOSPITALS NHS FOUNDATION TRUST","RRV03","University College Hospital",29,0.93103448275862066,0,21,6,2,0,0,0]
["QMJ","RKE","WHITTINGTON HEALTH NHS TRUST","RKEXXX","Non-hospital site",0,"NA","NA",0,0,0,0,0,0]
["QMJ","RKE","WHITTINGTON HEALTH NHS TRUST","RKEQ4","The Whittington Hospital",14,1,0,13,1,0,0,0,0]
["QMM","RGP","JAMES PAGET UNIVERSITY HOSPITALS NHS FOUNDATION TRUST","RGP75","James Paget University Hospital",19,0.94736842105263153,5.2631578947368418E-2,17,1,0,1,0,0]
["QMM","RM1","NORFOLK AND NORWICH UNIVERSITY HOSPITALS NHS FOUNDATION TRUST","RM102","Norfolk and Norwich University Hospital",12,1,0,11,1,0,0,0,0]
["QMM","RCX","THE QUEEN ELIZABETH HOSPITAL, KING'S LYNN, NHS FOUNDATION TRUST","RCXXXX","Non-hospital site",0,"NA","NA",0,0,0,0,0,0]
["QMM","RCX","THE QUEEN ELIZABETH HOSPITAL, KING'S LYNN, NHS FOUNDATION TRUST","RCX70","The Queen Elizabeth Hospital",26,0.96153846153846156,3.8461538461538464E-2,24,1,0,1,0,0]
["QNC","RJE","UNIVERSITY HOSPITALS OF NORTH MIDLANDS NHS TRUST","RJE01","Royal Stoke University Hospital",20,1,0,16,4,0,0,0,0]
["QNQ","RDU","FRIMLEY HEALTH NHS FOUNDATION TRUST","RDU01","Frimley Park Hospital",11,1,0,"*","*","*","*","*","*"]
["QNQ","RDU","FRIMLEY HEALTH NHS FOUNDATION TRUST","RDU50","Wexham Park Hospital",1,"*","*","*","*","*","*","*","*"]
["QNX","RXC","EAST SUSSEX HEALTHCARE NHS TRUST","RXC01","Conquest Hospital",35,0.97142857142857142,2.8571428571428571E-2,31,3,0,0,1,0]
["QNX","RXC","EAST SUSSEX HEALTHCARE NHS TRUST","RXC02","Eastbourne District General Hospital",0,"NA","NA",0,0,0,0,0,0]
["QNX","RXC","EAST SUSSEX HEALTHCARE NHS TRUST","RXCXXX","Non-hospital site",0,"NA","NA",0,0,0,0,0,0]
["QNX","RYR","UNIVERSITY HOSPITALS SUSSEX NHS FOUNDATION TRUST","N6J7V","Princess Royal Hospital",21,0.90476190476190477,9.5238095238095233E-2,17,2,0,1,1,0]
["QNX","RYR","UNIVERSITY HOSPITALS SUSSEX NHS FOUNDATION TRUST","E0A3H","Royal Sussex County Hospital",16,0.9375,6.25E-2,15,0,0,1,0,0]
["QNX","RYR","UNIVERSITY HOSPITALS SUSSEX NHS FOUNDATION TRUST","RYR16","St Richard's Hospital",10,1,0,10,0,0,0,0,0]
["QNX","RYR","UNIVERSITY HOSPITALS SUSSEX NHS FOUNDATION TRUST","RYR18","Worthing Hospital",10,0.9,0.1,7,2,0,0,1,0]
["QOC","RXW","THE SHREWSBURY AND TELFORD HOSPITAL NHS TRUST","RXWMB","Bridgnorth Hospital (Maternity)",0,"NA","NA",0,0,0,0,0,0]
["QOC","RXW","THE SHREWSBURY AND TELFORD HOSPITAL NHS TRUST","RXWML","Ludlow Hospital (Maternity)",0,"NA","NA",0,0,0,0,0,0]
["QOC","RXW","THE SHREWSBURY AND TELFORD HOSPITAL NHS TRUST","RXWXXX","Non-hospital site",0,"NA","NA",0,0,0,0,0,0]
["QOC","RXW","THE SHREWSBURY AND TELFORD HOSPITAL NHS TRUST","RXWMJ","Robert Jones & Agnes Hunt Orthopaedic & District Hospital",0,"NA","NA",0,0,0,0,0,0]
["QOC","RXW","THE SHREWSBURY AND TELFORD HOSPITAL NHS TRUST","RXWAS","Royal Shrewsbury Hospital",8,1,0,7,1,0,0,0,0]
["QOC","RXW","THE SHREWSBURY AND TELFORD HOSPITAL NHS TRUST","RXWAT","The Princess Royal Hospital",14,1,0,14,0,0,0,0,0]
["QOP","RMC","BOLTON NHS FOUNDATION TRUST","RMC01","Royal Bolton Hospital",224,0.9508928571428571,3.5714285714285712E-2,189,24,3,1,7,0]
["QOP","R0A","MANCHESTER UNIVERSITY NHS FOUNDATION TRUST","R0A05","St Mary's Hospital",56,1,0,33,23,0,0,0,0]
["QOP","RWJ","STOCKPORT NHS FOUNDATION TRUST","RWJXXX","Non-hospital site",0,"NA","NA",0,0,0,0,0,0]
["QOP","RWJ","STOCKPORT NHS FOUNDATION TRUST","RWJ09","Stepping Hill Hospital",8,1,0,8,0,0,0,0,0]
["QOP","RMP","TAMESIDE AND GLOSSOP INTEGRATED CARE NHS FOUNDATION TRUST","RMP01","Tameside General Hospital",6,0.83333333333333337,0.16666666666666666,5,0,0,1,0,0]
["QOP","RRF","WRIGHTINGTON, WIGAN AND LEIGH NHS FOUNDATION TRUST","RRF02","Royal Albert Edward Infirmary",34,0.97058823529411764,0,29,4,1,0,0,0]
["QOQ","RCD","HARROGATE AND DISTRICT NHS FOUNDATION TRUST","RCD01","Harrogate District Hospital",4,"*","*","*","*","*","*","*","*"]
["QOQ","RWA","HULL UNIVERSITY TEACHING HOSPITALS NHS TRUST","RWA01","Hull Royal Infirmary",35,0.94285714285714284,0,33,0,2,0,0,0]
["QOQ","RJL","NORTHERN LINCOLNSHIRE AND GOOLE NHS FOUNDATION TRUST","RJL30","Diana, Princess Of Wales Hospital",24,1,0,21,3,0,0,0,0]
["QOQ","RJL","NORTHERN LINCOLNSHIRE AND GOOLE NHS FOUNDATION TRUST","RJL32","Scunthorpe General Hospital",0,"NA","NA",0,0,0,0,0,0]
["QOQ","RCB","YORK AND SCARBOROUGH TEACHING HOSPITALS NHS FOUNDATION TRUST","RCBCA","Scarborough General Hospital",0,"NA","NA",0,0,0,0,0,0]
["QOQ","RCB","YORK AND SCARBOROUGH TEACHING HOSPITALS NHS FOUNDATION TRUST","RCB55","York Hospital",19,1,0,"*","*","*","*","*","*"]
["QOX","RN3","GREAT WESTERN HOSPITALS NHS FOUNDATION TRUST","RN3XXX","Non-hospital site",0,"NA","NA",0,0,0,0,0,0]
["QOX","RN3","GREAT WESTERN HOSPITALS NHS FOUNDATION TRUST","RN325","The Great Western Hospital",68,0.86764705882352944,0.11764705882352941,45,14,1,5,3,0]
["QOX","RD1","ROYAL UNITED HOSPITALS BATH NHS FOUNDATION TRUST","RD102","Chippenham Community Hospital",0,"NA","NA",0,0,0,0,0,0]
["QOX","RD1","ROYAL UNITED HOSPITALS BATH NHS FOUNDATION TRUST","RD121","Frome Community Hospital",0,"NA","NA",0,0,0,0,0,0]
["QOX","RD1","ROYAL UNITED HOSPITALS BATH NHS FOUNDATION TRUST","RD1XXX","Non Hospital Site",0,"NA","NA",0,0,0,0,0,0]
["QOX","RD1","ROYAL UNITED HOSPITALS BATH NHS FOUNDATION TRUST","RD130","Princess Anne Wing RUH",11,0.81818181818181823,9.0909090909090912E-2,6,3,1,1,0,0]
["QOX","RNZ","SALISBURY NHS FOUNDATION TRUST","RNZXXX","Non-hospital site",0,"NA","NA",0,0,0,0,0,0]
["QOX","RNZ","SALISBURY NHS FOUNDATION TRUST","RNZ02","Salisbury District Hospital",0,"NA","NA",0,0,0,0,0,0]
["QPM","RNQ","KETTERING GENERAL HOSPITAL NHS FOUNDATION TRUST","RNQ51","Kettering General Hospital",5,0.6,0,2,1,2,0,0,0]
["QPM","RNS","NORTHAMPTON GENERAL HOSPITAL NHS TRUST","RNS01","Northampton General Hospital (Acute)",49,0.89795918367346939,0.10204081632653061,38,6,0,3,2,0]
["QR1","RTE","GLOUCESTERSHIRE HOSPITALS NHS FOUNDATION TRUST","RTE03","Gloucestershire Royal Hospital",88,0.90909090909090906,3.4090909090909088E-2,"*","*","*","*","*","*"]
["QR1","RTE","GLOUCESTERSHIRE HOSPITALS NHS FOUNDATION TRUST","RTEXXX","Non-hospital site",1,"*","*","*","*","*","*","*","*"]
["QRL","RN5","HAMPSHIRE HOSPITALS NHS FOUNDATION TRUST","RN542","Andover War Memorial Hospital",0,"NA","NA",0,0,0,0,0,0]
["QRL","RN5","HAMPSHIRE HOSPITALS NHS FOUNDATION TRUST","RN506","Basingstoke and North Hampshire Hospital",28,1,0,26,2,0,0,0,0]
["QRL","RN5","HAMPSHIRE HOSPITALS NHS FOUNDATION TRUST","RN541","Royal Hampshire County Hospital",94,0.98936170212765961,0,84,9,0,0,0,1]
["QRL","R1F","ISLE OF WIGHT NHS TRUST","R1F01","St Mary's Hospital",5,1,0,5,0,0,0,0,0]
["QRL","RHU","PORTSMOUTH HOSPITALS UNIVERSITY NATIONAL HEALTH SERVICE TRUST","RHU03","Queen Alexandra Hospital",32,1,0,30,2,0,0,0,0]
["QRL","RHM","UNIVERSITY HOSPITAL SOUTHAMPTON NHS FOUNDATION TRUST","RHM01","Southampton General Hospital",110,0.91818181818181821,2.7272727272727271E-2,93,8,4,1,2,2]
["QRV","RQM","CHELSEA AND WESTMINSTER HOSPITAL NHS FOUNDATION TRUST","RQM01","Chelsea and Westminster Hospital",56,0.9107142857142857,8.9285714285714288E-2,46,5,0,1,4,0]
["QRV","RQM","CHELSEA AND WESTMINSTER HOSPITAL NHS FOUNDATION TRUST","RQM91","West Middlesex University Hospital",35,0.94285714285714284,2.8571428571428571E-2,30,3,1,1,0,0]
["QRV","RYJ","IMPERIAL COLLEGE HEALTHCARE NHS TRUST","RYJ04","Queen Charlotte's Hospital",83,0.93975903614457834,2.4096385542168676E-2,59,19,3,0,2,0]
["QRV","RYJ","IMPERIAL COLLEGE HEALTHCARE NHS TRUST","RYJ01","St Mary's Hospital (HQ)",31,0.90322580645161288,6.4516129032258063E-2,27,1,1,1,1,0]
["QRV","R1K","LONDON NORTH WEST UNIVERSITY HEALTHCARE NHS TRUST","R1K01","Northwick Park Hospital",0,"NA","NA",0,0,0,0,0,0]
["QRV","RAS","THE HILLINGDON HOSPITALS NHS FOUNDATION TRUST","RAS01","Hillingdon Hospital",35,0.8571428571428571,8.5714285714285715E-2,20,10,2,1,2,0]
["QRV","RAS","THE HILLINGDON HOSPITALS NHS FOUNDATION TRUST","RASXXX","Non-hospital site",5,1,0,5,0,0,0,0,0]
["QSL","RH5","SOMERSET NHS FOUNDATION TRUST","RH5K6","Bridgwater Hospital",0,"NA","NA",0,0,0,0,0,0]
["QSL","RH5","SOMERSET NHS FOUNDATION TRUST","RH5A8","MUSGROVE PARK HOSPITAL",0,"NA","NA",0,0,0,0,0,0]
["QSL","RH5","SOMERSET NHS FOUNDATION TRUST","RH5XXXX","Non-hospital site home/in-transit births",0,"NA","NA",0,0,0,0,0,0]
["QSL","RH5","SOMERSET NHS FOUNDATION TRUST","RH5O4","Yeovil District Hospital",0,"NA","NA",0,0,0,0,0,0]
["QT1","RX1","NOTTINGHAM UNIVERSITY HOSPITALS NHS TRUST","RX1XXX","Non-hospital site",0,"NA","NA",0,0,0,0,0,0]
["QT1","RX1","NOTTINGHAM UNIVERSITY HOSPITALS NHS TRUST","RX1CC","Nottingham University Hospitals NHS Trust - City Campus",5,0.8,0.2,4,0,0,1,0,0]
["QT1","RX1","NOTTINGHAM UNIVERSITY HOSPITALS NHS TRUST","RX1RA","Nottingham University Hospitals NHS Trust - Queen's Medical Centre Campus",33,1,0,29,4,0,0,0,0]
["QT1","RK5","SHERWOOD FOREST HOSPITALS NHS FOUNDATION TRUST","RK5BC","King's Mill Hospital",32,0.90625,6.25E-2,23,6,1,1,1,0]
["QT1","RK5","SHERWOOD FOREST HOSPITALS NHS FOUNDATION TRUST","RK5XXX","Non-hospital site",0,"NA","NA",0,0,0,0,0,0]
["QT6","REF","ROYAL CORNWALL HOSPITALS NHS TRUST","REFXXX","Non-hospital site",0,"NA","NA",0,0,0,0,0,0]
["QT6","REF","ROYAL CORNWALL HOSPITALS NHS TRUST","REF12","Royal Cornwall Hospital (Treliske)",6,0.83333333333333337,0,4,1,1,0,0,0]
["QU9","RXQ","BUCKINGHAMSHIRE HEALTHCARE NHS TRUST","RXQ02","Stoke Mandeville Hospital",33,0.87878787878787878,3.0303030303030304E-2,22,7,3,0,1,0]
["QU9","RTH","OXFORD UNIVERSITY HOSPITALS NHS FOUNDATION TRUST","RTH19","Chipping Norton Community Hospital",1,"*","*","*","*","*","*","*","*"]
["QU9","RTH","OXFORD UNIVERSITY HOSPITALS NHS FOUNDATION TRUST","RTH05","Horton General Hospital",1,"*","*","*","*","*","*","*","*"]
["QU9","RTH","OXFORD UNIVERSITY HOSPITALS NHS FOUNDATION TRUST","RTH08","John Radcliffe Hospital",79,0.810126582278481,0.12658227848101267,48,16,5,5,5,0]
["QU9","RTH","OXFORD UNIVERSITY HOSPITALS NHS FOUNDATION TRUST","RTH16","Wallingford Community Hospital",0,"NA","NA",0,0,0,0,0,0]
["QU9","RHW","ROYAL BERKSHIRE NHS FOUNDATION TRUST","RHW01","Royal Berkshire Hospital",65,0.93846153846153846,1.5384615384615385E-2,54,7,3,0,1,0]
["QUA","RNA","THE DUDLEY GROUP NHS FOUNDATION TRUST","RNA01","Russells Hall Hospital",26,0.61538461538461542,3.8461538461538464E-2,16,0,0,0,1,9]
["QUA","RL4","THE ROYAL WOLVERHAMPTON NHS TRUST","RL403","New Cross Hospital",57,0.96491228070175439,3.5087719298245612E-2,50,5,0,1,1,0]
["QUA","RBK","WALSALL HEALTHCARE NHS TRUST","RBK02","Manor Hospital",35,0.94285714285714284,2.8571428571428571E-2,24,9,1,0,1,0]
["QUE","RGT","CAMBRIDGE UNIVERSITY HOSPITALS NHS FOUNDATION TRUST","RGT32","Rosie Hospital",40,0.95,0,35,3,2,0,0,0]
["QUE","RGN","NORTH WEST ANGLIA NHS FOUNDATION TRUST","RGN90","Hinchingbrooke Hospital",21,1,0,"*","*","*","*","*","*"]
["QUE","RGN","NORTH WEST ANGLIA NHS FOUNDATION TRUST","RGN80","Peterborough City Hospital",2,"*","*","*","*","*","*","*","*"]
["QUY","RVJ","NORTH BRISTOL NHS TRUST","RVJXXX","Non-hospital site",1,"*","*","*","*","*","*","*","*"]
["QUY","RVJ","NORTH BRISTOL NHS TRUST","RVJ01","Southmead Hospital",97,0.97938144329896903,1.0309278350515464E-2,"*","*","*","*","*","*"]
["QUY","RA7","UNIVERSITY HOSPITALS BRISTOL AND WESTON NHS FOUNDATION TRUST","RA707","St Michael's Hospital",52,0.96153846153846156,0,41,9,2,0,0,0]
["QVV","RBD","DORSET COUNTY HOSPITAL NHS FOUNDATION TRUST","RBD01","Dorset County Hospital",42,0.95238095238095233,4.7619047619047616E-2,35,5,0,0,2,0]
["QVV","R0D","UNIVERSITY HOSPITALS DORSET NHS FOUNDATION TRUST","R0D01","Poole Hospital",82,0.96341463414634143,0,"*","*","*","*","*","*"]
["QVV","R0D","UNIVERSITY HOSPITALS DORSET NHS FOUNDATION TRUST","R0D02","Royal Bournemouth Hospital",1,"*","*","*","*","*","*","*","*"]
["QWE","RJ6","CROYDON HEALTH SERVICES NHS TRUST","RJ611","Croydon University Hospital",17,0.88235294117647056,5.8823529411764705E-2,11,4,1,0,1,0]
["QWE","RVR","EPSOM AND ST HELIER UNIVERSITY HOSPITALS NHS TRUST","RVR50","Epsom Hospital",16,1,0,15,1,0,0,0,0]
["QWE","RVR","EPSOM AND ST HELIER UNIVERSITY HOSPITALS NHS TRUST","RVRXXX","Non-hospital site",2,"*","*","*","*","*","*","*","*"]
["QWE","RVR","EPSOM AND ST HELIER UNIVERSITY HOSPITALS NHS TRUST","RVR05","St Helier Hospital",7,0.8571428571428571,0.14285714285714285,"*","*","*","*","*","*"]
["QWE","RAX","KINGSTON HOSPITAL NHS FOUNDATION TRUST","RAX01","Kingston Hospital",34,0.94117647058823528,0,29,3,2,0,0,0]
["QWE","RJ7","ST GEORGE'S UNIVERSITY HOSPITALS NHS FOUNDATION TRUST","RJ701","St George's Hospital (Tooting)",41,0.90243902439024393,7.3170731707317069E-2,34,3,1,0,3,0]
["QWO","RCF","AIREDALE NHS FOUNDATION TRUST","RCF22","Airedale General Hospital",23,0.86956521739130432,4.3478260869565216E-2,17,3,2,0,1,0]
["QWO","RAE","BRADFORD TEACHING HOSPITALS NHS FOUNDATION TRUST","RAE01","Bradford Royal Infirmary",182,1,0,166,16,0,0,0,0]
["QWO","RWY","CALDERDALE AND HUDDERSFIELD NHS FOUNDATION TRUST","RWY02","Calderdale Royal Hospital",16,1,0,16,0,0,0,0,0]
["QWO","RWY","CALDERDALE AND HUDDERSFIELD NHS FOUNDATION TRUST","RWYXXX","Non-hospital site",0,"NA","NA",0,0,0,0,0,0]
["QWO","RR8","LEEDS TEACHING HOSPITALS NHS TRUST","RR801","Leeds General Infirmary",113,0.97345132743362828,1.7699115044247787E-2,105,5,1,0,2,0]
["QWO","RR8","LEEDS TEACHING HOSPITALS NHS TRUST","RR8XXX","Non-hospital site",2,"*","*","*","*","*","*","*","*"]
["QWO","RR8","LEEDS TEACHING HOSPITALS NHS TRUST","RR813","St James's University Hospital",99,0.98989898989898994,1.0101010101010102E-2,"*","*","*","*","*","*"]
["QWO","RXF","MID YORKSHIRE TEACHING NHS TRUST","RXF10","Dewsbury and District Hospital",7,1,0,7,0,0,0,0,0]
["QWO","RXF","MID YORKSHIRE TEACHING NHS TRUST","RXFXXX","Non-hospital site",0,"NA","NA",0,0,0,0,0,0]
["QWO","RXF","MID YORKSHIRE TEACHING NHS TRUST","RXF05","Pinderfields General Hospital",49,0.97959183673469385,2.0408163265306121E-2,44,4,0,0,1,0]
["QWO","RXF","MID YORKSHIRE TEACHING NHS TRUST","RXF03","Pontefract General Infirmary",0,"NA","NA",0,0,0,0,0,0]
["QWU","RLT","GEORGE ELIOT HOSPITAL NHS TRUST","RLT01","George Eliot Hospital - Acute Services",62,0.95161290322580649,4.8387096774193547E-2,49,10,0,2,1,0]
["QWU","RJC","SOUTH WARWICKSHIRE UNIVERSITY NHS FOUNDATION TRUST","RJC02","Warwick Hospital",2,"*","*","*","*","*","*","*","*"]
["QWU","RKB","UNIVERSITY HOSPITALS COVENTRY AND WARWICKSHIRE NHS TRUST","RKB03","Hospital Of St Cross",0,"NA","NA",0,0,0,0,0,0]
["QWU","RKB","UNIVERSITY HOSPITALS COVENTRY AND WARWICKSHIRE NHS TRUST","RKBXXX","Non-hospital site",0,"NA","NA",0,0,0,0,0,0]
["QWU","RKB","UNIVERSITY HOSPITALS COVENTRY AND WARWICKSHIRE NHS TRUST","RKB01","University Hospital (Coventry)",47,0.95744680851063835,2.1276595744680851E-2,"*","*","*","*","*","*"]
["QXU","RTK","ASHFORD AND ST PETER'S HOSPITALS NHS FOUNDATION TRUST","RTK01","St Peter's Hospital",30,0.83333333333333337,3.3333333333333333E-2,23,2,2,1,0,2]
["QXU","RA2","ROYAL SURREY COUNTY HOSPITAL NHS FOUNDATION TRUST","RA201","Royal Surrey County Hospital",1,"*","*","*","*","*","*","*","*"]
["QXU","RTP","SURREY AND SUSSEX HEALTHCARE NHS TRUST","RTP04","East Surrey Hospital",11,1,0,"*","*","*","*","*","*"]
["QYG","REP","LIVERPOOL WOMEN'S NHS FOUNDATION TRUST","REP01","Liverpool Womens Hospital",48,0.8125,0.125,35,4,2,3,3,1]
["QYG","RBN","MERSEY AND WEST LANCASHIRE TEACHING HOSPITALS NHS TRUST","RBN52","Ormskirk and District General Hospital",54,0.92592592592592593,5.5555555555555552E-2,44,6,1,2,1,0]
["QYG","RBN","MERSEY AND WEST LANCASHIRE TEACHING HOSPITALS NHS TRUST","RBN01","Whiston Hospital",35,0.97142857142857142,2.8571428571428571E-2,31,3,0,0,1,0]
["QYG","RBT","MID CHESHIRE HOSPITALS NHS FOUNDATION TRUST","RBT20","Leighton Hospital",37,0.97297297297297303,2.7027027027027029E-2,"*","*","*","*","*","*"]
["QYG","RWW","WARRINGTON AND HALTON TEACHING HOSPITALS NHS FOUNDATION TRUST","RWWWH","Warrington Hospital",1,"*","*","*","*","*","*","*","*"]
["QYG","RBL","WIRRAL UNIVERSITY TEACHING HOSPITAL NHS FOUNDATION TRUST","RBL14","Arrowe Park Hospital",78,0.96153846153846156,2.564102564102564E-2,69,6,0,0,2,1]

{"sheet":"ICB Q3","index":8,"n_rows":55,"n_cols":11,"rows_kept":55,"cut":false,"hidden":false,"merged":[[8,5,8,10],[8,0,9,0],[8,1,9,1],[8,2,9,2],[8,3,9,3],[8,4,9,4]]}
[]
[]
[]
[]
[]
[null,"   Sort data by:           "]
[]
[]
["ICB Code","ICB Name","Total Responses","Percentage Positive","Percentage Negative","Breakdown of Responses"]
[null,null,null,null,null,"Very Good","Good","Neither Good nor Poor","Poor","Very Poor","Don't Know"]
[null,"England (including Independent Sector providers)",5552,0.91948847262247835,4.1966858789625361E-2,4031,1074,176,117,116,38]
[null,"England (excluding Independent Sector providers)",5552,0.91948847262247835,4.1966858789625361E-2,4031,1074,176,117,116,38]
[null,"Selection (excluding suppressed data)",{"$f":"SUBTOTAL(9,C14:C55)","v":5552},{"$f":"IFERROR((F13+G13)/SUM(F13:K13), \"-\")","v":0.91948005055064086},{"$f":"IFERROR((I13+J13)/SUM(F13:K13), \"-\")","v":4.1884816753926704E-2},{"$f":"SUBTOTAL(9,F14:F55)","v":4020},{"$f":"SUBTOTAL(9,G14:G55)","v":1073},176,116,116,38]
["QE1","LANCASHIRE AND SOUTH CUMBRIA ICB",87,0.87356321839080464,5.7471264367816091E-2,58,18,6,2,3,0]
["QF7","SOUTH YORKSHIRE ICB",88,0.95454545454545459,3.4090909090909088E-2,69,15,0,2,1,1]
["QGH","HEREFORDSHIRE AND WORCESTERSHIRE ICB",2,"*","*","*","*","*","*","*","*"]
["QH8","MID AND SOUTH ESSEX ICB",49,0.8571428571428571,0.10204081632653061,29,13,2,4,1,0]
["QHG","BEDFORDSHIRE, LUTON AND MILTON KEYNES ICB",249,0.91566265060240959,4.0160642570281124E-2,156,72,10,5,5,1]
["QHL","BIRMINGHAM AND SOLIHULL ICB",17,0.70588235294117652,0.23529411764705882,6,6,1,2,2,0]
["QHM","NORTH EAST AND NORTH CUMBRIA ICB",288,0.95138888888888884,4.1666666666666664E-2,227,47,2,6,6,0]
["QJ2","DERBY AND DERBYSHIRE ICB",127,0.96062992125984248,1.5748031496062992E-2,97,25,2,2,0,1]
["QJG","SUFFOLK AND NORTH EAST ESSEX ICB",74,0.97297297297297303,1.3513513513513514E-2,58,14,1,1,0,0]
["QJK","DEVON ICB",93,1,0,85,8,0,0,0,0]
["QJM","LINCOLNSHIRE ICB",59,0.98305084745762716,0,48,10,1,0,0,0]
["QK1","LEICESTER, LEICESTERSHIRE AND RUTLAND ICB",171,0.9064327485380117,3.5087719298245612E-2,113,42,9,3,3,1]
["QKK","SOUTH EAST LONDON ICB",114,0.90350877192982459,3.5087719298245612E-2,61,42,6,3,1,1]
["QKS","KENT AND MEDWAY ICB",133,0.96240601503759393,3.007518796992481E-2,101,27,1,2,2,0]
["QM7","HERTFORDSHIRE AND WEST ESSEX ICB",66,0.90909090909090906,1.5151515151515152E-2,47,13,4,0,1,1]
["QMF","NORTH EAST LONDON ICB",184,0.89673913043478259,6.5217391304347824E-2,126,39,5,3,9,2]
["QMJ","NORTH CENTRAL LONDON ICB",419,0.9284009546539379,2.6252983293556086E-2,296,93,19,7,4,0]
["QMM","NORFOLK AND WAVENEY ICB",43,0.90697674418604646,9.3023255813953487E-2,34,5,0,1,3,0]
["QNC","STAFFORDSHIRE AND STOKE-ON-TRENT ICB",35,0.94285714285714284,2.8571428571428571E-2,30,3,1,0,1,0]
["QNQ","FRIMLEY ICB",0,"NA","NA",0,0,0,0,0,0]
["QNX","SUSSEX ICB",121,0.95041322314049592,4.1322314049586778E-2,100,15,1,2,3,0]
["QOC","SHROPSHIRE, TELFORD AND WREKIN ICB",9,1,0,"*","*","*","*","*","*"]
["QOP","GREATER MANCHESTER ICB",430,0.95348837209302328,2.5581395348837209E-2,354,56,7,7,4,2]
["QOQ","HUMBER AND NORTH YORKSHIRE ICB",120,0.9,7.4999999999999997E-2,92,16,3,3,6,0]
["QOX","BATH AND NORTH EAST SOMERSET, SWINDON AND WILTSHIRE ICB",85,0.84705882352941175,7.0588235294117646E-2,57,15,7,3,3,0]
["QPM","NORTHAMPTONSHIRE ICB",27,1,0,24,3,0,0,0,0]
["QR1","GLOUCESTERSHIRE ICB",77,0.76623376623376627,0.1038961038961039,34,25,10,5,3,0]
["QRL","HAMPSHIRE AND ISLE OF WIGHT ICB",325,0.90153846153846151,3.3846153846153845E-2,229,64,17,7,4,4]
["QRV","NORTH WEST LONDON ICB",514,0.91050583657587547,5.4474708171206226E-2,369,99,17,16,12,1]
["QSL","SOMERSET ICB",0,"NA","NA",0,0,0,0,0,0]
["QT1","NOTTINGHAM AND NOTTINGHAMSHIRE ICB",87,0.9885057471264368,1.1494252873563218E-2,59,27,0,0,1,0]
["QT6","CORNWALL AND THE ISLES OF SCILLY ICB",2,"*","*","*","*","*","*","*","*"]
["QU9","BUCKINGHAMSHIRE, OXFORDSHIRE AND BERKSHIRE WEST ICB",78,0.92307692307692313,7.6923076923076927E-2,56,16,0,5,1,0]
["QUA","BLACK COUNTRY ICB",180,0.7944444444444444,8.3333333333333329E-2,107,36,7,4,11,15]
["QUE","CAMBRIDGESHIRE AND PETERBOROUGH ICB",115,0.92173913043478262,4.3478260869565216E-2,90,16,3,4,1,1]
["QUY","BRISTOL, NORTH SOMERSET AND SOUTH GLOUCESTERSHIRE ICB",133,0.90225563909774431,5.2631578947368418E-2,89,31,6,3,4,0]
["QVV","DORSET ICB",88,0.875,5.6818181818181816E-2,60,17,3,3,2,3]
["QWE","SOUTH WEST LONDON ICB",144,0.93055555555555558,2.0833333333333332E-2,93,41,6,1,2,1]
["QWO","WEST YORKSHIRE ICB",271,0.955719557195572,2.9520295202952029E-2,223,36,3,1,7,1]
["QWU","COVENTRY AND WARWICKSHIRE ICB",102,0.8529411764705882,3.9215686274509803E-2,58,29,11,3,1,0]
["QXU","SURREY HEARTLANDS ICB",25,0.88,0,18,4,3,0,0,0]
["QYG","CHESHIRE AND MERSEYSIDE ICB",321,0.94080996884735202,4.6728971962616821E-2,267,35,2,6,9,2]

{"sheet":"Trusts Q3","index":9,"n_rows":126,"n_cols":20,"rows_kept":126,"cut":false,"hidden":false,"merged":[[8,6,8,11],[8,12,8,19],[8,0,9,0],[8,1,9,1],[8,2,9,2],[8,3,9,3],[8,4,9,4],[8,5,9,5]]}
[]
[]
[]
[]
[]
[null,"   Sort data by:           "]
[]
[]
["ICB Code","Trust Code","Trust Name","Total Responses","Percentage Positive","Percentage Negative","Breakdown of Responses",null,null,null,null,null,"Mode of Collection"]
[null,null,null,null,null,null,"Very Good","Good","Neither Good nor Poor","Poor","Very Poor","Don't Know","Mode SMS","Mode Electronic Discharge","Mode Electronic Home","Mode Paper Discharge","Mode Paper Home","Mode Telephone","Mode Online","Mode Other"]
[null,null,"England (including Independent Sector providers)",5552,0.91948847262247835,4.1966858789625361E-2,4031,1074,176,117,116,38,1353,1438,74,1907,104,0,635,41]
[null,null,"England (excluding Independent Sector providers)",5552,0.91948847262247835,4.1966858789625361E-2,4031,1074,176,117,116,38,1353,1438,74,1907,104,0,635,41]
[null,null,"Selection (excluding suppressed data)",{"$f":"SUBTOTAL(9,D14:D299)","v":5552},{"$f":"IFERROR((G13+H13)/SUM(G13:L13), \"-\")","v":0.92056164647047511},{"$f":"IFERROR((J13+K13)/SUM(G13:L13), \"-\")","v":4.2123485285631854E-2},{"$f":"SUBTOTAL(9,G14:G299)","v":3792},994,157,112,107,37,1285,1327,43,1802,99,0,606,37]
["QE1","RXR","EAST LANCASHIRE HOSPITALS NHS TRUST",2,"*","*","*","*","*","*","*","*","*","*","*","*","*","*","*","*"]
["QE1","RXN","LANCASHIRE TEACHING HOSPITALS NHS FOUNDATION TRUST",11,0.81818181818181823,9.0909090909090912E-2,"*","*","*","*","*","*","*","*","*","*","*","*","*","*"]
["QE1","RXL","BLACKPOOL TEACHING HOSPITALS NHS FOUNDATION TRUST",36,0.75,0.1111111111111111,20,7,5,2,2,0,23,0,0,13,0,0,0,0]
["QE1","RTX","UNIVERSITY HOSPITALS OF MORECAMBE BAY NHS FOUNDATION TRUST",38,1,0,32,6,0,0,0,0,37,0,0,0,0,0,1,0]
["QF7","RFF","BARNSLEY HOSPITAL NHS FOUNDATION TRUST",10,0.8,0.2,8,0,0,1,1,0,0,10,0,0,0,0,0,0]
["QF7","RP5","DONCASTER AND BASSETLAW TEACHING HOSPITALS NHS FOUNDATION TRUST",14,1,0,14,0,0,0,0,0,0,0,0,14,0,0,0,0]
["QF7","RFR","THE ROTHERHAM NHS FOUNDATION TRUST",15,0.93333333333333335,0,9,5,0,0,0,1,0,0,0,10,0,0,5,0]
["QF7","RHQ","SHEFFIELD TEACHING HOSPITALS NHS FOUNDATION TRUST",49,0.97959183673469385,2.0408163265306121E-2,38,10,0,1,0,0,0,0,0,42,0,0,7,0]
["QGH","RLQ","WYE VALLEY NHS TRUST",0,"NA","NA",0,0,0,0,0,0,0,0,0,0,0,0,0,0]
["QGH","RWP","WORCESTERSHIRE ACUTE HOSPITALS NHS TRUST",2,"*","*","*","*","*","*","*","*","*","*","*","*","*","*","*","*"]
["QH8","RAJ","MID AND SOUTH ESSEX NHS FOUNDATION TRUST",49,0.8571428571428571,0.10204081632653061,29,13,2,4,1,0,47,0,0,0,0,0,2,0]
["QHG","RD8","MILTON KEYNES UNIVERSITY HOSPITAL NHS FOUNDATION TRUST",67,0.88059701492537312,8.9552238805970144E-2,42,17,2,3,3,0,6,0,0,51,0,0,10,0]
["QHG","RC9","BEDFORDSHIRE HOSPITALS NHS FOUNDATION TRUST",182,0.9285714285714286,2.197802197802198E-2,114,55,8,2,2,1,0,181,0,0,0,0,1,0]
["QHL","RXK","SANDWELL AND WEST BIRMINGHAM HOSPITALS NHS TRUST",1,"*","*","*","*","*","*","*","*","*","*","*","*","*","*","*","*"]
["QHL","RRK","UNIVERSITY HOSPITALS BIRMINGHAM NHS FOUNDATION TRUST",2,"*","*","*","*","*","*","*","*","*","*","*","*","*","*","*","*"]
["QHL","RQ3","BIRMINGHAM WOMEN'S AND CHILDREN'S NHS FOUNDATION TRUST",14,0.6428571428571429,0.2857142857142857,3,6,1,2,2,0,0,0,0,0,0,0,14,0]
["QHM","RTD","THE NEWCASTLE UPON TYNE HOSPITALS NHS FOUNDATION TRUST",1,"*","*","*","*","*","*","*","*","*","*","*","*","*","*","*","*"]
["QHM","R0B","SOUTH TYNESIDE AND SUNDERLAND NHS FOUNDATION TRUST",3,"*","*","*","*","*","*","*","*","*","*","*","*","*","*","*","*"]
["QHM","RVW","NORTH TEES AND HARTLEPOOL NHS FOUNDATION TRUST",3,"*","*","*","*","*","*","*","*","*","*","*","*","*","*","*","*"]
["QHM","RR7","GATESHEAD HEALTH NHS FOUNDATION TRUST",4,"*","*","*","*","*","*","*","*","*","*","*","*","*","*","*","*"]
["QHM","RNN","NORTH CUMBRIA INTEGRATED CARE NHS FOUNDATION TRUST",29,1,0,26,3,0,0,0,0,3,0,0,17,0,0,9,0]
["QHM","RTR","SOUTH TEES HOSPITALS NHS FOUNDATION TRUST",29,1,0,25,4,0,0,0,0,16,8,5,0,0,0,0,0]
["QHM","RTF","NORTHUMBRIA HEALTHCARE NHS FOUNDATION TRUST",75,0.88,0.10666666666666667,55,11,1,4,4,0,49,0,0,26,0,0,0,0]
["QHM","RXP","COUNTY DURHAM AND DARLINGTON NHS FOUNDATION TRUST",144,0.98611111111111116,6.9444444444444441E-3,114,28,1,1,0,0,0,0,0,144,0,0,0,0]
["QJ2","RTG","UNIVERSITY HOSPITALS OF DERBY AND BURTON NHS FOUNDATION TRUST",21,0.90476190476190477,9.5238095238095233E-2,14,5,0,2,0,0,7,0,0,14,0,0,0,0]
["QJ2","RFS","CHESTERFIELD ROYAL HOSPITAL NHS FOUNDATION TRUST",106,0.97169811320754718,0,83,20,2,0,0,1,41,25,38,0,0,0,2,0]
["QJG","RGR","WEST SUFFOLK NHS FOUNDATION TRUST",34,1,0,30,4,0,0,0,0,0,32,0,0,0,0,2,0]
["QJG","RDE","EAST SUFFOLK AND NORTH ESSEX NHS FOUNDATION TRUST",40,0.95,2.5000000000000001E-2,28,10,1,1,0,0,0,0,0,0,0,0,40,0]
["QJK","RA9","TORBAY AND SOUTH DEVON NHS FOUNDATION TRUST",0,"NA","NA",0,0,0,0,0,0,0,0,0,0,0,0,0,0]
["QJK","RK9","UNIVERSITY HOSPITALS PLYMOUTH NHS TRUST",46,1,0,38,8,0,0,0,0,0,45,0,1,0,0,0,0]
["QJK","RH8","ROYAL DEVON UNIVERSITY HEALTHCARE NHS FOUNDATION TRUST",47,1,0,47,0,0,0,0,0,0,0,0,47,0,0,0,0]
["QJM","RWD","UNITED LINCOLNSHIRE HOSPITALS NHS TRUST",59,0.98305084745762716,0,48,10,1,0,0,0,0,0,0,59,0,0,0,0]
["QK1","RWE","UNIVERSITY HOSPITALS OF LEICESTER NHS TRUST",171,0.9064327485380117,3.5087719298245612E-2,113,42,9,3,3,1,34,137,0,0,0,0,0,0]
["QKK","RJZ","KING'S COLLEGE HOSPITAL NHS FOUNDATION TRUST",0,"NA","NA",0,0,0,0,0,0,0,0,0,0,0,0,0,0]
["QKK","RJ2","LEWISHAM AND GREENWICH NHS TRUST",56,0.8928571428571429,3.5714285714285712E-2,30,20,3,2,0,1,0,0,0,18,0,0,38,0]
["QKK","RJ1","GUY'S AND ST THOMAS' NHS FOUNDATION TRUST",58,0.91379310344827591,3.4482758620689655E-2,31,22,3,1,1,0,0,0,0,55,0,0,3,0]
["QKS","RN7","DARTFORD AND GRAVESHAM NHS TRUST",25,1,0,23,2,0,0,0,0,0,5,0,0,0,0,20,0]
["QKS","RWF","MAIDSTONE AND TUNBRIDGE WELLS NHS TRUST",49,0.97959183673469385,0,38,10,1,0,0,0,0,0,0,14,0,0,35,0]
["QKS","RPA","MEDWAY NHS FOUNDATION TRUST",59,0.93220338983050843,6.7796610169491525E-2,40,15,0,2,2,0,0,0,0,0,0,0,59,0]
["QM7","RWG","WEST HERTFORDSHIRE TEACHING HOSPITALS NHS TRUST",0,"NA","NA",0,0,0,0,0,0,0,0,0,0,0,0,0,0]
["QM7","RQW","THE PRINCESS ALEXANDRA HOSPITAL NHS TRUST",3,"*","*","*","*","*","*","*","*","*","*","*","*","*","*","*","*"]
["QM7","RWH","EAST AND NORTH HERTFORDSHIRE NHS TRUST",63,0.93650793650793651,0,"*","*","*","*","*","*","*","*","*","*","*","*","*","*"]
["QMF","RQX","HOMERTON HEALTHCARE NHS FOUNDATION TRUST",10,0.6,0.1,3,3,3,0,1,0,10,0,0,0,0,0,0,0]
["QMF","R1H","BARTS HEALTH NHS TRUST",65,0.87692307692307692,0.1076923076923077,42,15,1,3,4,0,13,0,0,46,0,0,6,0]
["QMF","RF4","BARKING, HAVERING AND REDBRIDGE UNIVERSITY HOSPITALS NHS TRUST",109,0.93577981651376152,3.669724770642202E-2,81,21,1,0,4,2,0,0,0,109,0,0,0,0]
["QMJ","RKE","WHITTINGTON HEALTH NHS TRUST",16,0.9375,6.25E-2,13,2,0,1,0,0,0,0,0,6,0,0,10,0]
["QMJ","RAP","NORTH MIDDLESEX UNIVERSITY HOSPITAL NHS TRUST",120,0.8666666666666667,5.8333333333333334E-2,51,53,9,5,2,0,16,104,0,0,0,0,0,0]
["QMJ","RAL","ROYAL FREE LONDON NHS FOUNDATION TRUST",283,0.95406360424028269,1.0600706713780919E-2,232,38,10,1,2,0,0,283,0,0,0,0,0,0]
["QMM","RM1","NORFOLK AND NORWICH UNIVERSITY HOSPITALS NHS FOUNDATION TRUST",4,"*","*","*","*","*","*","*","*","*","*","*","*","*","*","*","*"]
["QMM","RGP","JAMES PAGET UNIVERSITY HOSPITALS NHS FOUNDATION TRUST",17,0.88235294117647056,0.11764705882352941,"*","*","*","*","*","*","*","*","*","*","*","*","*","*"]
["QMM","RCX","THE QUEEN ELIZABETH HOSPITAL, KING'S LYNN, NHS FOUNDATION TRUST",22,0.95454545454545459,4.5454545454545456E-2,16,5,0,1,0,0,0,0,0,21,0,0,1,0]
["QNC","RJE","UNIVERSITY HOSPITALS OF NORTH MIDLANDS NHS TRUST",35,0.94285714285714284,2.8571428571428571E-2,30,3,1,0,1,0,7,0,0,27,0,0,1,0]
["QNX","RXC","EAST SUSSEX HEALTHCARE NHS TRUST",35,1,0,32,3,0,0,0,0,0,0,0,35,0,0,0,0]
["QNX","RYR","UNIVERSITY HOSPITALS SUSSEX NHS FOUNDATION TRUST",86,0.93023255813953487,5.8139534883720929E-2,68,12,1,2,3,0,86,0,0,0,0,0,0,0]
["QOC","RXW","THE SHREWSBURY AND TELFORD HOSPITAL NHS TRUST",9,1,0,"*","*","*","*","*","*","*","*","*","*","*","*","*","*"]
["QOP","RMP","TAMESIDE AND GLOSSOP INTEGRATED CARE NHS FOUNDATION TRUST",11,1,0,11,0,0,0,0,0,0,11,0,0,0,0,0,0]
["QOP","RM3","NORTHERN CARE ALLIANCE NHS FOUNDATION TRUST",13,1,0,11,2,0,0,0,0,0,0,0,0,0,0,13,0]
["QOP","RWJ","STOCKPORT NHS FOUNDATION TRUST",23,1,0,18,5,0,0,0,0,0,0,0,23,0,0,0,0]
["QOP","RRF","WRIGHTINGTON, WIGAN AND LEIGH NHS FOUNDATION TRUST",29,0.89655172413793105,0,24,2,1,0,0,2,0,0,0,0,29,0,0,0]
["QOP","RMC","BOLTON NHS FOUNDATION TRUST",127,0.96850393700787396,2.3622047244094488E-2,106,17,1,3,0,0,56,60,0,11,0,0,0,0]
["QOP","R0A","MANCHESTER UNIVERSITY NHS FOUNDATION TRUST",227,0.94273127753303965,3.5242290748898682E-2,184,30,5,4,4,0,0,107,0,113,0,0,3,4]
["QOQ","RCD","HARROGATE AND DISTRICT NHS FOUNDATION TRUST",0,"NA","NA",0,0,0,0,0,0,0,0,0,0,0,0,0,0]
["QOQ","RJL","NORTHERN LINCOLNSHIRE AND GOOLE NHS FOUNDATION TRUST",0,"NA","NA",0,0,0,0,0,0,0,0,0,0,0,0,0,0]
["QOQ","RCB","YORK AND SCARBOROUGH TEACHING HOSPITALS NHS FOUNDATION TRUST",56,1,0,48,8,0,0,0,0,0,0,0,0,56,0,0,0]
["QOQ","RWA","HULL UNIVERSITY TEACHING HOSPITALS NHS TRUST",64,0.8125,0.140625,44,8,3,3,6,0,63,0,0,0,0,0,1,0]
["QOX","RNZ","SALISBURY NHS FOUNDATION TRUST",2,"*","*","*","*","*","*","*","*","*","*","*","*","*","*","*","*"]
["QOX","RD1","ROYAL UNITED HOSPITALS BATH NHS FOUNDATION TRUST",35,0.91428571428571426,0,"*","*","*","*","*","*","*","*","*","*","*","*","*","*"]
["QOX","RN3","GREAT WESTERN HOSPITALS NHS FOUNDATION TRUST",48,0.79166666666666663,0.125,27,11,4,3,3,0,48,0,0,0,0,0,0,0]
["QPM","RNQ","KETTERING GENERAL HOSPITAL NHS FOUNDATION TRUST",9,1,0,6,3,0,0,0,0,0,0,0,0,0,0,9,0]
["QPM","RNS","NORTHAMPTON GENERAL HOSPITAL NHS TRUST",18,1,0,18,0,0,0,0,0,5,0,0,0,12,0,1,0]
["QR1","RTE","GLOUCESTERSHIRE HOSPITALS NHS FOUNDATION TRUST",77,0.76623376623376627,0.1038961038961039,34,25,10,5,3,0,77,0,0,0,0,0,0,0]
["QRL","R1F","ISLE OF WIGHT NHS TRUST",0,"NA","NA",0,0,0,0,0,0,0,0,0,0,0,0,0,0]
["QRL","RHU","PORTSMOUTH HOSPITALS UNIVERSITY NATIONAL HEALTH SERVICE TRUST",86,0.96511627906976749,0,77,6,3,0,0,0,0,0,0,86,0,0,0,0]
["QRL","RHM","UNIVERSITY HOSPITAL SOUTHAMPTON NHS FOUNDATION TRUST",109,0.77981651376146788,0.10091743119266056,51,34,11,7,4,2,0,0,0,0,2,0,107,0]
["QRL","RN5","HAMPSHIRE HOSPITALS NHS FOUNDATION TRUST",130,0.96153846153846156,0,101,24,3,0,0,2,0,0,0,126,0,0,4,0]
["QRV","RAS","THE HILLINGDON HOSPITALS NHS FOUNDATION TRUST",67,0.86567164179104472,0.1044776119402985,43,15,2,4,3,0,0,0,0,40,0,0,27,0]
["QRV","R1K","LONDON NORTH WEST UNIVERSITY HEALTHCARE NHS TRUST",96,1,0,78,18,0,0,0,0,0,0,0,96,0,0,0,0]
["QRV","RYJ","IMPERIAL COLLEGE HEALTHCARE NHS TRUST",114,0.88596491228070173,7.0175438596491224E-2,73,28,5,6,2,0,0,30,0,44,0,0,40,0]
["QRV","RQM","CHELSEA AND WESTMINSTER HOSPITAL NHS FOUNDATION TRUST",237,0.89873417721518989,5.4852320675105488E-2,175,38,10,6,7,1,168,0,0,43,0,0,26,0]
["QSL","RH5","SOMERSET NHS FOUNDATION TRUST",0,"NA","NA",0,0,0,0,0,0,0,0,0,0,0,0,0,0]
["QT1","RK5","SHERWOOD FOREST HOSPITALS NHS FOUNDATION TRUST",4,"*","*","*","*","*","*","*","*","*","*","*","*","*","*","*","*"]
["QT1","RX1","NOTTINGHAM UNIVERSITY HOSPITALS NHS TRUST",83,1,0,"*","*","*","*","*","*","*","*","*","*","*","*","*","*"]
["QT6","REF","ROYAL CORNWALL HOSPITALS NHS TRUST",2,"*","*","*","*","*","*","*","*","*","*","*","*","*","*","*","*"]
["QU9","RTH","OXFORD UNIVERSITY HOSPITALS NHS FOUNDATION TRUST",0,"NA","NA",0,0,0,0,0,0,0,0,0,0,0,0,0,0]
["QU9","RXQ","BUCKINGHAMSHIRE HEALTHCARE NHS TRUST",21,0.7142857142857143,0.2857142857142857,10,5,0,5,1,0,21,0,0,0,0,0,0,0]
["QU9","RHW","ROYAL BERKSHIRE NHS FOUNDATION TRUST",57,1,0,46,11,0,0,0,0,0,0,0,57,0,0,0,0]
["QUA","RNA","THE DUDLEY GROUP NHS FOUNDATION TRUST",26,0.5,0,9,4,0,0,0,13,1,0,0,22,0,0,3,0]
["QUA","RL4","THE ROYAL WOLVERHAMPTON NHS TRUST",46,0.80434782608695654,0.13043478260869565,26,11,3,1,5,0,46,0,0,0,0,0,0,0]
["QUA","RBK","WALSALL HEALTHCARE NHS TRUST",108,0.86111111111111116,8.3333333333333329E-2,72,21,4,3,6,2,15,93,0,0,0,0,0,0]
["QUE","RGT","CAMBRIDGE UNIVERSITY HOSPITALS NHS FOUNDATION TRUST",47,0.85106382978723405,0.10638297872340426,35,5,1,4,1,1,0,35,0,0,0,0,12,0]
["QUE","RGN","NORTH WEST ANGLIA NHS FOUNDATION TRUST",68,0.97058823529411764,0,55,11,2,0,0,0,0,0,0,52,0,0,16,0]
["QUY","RA7","UNIVERSITY HOSPITALS BRISTOL AND WESTON NHS FOUNDATION TRUST",52,0.98076923076923073,0,42,9,1,0,0,0,1,0,0,51,0,0,0,0]
["QUY","RVJ","NORTH BRISTOL NHS TRUST",81,0.85185185185185186,8.6419753086419748E-2,47,22,5,3,4,0,81,0,0,0,0,0,0,0]
["QVV","RBD","DORSET COUNTY HOSPITAL NHS FOUNDATION TRUST",26,0.88461538461538458,7.6923076923076927E-2,21,2,1,1,1,0,26,0,0,0,0,0,0,0]
["QVV","R0D","UNIVERSITY HOSPITALS DORSET NHS FOUNDATION TRUST",62,0.87096774193548387,4.8387096774193547E-2,39,15,2,2,1,3,62,0,0,0,0,0,0,0]
["QWE","RVR","EPSOM AND ST HELIER UNIVERSITY HOSPITALS NHS TRUST",20,1,0,18,2,0,0,0,0,0,0,0,20,0,0,0,0]
["QWE","RAX","KINGSTON HOSPITAL NHS FOUNDATION TRUST",50,0.96,0,37,11,1,0,0,1,0,46,0,0,0,0,4,0]
["QWE","RJ7","ST GEORGE'S UNIVERSITY HOSPITALS NHS FOUNDATION TRUST",74,0.89189189189189189,4.0540540540540543E-2,38,28,5,1,2,0,0,73,0,0,0,0,1,0]
["QWO","RAE","BRADFORD TEACHING HOSPITALS NHS FOUNDATION TRUST",12,0.66666666666666663,0.33333333333333331,8,0,0,0,4,0,0,0,0,0,0,0,12,0]
["QWO","RWY","CALDERDALE AND HUDDERSFIELD NHS FOUNDATION TRUST",44,1,0,37,7,0,0,0,0,0,0,0,0,0,0,44,0]
["QWO","RXF","MID YORKSHIRE TEACHING NHS TRUST",102,0.9509803921568627,1.9607843137254902E-2,76,21,2,0,2,1,1,0,0,99,0,0,2,0]
["QWO","RR8","LEEDS TEACHING HOSPITALS NHS TRUST",113,0.97345132743362828,1.7699115044247787E-2,102,8,1,1,1,0,101,10,0,0,0,0,2,0]
["QWU","RLT","GEORGE ELIOT HOSPITAL NHS TRUST",0,"NA","NA",0,0,0,0,0,0,0,0,0,0,0,0,0,0]
["QWU","RJC","SOUTH WARWICKSHIRE UNIVERSITY NHS FOUNDATION TRUST",2,"*","*","*","*","*","*","*","*","*","*","*","*","*","*","*","*"]
["QWU","RKB","UNIVERSITY HOSPITALS COVENTRY AND WARWICKSHIRE NHS TRUST",100,0.85,0.04,"*","*","*","*","*","*","*","*","*","*","*","*","*","*"]
["QXU","RTK","ASHFORD AND ST PETER'S HOSPITALS NHS FOUNDATION TRUST",0,"NA","NA",0,0,0,0,0,0,0,0,0,0,0,0,0,0]
["QXU","RTP","SURREY AND SUSSEX HEALTHCARE NHS TRUST",9,1,0,6,3,0,0,0,0,3,0,0,4,0,0,2,0]
["QXU","RA2","ROYAL SURREY COUNTY HOSPITAL NHS FOUNDATION TRUST",16,0.8125,0,12,1,3,0,0,0,0,0,0,13,0,0,3,0]
["QYG","REP","LIVERPOOL WOMEN'S NHS FOUNDATION TRUST",33,0.81818181818181823,0.18181818181818182,22,5,0,3,3,0,0,0,0,0,0,0,0,33]
["QYG","RBN","MERSEY AND WEST LANCASHIRE TEACHING HOSPITALS NHS TRUST",37,0.86486486486486491,8.1081081081081086E-2,28,4,2,1,2,0,29,0,0,1,0,0,7,0]
["QYG","RBL","WIRRAL UNIVERSITY TEACHING HOSPITAL NHS FOUNDATION TRUST",78,0.96153846153846156,2.564102564102564E-2,69,6,0,0,2,1,0,32,0,46,0,0,0,0]
["QYG","RBT","MID CHESHIRE HOSPITALS NHS FOUNDATION TRUST",86,0.95348837209302328,4.6511627906976744E-2,72,10,0,2,2,0,86,0,0,0,0,0,0,0]
["QYG","RWW","WARRINGTON AND HALTON TEACHING HOSPITALS NHS FOUNDATION TRUST",87,0.9885057471264368,0,76,10,0,0,0,1,0,0,0,86,0,0,1,0]

{"sheet":"Sites Q3","index":10,"n_rows":177,"n_cols":14,"rows_kept":177,"cut":false,"hidden":false,"merged":[[8,6,9,6],[8,7,9,7],[8,8,8,13],[8,0,9,0],[8,1,9,1],[8,2,9,2],[8,3,9,3],[8,4,9,4],[8,5,9,5]]}
[]
[]
[]
[]
[]
[null,"   Sort data by:           "]
[]
[]
["ICB Code","Trust Code","Trust Name","Site Code","Site Name","Total Responses","Percentage Positive","Percentage Negative","Breakdown of Responses"]
[null,null,null,null,null,null,null,null,"Very Good","Good","Neither Good nor Poor","Poor","Very Poor","Don't Know"]
[null,null,null,null,"England (including Independent Sector providers)",5552,0.91948847262247835,4.1966858789625361E-2,4031,1074,176,117,116,38]
[null,null,null,null,"England (excluding Independent Sector providers)",5552,0.91948847262247835,4.1966858789625361E-2,4031,1074,176,117,116,38]
[null,null,null,null,"Selection (excluding suppressed data)",{"$f":"SUBTOTAL(9,F14:F298)","v":5552},{"$f":"IFERROR((I13+J13)/SUM(I13:N13), \"-\")","v":0.92008597108245405},{"$f":"IFERROR((L13+M13)/SUM(I13:N13), \"-\")","v":4.2008597108245407E-2},{"$f":"SUBTOTAL(9,I14:I298)","v":3731},978,157,108,107,37]
["QE1","RXL","BLACKPOOL TEACHING HOSPITALS NHS FOUNDATION TRUST","RXL01","Blackpool Victoria Hospital",36,0.75,0.1111111111111111,20,7,5,2,2,0]
["QE1","RXR","EAST LANCASHIRE HOSPITALS NHS TRUST","RXR20","Royal Blackburn Hospital",2,"*","*","*","*","*","*","*","*"]
["QE1","RXN","LANCASHIRE TEACHING HOSPITALS NHS FOUNDATION TRUST","RXN01","Chorley and South Ribble Hospital",0,"NA","NA",0,0,0,0,0,0]
["QE1","RXN","LANCASHIRE TEACHING HOSPITALS NHS FOUNDATION TRUST","RXN02","Royal Preston Hospital",11,0.81818181818181823,9.0909090909090912E-2,"*","*","*","*","*","*"]
["QE1","RTX","UNIVERSITY HOSPITALS OF MORECAMBE BAY NHS FOUNDATION TRUST","RTXBU","Furness General Hospital",11,1,0,9,2,0,0,0,0]
["QE1","RTX","UNIVERSITY HOSPITALS OF MORECAMBE BAY NHS FOUNDATION TRUST","RTX02","Royal Lancaster Infirmary",27,1,0,23,4,0,0,0,0]
["QF7","RFF","BARNSLEY HOSPITAL NHS FOUNDATION TRUST","RFFAA","Barnsley Hospital NHS Foundation Trust HQ",10,0.8,0.2,8,0,0,1,1,0]
["QF7","RP5","DONCASTER AND BASSETLAW TEACHING HOSPITALS NHS FOUNDATION TRUST","RP5BA","Bassetlaw Hospital",13,1,0,"*","*","*","*","*","*"]
["QF7","RP5","DONCASTER AND BASSETLAW TEACHING HOSPITALS NHS FOUNDATION TRUST","RP5DR","Doncaster Royal Infirmary",1,"*","*","*","*","*","*","*","*"]
["QF7","RHQ","SHEFFIELD TEACHING HOSPITALS NHS FOUNDATION TRUST","RHQHH","Royal Hallamshire Hospital",49,0.97959183673469385,2.0408163265306121E-2,38,10,0,1,0,0]
["QF7","RFR","THE ROTHERHAM NHS FOUNDATION TRUST","RFRPA","Rotherham District General Hospital",15,0.93333333333333335,0,9,5,0,0,0,1]
["QGH","RWP","WORCESTERSHIRE ACUTE HOSPITALS NHS TRUST","RWP50","Worcestershire Royal Hospital",2,"*","*","*","*","*","*","*","*"]
["QGH","RLQ","WYE VALLEY NHS TRUST","RLQ01","Hereford County Hospital",0,"NA","NA",0,0,0,0,0,0]
["QH8","RAJ","MID AND SOUTH ESSEX NHS FOUNDATION TRUST","RAJ12","BASILDON HOSPITAL",17,0.76470588235294112,0.17647058823529413,9,4,1,2,1,0]
["QH8","RAJ","MID AND SOUTH ESSEX NHS FOUNDATION TRUST","RAJ32","MID ESSEX HOSPITAL",9,0.88888888888888884,0.1111111111111111,5,3,0,1,0,0]
["QH8","RAJ","MID AND SOUTH ESSEX NHS FOUNDATION TRUST","RAJ01","Southend Hospital",23,0.91304347826086951,4.3478260869565216E-2,15,6,1,1,0,0]
["QHG","RC9","BEDFORDSHIRE HOSPITALS NHS FOUNDATION TRUST","RC979","BEDFORD HOSPITAL SOUTH WING",32,0.875,6.25E-2,24,4,1,1,1,1]
["QHG","RC9","BEDFORDSHIRE HOSPITALS NHS FOUNDATION TRUST","RC971","Luton and Dunstable Hospital",150,0.94,1.3333333333333334E-2,90,51,7,1,1,0]
["QHG","RD8","MILTON KEYNES UNIVERSITY HOSPITAL NHS FOUNDATION TRUST","RD816","Milton Keynes Hospital",67,0.88059701492537312,8.9552238805970144E-2,42,17,2,3,3,0]
["QHL","RQ3","BIRMINGHAM WOMEN'S AND CHILDREN'S NHS FOUNDATION TRUST","RQ370","Birmingham Women's Hospital",14,0.6428571428571429,0.2857142857142857,3,6,1,2,2,0]
["QHL","RXK","SANDWELL AND WEST BIRMINGHAM HOSPITALS NHS TRUST","RXKTC","Birmingham Treatment Centre",0,"NA","NA",0,0,0,0,0,0]
["QHL","RXK","SANDWELL AND WEST BIRMINGHAM HOSPITALS NHS TRUST","RXK02","City Hospital",1,"*","*","*","*","*","*","*","*"]
["QHL","RRK","UNIVERSITY HOSPITALS BIRMINGHAM NHS FOUNDATION TRUST","RRK98","Good Hope Hospital",1,"*","*","*","*","*","*","*","*"]
["QHL","RRK","UNIVERSITY HOSPITALS BIRMINGHAM NHS FOUNDATION TRUST","RRK97","Heartlands Hospital",1,"*","*","*","*","*","*","*","*"]
["QHL","RRK","UNIVERSITY HOSPITALS BIRMINGHAM NHS FOUNDATION TRUST","RRK99","Solihull Hospital",0,"NA","NA",0,0,0,0,0,0]
["QHM","RXP","COUNTY DURHAM AND DARLINGTON NHS FOUNDATION TRUST","RXPDA","Darlington Memorial Hospital",74,0.98648648648648651,0,53,20,1,0,0,0]
["QHM","RXP","COUNTY DURHAM AND DARLINGTON NHS FOUNDATION TRUST","RXPCP","University Hospital Of North Durham",70,0.98571428571428577,1.4285714285714285E-2,61,8,0,1,0,0]
["QHM","RR7","GATESHEAD HEALTH NHS FOUNDATION TRUST","RR7EN","Queen Elizabeth Hospital",4,"*","*","*","*","*","*","*","*"]
["QHM","RNN","NORTH CUMBRIA INTEGRATED CARE NHS FOUNDATION TRUST","RNN62","Cumberland Infirmary",22,1,0,20,2,0,0,0,0]
["QHM","RNN","NORTH CUMBRIA INTEGRATED CARE NHS FOUNDATION TRUST","RNNBX","West Cumberland Hospital",7,1,0,6,1,0,0,0,0]
["QHM","RVW","NORTH TEES AND HARTLEPOOL NHS FOUNDATION TRUST","RVWAE","University Hospital Of North Tees",3,"*","*","*","*","*","*","*","*"]
["QHM","RTF","NORTHUMBRIA HEALTHCARE NHS FOUNDATION TRUST","RTF86","The Northumbria",75,0.88,0.10666666666666667,55,11,1,4,4,0]
["QHM","RTR","SOUTH TEES HOSPITALS NHS FOUNDATION TRUST","RTR45","Friarage Hospital Site",0,"NA","NA",0,0,0,0,0,0]
["QHM","RTR","SOUTH TEES HOSPITALS NHS FOUNDATION TRUST","RTRAT","The James Cook University Hospital",29,1,0,25,4,0,0,0,0]
["QHM","R0B","SOUTH TYNESIDE AND SUNDERLAND NHS FOUNDATION TRUST","R0B01","Sunderland Royal Hospital",3,"*","*","*","*","*","*","*","*"]
["QHM","RTD","THE NEWCASTLE UPON TYNE HOSPITALS NHS FOUNDATION TRUST","RTD02","The Royal Victoria Infirmary",1,"*","*","*","*","*","*","*","*"]
["QJ2","RFS","CHESTERFIELD ROYAL HOSPITAL NHS FOUNDATION TRUST","RFSDA","Chesterfield Royal Hospital",106,0.97169811320754718,0,83,20,2,0,0,1]
["QJ2","RTG","UNIVERSITY HOSPITALS OF DERBY AND BURTON NHS FOUNDATION TRUST","RTG02","Queens Hospital, Burton Upon Trent",17,1,0,"*","*","*","*","*","*"]
["QJ2","RTG","UNIVERSITY HOSPITALS OF DERBY AND BURTON NHS FOUNDATION TRUST","RTGFG","Royal Derby Hospital",4,"*","*","*","*","*","*","*","*"]
["QJG","RDE","EAST SUFFOLK AND NORTH ESSEX NHS FOUNDATION TRUST","RDEE4","Colchester General Hospital",9,0.88888888888888884,0.1111111111111111,7,1,0,1,0,0]
["QJG","RDE","EAST SUFFOLK AND NORTH ESSEX NHS FOUNDATION TRUST","RDE03","Ipswich Hospital",31,0.967741935483871,0,21,9,1,0,0,0]
["QJG","RGR","WEST SUFFOLK NHS FOUNDATION TRUST","RGR50","West Suffolk Hospital",34,1,0,30,4,0,0,0,0]
["QJK","RH8","ROYAL DEVON UNIVERSITY HEALTHCARE NHS FOUNDATION TRUST","RH880","North Devon District Hospital",23,1,0,23,0,0,0,0,0]
["QJK","RH8","ROYAL DEVON UNIVERSITY HEALTHCARE NHS FOUNDATION TRUST","RH801","Royal Devon and Exeter Hospital (Wonford)",24,1,0,24,0,0,0,0,0]
["QJK","RA9","TORBAY AND SOUTH DEVON NHS FOUNDATION TRUST","RA901","Torbay Hospital",0,"NA","NA",0,0,0,0,0,0]
["QJK","RK9","UNIVERSITY HOSPITALS PLYMOUTH NHS TRUST","RK950","Derriford Hospital",46,1,0,38,8,0,0,0,0]
["QJM","RWD","UNITED LINCOLNSHIRE HOSPITALS NHS TRUST","RWDLP","Grantham and District Hospital",0,"NA","NA",0,0,0,0,0,0]
["QJM","RWD","UNITED LINCOLNSHIRE HOSPITALS NHS TRUST","RWDDA","Lincoln County Hospital",32,0.96875,0,24,7,1,0,0,0]
["QJM","RWD","UNITED LINCOLNSHIRE HOSPITALS NHS TRUST","RWDLA","Pilgrim Hospital",27,1,0,24,3,0,0,0,0]
["QK1","RWE","UNIVERSITY HOSPITALS OF LEICESTER NHS TRUST","RWEAK","Leicester General Hospital",44,0.95454545454545459,4.5454545454545456E-2,"*","*","*","*","*","*"]
["QK1","RWE","UNIVERSITY HOSPITALS OF LEICESTER NHS TRUST","RWEAA","Leicester Royal Infirmary",125,0.88800000000000001,3.2000000000000001E-2,80,31,9,1,3,1]
["QK1","RWE","UNIVERSITY HOSPITALS OF LEICESTER NHS TRUST","RWE10","St Mary's Hospital",2,"*","*","*","*","*","*","*","*"]
["QKK","RJ1","GUY'S AND ST THOMAS' NHS FOUNDATION TRUST","RJ122","St Thomas' Hospital",58,0.91379310344827591,3.4482758620689655E-2,31,22,3,1,1,0]
["QKK","RJZ","KING'S COLLEGE HOSPITAL NHS FOUNDATION TRUST","RJZ01","King's College Hospital (Denmark Hill)",0,"NA","NA",0,0,0,0,0,0]
["QKK","RJZ","KING'S COLLEGE HOSPITAL NHS FOUNDATION TRUST","RJZ30","Princess Royal University Hospital",0,"NA","NA",0,0,0,0,0,0]
["QKK","RJ2","LEWISHAM AND GREENWICH NHS TRUST","RJ231","Queen Elizabeth Hospital",32,0.875,3.125E-2,17,11,2,1,0,1]
["QKK","RJ2","LEWISHAM AND GREENWICH NHS TRUST","RJ224","University Hospital Lewisham",24,0.91666666666666663,4.1666666666666664E-2,13,9,1,1,0,0]
["QKS","RN7","DARTFORD AND GRAVESHAM NHS TRUST","RN707","Darent Valley Hospital",25,1,0,23,2,0,0,0,0]
["QKS","RWF","MAIDSTONE AND TUNBRIDGE WELLS NHS TRUST","RWFTW","The Tunbridge Wells Hospital",49,0.97959183673469385,0,38,10,1,0,0,0]
["QKS","RPA","MEDWAY NHS FOUNDATION TRUST","RPA02","Medway Maritime Hospital",59,0.93220338983050843,6.7796610169491525E-2,40,15,0,2,2,0]
["QM7","RWH","EAST AND NORTH HERTFORDSHIRE NHS TRUST","RWH01","Lister Hospital",63,0.93650793650793651,0,"*","*","*","*","*","*"]
["QM7","RQW","THE PRINCESS ALEXANDRA HOSPITAL NHS TRUST","RQWG0","Princess Alexandra Hospital",3,"*","*","*","*","*","*","*","*"]
["QM7","RWG","WEST HERTFORDSHIRE TEACHING HOSPITALS NHS TRUST","RWG02","Watford General Hospital",0,"NA","NA",0,0,0,0,0,0]
["QMF","RF4","BARKING, HAVERING AND REDBRIDGE UNIVERSITY HOSPITALS NHS TRUST","RF4QH","Queen's Hospital",109,0.93577981651376152,3.669724770642202E-2,81,21,1,0,4,2]
["QMF","R1H","BARTS HEALTH NHS TRUST","R1HNH","Newham General Hospital",17,0.82352941176470584,0.11764705882352941,10,4,1,0,2,0]
["QMF","R1H","BARTS HEALTH NHS TRUST","R1H12","The Royal London Hospital",5,0.6,0.4,3,0,0,1,1,0]
["QMF","R1H","BARTS HEALTH NHS TRUST","R1HKH","Whipps Cross University Hospital",43,0.93023255813953487,6.9767441860465115E-2,29,11,0,2,1,0]
["QMF","RQX","HOMERTON HEALTHCARE NHS FOUNDATION TRUST","RQXM1","Homerton University Hospital",10,0.6,0.1,3,3,3,0,1,0]
["QMJ","RAP","NORTH MIDDLESEX UNIVERSITY HOSPITAL NHS TRUST","RAPNM","North Middlesex Hospital",120,0.8666666666666667,5.8333333333333334E-2,51,53,9,5,2,0]
["QMJ","RAL","ROYAL FREE LONDON NHS FOUNDATION TRUST","RAL26","Barnet Hospital",191,0.98429319371727753,1.5706806282722512E-2,176,12,0,1,2,0]
["QMJ","RAL","ROYAL FREE LONDON NHS FOUNDATION TRUST","RAL01","Royal Free Hospital",92,0.89130434782608692,0,56,26,10,0,0,0]
["QMJ","RKE","WHITTINGTON HEALTH NHS TRUST","RKEXXX","Non-hospital site",0,"NA","NA",0,0,0,0,0,0]
["QMJ","RKE","WHITTINGTON HEALTH NHS TRUST","RKEQ4","The Whittington Hospital",16,0.9375,6.25E-2,13,2,0,1,0,0]
["QMM","RGP","JAMES PAGET UNIVERSITY HOSPITALS NHS FOUNDATION TRUST","RGP75","James Paget University Hospital",17,0.88235294117647056,0.11764705882352941,"*","*","*","*","*","*"]
["QMM","RM1","NORFOLK AND NORWICH UNIVERSITY HOSPITALS NHS FOUNDATION TRUST","RM102","Norfolk and Norwich University Hospital",4,"*","*","*","*","*","*","*","*"]
["QMM","RCX","THE QUEEN ELIZABETH HOSPITAL, KING'S LYNN, NHS FOUNDATION TRUST","RCX70","The Queen Elizabeth Hospital",22,0.95454545454545459,4.5454545454545456E-2,16,5,0,1,0,0]
["QNC","RJE","UNIVERSITY HOSPITALS OF NORTH MIDLANDS NHS TRUST","RJE01","Royal Stoke University Hospital",35,0.94285714285714284,2.8571428571428571E-2,30,3,1,0,1,0]
["QNX","RXC","EAST SUSSEX HEALTHCARE NHS TRUST","RXC01","Conquest Hospital",35,1,0,32,3,0,0,0,0]
["QNX","RXC","EAST SUSSEX HEALTHCARE NHS TRUST","RXC02","Eastbourne District General Hospital",0,"NA","NA",0,0,0,0,0,0]
["QNX","RYR","UNIVERSITY HOSPITALS SUSSEX NHS FOUNDATION TRUST","N6J7V","Princess Royal Hospital",33,1,0,29,4,0,0,0,0]
["QNX","RYR","UNIVERSITY HOSPITALS SUSSEX NHS FOUNDATION TRUST","E0A3H","Royal Sussex County Hospital",20,0.9,0.05,15,3,1,0,1,0]
["QNX","RYR","UNIVERSITY HOSPITALS SUSSEX NHS FOUNDATION TRUST","RYR16","St Richard's Hospital",16,1,0,14,2,0,0,0,0]
["QNX","RYR","UNIVERSITY HOSPITALS SUSSEX NHS FOUNDATION TRUST","RYR18","Worthing Hospital",17,0.76470588235294112,0.23529411764705882,10,3,0,2,2,0]
["QOC","RXW","THE SHREWSBURY AND TELFORD HOSPITAL NHS TRUST","RXWMB","Bridgnorth Hospital (Maternity)",0,"NA","NA",0,0,0,0,0,0]
["QOC","RXW","THE SHREWSBURY AND TELFORD HOSPITAL NHS TRUST","RXWML","Ludlow Hospital (Maternity)",0,"NA","NA",0,0,0,0,0,0]
["QOC","RXW","THE SHREWSBURY AND TELFORD HOSPITAL NHS TRUST","RXWMJ","Robert Jones & Agnes Hunt Orthopaedic & District Hospital",0,"NA","NA",0,0,0,0,0,0]
["QOC","RXW","THE SHREWSBURY AND TELFORD HOSPITAL NHS TRUST","RXWAS","Royal Shrewsbury Hospital",0,"NA","NA",0,0,0,0,0,0]
["QOC","RXW","THE SHREWSBURY AND TELFORD HOSPITAL NHS TRUST","RXWAT","The Princess Royal Hospital",9,1,0,"*","*","*","*","*","*"]
["QOP","RMC","BOLTON NHS FOUNDATION TRUST","RMC01","Royal Bolton Hospital",127,0.96850393700787396,2.3622047244094488E-2,106,17,1,3,0,0]
["QOP","R0A","MANCHESTER UNIVERSITY NHS FOUNDATION TRUST","R0A05","St Mary's Hospital",227,0.94273127753303965,3.5242290748898682E-2,184,30,5,4,4,0]
["QOP","RM3","NORTHERN CARE ALLIANCE NHS FOUNDATION TRUST","RW603","Royal Oldham Hospital",13,1,0,11,2,0,0,0,0]
["QOP","RWJ","STOCKPORT NHS FOUNDATION TRUST","RWJ09","Stepping Hill Hospital",23,1,0,18,5,0,0,0,0]
["QOP","RMP","TAMESIDE AND GLOSSOP INTEGRATED CARE NHS FOUNDATION TRUST","RMP01","Tameside General Hospital",11,1,0,11,0,0,0,0,0]
["QOP","RRF","WRIGHTINGTON, WIGAN AND LEIGH NHS FOUNDATION TRUST","RRF02","Royal Albert Edward Infirmary",29,0.89655172413793105,0,24,2,1,0,0,2]
["QOQ","RCD","HARROGATE AND DISTRICT NHS FOUNDATION TRUST","RCD01","Harrogate District Hospital",0,"NA","NA",0,0,0,0,0,0]
["QOQ","RWA","HULL UNIVERSITY TEACHING HOSPITALS NHS TRUST","RWA01","Hull Royal Infirmary",64,0.8125,0.140625,44,8,3,3,6,0]
["QOQ","RJL","NORTHERN LINCOLNSHIRE AND GOOLE NHS FOUNDATION TRUST","RJL32","Scunthorpe General Hospital",0,"NA","NA",0,0,0,0,0,0]
["QOQ","RCB","YORK AND SCARBOROUGH TEACHING HOSPITALS NHS FOUNDATION TRUST","RCBCA","Scarborough General Hospital",23,1,0,22,1,0,0,0,0]
["QOQ","RCB","YORK AND SCARBOROUGH TEACHING HOSPITALS NHS FOUNDATION TRUST","RCB55","York Hospital",33,1,0,26,7,0,0,0,0]
["QOX","RN3","GREAT WESTERN HOSPITALS NHS FOUNDATION TRUST","RN325","The Great Western Hospital",48,0.79166666666666663,0.125,27,11,4,3,3,0]
["QOX","RD1","ROYAL UNITED HOSPITALS BATH NHS FOUNDATION TRUST","RD102","Chippenham Community Hospital",1,"*","*","*","*","*","*","*","*"]
["QOX","RD1","ROYAL UNITED HOSPITALS BATH NHS FOUNDATION TRUST","RD130","Princess Anne Wing RUH",34,0.91176470588235292,0,"*","*","*","*","*","*"]
["QOX","RNZ","SALISBURY NHS FOUNDATION TRUST","RNZ02","Salisbury District Hospital",2,"*","*","*","*","*","*","*","*"]
["QPM","RNQ","KETTERING GENERAL HOSPITAL NHS FOUNDATION TRUST","RNQ51","Kettering General Hospital",9,1,0,6,3,0,0,0,0]
["QPM","RNS","NORTHAMPTON GENERAL HOSPITAL NHS TRUST","RNS01","Northampton General Hospital (Acute)",18,1,0,18,0,0,0,0,0]
["QR1","RTE","GLOUCESTERSHIRE HOSPITALS NHS FOUNDATION TRUST","RTE03","Gloucestershire Royal Hospital",77,0.76623376623376627,0.1038961038961039,34,25,10,5,3,0]
["QRL","RN5","HAMPSHIRE HOSPITALS NHS FOUNDATION TRUST","RN506","Basingstoke and North Hampshire Hospital",36,1,0,31,5,0,0,0,0]
["QRL","RN5","HAMPSHIRE HOSPITALS NHS FOUNDATION TRUST","RN541","Royal Hampshire County Hospital",94,0.94680851063829785,0,70,19,3,0,0,2]
["QRL","R1F","ISLE OF WIGHT NHS TRUST","R1F01","St Mary's Hospital",0,"NA","NA",0,0,0,0,0,0]
["QRL","RHU","PORTSMOUTH HOSPITALS UNIVERSITY NATIONAL HEALTH SERVICE TRUST","RHU03","Queen Alexandra Hospital",81,0.96296296296296291,0,72,6,3,0,0,0]
["QRL","RHU","PORTSMOUTH HOSPITALS UNIVERSITY NATIONAL HEALTH SERVICE TRUST","RHU02","St Mary's Hospital",5,1,0,5,0,0,0,0,0]
["QRL","RHM","UNIVERSITY HOSPITAL SOUTHAMPTON NHS FOUNDATION TRUST","RHM01","Southampton General Hospital",109,0.77981651376146788,0.10091743119266056,51,34,11,7,4,2]
["QRV","RQM","CHELSEA AND WESTMINSTER HOSPITAL NHS FOUNDATION TRUST","RQM01","Chelsea and Westminster Hospital",151,0.9072847682119205,5.2980132450331126E-2,111,26,6,4,4,0]
["QRV","RQM","CHELSEA AND WESTMINSTER HOSPITAL NHS FOUNDATION TRUST","RQM91","West Middlesex University Hospital",86,0.88372093023255816,5.8139534883720929E-2,64,12,4,2,3,1]
["QRV","RYJ","IMPERIAL COLLEGE HEALTHCARE NHS TRUST","RYJ04","Queen Charlotte's Hospital",75,0.8666666666666667,0.08,47,18,4,5,1,0]
["QRV","RYJ","IMPERIAL COLLEGE HEALTHCARE NHS TRUST","RYJ01","St Mary's Hospital (HQ)",39,0.92307692307692313,5.128205128205128E-2,26,10,1,1,1,0]
["QRV","R1K","LONDON NORTH WEST UNIVERSITY HEALTHCARE NHS TRUST","R1K01","Northwick Park Hospital",96,1,0,78,18,0,0,0,0]
["QRV","RAS","THE HILLINGDON HOSPITALS NHS FOUNDATION TRUST","RAS01","Hillingdon Hospital",67,0.86567164179104472,0.1044776119402985,43,15,2,4,3,0]
["QSL","RH5","SOMERSET NHS FOUNDATION TRUST","RH5K6","Bridgwater Hospital",0,"NA","NA",0,0,0,0,0,0]
["QSL","RH5","SOMERSET NHS FOUNDATION TRUST","RH5A8","MUSGROVE PARK HOSPITAL",0,"NA","NA",0,0,0,0,0,0]
["QSL","RH5","SOMERSET NHS FOUNDATION TRUST","RH5XXXX","Non-hospital site home/in-transit births",0,"NA","NA",0,0,0,0,0,0]
["QSL","RH5","SOMERSET NHS FOUNDATION TRUST","RH5O4","Yeovil District Hospital",0,"NA","NA",0,0,0,0,0,0]
["QT1","RX1","NOTTINGHAM UNIVERSITY HOSPITALS NHS TRUST","RX1CC","Nottingham University Hospitals NHS Trust - City Campus",12,1,0,"*","*","*","*","*","*"]
["QT1","RX1","NOTTINGHAM UNIVERSITY HOSPITALS NHS TRUST","RX1RA","Nottingham University Hospitals NHS Trust - Queen's Medical Centre Campus",71,1,0,"*","*","*","*","*","*"]
["QT1","RK5","SHERWOOD FOREST HOSPITALS NHS FOUNDATION TRUST","RK5BC","King's Mill Hospital",4,"*","*","*","*","*","*","*","*"]
["QT6","REF","ROYAL CORNWALL HOSPITALS NHS TRUST","REF12","Royal Cornwall Hospital (Treliske)",2,"*","*","*","*","*","*","*","*"]
["QU9","RXQ","BUCKINGHAMSHIRE HEALTHCARE NHS TRUST","RXQ02","Stoke Mandeville Hospital",21,0.7142857142857143,0.2857142857142857,10,5,0,5,1,0]
["QU9","RTH","OXFORD UNIVERSITY HOSPITALS NHS FOUNDATION TRUST","RTH19","Chipping Norton Community Hospital",0,"NA","NA",0,0,0,0,0,0]
["QU9","RTH","OXFORD UNIVERSITY HOSPITALS NHS FOUNDATION TRUST","RTH05","Horton General Hospital",0,"NA","NA",0,0,0,0,0,0]
["QU9","RTH","OXFORD UNIVERSITY HOSPITALS NHS FOUNDATION TRUST","RTH08","John Radcliffe Hospital",0,"NA","NA",0,0,0,0,0,0]
["QU9","RTH","OXFORD UNIVERSITY HOSPITALS NHS FOUNDATION TRUST","RTH16","Wallingford Community Hospital",0,"NA","NA",0,0,0,0,0,0]
["QU9","RHW","ROYAL BERKSHIRE NHS FOUNDATION TRUST","RHW01","Royal Berkshire Hospital",57,1,0,46,11,0,0,0,0]
["QUA","RNA","THE DUDLEY GROUP NHS FOUNDATION TRUST","RNA01","Russells Hall Hospital",26,0.5,0,9,4,0,0,0,13]
["QUA","RL4","THE ROYAL WOLVERHAMPTON NHS TRUST","RL403","New Cross Hospital",46,0.80434782608695654,0.13043478260869565,26,11,3,1,5,0]
["QUA","RBK","WALSALL HEALTHCARE NHS TRUST","RBK02","Manor Hospital",108,0.86111111111111116,8.3333333333333329E-2,72,21,4,3,6,2]
["QUE","RGT","CAMBRIDGE UNIVERSITY HOSPITALS NHS FOUNDATION TRUST","RGT32","Rosie Hospital",47,0.85106382978723405,0.10638297872340426,35,5,1,4,1,1]
["QUE","RGN","NORTH WEST ANGLIA NHS FOUNDATION TRUST","RGN90","Hinchingbrooke Hospital",52,0.98076923076923073,0,42,9,1,0,0,0]
["QUE","RGN","NORTH WEST ANGLIA NHS FOUNDATION TRUST","RGN80","Peterborough City Hospital",16,0.9375,0,13,2,1,0,0,0]
["QUY","RVJ","NORTH BRISTOL NHS TRUST","RVJ01","Southmead Hospital",81,0.85185185185185186,8.6419753086419748E-2,47,22,5,3,4,0]
["QUY","RA7","UNIVERSITY HOSPITALS BRISTOL AND WESTON NHS FOUNDATION TRUST","RA707","St Michael's Hospital",52,0.98076923076923073,0,42,9,1,0,0,0]
["QVV","RBD","DORSET COUNTY HOSPITAL NHS FOUNDATION TRUST","RBD01","Dorset County Hospital",26,0.88461538461538458,7.6923076923076927E-2,21,2,1,1,1,0]
["QVV","R0D","UNIVERSITY HOSPITALS DORSET NHS FOUNDATION TRUST","R0D01","Poole Hospital",62,0.87096774193548387,4.8387096774193547E-2,39,15,2,2,1,3]
["QVV","R0D","UNIVERSITY HOSPITALS DORSET NHS FOUNDATION TRUST","R0D02","Royal Bournemouth Hospital",0,"NA","NA",0,0,0,0,0,0]
["QWE","RVR","EPSOM AND ST HELIER UNIVERSITY HOSPITALS NHS TRUST","RVR50","Epsom Hospital",0,"NA","NA",0,0,0,0,0,0]
["QWE","RVR","EPSOM AND ST HELIER UNIVERSITY HOSPITALS NHS TRUST","RVR05","St Helier Hospital",20,1,0,18,2,0,0,0,0]
["QWE","RAX","KINGSTON HOSPITAL NHS FOUNDATION TRUST","RAX01","Kingston Hospital",50,0.96,0,37,11,1,0,0,1]
["QWE","RJ7","ST GEORGE'S UNIVERSITY HOSPITALS NHS FOUNDATION TRUST","RJ701","St George's Hospital (Tooting)",74,0.89189189189189189,4.0540540540540543E-2,38,28,5,1,2,0]
["QWO","RAE","BRADFORD TEACHING HOSPITALS NHS FOUNDATION TRUST","RAE01","Bradford Royal Infirmary",12,0.66666666666666663,0.33333333333333331,8,0,0,0,4,0]
["QWO","RWY","CALDERDALE AND HUDDERSFIELD NHS FOUNDATION TRUST","RWY02","Calderdale Royal Hospital",44,1,0,37,7,0,0,0,0]
["QWO","RR8","LEEDS TEACHING HOSPITALS NHS TRUST","RR801","Leeds General Infirmary",61,0.95081967213114749,3.2786885245901641E-2,57,1,1,1,1,0]
["QWO","RR8","LEEDS TEACHING HOSPITALS NHS TRUST","RR813","St James's University Hospital",52,1,0,45,7,0,0,0,0]
["QWO","RXF","MID YORKSHIRE TEACHING NHS TRUST","RXF05","Pinderfields General Hospital",102,0.9509803921568627,1.9607843137254902E-2,76,21,2,0,2,1]
["QWU","RLT","GEORGE ELIOT HOSPITAL NHS TRUST","RLT01","George Eliot Hospital - Acute Services",0,"NA","NA",0,0,0,0,0,0]
["QWU","RJC","SOUTH WARWICKSHIRE UNIVERSITY NHS FOUNDATION TRUST","RJC02","Warwick Hospital",2,"*","*","*","*","*","*","*","*"]
["QWU","RKB","UNIVERSITY HOSPITALS COVENTRY AND WARWICKSHIRE NHS TRUST","RKB01","University Hospital (Coventry)",100,0.85,0.04,"*","*","*","*","*","*"]
["QXU","RTK","ASHFORD AND ST PETER'S HOSPITALS NHS FOUNDATION TRUST","RTK02","Ashford Hospital",0,"NA","NA",0,0,0,0,0,0]
["QXU","RA2","ROYAL SURREY COUNTY HOSPITAL NHS FOUNDATION TRUST","RA201","Royal Surrey County Hospital",16,0.8125,0,12,1,3,0,0,0]
["QXU","RTP","SURREY AND SUSSEX HEALTHCARE NHS TRUST","RTP04","East Surrey Hospital",9,1,0,6,3,0,0,0,0]
["QYG","REP","LIVERPOOL WOMEN'S NHS FOUNDATION TRUST","REP01","Liverpool Womens Hospital",33,0.81818181818181823,0.18181818181818182,22,5,0,3,3,0]
["QYG","RBN","MERSEY AND WEST LANCASHIRE TEACHING HOSPITALS NHS TRUST","RBN52","Ormskirk and District General Hospital",23,0.82608695652173914,0.13043478260869565,17,2,1,1,2,0]
["QYG","RBN","MERSEY AND WEST LANCASHIRE TEACHING HOSPITALS NHS TRUST","RBN01","Whiston Hospital",14,0.9285714285714286,0,11,2,1,0,0,0]
["QYG","RBT","MID CHESHIRE HOSPITALS NHS FOUNDATION TRUST","RBT20","Leighton Hospital",86,0.95348837209302328,4.6511627906976744E-2,72,10,0,2,2,0]
["QYG","RWW","WARRINGTON AND HALTON TEACHING HOSPITALS NHS FOUNDATION TRUST","RWWWH","Warrington Hospital",87,0.9885057471264368,0,76,10,0,0,0,1]
["QYG","RBL","WIRRAL UNIVERSITY TEACHING HOSPITAL NHS FOUNDATION TRUST","RBL14","Arrowe Park Hospital",78,0.96153846153846156,2.564102564102564E-2,69,6,0,0,2,1]

{"sheet":"ICB Q4","index":11,"n_rows":55,"n_cols":11,"rows_kept":55,"cut":false,"hidden":false,"merged":[[8,5,8,10],[8,0,9,0],[8,1,9,1],[8,2,9,2],[8,3,9,3],[8,4,9,4]]}
[]
[]
[]
[]
[]
[null,"   Sort data by:           "]
[]
[]
["ICB Code","ICB Name","Total Responses","Percentage Positive","Percentage Negative","Breakdown of Responses"]
[null,null,null,null,null,"Very Good","Good","Neither Good nor Poor","Poor","Very Poor","Don't Know"]
[null,"England (including Independent Sector providers)",1306,0.9111791730474732,4.5941807044410414E-2,1022,168,32,24,36,24]
[null,"England (excluding Independent Sector providers)",1306,0.9111791730474732,4.5941807044410414E-2,1022,168,32,24,36,24]
[null,"Selection (excluding suppressed data)",{"$f":"SUBTOTAL(9,C14:C55)","v":1306},{"$f":"IFERROR((F13+G13)/SUM(F13:K13), \"-\")","v":0.91007751937984493},{"$f":"IFERROR((I13+J13)/SUM(F13:K13), \"-\")","v":4.6511627906976744E-2},{"$f":"SUBTOTAL(9,F14:F55)","v":1007},{"$f":"SUBTOTAL(9,G14:G55)","v":167},32,24,36,24]
["QE1","LANCASHIRE AND SOUTH CUMBRIA ICB",47,0.78723404255319152,0.1702127659574468,28,9,2,4,4,0]
["QF7","SOUTH YORKSHIRE ICB",57,0.8771929824561403,7.0175438596491224E-2,38,12,3,2,2,0]
["QGH","HEREFORDSHIRE AND WORCESTERSHIRE ICB",0,"NA","NA",0,0,0,0,0,0]
["QH8","MID AND SOUTH ESSEX ICB",0,"NA","NA",0,0,0,0,0,0]
["QHG","BEDFORDSHIRE, LUTON AND MILTON KEYNES ICB",72,0.97222222222222221,1.3888888888888888E-2,54,16,1,0,1,0]
["QHL","BIRMINGHAM AND SOLIHULL ICB",7,1,0,7,0,0,0,0,0]
["QHM","NORTH EAST AND NORTH CUMBRIA ICB",65,0.86153846153846159,0.1076923076923077,44,12,2,3,4,0]
["QJ2","DERBY AND DERBYSHIRE ICB",4,"*","*","*","*","*","*","*","*"]
["QJG","SUFFOLK AND NORTH EAST ESSEX ICB",6,1,0,6,0,0,0,0,0]
["QJK","DEVON ICB",7,0.8571428571428571,0.14285714285714285,5,1,0,0,1,0]
["QJM","LINCOLNSHIRE ICB",0,"NA","NA",0,0,0,0,0,0]
["QK1","LEICESTER, LEICESTERSHIRE AND RUTLAND ICB",61,1,0,57,4,0,0,0,0]
["QKK","SOUTH EAST LONDON ICB",44,0.93181818181818177,2.2727272727272728E-2,34,7,2,1,0,0]
["QKS","KENT AND MEDWAY ICB",46,0.97826086956521741,2.1739130434782608E-2,45,0,0,1,0,0]
["QM7","HERTFORDSHIRE AND WEST ESSEX ICB",5,1,0,"*","*","*","*","*","*"]
["QMF","NORTH EAST LONDON ICB",38,0.94736842105263153,5.2631578947368418E-2,32,4,0,0,2,0]
["QMJ","NORTH CENTRAL LONDON ICB",25,1,0,23,2,0,0,0,0]
["QMM","NORFOLK AND WAVENEY ICB",13,1,0,13,0,0,0,0,0]
["QNC","STAFFORDSHIRE AND STOKE-ON-TRENT ICB",11,0.90909090909090906,0,9,1,1,0,0,0]
["QNQ","FRIMLEY ICB",4,"*","*","*","*","*","*","*","*"]
["QNX","SUSSEX ICB",20,0.85,0.1,15,2,1,1,1,0]
["QOC","SHROPSHIRE, TELFORD AND WREKIN ICB",2,"*","*","*","*","*","*","*","*"]
["QOP","GREATER MANCHESTER ICB",55,0.94545454545454544,1.8181818181818181E-2,47,5,2,0,1,0]
["QOQ","HUMBER AND NORTH YORKSHIRE ICB",0,"NA","NA",0,0,0,0,0,0]
["QOX","BATH AND NORTH EAST SOMERSET, SWINDON AND WILTSHIRE ICB",41,0.95121951219512191,4.878048780487805E-2,37,2,0,0,2,0]
["QPM","NORTHAMPTONSHIRE ICB",47,1,0,38,9,0,0,0,0]
["QR1","GLOUCESTERSHIRE ICB",0,"NA","NA",0,0,0,0,0,0]
["QRL","HAMPSHIRE AND ISLE OF WIGHT ICB",133,0.78947368421052633,1.5037593984962405E-2,74,31,5,2,0,21]
["QRV","NORTH WEST LONDON ICB",42,0.95238095238095233,0,33,7,1,0,0,1]
["QSL","SOMERSET ICB",1,"*","*","*","*","*","*","*","*"]
["QT1","NOTTINGHAM AND NOTTINGHAMSHIRE ICB",8,0.75,0.125,5,1,0,0,1,1]
["QT6","CORNWALL AND THE ISLES OF SCILLY ICB",0,"NA","NA",0,0,0,0,0,0]
["QU9","BUCKINGHAMSHIRE, OXFORDSHIRE AND BERKSHIRE WEST ICB",19,0.89473684210526316,0.10526315789473684,14,3,0,1,1,0]
["QUA","BLACK COUNTRY ICB",85,0.92941176470588238,7.0588235294117646E-2,74,5,0,3,3,0]
["QUE","CAMBRIDGESHIRE AND PETERBOROUGH ICB",0,"NA","NA",0,0,0,0,0,0]
["QUY","BRISTOL, NORTH SOMERSET AND SOUTH GLOUCESTERSHIRE ICB",101,0.87128712871287128,6.9306930693069313E-2,86,2,6,1,6,0]
["QVV","DORSET ICB",39,0.89743589743589747,5.128205128205128E-2,29,6,2,0,2,0]
["QWE","SOUTH WEST LONDON ICB",19,1,0,15,4,0,0,0,0]
["QWO","WEST YORKSHIRE ICB",95,0.95789473684210524,2.1052631578947368E-2,77,14,2,1,1,0]
["QWU","COVENTRY AND WARWICKSHIRE ICB",47,0.85106382978723405,0.10638297872340426,33,7,2,3,2,0]
["QXU","SURREY HEARTLANDS ICB",8,0.875,0.125,6,1,0,0,1,0]
["QYG","CHESHIRE AND MERSEYSIDE ICB",32,0.90625,6.25E-2,29,0,0,1,1,1]

{"sheet":"Trusts Q4","index":12,"n_rows":131,"n_cols":20,"rows_kept":131,"cut":false,"hidden":false,"merged":[[8,6,8,11],[8,12,8,19],[8,0,9,0],[8,1,9,1],[8,2,9,2],[8,3,9,3],[8,4,9,4],[8,5,9,5]]}
[]
[]
[]
[]
[]
[null,"   Sort data by:           "]
[]
[]
["ICB Code","Trust Code","Trust Name","Total Responses","Percentage Positive","Percentage Negative","Breakdown of Responses",null,null,null,null,null,"Mode of Collection"]
[null,null,null,null,null,null,"Very Good","Good","Neither Good nor Poor","Poor","Very Poor","Don't Know","Mode SMS","Mode Electronic Discharge","Mode Electronic Home","Mode Paper Discharge","Mode Paper Home","Mode Telephone","Mode Online","Mode Other"]
[null,null,"England (including Independent Sector providers)",1306,0.9111791730474732,4.5941807044410414E-2,1022,168,32,24,36,24,550,111,3,232,68,14,307,21]
[null,null,"England (excluding Independent Sector providers)",1306,0.9111791730474732,4.5941807044410414E-2,1022,168,32,24,36,24,550,111,3,232,68,14,307,21]
[null,null,"Selection (excluding suppressed data)",{"$f":"SUBTOTAL(9,D14:D299)","v":1306},{"$f":"IFERROR((G13+H13)/SUM(G13:L13), \"-\")","v":0.89772727272727271},{"$f":"IFERROR((J13+K13)/SUM(G13:L13), \"-\")","v":5.2083333333333336E-2},{"$f":"SUBTOTAL(9,G14:G299)","v":807},141,32,23,32,21,544,110,0,146,1,14,223,18]
["QE1","RTX","UNIVERSITY HOSPITALS OF MORECAMBE BAY NHS FOUNDATION TRUST",0,"NA","NA",0,0,0,0,0,0,0,0,0,0,0,0,0,0]
["QE1","RXR","EAST LANCASHIRE HOSPITALS NHS TRUST",0,"NA","NA",0,0,0,0,0,0,0,0,0,0,0,0,0,0]
["QE1","RXL","BLACKPOOL TEACHING HOSPITALS NHS FOUNDATION TRUST",23,0.91304347826086951,4.3478260869565216E-2,16,5,1,1,0,0,21,0,0,0,0,0,2,0]
["QE1","RXN","LANCASHIRE TEACHING HOSPITALS NHS FOUNDATION TRUST",24,0.66666666666666663,0.29166666666666669,12,4,1,3,4,0,24,0,0,0,0,0,0,0]
["QF7","RFR","THE ROTHERHAM NHS FOUNDATION TRUST",0,"NA","NA",0,0,0,0,0,0,0,0,0,0,0,0,0,0]
["QF7","RFF","BARNSLEY HOSPITAL NHS FOUNDATION TRUST",1,"*","*","*","*","*","*","*","*","*","*","*","*","*","*","*","*"]
["QF7","RP5","DONCASTER AND BASSETLAW TEACHING HOSPITALS NHS FOUNDATION TRUST",24,0.95833333333333337,4.1666666666666664E-2,"*","*","*","*","*","*","*","*","*","*","*","*","*","*"]
["QF7","RHQ","SHEFFIELD TEACHING HOSPITALS NHS FOUNDATION TRUST",32,0.8125,9.375E-2,16,10,3,2,1,0,32,0,0,0,0,0,0,0]
["QGH","RLQ","WYE VALLEY NHS TRUST",0,"NA","NA",0,0,0,0,0,0,0,0,0,0,0,0,0,0]
["QGH","RWP","WORCESTERSHIRE ACUTE HOSPITALS NHS TRUST",0,"NA","NA",0,0,0,0,0,0,0,0,0,0,0,0,0,0]
["QH8","RAJ","MID AND SOUTH ESSEX NHS FOUNDATION TRUST",0,"NA","NA",0,0,0,0,0,0,0,0,0,0,0,0,0,0]
["QHG","RD8","MILTON KEYNES UNIVERSITY HOSPITAL NHS FOUNDATION TRUST",31,0.93548387096774188,3.2258064516129031E-2,23,6,1,0,1,0,25,0,0,1,0,0,5,0]
["QHG","RC9","BEDFORDSHIRE HOSPITALS NHS FOUNDATION TRUST",41,1,0,31,10,0,0,0,0,0,41,0,0,0,0,0,0]
["QHL","RRK","UNIVERSITY HOSPITALS BIRMINGHAM NHS FOUNDATION TRUST",0,"NA","NA",0,0,0,0,0,0,0,0,0,0,0,0,0,0]
["QHL","RXK","SANDWELL AND WEST BIRMINGHAM HOSPITALS NHS TRUST",0,"NA","NA",0,0,0,0,0,0,0,0,0,0,0,0,0,0]
["QHL","RQ3","BIRMINGHAM WOMEN'S AND CHILDREN'S NHS FOUNDATION TRUST",7,1,0,7,0,0,0,0,0,0,0,0,0,0,0,7,0]
["QHM","RR7","GATESHEAD HEALTH NHS FOUNDATION TRUST",0,"NA","NA",0,0,0,0,0,0,0,0,0,0,0,0,0,0]
["QHM","RTD","THE NEWCASTLE UPON TYNE HOSPITALS NHS FOUNDATION TRUST",0,"NA","NA",0,0,0,0,0,0,0,0,0,0,0,0,0,0]
["QHM","RVW","NORTH TEES AND HARTLEPOOL NHS FOUNDATION TRUST",0,"NA","NA",0,0,0,0,0,0,0,0,0,0,0,0,0,0]
["QHM","RXP","COUNTY DURHAM AND DARLINGTON NHS FOUNDATION TRUST",0,"NA","NA",0,0,0,0,0,0,0,0,0,0,0,0,0,0]
["QHM","R0B","SOUTH TYNESIDE AND SUNDERLAND NHS FOUNDATION TRUST",1,"*","*","*","*","*","*","*","*","*","*","*","*","*","*","*","*"]
["QHM","RNN","NORTH CUMBRIA INTEGRATED CARE NHS FOUNDATION TRUST",1,"*","*","*","*","*","*","*","*","*","*","*","*","*","*","*","*"]
["QHM","RTR","SOUTH TEES HOSPITALS NHS FOUNDATION TRUST",13,0.92307692307692313,0,12,0,1,0,0,0,12,1,0,0,0,0,0,0]
["QHM","RTF","NORTHUMBRIA HEALTHCARE NHS FOUNDATION TRUST",50,0.84,0.14000000000000001,30,12,1,3,4,0,50,0,0,0,0,0,0,0]
["QJ2","RTG","UNIVERSITY HOSPITALS OF DERBY AND BURTON NHS FOUNDATION TRUST",0,"NA","NA",0,0,0,0,0,0,0,0,0,0,0,0,0,0]
["QJ2","RFS","CHESTERFIELD ROYAL HOSPITAL NHS FOUNDATION TRUST",4,"*","*","*","*","*","*","*","*","*","*","*","*","*","*","*","*"]
["QJG","RDE","EAST SUFFOLK AND NORTH ESSEX NHS FOUNDATION TRUST",1,"*","*","*","*","*","*","*","*","*","*","*","*","*","*","*","*"]
["QJG","RGR","WEST SUFFOLK NHS FOUNDATION TRUST",5,1,0,"*","*","*","*","*","*","*","*","*","*","*","*","*","*"]
["QJK","RA9","TORBAY AND SOUTH DEVON NHS FOUNDATION TRUST",0,"NA","NA",0,0,0,0,0,0,0,0,0,0,0,0,0,0]
["QJK","RK9","UNIVERSITY HOSPITALS PLYMOUTH NHS TRUST",1,"*","*","*","*","*","*","*","*","*","*","*","*","*","*","*","*"]
["QJK","RH8","ROYAL DEVON UNIVERSITY HEALTHCARE NHS FOUNDATION TRUST",6,1,0,"*","*","*","*","*","*","*","*","*","*","*","*","*","*"]
["QJM","RWD","UNITED LINCOLNSHIRE HOSPITALS NHS TRUST",0,"NA","NA",0,0,0,0,0,0,0,0,0,0,0,0,0,0]
["QK1","RWE","UNIVERSITY HOSPITALS OF LEICESTER NHS TRUST",61,1,0,57,4,0,0,0,0,12,20,0,29,0,0,0,0]
["QKK","RJ1","GUY'S AND ST THOMAS' NHS FOUNDATION TRUST",3,"*","*","*","*","*","*","*","*","*","*","*","*","*","*","*","*"]
["QKK","RJ2","LEWISHAM AND GREENWICH NHS TRUST",4,"*","*","*","*","*","*","*","*","*","*","*","*","*","*","*","*"]
["QKK","RJZ","KING'S COLLEGE HOSPITAL NHS FOUNDATION TRUST",37,0.91891891891891897,2.7027027027027029E-2,27,7,2,1,0,0,24,0,0,0,0,13,0,0]
["QKS","RVV","EAST KENT HOSPITALS UNIVERSITY NHS FOUNDATION TRUST",0,"NA","NA",0,0,0,0,0,0,0,0,0,0,0,0,0,0]
["QKS","RPA","MEDWAY NHS FOUNDATION TRUST",1,"*","*","*","*","*","*","*","*","*","*","*","*","*","*","*","*"]
["QKS","RN7","DARTFORD AND GRAVESHAM NHS TRUST",4,"*","*","*","*","*","*","*","*","*","*","*","*","*","*","*","*"]
["QKS","RWF","MAIDSTONE AND TUNBRIDGE WELLS NHS TRUST",41,1,0,41,0,0,0,0,0,0,0,0,0,0,0,41,0]
["QM7","RQW","THE PRINCESS ALEXANDRA HOSPITAL NHS TRUST",0,"NA","NA",0,0,0,0,0,0,0,0,0,0,0,0,0,0]
["QM7","RWG","WEST HERTFORDSHIRE TEACHING HOSPITALS NHS TRUST",0,"NA","NA",0,0,0,0,0,0,0,0,0,0,0,0,0,0]
["QM7","RWH","EAST AND NORTH HERTFORDSHIRE NHS TRUST",5,1,0,"*","*","*","*","*","*","*","*","*","*","*","*","*","*"]
["QMF","RQX","HOMERTON HEALTHCARE NHS FOUNDATION TRUST",6,1,0,3,3,0,0,0,0,6,0,0,0,0,0,0,0]
["QMF","RF4","BARKING, HAVERING AND REDBRIDGE UNIVERSITY HOSPITALS NHS TRUST",8,1,0,7,1,0,0,0,0,0,4,0,4,0,0,0,0]
["QMF","R1H","BARTS HEALTH NHS TRUST",24,0.91666666666666663,8.3333333333333329E-2,22,0,0,0,2,0,4,0,0,0,0,0,20,0]
["QMJ","RAP","NORTH MIDDLESEX UNIVERSITY HOSPITAL NHS TRUST",0,"NA","NA",0,0,0,0,0,0,0,0,0,0,0,0,0,0]
["QMJ","RRV","UNIVERSITY COLLEGE LONDON HOSPITALS NHS FOUNDATION TRUST",0,"NA","NA",0,0,0,0,0,0,0,0,0,0,0,0,0,0]
["QMJ","RAL","ROYAL FREE LONDON NHS FOUNDATION TRUST",1,"*","*","*","*","*","*","*","*","*","*","*","*","*","*","*","*"]
["QMJ","RKE","WHITTINGTON HEALTH NHS TRUST",24,1,0,"*","*","*","*","*","*","*","*","*","*","*","*","*","*"]
["QMM","RGP","JAMES PAGET UNIVERSITY HOSPITALS NHS FOUNDATION TRUST",0,"NA","NA",0,0,0,0,0,0,0,0,0,0,0,0,0,0]
["QMM","RM1","NORFOLK AND NORWICH UNIVERSITY HOSPITALS NHS FOUNDATION TRUST",0,"NA","NA",0,0,0,0,0,0,0,0,0,0,0,0,0,0]
["QMM","RCX","THE QUEEN ELIZABETH HOSPITAL, KING'S LYNN, NHS FOUNDATION TRUST",13,1,0,13,0,0,0,0,0,0,0,0,13,0,0,0,0]
["QNC","RJE","UNIVERSITY HOSPITALS OF NORTH MIDLANDS NHS TRUST",11,0.90909090909090906,0,9,1,1,0,0,0,0,0,0,0,0,0,11,0]
["QNQ","RDU","FRIMLEY HEALTH NHS FOUNDATION TRUST",4,"*","*","*","*","*","*","*","*","*","*","*","*","*","*","*","*"]
["QNX","RXC","EAST SUSSEX HEALTHCARE NHS TRUST",0,"NA","NA",0,0,0,0,0,0,0,0,0,0,0,0,0,0]
["QNX","RYR","UNIVERSITY HOSPITALS SUSSEX NHS FOUNDATION TRUST",20,0.85,0.1,15,2,1,1,1,0,20,0,0,0,0,0,0,0]
["QOC","RXW","THE SHREWSBURY AND TELFORD HOSPITAL NHS TRUST",2,"*","*","*","*","*","*","*","*","*","*","*","*","*","*","*","*"]
["QOP","RM3","NORTHERN CARE ALLIANCE NHS FOUNDATION TRUST",0,"NA","NA",0,0,0,0,0,0,0,0,0,0,0,0,0,0]
["QOP","RMP","TAMESIDE AND GLOSSOP INTEGRATED CARE NHS FOUNDATION TRUST",0,"NA","NA",0,0,0,0,0,0,0,0,0,0,0,0,0,0]
["QOP","RWJ","STOCKPORT NHS FOUNDATION TRUST",0,"NA","NA",0,0,0,0,0,0,0,0,0,0,0,0,0,0]
["QOP","RRF","WRIGHTINGTON, WIGAN AND LEIGH NHS FOUNDATION TRUST",3,"*","*","*","*","*","*","*","*","*","*","*","*","*","*","*","*"]
["QOP","R0A","MANCHESTER UNIVERSITY NHS FOUNDATION TRUST",18,1,0,"*","*","*","*","*","*","*","*","*","*","*","*","*","*"]
["QOP","RMC","BOLTON NHS FOUNDATION TRUST",34,0.91176470588235292,2.9411764705882353E-2,26,5,2,0,1,0,34,0,0,0,0,0,0,0]
["QOQ","RCB","YORK AND SCARBOROUGH TEACHING HOSPITALS NHS FOUNDATION TRUST",0,"NA","NA",0,0,0,0,0,0,0,0,0,0,0,0,0,0]
["QOQ","RCD","HARROGATE AND DISTRICT NHS FOUNDATION TRUST",0,"NA","NA",0,0,0,0,0,0,0,0,0,0,0,0,0,0]
["QOQ","RJL","NORTHERN LINCOLNSHIRE AND GOOLE NHS FOUNDATION TRUST",0,"NA","NA",0,0,0,0,0,0,0,0,0,0,0,0,0,0]
["QOQ","RWA","HULL UNIVERSITY TEACHING HOSPITALS NHS TRUST",0,"NA","NA",0,0,0,0,0,0,0,0,0,0,0,0,0,0]
["QOX","RNZ","SALISBURY NHS FOUNDATION TRUST",0,"NA","NA",0,0,0,0,0,0,0,0,0,0,0,0,0,0]
["QOX","RD1","ROYAL UNITED HOSPITALS BATH NHS FOUNDATION TRUST",6,1,0,6,0,0,0,0,0,0,0,0,6,0,0,0,0]
["QOX","RN3","GREAT WESTERN HOSPITALS NHS FOUNDATION TRUST",35,0.94285714285714284,5.7142857142857141E-2,31,2,0,0,2,0,35,0,0,0,0,0,0,0]
["QPM","RNS","NORTHAMPTON GENERAL HOSPITAL NHS TRUST",3,"*","*","*","*","*","*","*","*","*","*","*","*","*","*","*","*"]
["QPM","RNQ","KETTERING GENERAL HOSPITAL NHS FOUNDATION TRUST",44,1,0,"*","*","*","*","*","*","*","*","*","*","*","*","*","*"]
["QR1","RTE","GLOUCESTERSHIRE HOSPITALS NHS FOUNDATION TRUST",0,"NA","NA",0,0,0,0,0,0,0,0,0,0,0,0,0,0]
["QRL","R1F","ISLE OF WIGHT NHS TRUST",0,"NA","NA",0,0,0,0,0,0,0,0,0,0,0,0,0,0]
["QRL","RN5","HAMPSHIRE HOSPITALS NHS FOUNDATION TRUST",3,"*","*","*","*","*","*","*","*","*","*","*","*","*","*","*","*"]
["QRL","RHU","PORTSMOUTH HOSPITALS UNIVERSITY NATIONAL HEALTH SERVICE TRUST",24,0.95833333333333337,0,"*","*","*","*","*","*","*","*","*","*","*","*","*","*"]
["QRL","RHM","UNIVERSITY HOSPITAL SOUTHAMPTON NHS FOUNDATION TRUST",106,0.74528301886792447,1.8867924528301886E-2,52,27,5,2,0,20,0,0,0,0,1,0,105,0]
["QRV","R1K","LONDON NORTH WEST UNIVERSITY HEALTHCARE NHS TRUST",0,"NA","NA",0,0,0,0,0,0,0,0,0,0,0,0,0,0]
["QRV","RQM","CHELSEA AND WESTMINSTER HOSPITAL NHS FOUNDATION TRUST",1,"*","*","*","*","*","*","*","*","*","*","*","*","*","*","*","*"]
["QRV","RAS","THE HILLINGDON HOSPITALS NHS FOUNDATION TRUST",12,0.91666666666666663,0,"*","*","*","*","*","*","*","*","*","*","*","*","*","*"]
["QRV","RYJ","IMPERIAL COLLEGE HEALTHCARE NHS TRUST",29,0.96551724137931039,0,23,5,1,0,0,0,0,0,0,1,0,0,28,0]
["QSL","RH5","SOMERSET NHS FOUNDATION TRUST",1,"*","*","*","*","*","*","*","*","*","*","*","*","*","*","*","*"]
["QT1","RK5","SHERWOOD FOREST HOSPITALS NHS FOUNDATION TRUST",4,"*","*","*","*","*","*","*","*","*","*","*","*","*","*","*","*"]
["QT1","RX1","NOTTINGHAM UNIVERSITY HOSPITALS NHS TRUST",4,"*","*","*","*","*","*","*","*","*","*","*","*","*","*","*","*"]
["QT6","REF","ROYAL CORNWALL HOSPITALS NHS TRUST",0,"NA","NA",0,0,0,0,0,0,0,0,0,0,0,0,0,0]
["QU9","RTH","OXFORD UNIVERSITY HOSPITALS NHS FOUNDATION TRUST",0,"NA","NA",0,0,0,0,0,0,0,0,0,0,0,0,0,0]
["QU9","RHW","ROYAL BERKSHIRE NHS FOUNDATION TRUST",5,0.6,0.4,2,1,0,1,1,0,5,0,0,0,0,0,0,0]
["QU9","RXQ","BUCKINGHAMSHIRE HEALTHCARE NHS TRUST",14,1,0,12,2,0,0,0,0,14,0,0,0,0,0,0,0]
["QUA","RNA","THE DUDLEY GROUP NHS FOUNDATION TRUST",0,"NA","NA",0,0,0,0,0,0,0,0,0,0,0,0,0,0]
["QUA","RL4","THE ROYAL WOLVERHAMPTON NHS TRUST",33,0.90909090909090906,9.0909090909090912E-2,27,3,0,2,1,0,30,0,0,0,0,0,3,0]
["QUA","RBK","WALSALL HEALTHCARE NHS TRUST",52,0.94230769230769229,5.7692307692307696E-2,47,2,0,1,2,0,7,44,0,0,0,1,0,0]
["QUE","RGN","NORTH WEST ANGLIA NHS FOUNDATION TRUST",0,"NA","NA",0,0,0,0,0,0,0,0,0,0,0,0,0,0]
["QUE","RGT","CAMBRIDGE UNIVERSITY HOSPITALS NHS FOUNDATION TRUST",0,"NA","NA",0,0,0,0,0,0,0,0,0,0,0,0,0,0]
["QUY","RA7","UNIVERSITY HOSPITALS BRISTOL AND WESTON NHS FOUNDATION TRUST",28,1,0,28,0,0,0,0,0,0,0,0,28,0,0,0,0]
["QUY","RVJ","NORTH BRISTOL NHS TRUST",73,0.82191780821917804,9.5890410958904104E-2,58,2,6,1,6,0,73,0,0,0,0,0,0,0]
["QVV","RBD","DORSET COUNTY HOSPITAL NHS FOUNDATION TRUST",14,0.9285714285714286,7.1428571428571425E-2,10,3,0,0,1,0,14,0,0,0,0,0,0,0]
["QVV","R0D","UNIVERSITY HOSPITALS DORSET NHS FOUNDATION TRUST",25,0.88,0.04,19,3,2,0,1,0,25,0,0,0,0,0,0,0]
["QWE","RJ6","CROYDON HEALTH SERVICES NHS TRUST",0,"NA","NA",0,0,0,0,0,0,0,0,0,0,0,0,0,0]
["QWE","RJ7","ST GEORGE'S UNIVERSITY HOSPITALS NHS FOUNDATION TRUST",0,"NA","NA",0,0,0,0,0,0,0,0,0,0,0,0,0,0]
["QWE","RVR","EPSOM AND ST HELIER UNIVERSITY HOSPITALS NHS TRUST",2,"*","*","*","*","*","*","*","*","*","*","*","*","*","*","*","*"]
["QWE","RAX","KINGSTON HOSPITAL NHS FOUNDATION TRUST",17,1,0,"*","*","*","*","*","*","*","*","*","*","*","*","*","*"]
["QWO","RAE","BRADFORD TEACHING HOSPITALS NHS FOUNDATION TRUST",0,"NA","NA",0,0,0,0,0,0,0,0,0,0,0,0,0,0]
["QWO","RCF","AIREDALE NHS FOUNDATION TRUST",0,"NA","NA",0,0,0,0,0,0,0,0,0,0,0,0,0,0]
["QWO","RWY","CALDERDALE AND HUDDERSFIELD NHS FOUNDATION TRUST",0,"NA","NA",0,0,0,0,0,0,0,0,0,0,0,0,0,0]
["QWO","RR8","LEEDS TEACHING HOSPITALS NHS TRUST",30,0.96666666666666667,3.3333333333333333E-2,26,3,0,1,0,0,30,0,0,0,0,0,0,0]
["QWO","RXF","MID YORKSHIRE TEACHING NHS TRUST",65,0.9538461538461539,1.5384615384615385E-2,51,11,2,0,1,0,0,0,0,64,0,0,1,0]
["QWU","RJC","SOUTH WARWICKSHIRE UNIVERSITY NHS FOUNDATION TRUST",0,"NA","NA",0,0,0,0,0,0,0,0,0,0,0,0,0,0]
["QWU","RLT","GEORGE ELIOT HOSPITAL NHS TRUST",0,"NA","NA",0,0,0,0,0,0,0,0,0,0,0,0,0,0]
["QWU","RKB","UNIVERSITY HOSPITALS COVENTRY AND WARWICKSHIRE NHS TRUST",47,0.85106382978723405,0.10638297872340426,33,7,2,3,2,0,47,0,0,0,0,0,0,0]
["QXU","RTK","ASHFORD AND ST PETER'S HOSPITALS NHS FOUNDATION TRUST",0,"NA","NA",0,0,0,0,0,0,0,0,0,0,0,0,0,0]
["QXU","RA2","ROYAL SURREY COUNTY HOSPITAL NHS FOUNDATION TRUST",2,"*","*","*","*","*","*","*","*","*","*","*","*","*","*","*","*"]
["QXU","RTP","SURREY AND SUSSEX HEALTHCARE NHS TRUST",6,0.83333333333333337,0.16666666666666666,"*","*","*","*","*","*","*","*","*","*","*","*","*","*"]
["QYG","RBL","WIRRAL UNIVERSITY TEACHING HOSPITAL NHS FOUNDATION TRUST",0,"NA","NA",0,0,0,0,0,0,0,0,0,0,0,0,0,0]
["QYG","RBT","MID CHESHIRE HOSPITALS NHS FOUNDATION TRUST",0,"NA","NA",0,0,0,0,0,0,0,0,0,0,0,0,0,0]
["QYG","RWW","WARRINGTON AND HALTON TEACHING HOSPITALS NHS FOUNDATION TRUST",1,"*","*","*","*","*","*","*","*","*","*","*","*","*","*","*","*"]
["QYG","RBN","MERSEY AND WEST LANCASHIRE TEACHING HOSPITALS NHS TRUST",13,1,0,"*","*","*","*","*","*","*","*","*","*","*","*","*","*"]
["QYG","REP","LIVERPOOL WOMEN'S NHS FOUNDATION TRUST",18,0.83333333333333337,0.1111111111111111,15,0,0,1,1,1,0,0,0,0,0,0,0,18]

{"sheet":"BSQ1","index":13,"n_rows":180,"n_cols":33,"rows_kept":180,"cut":false,"hidden":true,"merged":[]}
[null,"Sort","ICB","ICB","Trusts","Trusts","Sites","Sites",null,"Sort ranges:","Sort range…","Sort range…","Sort range…","Reference Region List:","Code…","Name…","Linked Region List:","Code…","Name…","Reference Lists:","Code…","Code…","Name…","Code…","Name…","Trusts Linked Lists:","Code…","Name…","Site Linked Lists:","Code…","Name…","Code…","Name…"]
["ICB",1,1,1,"-","-","-","-",null,null,"ICB Code","ICB Code","ICB Code",null,"QE1","LANCASHIRE AND SOUTH CUMBRIA ICB",null,"QE1","LANCASHIRE AND SOUTH CUMBRIA ICB",null,"QE1","RXL","BLACKPOOL TEACHING HOSPITALS NHS FOUNDATION TRUST","RXL01","Blackpool Victoria Hospital",null,"R0A","ASHFORD AND ST PETER'S HOSPITALS NHS FOUNDATION TRUST",null,"R0A","ASHFORD AND ST PETER'S HOSPITALS NHS FOUNDATION TRUST","R0A05","Alexandra Hospital"]
["Trusts",1,1,1,1,1,"-","-",null,null,"ICB Name","Trust Code","Trust Code",null,"QF7","SOUTH YORKSHIRE ICB",null,"QF7","SOUTH YORKSHIRE ICB",null,"QE1","RXR","EAST LANCASHIRE HOSPITALS NHS TRUST","RXR20","Royal Blackburn Hospital",null,"R0B","BARKING, HAVERING AND REDBRIDGE UNIVERSITY HOSPITALS NHS TRUST",null,"R0B","BARKING, HAVERING AND REDBRIDGE UNIVERSITY HOSPITALS NHS TRUST","R0B01","Andover War Memorial Hospital"]
["Sites",1,1,1,1,1,1,1,null,null,"Total Responses","Trust Name","Trust Name",null,"QGH","HEREFORDSHIRE AND WORCESTERSHIRE ICB",null,"QGH","HEREFORDSHIRE AND WORCESTERSHIRE ICB",null,"QE1","RXN","LANCASHIRE TEACHING HOSPITALS NHS FOUNDATION TRUST","RXN01","Chorley and South Ribble Hospital",null,"R0D","BARNSLEY HOSPITAL NHS FOUNDATION TRUST",null,"R0D","BARNSLEY HOSPITAL NHS FOUNDATION TRUST","R0B0Q","Arrowe Park Hospital"]
[null,null,null,null,null,null,null,null,null,null,"Percentage Positive","Total Responses","Site Code",null,"QH8","MID AND SOUTH ESSEX ICB",null,"QH8","MID AND SOUTH ESSEX ICB",null,"QE1","RXN","LANCASHIRE TEACHING HOSPITALS NHS FOUNDATION TRUST","RXN02","Royal Preston Hospital",null,"R1F","BARTS HEALTH NHS TRUST",null,"R1F","BARTS HEALTH NHS TRUST","R0BXXX","Ashford Hospital"]
[null,null,null,null,null,null,null,null,null,null,"Percentage Negative","Percentage Positive","Site Name",null,"QHG","BEDFORDSHIRE, LUTON AND MILTON KEYNES ICB",null,"QHG","BEDFORDSHIRE, LUTON AND MILTON KEYNES ICB",null,"QE1","RTX","UNIVERSITY HOSPITALS OF MORECAMBE BAY NHS FOUNDATION TRUST","RTXBU","Furness General Hospital",null,"R1H","BEDFORDSHIRE HOSPITALS NHS FOUNDATION TRUST",null,"R1H","BEDFORDSHIRE HOSPITALS NHS FOUNDATION TRUST","R0D01","Barnet Hospital"]
[null,null,null,null,null,null,null,null,null,null,"Very Good","Percentage Negative","Total Responses",null,"QHL","BIRMINGHAM AND SOLIHULL ICB",null,"QHL","BIRMINGHAM AND SOLIHULL ICB",null,"QE1","RTX","UNIVERSITY HOSPITALS OF MORECAMBE BAY NHS FOUNDATION TRUST","RTX02","Royal Lancaster Infirmary",null,"R1K","BIRMINGHAM WOMEN'S AND CHILDREN'S NHS FOUNDATION TRUST",null,"R1K","BIRMINGHAM WOMEN'S AND CHILDREN'S NHS FOUNDATION TRUST","R0D02","Barnsley Hospital NHS Foundation Trust HQ"]
[null,null,null,null,null,null,null,null,null,null,"Good","Very Good","Percentage Positive",null,"QHM","NORTH EAST AND NORTH CUMBRIA ICB",null,"QHM","NORTH EAST AND NORTH CUMBRIA ICB",null,"QF7","RFF","BARNSLEY HOSPITAL NHS FOUNDATION TRUST","RFFAA","Barnsley Hospital NHS Foundation Trust HQ",null,"RA2","BLACKPOOL TEACHING HOSPITALS NHS FOUNDATION TRUST",null,"RA2","BLACKPOOL TEACHING HOSPITALS NHS FOUNDATION TRUST","R1F01","BASILDON HOSPITAL"]
[null,null,null,null,null,null,null,null,null,null,"Neither Good nor Poor","Good","Percentage Negative",null,"QJ2","DERBY AND DERBYSHIRE ICB",null,"QJ2","DERBY AND DERBYSHIRE ICB",null,"QF7","RP5","DONCASTER AND BASSETLAW TEACHING HOSPITALS NHS FOUNDATION TRUST","RP5BA","Bassetlaw Hospital",null,"RA7","BOLTON NHS FOUNDATION TRUST",null,"RA7","BOLTON NHS FOUNDATION TRUST","R1H12","Basingstoke and North Hampshire Hospital"]
[null,null,null,null,null,null,null,null,null,null,"Poor","Neither Good nor Poor","Very Good",null,"QJG","SUFFOLK AND NORTH EAST ESSEX ICB",null,"QJG","SUFFOLK AND NORTH EAST ESSEX ICB",null,"QF7","RP5","DONCASTER AND BASSETLAW TEACHING HOSPITALS NHS FOUNDATION TRUST","RP5DR","Doncaster Royal Infirmary",null,"RA9","BRADFORD TEACHING HOSPITALS NHS FOUNDATION TRUST",null,"RA9","BRADFORD TEACHING HOSPITALS NHS FOUNDATION TRUST","R1HKH","Bassetlaw Hospital"]
[null,null,null,null,null,null,null,null,null,null,"Very Poor","Poor","Good",null,"QJK","DEVON ICB",null,"QJK","DEVON ICB",null,"QF7","RP5","DONCASTER AND BASSETLAW TEACHING HOSPITALS NHS FOUNDATION TRUST","RP5XXX","Non-hospital site",null,"RAE","BUCKINGHAMSHIRE HEALTHCARE NHS TRUST",null,"RAE","BUCKINGHAMSHIRE HEALTHCARE NHS TRUST","R1HNH","BEDFORD HOSPITAL SOUTH WING"]
[null,null,null,null,null,null,null,null,null,null,"Don't Know","Very Poor","Neither Good nor Poor",null,"QJM","LINCOLNSHIRE ICB",null,"QJM","LINCOLNSHIRE ICB",null,"QF7","RHQ","SHEFFIELD TEACHING HOSPITALS NHS FOUNDATION TRUST","RHQHH","Royal Hallamshire Hospital",null,"RAJ","CALDERDALE AND HUDDERSFIELD NHS FOUNDATION TRUST",null,"RAJ","CALDERDALE AND HUDDERSFIELD NHS FOUNDATION TRUST","R1K01","Birmingham Women's Hospital"]
[null,null,null,null,null,null,null,null,null,null,null,"Don't Know","Poor",null,"QK1","LEICESTER, LEICESTERSHIRE AND RUTLAND ICB",null,"QK1","LEICESTER, LEICESTERSHIRE AND RUTLAND ICB",null,"QF7","RFR","THE ROTHERHAM NHS FOUNDATION TRUST","RFRPA","Rotherham District General Hospital",null,"RAL","CAMBRIDGE UNIVERSITY HOSPITALS NHS FOUNDATION TRUST",null,"RAL","CAMBRIDGE UNIVERSITY HOSPITALS NHS FOUNDATION TRUST","RA201","Blackpool Victoria Hospital"]
[null,null,null,null,null,null,null,null,null,null,null,"Mode SMS","Very Poor",null,"QKK","SOUTH EAST LONDON ICB",null,"QKK","SOUTH EAST LONDON ICB",null,"QGH","RWP","WORCESTERSHIRE ACUTE HOSPITALS NHS TRUST","RWP01","Alexandra Hospital",null,"RAP","CHELSEA AND WESTMINSTER HOSPITAL NHS FOUNDATION TRUST",null,"RAP","CHELSEA AND WESTMINSTER HOSPITAL NHS FOUNDATION TRUST","RA707","Bradford Royal Infirmary"]
[null,null,null,null,null,null,null,null,null,null,null,"Mode Electronic Discharge","Don't Know",null,"QKS","KENT AND MEDWAY ICB",null,"QKS","KENT AND MEDWAY ICB",null,"QGH","RWP","WORCESTERSHIRE ACUTE HOSPITALS NHS TRUST","RWP31","Kidderminster Hospital",null,"RAS","CHESTERFIELD ROYAL HOSPITAL NHS FOUNDATION TRUST",null,"RAS","CHESTERFIELD ROYAL HOSPITAL NHS FOUNDATION TRUST","RA901","Bridgwater Hospital"]
[null,null,null,null,null,null,null,null,null,null,null,"Mode Electronic Home",null,null,"QM7","HERTFORDSHIRE AND WEST ESSEX ICB",null,"QM7","HERTFORDSHIRE AND WEST ESSEX ICB",null,"QGH","RWP","WORCESTERSHIRE ACUTE HOSPITALS NHS TRUST","RWP50","Worcestershire Royal Hospital",null,"RAX","DARTFORD AND GRAVESHAM NHS TRUST",null,"RAX","DARTFORD AND GRAVESHAM NHS TRUST","RAE01","Calderdale Royal Hospital"]
[null,null,null,null,null,null,null,null,null,null,null,"Mode Paper Discharge",null,null,"QMF","NORTH EAST LONDON ICB",null,"QMF","NORTH EAST LONDON ICB",null,"QGH","RLQ","WYE VALLEY NHS TRUST","RLQ01","Hereford County Hospital",null,"RBD","DONCASTER AND BASSETLAW TEACHING HOSPITALS NHS FOUNDATION TRUST",null,"RBD","DONCASTER AND BASSETLAW TEACHING HOSPITALS NHS FOUNDATION TRUST","RAJ01","Chelsea and Westminster Hospital"]
[null,null,null,null,null,null,null,null,null,null,null,"Mode Paper Home",null,null,"QMJ","NORTH CENTRAL LONDON ICB",null,"QMJ","NORTH CENTRAL LONDON ICB",null,"QH8","RAJ","MID AND SOUTH ESSEX NHS FOUNDATION TRUST","RAJ12","BASILDON HOSPITAL",null,"RBK","DORSET COUNTY HOSPITAL NHS FOUNDATION TRUST",null,"RBK","DORSET COUNTY HOSPITAL NHS FOUNDATION TRUST","RAJ12","Chesterfield Royal Hospital"]
[null,null,null,null,null,null,null,null,null,null,null,"Mode Telephone",null,null,"QMM","NORFOLK AND WAVENEY ICB",null,"QMM","NORFOLK AND WAVENEY ICB",null,"QH8","RAJ","MID AND SOUTH ESSEX NHS FOUNDATION TRUST","RAJ32","MID ESSEX HOSPITAL",null,"RBL","EAST AND NORTH HERTFORDSHIRE NHS TRUST",null,"RBL","EAST AND NORTH HERTFORDSHIRE NHS TRUST","RAJ32","Chorley and South Ribble Hospital"]
[null,null,null,null,null,null,null,null,null,null,null,"Mode Online",null,null,"QNC","STAFFORDSHIRE AND STOKE-ON-TRENT ICB",null,"QNC","STAFFORDSHIRE AND STOKE-ON-TRENT ICB",null,"QH8","RAJ","MID AND SOUTH ESSEX NHS FOUNDATION TRUST","RAJ01","Southend Hospital",null,"RBN","EAST KENT HOSPITALS UNIVERSITY NHS FOUNDATION TRUST",null,"RBN","EAST KENT HOSPITALS UNIVERSITY NHS FOUNDATION TRUST","RAL01","City Hospital"]
[null,null,null,null,null,null,null,null,null,null,null,"Mode Other",null,null,"QNQ","FRIMLEY ICB",null,"QNQ","FRIMLEY ICB",null,"QHG","RC9","BEDFORDSHIRE HOSPITALS NHS FOUNDATION TRUST","RC979","BEDFORD HOSPITAL SOUTH WING",null,"RBT","EAST LANCASHIRE HOSPITALS NHS TRUST",null,"RBT","EAST LANCASHIRE HOSPITALS NHS TRUST","RAL26","Colchester General Hospital"]
[null,null,null,null,null,null,null,null,null,null,null,null,null,null,"QNX","SUSSEX ICB",null,"QNX","SUSSEX ICB",null,"QHG","RC9","BEDFORDSHIRE HOSPITALS NHS FOUNDATION TRUST","RC971","Luton and Dunstable Hospital",null,"RC9","EAST SUFFOLK AND NORTH ESSEX NHS FOUNDATION TRUST",null,"RC9","EAST SUFFOLK AND NORTH ESSEX NHS FOUNDATION TRUST","RAPNM","Conquest Hospital"]
[null,null,null,null,null,null,null,null,null,null,null,null,null,null,"QOC","SHROPSHIRE, TELFORD AND WREKIN ICB",null,"QOC","SHROPSHIRE, TELFORD AND WREKIN ICB",null,"QHG","RD8","MILTON KEYNES UNIVERSITY HOSPITAL NHS FOUNDATION TRUST","RD816","Milton Keynes Hospital",null,"RCB","EAST SUSSEX HEALTHCARE NHS TRUST",null,"RCB","EAST SUSSEX HEALTHCARE NHS TRUST","RAS01","Cumberland Infirmary"]
[null,null,null,null,null,null,null,null,null,null,null,null,null,null,"QOP","GREATER MANCHESTER ICB",null,"QOP","GREATER MANCHESTER ICB",null,"QHL","RQ3","BIRMINGHAM WOMEN'S AND CHILDREN'S NHS FOUNDATION TRUST","RQ370","Birmingham Women's Hospital",null,"RCD","EPSOM AND ST HELIER UNIVERSITY HOSPITALS NHS TRUST",null,"RCD","EPSOM AND ST HELIER UNIVERSITY HOSPITALS NHS TRUST","RAX01","Darent Valley Hospital"]
[null,null,null,null,null,null,null,null,null,null,null,null,null,null,"QOQ","HUMBER AND NORTH YORKSHIRE ICB",null,"QOQ","HUMBER AND NORTH YORKSHIRE ICB",null,"QHL","RXK","SANDWELL AND WEST BIRMINGHAM HOSPITALS NHS TRUST","RXK02","City Hospital",null,"RCX","FRIMLEY HEALTH NHS FOUNDATION TRUST",null,"RCX","FRIMLEY HEALTH NHS FOUNDATION TRUST","RBD01","Derriford Hospital"]
[null,null,null,null,null,null,null,null,null,null,null,null,null,null,"QOX","BATH AND NORTH EAST SOMERSET, SWINDON AND WILTSHIRE ICB",null,"QOX","BATH AND NORTH EAST SOMERSET, SWINDON AND WILTSHIRE ICB",null,"QHL","RXK","SANDWELL AND WEST BIRMINGHAM HOSPITALS NHS TRUST","RXK01","Sandwell General Hospital",null,"RD1","GATESHEAD HEALTH NHS FOUNDATION TRUST",null,"RD1","GATESHEAD HEALTH NHS FOUNDATION TRUST","RBK02","Dewsbury and District Hospital"]
[null,null,null,null,null,null,null,null,null,null,null,null,null,null,"QPM","NORTHAMPTONSHIRE ICB",null,"QPM","NORTHAMPTONSHIRE ICB",null,"QHM","RR7","GATESHEAD HEALTH NHS FOUNDATION TRUST","RR7EN","Queen Elizabeth Hospital",null,"RD8","GEORGE ELIOT HOSPITAL NHS TRUST",null,"RD8","GEORGE ELIOT HOSPITAL NHS TRUST","RBL14","Diana, Princess Of Wales Hospital"]
[null,null,null,null,null,null,null,null,null,null,null,null,null,null,"QR1","GLOUCESTERSHIRE ICB",null,"QR1","GLOUCESTERSHIRE ICB",null,"QHM","RNN","NORTH CUMBRIA INTEGRATED CARE NHS FOUNDATION TRUST","RNN62","Cumberland Infirmary",null,"RDE","GREAT WESTERN HOSPITALS NHS FOUNDATION TRUST",null,"RDE","GREAT WESTERN HOSPITALS NHS FOUNDATION TRUST","RBN01","Doncaster Royal Infirmary"]
[null,null,null,null,null,null,null,null,null,null,null,null,null,null,"QRL","HAMPSHIRE AND ISLE OF WIGHT ICB",null,"QRL","HAMPSHIRE AND ISLE OF WIGHT ICB",null,"QHM","RNN","NORTH CUMBRIA INTEGRATED CARE NHS FOUNDATION TRUST","RNNXXX","Non-hospital site",null,"RDU","GUY'S AND ST THOMAS' NHS FOUNDATION TRUST",null,"RDU","GUY'S AND ST THOMAS' NHS FOUNDATION TRUST","RBN52","Dorset County Hospital"]
[null,null,null,null,null,null,null,null,null,null,null,null,null,null,"QRV","NORTH WEST LONDON ICB",null,"QRV","NORTH WEST LONDON ICB",null,"QHM","RNN","NORTH CUMBRIA INTEGRATED CARE NHS FOUNDATION TRUST","RNNBX","West Cumberland Hospital",null,"REF","HAMPSHIRE HOSPITALS NHS FOUNDATION TRUST",null,"REF","HAMPSHIRE HOSPITALS NHS FOUNDATION TRUST","RBT20","East Surrey Hospital"]
[null,null,null,null,null,null,null,null,null,null,null,null,null,null,"QSL","SOMERSET ICB",null,"QSL","SOMERSET ICB",null,"QHM","RVW","NORTH TEES AND HARTLEPOOL NHS FOUNDATION TRUST","RVWXXX","Non-hospital site",null,"REP","HARROGATE AND DISTRICT NHS FOUNDATION TRUST",null,"REP","HARROGATE AND DISTRICT NHS FOUNDATION TRUST","RC971","Eastbourne District General Hospital"]
[null,null,null,null,null,null,null,null,null,null,null,null,null,null,"QT1","NOTTINGHAM AND NOTTINGHAMSHIRE ICB",null,"QT1","NOTTINGHAM AND NOTTINGHAMSHIRE ICB",null,"QHM","RVW","NORTH TEES AND HARTLEPOOL NHS FOUNDATION TRUST","RVWAE","University Hospital Of North Tees",null,"RF4","HOMERTON HEALTHCARE NHS FOUNDATION TRUST",null,"RF4","HOMERTON HEALTHCARE NHS FOUNDATION TRUST","RC979","Epsom Hospital"]
[null,null,null,null,null,null,null,null,null,null,null,null,null,null,"QT6","CORNWALL AND THE ISLES OF SCILLY ICB",null,"QT6","CORNWALL AND THE ISLES OF SCILLY ICB",null,"QHM","RTR","SOUTH TEES HOSPITALS NHS FOUNDATION TRUST","RTR45","Friarage Hospital Site",null,"RFF","HULL UNIVERSITY TEACHING HOSPITALS NHS TRUST",null,"RFF","HULL UNIVERSITY TEACHING HOSPITALS NHS TRUST","RCB55","Friarage Hospital Site"]
[null,null,null,null,null,null,null,null,null,null,null,null,null,null,"QU9","BUCKINGHAMSHIRE, OXFORDSHIRE AND BERKSHIRE WEST ICB",null,"QU9","BUCKINGHAMSHIRE, OXFORDSHIRE AND BERKSHIRE WEST ICB",null,"QHM","RTR","SOUTH TEES HOSPITALS NHS FOUNDATION TRUST","RTRAT","The James Cook University Hospital",null,"RFR","IMPERIAL COLLEGE HEALTHCARE NHS TRUST",null,"RFR","IMPERIAL COLLEGE HEALTHCARE NHS TRUST","RCBCA","Frimley Park Hospital"]
[null,null,null,null,null,null,null,null,null,null,null,null,null,null,"QUA","BLACK COUNTRY ICB",null,"QUA","BLACK COUNTRY ICB",null,"QHM","R0B","SOUTH TYNESIDE AND SUNDERLAND NHS FOUNDATION TRUST","R0BXXX","Non-hospital site",null,"RFS","ISLE OF WIGHT NHS TRUST",null,"RFS","ISLE OF WIGHT NHS TRUST","RCD01","Furness General Hospital"]
[null,null,null,null,null,null,null,null,null,null,null,null,null,null,"QUE","CAMBRIDGESHIRE AND PETERBOROUGH ICB",null,"QUE","CAMBRIDGESHIRE AND PETERBOROUGH ICB",null,"QHM","R0B","SOUTH TYNESIDE AND SUNDERLAND NHS FOUNDATION TRUST","R0B0Q","South Tyneside District Hospital",null,"RGN","JAMES PAGET UNIVERSITY HOSPITALS NHS FOUNDATION TRUST",null,"RGN","JAMES PAGET UNIVERSITY HOSPITALS NHS FOUNDATION TRUST","RCX66","George Eliot Hospital - Acute Services"]
[null,null,null,null,null,null,null,null,null,null,null,null,null,null,"QUY","BRISTOL, NORTH SOMERSET AND SOUTH GLOUCESTERSHIRE ICB",null,"QUY","BRISTOL, NORTH SOMERSET AND SOUTH GLOUCESTERSHIRE ICB",null,"QHM","R0B","SOUTH TYNESIDE AND SUNDERLAND NHS FOUNDATION TRUST","R0B01","Sunderland Royal Hospital",null,"RGP","KETTERING GENERAL HOSPITAL NHS FOUNDATION TRUST",null,"RGP","KETTERING GENERAL HOSPITAL NHS FOUNDATION TRUST","RCX70","Gosport War Memorial Hospital"]
[null,null,null,null,null,null,null,null,null,null,null,null,null,null,"QVV","DORSET ICB",null,"QVV","DORSET ICB",null,"QHM","RTD","THE NEWCASTLE UPON TYNE HOSPITALS NHS FOUNDATION TRUST","RTD02","The Royal Victoria Infirmary",null,"RGR","KING'S COLLEGE HOSPITAL NHS FOUNDATION TRUST",null,"RGR","KING'S COLLEGE HOSPITAL NHS FOUNDATION TRUST","RCXXXX","Grantham and District Hospital"]
[null,null,null,null,null,null,null,null,null,null,null,null,null,null,"QWE","SOUTH WEST LONDON ICB",null,"QWE","SOUTH WEST LONDON ICB",null,"QJ2","RFS","CHESTERFIELD ROYAL HOSPITAL NHS FOUNDATION TRUST","RFSDA","Chesterfield Royal Hospital",null,"RGT","KINGSTON HOSPITAL NHS FOUNDATION TRUST",null,"RGT","KINGSTON HOSPITAL NHS FOUNDATION TRUST","RD108","Harrogate District Hospital"]
[null,null,null,null,null,null,null,null,null,null,null,null,null,null,"QWO","WEST YORKSHIRE ICB",null,"QWO","WEST YORKSHIRE ICB",null,"QJ2","RTG","UNIVERSITY HOSPITALS OF DERBY AND BURTON NHS FOUNDATION TRUST","RTG02","Queens Hospital, Burton Upon Trent",null,"RH5","LANCASHIRE TEACHING HOSPITALS NHS FOUNDATION TRUST",null,"RH5","LANCASHIRE TEACHING HOSPITALS NHS FOUNDATION TRUST","RD130","Hereford County Hospital"]
[null,null,null,null,null,null,null,null,null,null,null,null,null,null,"QWU","COVENTRY AND WARWICKSHIRE ICB",null,"QWU","COVENTRY AND WARWICKSHIRE ICB",null,"QJ2","RTG","UNIVERSITY HOSPITALS OF DERBY AND BURTON NHS FOUNDATION TRUST","RTGFG","Royal Derby Hospital",null,"RH8","LEEDS TEACHING HOSPITALS NHS TRUST",null,"RH8","LEEDS TEACHING HOSPITALS NHS TRUST","RD816","Hillingdon Hospital"]
[null,null,null,null,null,null,null,null,null,null,null,null,null,null,"QXU","SURREY HEARTLANDS ICB",null,"QXU","SURREY HEARTLANDS ICB",null,"QJG","RDE","EAST SUFFOLK AND NORTH ESSEX NHS FOUNDATION TRUST","RDEE4","Colchester General Hospital",null,"RHM","LEWISHAM AND GREENWICH NHS TRUST",null,"RHM","LEWISHAM AND GREENWICH NHS TRUST","RDE03","Hinchingbrooke Hospital"]
[null,null,null,null,null,null,null,null,null,null,null,null,null,null,"QYG","CHESHIRE AND MERSEYSIDE ICB",null,"QYG","CHESHIRE AND MERSEYSIDE ICB",null,"QJG","RDE","EAST SUFFOLK AND NORTH ESSEX NHS FOUNDATION TRUST","RDE03","Ipswich Hospital",null,"RHQ","LIVERPOOL WOMEN'S NHS FOUNDATION TRUST",null,"RHQ","LIVERPOOL WOMEN'S NHS FOUNDATION TRUST","RDEE4","Homerton University Hospital"]
[null,null,null,null,null,null,null,null,null,null,null,null,null,null,null,null,null,null,null,null,"QJG","RGR","WEST SUFFOLK NHS FOUNDATION TRUST","RGR50","West Suffolk Hospital",null,"RHU","LONDON NORTH WEST UNIVERSITY HEALTHCARE NHS TRUST",null,"RHU","LONDON NORTH WEST UNIVERSITY HEALTHCARE NHS TRUST","RDU01","Horton General Hospital"]
[null,null,null,null,null,null,null,null,null,null,null,null,null,null,null,null,null,null,null,null,"QJK","RH8","ROYAL DEVON UNIVERSITY HEALTHCARE NHS FOUNDATION TRUST","RH880","North Devon District Hospital",null,"RHW","MAIDSTONE AND TUNBRIDGE WELLS NHS TRUST",null,"RHW","MAIDSTONE AND TUNBRIDGE WELLS NHS TRUST","REF12","Hospital Of St Cross"]
[null,null,null,null,null,null,null,null,null,null,null,null,null,null,null,null,null,null,null,null,"QJK","RH8","ROYAL DEVON UNIVERSITY HEALTHCARE NHS FOUNDATION TRUST","RH801","Royal Devon and Exeter Hospital (Wonford)",null,"RJ1","MANCHESTER UNIVERSITY NHS FOUNDATION TRUST",null,"RJ1","MANCHESTER UNIVERSITY NHS FOUNDATION TRUST","REFXXX","Huddersfield Royal Infirmary"]
[null,null,null,null,null,null,null,null,null,null,null,null,null,null,null,null,null,null,null,null,"QJK","RA9","TORBAY AND SOUTH DEVON NHS FOUNDATION TRUST","RA901","Torbay Hospital",null,"RJ2","MEDWAY NHS FOUNDATION TRUST",null,"RJ2","MEDWAY NHS FOUNDATION TRUST","REP01","Hull Royal Infirmary"]
[null,null,null,null,null,null,null,null,null,null,null,null,null,null,null,null,null,null,null,null,"QJK","RK9","UNIVERSITY HOSPITALS PLYMOUTH NHS TRUST","RK950","Derriford Hospital",null,"RJ7","MERSEY AND WEST LANCASHIRE TEACHING HOSPITALS NHS TRUST",null,"RJ7","MERSEY AND WEST LANCASHIRE TEACHING HOSPITALS NHS TRUST","RF4XXX","Ipswich Hospital"]
[null,null,null,null,null,null,null,null,null,null,null,null,null,null,null,null,null,null,null,null,"QJK","RK9","UNIVERSITY HOSPITALS PLYMOUTH NHS TRUST","RK9XXX","Non-hospital site",null,"RJC","MID AND SOUTH ESSEX NHS FOUNDATION TRUST",null,"RJC","MID AND SOUTH ESSEX NHS FOUNDATION TRUST","RFFAA","James Paget University Hospital"]
[null,null,null,null,null,null,null,null,null,null,null,null,null,null,null,null,null,null,null,null,"QJM","RWD","UNITED LINCOLNSHIRE HOSPITALS NHS TRUST","RWDLP","Grantham and District Hospital",null,"RJE","MID CHESHIRE HOSPITALS NHS FOUNDATION TRUST",null,"RJE","MID CHESHIRE HOSPITALS NHS FOUNDATION TRUST","RFRPA","Kettering General Hospital"]
[null,null,null,null,null,null,null,null,null,null,null,null,null,null,null,null,null,null,null,null,"QJM","RWD","UNITED LINCOLNSHIRE HOSPITALS NHS TRUST","RWDDA","Lincoln County Hospital",null,"RJL","MID YORKSHIRE TEACHING NHS TRUST",null,"RJL","MID YORKSHIRE TEACHING NHS TRUST","RFSDA","Kidderminster Hospital"]
[null,null,null,null,null,null,null,null,null,null,null,null,null,null,null,null,null,null,null,null,"QJM","RWD","UNITED LINCOLNSHIRE HOSPITALS NHS TRUST","RWDLA","Pilgrim Hospital",null,"RJZ","MILTON KEYNES UNIVERSITY HOSPITAL NHS FOUNDATION TRUST",null,"RJZ","MILTON KEYNES UNIVERSITY HOSPITAL NHS FOUNDATION TRUST","RGN80","King's College Hospital (Denmark Hill)"]
[null,null,null,null,null,null,null,null,null,null,null,null,null,null,null,null,null,null,null,null,"QK1","RWE","UNIVERSITY HOSPITALS OF LEICESTER NHS TRUST","RWEAK","Leicester General Hospital",null,"RK5","NORFOLK AND NORWICH UNIVERSITY HOSPITALS NHS FOUNDATION TRUST",null,"RK5","NORFOLK AND NORWICH UNIVERSITY HOSPITALS NHS FOUNDATION TRUST","RGN90","King's Mill Hospital"]
[null,null,null,null,null,null,null,null,null,null,null,null,null,null,null,null,null,null,null,null,"QK1","RWE","UNIVERSITY HOSPITALS OF LEICESTER NHS TRUST","RWEAA","Leicester Royal Infirmary",null,"RK9","NORTH BRISTOL NHS TRUST",null,"RK9","NORTH BRISTOL NHS TRUST","RGP75","Kingston Hospital"]
[null,null,null,null,null,null,null,null,null,null,null,null,null,null,null,null,null,null,null,null,"QK1","RWE","UNIVERSITY HOSPITALS OF LEICESTER NHS TRUST","RWEXXX","Non-hospital site",null,"RKB","NORTH CUMBRIA INTEGRATED CARE NHS FOUNDATION TRUST",null,"RKB","NORTH CUMBRIA INTEGRATED CARE NHS FOUNDATION TRUST","RGR50","Leeds General Infirmary"]
[null,null,null,null,null,null,null,null,null,null,null,null,null,null,null,null,null,null,null,null,"QK1","RWE","UNIVERSITY HOSPITALS OF LEICESTER NHS TRUST","RWE10","St Mary's Hospital",null,"RKE","NORTH MIDDLESEX UNIVERSITY HOSPITAL NHS TRUST",null,"RKE","NORTH MIDDLESEX UNIVERSITY HOSPITAL NHS TRUST","RGT32","Leicester General Hospital"]
[null,null,null,null,null,null,null,null,null,null,null,null,null,null,null,null,null,null,null,null,"QKK","RJ1","GUY'S AND ST THOMAS' NHS FOUNDATION TRUST","RJ122","St Thomas' Hospital",null,"RL4","NORTH TEES AND HARTLEPOOL NHS FOUNDATION TRUST",null,"RL4","NORTH TEES AND HARTLEPOOL NHS FOUNDATION TRUST","RH5A8","Leicester Royal Infirmary"]
[null,null,null,null,null,null,null,null,null,null,null,null,null,null,null,null,null,null,null,null,"QKK","RJZ","KING'S COLLEGE HOSPITAL NHS FOUNDATION TRUST","RJZ01","King's College Hospital (Denmark Hill)",null,"RLQ","NORTH WEST ANGLIA NHS FOUNDATION TRUST",null,"RLQ","NORTH WEST ANGLIA NHS FOUNDATION TRUST","RH5K6","Leighton Hospital"]
[null,null,null,null,null,null,null,null,null,null,null,null,null,null,null,null,null,null,null,null,"QKK","RJZ","KING'S COLLEGE HOSPITAL NHS FOUNDATION TRUST","RJZ30","Princess Royal University Hospital",null,"RLT","NORTHAMPTON GENERAL HOSPITAL NHS TRUST",null,"RLT","NORTHAMPTON GENERAL HOSPITAL NHS TRUST","RH5O4","Lincoln County Hospital"]
[null,null,null,null,null,null,null,null,null,null,null,null,null,null,null,null,null,null,null,null,"QKK","RJ2","LEWISHAM AND GREENWICH NHS TRUST","RJ231","Queen Elizabeth Hospital",null,"RM1","NORTHERN CARE ALLIANCE NHS FOUNDATION TRUST",null,"RM1","NORTHERN CARE ALLIANCE NHS FOUNDATION TRUST","RH5XXXX","Lister Hospital"]
[null,null,null,null,null,null,null,null,null,null,null,null,null,null,null,null,null,null,null,null,"QKK","RJ2","LEWISHAM AND GREENWICH NHS TRUST","RJ224","University Hospital Lewisham",null,"RM3","NORTHERN LINCOLNSHIRE AND GOOLE NHS FOUNDATION TRUST",null,"RM3","NORTHERN LINCOLNSHIRE AND GOOLE NHS FOUNDATION TRUST","RH801","Liverpool Womens Hospital"]
[null,null,null,null,null,null,null,null,null,null,null,null,null,null,null,null,null,null,null,null,"QKS","RN7","DARTFORD AND GRAVESHAM NHS TRUST","RN707","Darent Valley Hospital",null,"RMC","NOTTINGHAM UNIVERSITY HOSPITALS NHS TRUST",null,"RMC","NOTTINGHAM UNIVERSITY HOSPITALS NHS TRUST","RH880","Luton and Dunstable Hospital"]
[null,null,null,null,null,null,null,null,null,null,null,null,null,null,null,null,null,null,null,null,"QKS","RVV","EAST KENT HOSPITALS UNIVERSITY NHS FOUNDATION TRUST","RVV01","William Harvey Hospital (Ashford)",null,"RMP","OXFORD UNIVERSITY HOSPITALS NHS FOUNDATION TRUST",null,"RMP","OXFORD UNIVERSITY HOSPITALS NHS FOUNDATION TRUST","RHM01","Maidstone District General Hospital"]
[null,null,null,null,null,null,null,null,null,null,null,null,null,null,null,null,null,null,null,null,"QKS","RWF","MAIDSTONE AND TUNBRIDGE WELLS NHS TRUST","RWF03","Maidstone District General Hospital",null,"RN3","PORTSMOUTH HOSPITALS UNIVERSITY NATIONAL HEALTH SERVICE TRUST",null,"RN3","PORTSMOUTH HOSPITALS UNIVERSITY NATIONAL HEALTH SERVICE TRUST","RHQHH","Manor Hospital"]
[null,null,null,null,null,null,null,null,null,null,null,null,null,null,null,null,null,null,null,null,"QKS","RWF","MAIDSTONE AND TUNBRIDGE WELLS NHS TRUST","RWFXXX","Non-hospital site",null,"RN5","ROYAL BERKSHIRE NHS FOUNDATION TRUST",null,"RN5","ROYAL BERKSHIRE NHS FOUNDATION TRUST","RHU02","Medway Maritime Hospital"]
[null,null,null,null,null,null,null,null,null,null,null,null,null,null,null,null,null,null,null,null,"QKS","RWF","MAIDSTONE AND TUNBRIDGE WELLS NHS TRUST","RWFTW","The Tunbridge Wells Hospital",null,"RN7","ROYAL CORNWALL HOSPITALS NHS TRUST",null,"RN7","ROYAL CORNWALL HOSPITALS NHS TRUST","RHU03","MID ESSEX HOSPITAL"]
[null,null,null,null,null,null,null,null,null,null,null,null,null,null,null,null,null,null,null,null,"QKS","RPA","MEDWAY NHS FOUNDATION TRUST","RPA02","Medway Maritime Hospital",null,"RNA","ROYAL DEVON UNIVERSITY HEALTHCARE NHS FOUNDATION TRUST",null,"RNA","ROYAL DEVON UNIVERSITY HEALTHCARE NHS FOUNDATION TRUST","RHU10","Milton Keynes Hospital"]
[null,null,null,null,null,null,null,null,null,null,null,null,null,null,null,null,null,null,null,null,"QM7","RWH","EAST AND NORTH HERTFORDSHIRE NHS TRUST","RWH01","Lister Hospital",null,"RNN","ROYAL FREE LONDON NHS FOUNDATION TRUST",null,"RNN","ROYAL FREE LONDON NHS FOUNDATION TRUST","RHW01","MUSGROVE PARK HOSPITAL"]
[null,null,null,null,null,null,null,null,null,null,null,null,null,null,null,null,null,null,null,null,"QM7","RWH","EAST AND NORTH HERTFORDSHIRE NHS TRUST","RWHXXX","Non-hospital site",null,"RNQ","ROYAL SURREY COUNTY HOSPITAL NHS FOUNDATION TRUST",null,"RNQ","ROYAL SURREY COUNTY HOSPITAL NHS FOUNDATION TRUST","RJ122","New Cross Hospital"]
[null,null,null,null,null,null,null,null,null,null,null,null,null,null,null,null,null,null,null,null,"QM7","RQW","THE PRINCESS ALEXANDRA HOSPITAL NHS TRUST","RQWG0","Princess Alexandra Hospital",null,"RNS","ROYAL UNITED HOSPITALS BATH NHS FOUNDATION TRUST",null,"RNS","ROYAL UNITED HOSPITALS BATH NHS FOUNDATION TRUST","RJ224","Newham General Hospital"]
[null,null,null,null,null,null,null,null,null,null,null,null,null,null,null,null,null,null,null,null,"QM7","RWG","WEST HERTFORDSHIRE TEACHING HOSPITALS NHS TRUST","RWG02","Watford General Hospital",null,"RNZ","SALISBURY NHS FOUNDATION TRUST",null,"RNZ","SALISBURY NHS FOUNDATION TRUST","RJ231","Non-hospital site"]
[null,null,null,null,null,null,null,null,null,null,null,null,null,null,null,null,null,null,null,null,"QMF","RF4","BARKING, HAVERING AND REDBRIDGE UNIVERSITY HOSPITALS NHS TRUST","RF4XXX","Non-hospital site",null,"RP5","SANDWELL AND WEST BIRMINGHAM HOSPITALS NHS TRUST",null,"RP5","SANDWELL AND WEST BIRMINGHAM HOSPITALS NHS TRUST","RJ701","Non-hospital site"]
[null,null,null,null,null,null,null,null,null,null,null,null,null,null,null,null,null,null,null,null,"QMF","R1H","BARTS HEALTH NHS TRUST","R1HNH","Newham General Hospital",null,"RPA","SHEFFIELD TEACHING HOSPITALS NHS FOUNDATION TRUST",null,"RPA","SHEFFIELD TEACHING HOSPITALS NHS FOUNDATION TRUST","RJC02","Non-hospital site"]
[null,null,null,null,null,null,null,null,null,null,null,null,null,null,null,null,null,null,null,null,"QMF","R1H","BARTS HEALTH NHS TRUST","R1H12","The Royal London Hospital",null,"RQ3","SHERWOOD FOREST HOSPITALS NHS FOUNDATION TRUST",null,"RQ3","SHERWOOD FOREST HOSPITALS NHS FOUNDATION TRUST","RJCXXX","Non-hospital site"]
[null,null,null,null,null,null,null,null,null,null,null,null,null,null,null,null,null,null,null,null,"QMF","R1H","BARTS HEALTH NHS TRUST","R1HKH","Whipps Cross University Hospital",null,"RQM","SOMERSET NHS FOUNDATION TRUST",null,"RQM","SOMERSET NHS FOUNDATION TRUST","RJE01","Non-hospital site"]
[null,null,null,null,null,null,null,null,null,null,null,null,null,null,null,null,null,null,null,null,"QMF","RQX","HOMERTON HEALTHCARE NHS FOUNDATION TRUST","RQXM1","Homerton University Hospital",null,"RQW","SOUTH TEES HOSPITALS NHS FOUNDATION TRUST",null,"RQW","SOUTH TEES HOSPITALS NHS FOUNDATION TRUST","RJEXXX","Non-hospital site"]
[null,null,null,null,null,null,null,null,null,null,null,null,null,null,null,null,null,null,null,null,"QMJ","RAP","NORTH MIDDLESEX UNIVERSITY HOSPITAL NHS TRUST","RAPNM","North Middlesex Hospital",null,"RQX","SOUTH TYNESIDE AND SUNDERLAND NHS FOUNDATION TRUST",null,"RQX","SOUTH TYNESIDE AND SUNDERLAND NHS FOUNDATION TRUST","RJL30","Non-hospital site"]
[null,null,null,null,null,null,null,null,null,null,null,null,null,null,null,null,null,null,null,null,"QMJ","RAL","ROYAL FREE LONDON NHS FOUNDATION TRUST","RAL26","Barnet Hospital",null,"RR7","SOUTH WARWICKSHIRE UNIVERSITY NHS FOUNDATION TRUST",null,"RR7","SOUTH WARWICKSHIRE UNIVERSITY NHS FOUNDATION TRUST","RJL32","Non-hospital site"]
[null,null,null,null,null,null,null,null,null,null,null,null,null,null,null,null,null,null,null,null,"QMJ","RAL","ROYAL FREE LONDON NHS FOUNDATION TRUST","RAL01","Royal Free Hospital",null,"RR8","ST GEORGE'S UNIVERSITY HOSPITALS NHS FOUNDATION TRUST",null,"RR8","ST GEORGE'S UNIVERSITY HOSPITALS NHS FOUNDATION TRUST","RJZ01","Non-hospital site"]
[null,null,null,null,null,null,null,null,null,null,null,null,null,null,null,null,null,null,null,null,"QMJ","RRV","UNIVERSITY COLLEGE LONDON HOSPITALS NHS FOUNDATION TRUST","RRV11","University College Hospital Elizabeth Garrett Anderson Wing",null,"RRF","STOCKPORT NHS FOUNDATION TRUST",null,"RRF","STOCKPORT NHS FOUNDATION TRUST","RJZ30","Non-hospital site"]
[null,null,null,null,null,null,null,null,null,null,null,null,null,null,null,null,null,null,null,null,"QMJ","RKE","WHITTINGTON HEALTH NHS TRUST","RKEXXX","Non-hospital site",null,"RRV","SURREY AND SUSSEX HEALTHCARE NHS TRUST",null,"RRV","SURREY AND SUSSEX HEALTHCARE NHS TRUST","RK5BC","Non-hospital site"]
[null,null,null,null,null,null,null,null,null,null,null,null,null,null,null,null,null,null,null,null,"QMJ","RKE","WHITTINGTON HEALTH NHS TRUST","RKEQ4","The Whittington Hospital",null,"RTD","TAMESIDE AND GLOSSOP INTEGRATED CARE NHS FOUNDATION TRUST",null,"RTD","TAMESIDE AND GLOSSOP INTEGRATED CARE NHS FOUNDATION TRUST","RK950","Non-hospital site"]
[null,null,null,null,null,null,null,null,null,null,null,null,null,null,null,null,null,null,null,null,"QMM","RGP","JAMES PAGET UNIVERSITY HOSPITALS NHS FOUNDATION TRUST","RGP75","James Paget University Hospital",null,"RTG","THE DUDLEY GROUP NHS FOUNDATION TRUST",null,"RTG","THE DUDLEY GROUP NHS FOUNDATION TRUST","RK9XXX","Non-hospital site"]
[null,null,null,null,null,null,null,null,null,null,null,null,null,null,null,null,null,null,null,null,"QMM","RM1","NORFOLK AND NORWICH UNIVERSITY HOSPITALS NHS FOUNDATION TRUST","RM102","Norfolk and Norwich University Hospital",null,"RTH","THE HILLINGDON HOSPITALS NHS FOUNDATION TRUST",null,"RTH","THE HILLINGDON HOSPITALS NHS FOUNDATION TRUST","RKB01","Non-hospital site"]
[null,null,null,null,null,null,null,null,null,null,null,null,null,null,null,null,null,null,null,null,"QMM","RCX","THE QUEEN ELIZABETH HOSPITAL, KING'S LYNN, NHS FOUNDATION TRUST","RCXXXX","Non-hospital site",null,"RTK","THE NEWCASTLE UPON TYNE HOSPITALS NHS FOUNDATION TRUST",null,"RTK","THE NEWCASTLE UPON TYNE HOSPITALS NHS FOUNDATION TRUST","RKB03","Non-hospital site"]
[null,null,null,null,null,null,null,null,null,null,null,null,null,null,null,null,null,null,null,null,"QMM","RCX","THE QUEEN ELIZABETH HOSPITAL, KING'S LYNN, NHS FOUNDATION TRUST","RCX66","North Cambridgeshire Hospital",null,"RTP","THE PRINCESS ALEXANDRA HOSPITAL NHS TRUST",null,"RTP","THE PRINCESS ALEXANDRA HOSPITAL NHS TRUST","RKBXXX","Non-hospital site"]
[null,null,null,null,null,null,null,null,null,null,null,null,null,null,null,null,null,null,null,null,"QMM","RCX","THE QUEEN ELIZABETH HOSPITAL, KING'S LYNN, NHS FOUNDATION TRUST","RCX70","The Queen Elizabeth Hospital",null,"RTR","THE QUEEN ELIZABETH HOSPITAL, KING'S LYNN, NHS FOUNDATION TRUST",null,"RTR","THE QUEEN ELIZABETH HOSPITAL, KING'S LYNN, NHS FOUNDATION TRUST","RKEQ4","Non-hospital site"]
[null,null,null,null,null,null,null,null,null,null,null,null,null,null,null,null,null,null,null,null,"QNC","RJE","UNIVERSITY HOSPITALS OF NORTH MIDLANDS NHS TRUST","RJEXXX","Non-hospital site",null,"RTX","THE ROTHERHAM NHS FOUNDATION TRUST",null,"RTX","THE ROTHERHAM NHS FOUNDATION TRUST","RKEXXX","Non-hospital site"]
[null,null,null,null,null,null,null,null,null,null,null,null,null,null,null,null,null,null,null,null,"QNC","RJE","UNIVERSITY HOSPITALS OF NORTH MIDLANDS NHS TRUST","RJE01","Royal Stoke University Hospital",null,"RVJ","THE ROYAL WOLVERHAMPTON NHS TRUST",null,"RVJ","THE ROYAL WOLVERHAMPTON NHS TRUST","RL403","Non-hospital site"]
[null,null,null,null,null,null,null,null,null,null,null,null,null,null,null,null,null,null,null,null,"QNQ","RDU","FRIMLEY HEALTH NHS FOUNDATION TRUST","RDU01","Frimley Park Hospital",null,"RVR","THE SHREWSBURY AND TELFORD HOSPITAL NHS TRUST",null,"RVR","THE SHREWSBURY AND TELFORD HOSPITAL NHS TRUST","RLQ01","Non-hospital site"]
[null,null,null,null,null,null,null,null,null,null,null,null,null,null,null,null,null,null,null,null,"QNX","RXC","EAST SUSSEX HEALTHCARE NHS TRUST","RXC01","Conquest Hospital",null,"RVV","TORBAY AND SOUTH DEVON NHS FOUNDATION TRUST",null,"RVV","TORBAY AND SOUTH DEVON NHS FOUNDATION TRUST","RLT01","Non-hospital site"]
[null,null,null,null,null,null,null,null,null,null,null,null,null,null,null,null,null,null,null,null,"QNX","RXC","EAST SUSSEX HEALTHCARE NHS TRUST","RXC02","Eastbourne District General Hospital",null,"RVW","UNITED LINCOLNSHIRE HOSPITALS NHS TRUST",null,"RVW","UNITED LINCOLNSHIRE HOSPITALS NHS TRUST","RM102","Non-hospital site"]
[null,null,null,null,null,null,null,null,null,null,null,null,null,null,null,null,null,null,null,null,"QNX","RXC","EAST SUSSEX HEALTHCARE NHS TRUST","RXCXXX","Non-hospital site",null,"RWA","UNIVERSITY COLLEGE LONDON HOSPITALS NHS FOUNDATION TRUST",null,"RWA","UNIVERSITY COLLEGE LONDON HOSPITALS NHS FOUNDATION TRUST","RMC01","Non-hospital site home/in-transit births"]
[null,null,null,null,null,null,null,null,null,null,null,null,null,null,null,null,null,null,null,null,"QOC","RXW","THE SHREWSBURY AND TELFORD HOSPITAL NHS TRUST","RXWXXX","Non-hospital site",null,"RWD","UNIVERSITY HOSPITAL SOUTHAMPTON NHS FOUNDATION TRUST",null,"RWD","UNIVERSITY HOSPITAL SOUTHAMPTON NHS FOUNDATION TRUST","RMP01","Norfolk and Norwich University Hospital"]
[null,null,null,null,null,null,null,null,null,null,null,null,null,null,null,null,null,null,null,null,"QOP","RMC","BOLTON NHS FOUNDATION TRUST","RMC01","Royal Bolton Hospital",null,"RWE","UNIVERSITY HOSPITALS BRISTOL AND WESTON NHS FOUNDATION TRUST",null,"RWE","UNIVERSITY HOSPITALS BRISTOL AND WESTON NHS FOUNDATION TRUST","RN325","North Cambridgeshire Hospital"]
[null,null,null,null,null,null,null,null,null,null,null,null,null,null,null,null,null,null,null,null,"QOP","R0A","MANCHESTER UNIVERSITY NHS FOUNDATION TRUST","R0A05","St Mary's Hospital",null,"RWF","UNIVERSITY HOSPITALS COVENTRY AND WARWICKSHIRE NHS TRUST",null,"RWF","UNIVERSITY HOSPITALS COVENTRY AND WARWICKSHIRE NHS TRUST","RN506","North Devon District Hospital"]
[null,null,null,null,null,null,null,null,null,null,null,null,null,null,null,null,null,null,null,null,"QOP","RM3","NORTHERN CARE ALLIANCE NHS FOUNDATION TRUST","RW603","Royal Oldham Hospital",null,"RWG","UNIVERSITY HOSPITALS DORSET NHS FOUNDATION TRUST",null,"RWG","UNIVERSITY HOSPITALS DORSET NHS FOUNDATION TRUST","RN541","North Middlesex Hospital"]
[null,null,null,null,null,null,null,null,null,null,null,null,null,null,null,null,null,null,null,null,"QOP","RWJ","STOCKPORT NHS FOUNDATION TRUST","RWJ09","Stepping Hill Hospital",null,"RWH","UNIVERSITY HOSPITALS OF DERBY AND BURTON NHS FOUNDATION TRUST",null,"RWH","UNIVERSITY HOSPITALS OF DERBY AND BURTON NHS FOUNDATION TRUST","RN542","Northampton General Hospital (Acute)"]
[null,null,null,null,null,null,null,null,null,null,null,null,null,null,null,null,null,null,null,null,"QOP","RMP","TAMESIDE AND GLOSSOP INTEGRATED CARE NHS FOUNDATION TRUST","RMP01","Tameside General Hospital",null,"RWJ","UNIVERSITY HOSPITALS OF LEICESTER NHS TRUST",null,"RWJ","UNIVERSITY HOSPITALS OF LEICESTER NHS TRUST","RN707","Northwick Park Hospital"]
[null,null,null,null,null,null,null,null,null,null,null,null,null,null,null,null,null,null,null,null,"QOP","RRF","WRIGHTINGTON, WIGAN AND LEIGH NHS FOUNDATION TRUST","RRF02","Royal Albert Edward Infirmary",null,"RWP","UNIVERSITY HOSPITALS OF MORECAMBE BAY NHS FOUNDATION TRUST",null,"RWP","UNIVERSITY HOSPITALS OF MORECAMBE BAY NHS FOUNDATION TRUST","RNA01","Ormskirk and District General Hospital"]
[null,null,null,null,null,null,null,null,null,null,null,null,null,null,null,null,null,null,null,null,"QOQ","RCD","HARROGATE AND DISTRICT NHS FOUNDATION TRUST","RCD01","Harrogate District Hospital",null,"RWW","UNIVERSITY HOSPITALS OF NORTH MIDLANDS NHS TRUST",null,"RWW","UNIVERSITY HOSPITALS OF NORTH MIDLANDS NHS TRUST","RNAXXX","Peterborough City Hospital"]
[null,null,null,null,null,null,null,null,null,null,null,null,null,null,null,null,null,null,null,null,"QOQ","RWA","HULL UNIVERSITY TEACHING HOSPITALS NHS TRUST","RWA01","Hull Royal Infirmary",null,"RWY","UNIVERSITY HOSPITALS PLYMOUTH NHS TRUST",null,"RWY","UNIVERSITY HOSPITALS PLYMOUTH NHS TRUST","RNN62","Pilgrim Hospital"]
[null,null,null,null,null,null,null,null,null,null,null,null,null,null,null,null,null,null,null,null,"QOQ","RJL","NORTHERN LINCOLNSHIRE AND GOOLE NHS FOUNDATION TRUST","RJL30","Diana, Princess Of Wales Hospital",null,"RX1","WALSALL HEALTHCARE NHS TRUST",null,"RX1","WALSALL HEALTHCARE NHS TRUST","RNNBX","Pinderfields General Hospital"]
[null,null,null,null,null,null,null,null,null,null,null,null,null,null,null,null,null,null,null,null,"QOQ","RJL","NORTHERN LINCOLNSHIRE AND GOOLE NHS FOUNDATION TRUST","RJL32","Scunthorpe General Hospital",null,"RXC","WARRINGTON AND HALTON TEACHING HOSPITALS NHS FOUNDATION TRUST",null,"RXC","WARRINGTON AND HALTON TEACHING HOSPITALS NHS FOUNDATION TRUST","RNNXXX","Pontefract General Infirmary"]
[null,null,null,null,null,null,null,null,null,null,null,null,null,null,null,null,null,null,null,null,"QOQ","RCB","YORK AND SCARBOROUGH TEACHING HOSPITALS NHS FOUNDATION TRUST","RCBCA","Scarborough General Hospital",null,"RXF","WEST HERTFORDSHIRE TEACHING HOSPITALS NHS TRUST",null,"RXF","WEST HERTFORDSHIRE TEACHING HOSPITALS NHS TRUST","RNQ51","Poole Hospital"]
[null,null,null,null,null,null,null,null,null,null,null,null,null,null,null,null,null,null,null,null,"QOQ","RCB","YORK AND SCARBOROUGH TEACHING HOSPITALS NHS FOUNDATION TRUST","RCB55","York Hospital",null,"RXK","WEST SUFFOLK NHS FOUNDATION TRUST",null,"RXK","WEST SUFFOLK NHS FOUNDATION TRUST","RNS01","Princess Alexandra Hospital"]
[null,null,null,null,null,null,null,null,null,null,null,null,null,null,null,null,null,null,null,null,"QOX","RN3","GREAT WESTERN HOSPITALS NHS FOUNDATION TRUST","RN325","The Great Western Hospital",null,"RXL","WHITTINGTON HEALTH NHS TRUST",null,"RXL","WHITTINGTON HEALTH NHS TRUST","RNZ02","Princess Anne Wing RUH"]
[null,null,null,null,null,null,null,null,null,null,null,null,null,null,null,null,null,null,null,null,"QOX","RD1","ROYAL UNITED HOSPITALS BATH NHS FOUNDATION TRUST","RD130","Princess Anne Wing RUH",null,"RXN","WIRRAL UNIVERSITY TEACHING HOSPITAL NHS FOUNDATION TRUST",null,"RXN","WIRRAL UNIVERSITY TEACHING HOSPITAL NHS FOUNDATION TRUST","RP5BA","Princess Royal University Hospital"]
[null,null,null,null,null,null,null,null,null,null,null,null,null,null,null,null,null,null,null,null,"QOX","RD1","ROYAL UNITED HOSPITALS BATH NHS FOUNDATION TRUST","RD108","Trowbridge Community Hospital",null,"RXQ","WORCESTERSHIRE ACUTE HOSPITALS NHS TRUST",null,"RXQ","WORCESTERSHIRE ACUTE HOSPITALS NHS TRUST","RP5DR","Queen Alexandra Hospital"]
[null,null,null,null,null,null,null,null,null,null,null,null,null,null,null,null,null,null,null,null,"QOX","RNZ","SALISBURY NHS FOUNDATION TRUST","RNZ02","Salisbury District Hospital",null,"RXR","WRIGHTINGTON, WIGAN AND LEIGH NHS FOUNDATION TRUST",null,"RXR","WRIGHTINGTON, WIGAN AND LEIGH NHS FOUNDATION TRUST","RP5XXX","Queen Charlotte's Hospital"]
[null,null,null,null,null,null,null,null,null,null,null,null,null,null,null,null,null,null,null,null,"QPM","RNQ","KETTERING GENERAL HOSPITAL NHS FOUNDATION TRUST","RNQ51","Kettering General Hospital",null,"RXW","WYE VALLEY NHS TRUST",null,"RXW","WYE VALLEY NHS TRUST","RPA02","Queen Elizabeth Hospital"]
[null,null,null,null,null,null,null,null,null,null,null,null,null,null,null,null,null,null,null,null,"QPM","RNS","NORTHAMPTON GENERAL HOSPITAL NHS TRUST","RNS01","Northampton General Hospital (Acute)",null,"RYJ","YORK AND SCARBOROUGH TEACHING HOSPITALS NHS FOUNDATION TRUST",null,"RYJ","YORK AND SCARBOROUGH TEACHING HOSPITALS NHS FOUNDATION TRUST","RQ370","Queen Elizabeth Hospital"]
[null,null,null,null,null,null,null,null,null,null,null,null,null,null,null,null,null,null,null,null,"QRL","RN5","HAMPSHIRE HOSPITALS NHS FOUNDATION TRUST","RN542","Andover War Memorial Hospital",null,null,null,null,null,null,"RQM01","Queens Hospital, Burton Upon Trent"]
[null,null,null,null,null,null,null,null,null,null,null,null,null,null,null,null,null,null,null,null,"QRL","RN5","HAMPSHIRE HOSPITALS NHS FOUNDATION TRUST","RN506","Basingstoke and North Hampshire Hospital",null,null,null,null,null,null,"RQM91","Rosie Hospital"]
[null,null,null,null,null,null,null,null,null,null,null,null,null,null,null,null,null,null,null,null,"QRL","RN5","HAMPSHIRE HOSPITALS NHS FOUNDATION TRUST","RN541","Royal Hampshire County Hospital",null,null,null,null,null,null,"RQWG0","Rotherham District General Hospital"]
[null,null,null,null,null,null,null,null,null,null,null,null,null,null,null,null,null,null,null,null,"QRL","R1F","ISLE OF WIGHT NHS TRUST","R1F01","St Mary's Hospital",null,null,null,null,null,null,"RQXM1","Royal Albert Edward Infirmary"]
[null,null,null,null,null,null,null,null,null,null,null,null,null,null,null,null,null,null,null,null,"QRL","RHU","PORTSMOUTH HOSPITALS UNIVERSITY NATIONAL HEALTH SERVICE TRUST","RHU10","Gosport War Memorial Hospital",null,null,null,null,null,null,"RR7EN","Royal Berkshire Hospital"]
[null,null,null,null,null,null,null,null,null,null,null,null,null,null,null,null,null,null,null,null,"QRL","RHU","PORTSMOUTH HOSPITALS UNIVERSITY NATIONAL HEALTH SERVICE TRUST","RHU03","Queen Alexandra Hospital",null,null,null,null,null,null,"RR801","Royal Blackburn Hospital"]
[null,null,null,null,null,null,null,null,null,null,null,null,null,null,null,null,null,null,null,null,"QRL","RHU","PORTSMOUTH HOSPITALS UNIVERSITY NATIONAL HEALTH SERVICE TRUST","RHU02","St Mary's Hospital",null,null,null,null,null,null,"RR813","Royal Bolton Hospital"]
[null,null,null,null,null,null,null,null,null,null,null,null,null,null,null,null,null,null,null,null,"QRL","RHM","UNIVERSITY HOSPITAL SOUTHAMPTON NHS FOUNDATION TRUST","RHM01","Southampton General Hospital",null,null,null,null,null,null,"RR8XXX","Royal Bournemouth Hospital"]
[null,null,null,null,null,null,null,null,null,null,null,null,null,null,null,null,null,null,null,null,"QRV","RQM","CHELSEA AND WESTMINSTER HOSPITAL NHS FOUNDATION TRUST","RQM01","Chelsea and Westminster Hospital",null,null,null,null,null,null,"RRF02","Royal Cornwall Hospital (Treliske)"]
[null,null,null,null,null,null,null,null,null,null,null,null,null,null,null,null,null,null,null,null,"QRV","RQM","CHELSEA AND WESTMINSTER HOSPITAL NHS FOUNDATION TRUST","RQM91","West Middlesex University Hospital",null,null,null,null,null,null,"RRV11","Royal Derby Hospital"]
[null,null,null,null,null,null,null,null,null,null,null,null,null,null,null,null,null,null,null,null,"QRV","RYJ","IMPERIAL COLLEGE HEALTHCARE NHS TRUST","RYJ04","Queen Charlotte's Hospital",null,null,null,null,null,null,"RTD02","Royal Devon and Exeter Hospital (Wonford)"]
[null,null,null,null,null,null,null,null,null,null,null,null,null,null,null,null,null,null,null,null,"QRV","RYJ","IMPERIAL COLLEGE HEALTHCARE NHS TRUST","RYJ01","St Mary's Hospital (HQ)",null,null,null,null,null,null,"RTG02","Royal Free Hospital"]
[null,null,null,null,null,null,null,null,null,null,null,null,null,null,null,null,null,null,null,null,"QRV","R1K","LONDON NORTH WEST UNIVERSITY HEALTHCARE NHS TRUST","R1K01","Northwick Park Hospital",null,null,null,null,null,null,"RTGFG","Royal Hallamshire Hospital"]
[null,null,null,null,null,null,null,null,null,null,null,null,null,null,null,null,null,null,null,null,"QRV","RAS","THE HILLINGDON HOSPITALS NHS FOUNDATION TRUST","RAS01","Hillingdon Hospital",null,null,null,null,null,null,"RTH05","Royal Hampshire County Hospital"]
[null,null,null,null,null,null,null,null,null,null,null,null,null,null,null,null,null,null,null,null,"QSL","RH5","SOMERSET NHS FOUNDATION TRUST","RH5K6","Bridgwater Hospital",null,null,null,null,null,null,"RTK02","Royal Lancaster Infirmary"]
[null,null,null,null,null,null,null,null,null,null,null,null,null,null,null,null,null,null,null,null,"QSL","RH5","SOMERSET NHS FOUNDATION TRUST","RH5A8","MUSGROVE PARK HOSPITAL",null,null,null,null,null,null,"RTP04","Royal Oldham Hospital"]
[null,null,null,null,null,null,null,null,null,null,null,null,null,null,null,null,null,null,null,null,"QSL","RH5","SOMERSET NHS FOUNDATION TRUST","RH5XXXX","Non-hospital site home/in-transit births",null,null,null,null,null,null,"RTR45","Royal Preston Hospital"]
[null,null,null,null,null,null,null,null,null,null,null,null,null,null,null,null,null,null,null,null,"QSL","RH5","SOMERSET NHS FOUNDATION TRUST","RH5O4","Yeovil District Hospital",null,null,null,null,null,null,"RTRAT","Royal Stoke University Hospital"]
[null,null,null,null,null,null,null,null,null,null,null,null,null,null,null,null,null,null,null,null,"QT1","RX1","NOTTINGHAM UNIVERSITY HOSPITALS NHS TRUST","RX1XXX","Non-hospital site",null,null,null,null,null,null,"RTX02","Royal Surrey County Hospital"]
[null,null,null,null,null,null,null,null,null,null,null,null,null,null,null,null,null,null,null,null,"QT1","RK5","SHERWOOD FOREST HOSPITALS NHS FOUNDATION TRUST","RK5BC","King's Mill Hospital",null,null,null,null,null,null,"RTXBU","Russells Hall Hospital"]
[null,null,null,null,null,null,null,null,null,null,null,null,null,null,null,null,null,null,null,null,"QT6","REF","ROYAL CORNWALL HOSPITALS NHS TRUST","REFXXX","Non-hospital site",null,null,null,null,null,null,"RVJ01","Salisbury District Hospital"]
[null,null,null,null,null,null,null,null,null,null,null,null,null,null,null,null,null,null,null,null,"QT6","REF","ROYAL CORNWALL HOSPITALS NHS TRUST","REF12","Royal Cornwall Hospital (Treliske)",null,null,null,null,null,null,"RVR05","Sandwell General Hospital"]
[null,null,null,null,null,null,null,null,null,null,null,null,null,null,null,null,null,null,null,null,"QU9","RXQ","BUCKINGHAMSHIRE HEALTHCARE NHS TRUST","RXQ02","Stoke Mandeville Hospital",null,null,null,null,null,null,"RVR50","Scarborough General Hospital"]
[null,null,null,null,null,null,null,null,null,null,null,null,null,null,null,null,null,null,null,null,"QU9","RXQ","BUCKINGHAMSHIRE HEALTHCARE NHS TRUST","RXQ50","Wycombe Hospital",null,null,null,null,null,null,"RVRXXX","Scunthorpe General Hospital"]
[null,null,null,null,null,null,null,null,null,null,null,null,null,null,null,null,null,null,null,null,"QU9","RTH","OXFORD UNIVERSITY HOSPITALS NHS FOUNDATION TRUST","RTH05","Horton General Hospital",null,null,null,null,null,null,"RVV01","South Tyneside District Hospital"]
[null,null,null,null,null,null,null,null,null,null,null,null,null,null,null,null,null,null,null,null,"QU9","RHW","ROYAL BERKSHIRE NHS FOUNDATION TRUST","RHW01","Royal Berkshire Hospital",null,null,null,null,null,null,"RVWAE","Southampton General Hospital"]
[null,null,null,null,null,null,null,null,null,null,null,null,null,null,null,null,null,null,null,null,"QUA","RNA","THE DUDLEY GROUP NHS FOUNDATION TRUST","RNAXXX","Non-hospital site",null,null,null,null,null,null,"RVWXXX","Southend Hospital"]
[null,null,null,null,null,null,null,null,null,null,null,null,null,null,null,null,null,null,null,null,"QUA","RNA","THE DUDLEY GROUP NHS FOUNDATION TRUST","RNA01","Russells Hall Hospital",null,null,null,null,null,null,"RW603","Southmead Hospital"]
[null,null,null,null,null,null,null,null,null,null,null,null,null,null,null,null,null,null,null,null,"QUA","RL4","THE ROYAL WOLVERHAMPTON NHS TRUST","RL403","New Cross Hospital",null,null,null,null,null,null,"RWA01","St George's Hospital (Tooting)"]
[null,null,null,null,null,null,null,null,null,null,null,null,null,null,null,null,null,null,null,null,"QUA","RBK","WALSALL HEALTHCARE NHS TRUST","RBK02","Manor Hospital",null,null,null,null,null,null,"RWDDA","St Helier Hospital"]
[null,null,null,null,null,null,null,null,null,null,null,null,null,null,null,null,null,null,null,null,"QUE","RGT","CAMBRIDGE UNIVERSITY HOSPITALS NHS FOUNDATION TRUST","RGT32","Rosie Hospital",null,null,null,null,null,null,"RWDLA","St James's University Hospital"]
[null,null,null,null,null,null,null,null,null,null,null,null,null,null,null,null,null,null,null,null,"QUE","RGN","NORTH WEST ANGLIA NHS FOUNDATION TRUST","RGN90","Hinchingbrooke Hospital",null,null,null,null,null,null,"RWDLP","St Mary's Hospital"]
[null,null,null,null,null,null,null,null,null,null,null,null,null,null,null,null,null,null,null,null,"QUE","RGN","NORTH WEST ANGLIA NHS FOUNDATION TRUST","RGN80","Peterborough City Hospital",null,null,null,null,null,null,"RWE10","St Mary's Hospital"]
[null,null,null,null,null,null,null,null,null,null,null,null,null,null,null,null,null,null,null,null,"QUY","RVJ","NORTH BRISTOL NHS TRUST","RVJ01","Southmead Hospital",null,null,null,null,null,null,"RWEAA","St Mary's Hospital"]
[null,null,null,null,null,null,null,null,null,null,null,null,null,null,null,null,null,null,null,null,"QUY","RA7","UNIVERSITY HOSPITALS BRISTOL AND WESTON NHS FOUNDATION TRUST","RA707","St Michael's Hospital",null,null,null,null,null,null,"RWEAK","St Mary's Hospital"]
[null,null,null,null,null,null,null,null,null,null,null,null,null,null,null,null,null,null,null,null,"QVV","RBD","DORSET COUNTY HOSPITAL NHS FOUNDATION TRUST","RBD01","Dorset County Hospital",null,null,null,null,null,null,"RWEXXX","St Mary's Hospital (HQ)"]
[null,null,null,null,null,null,null,null,null,null,null,null,null,null,null,null,null,null,null,null,"QVV","R0D","UNIVERSITY HOSPITALS DORSET NHS FOUNDATION TRUST","R0D01","Poole Hospital",null,null,null,null,null,null,"RWF03","St Michael's Hospital"]
[null,null,null,null,null,null,null,null,null,null,null,null,null,null,null,null,null,null,null,null,"QVV","R0D","UNIVERSITY HOSPITALS DORSET NHS FOUNDATION TRUST","R0D02","Royal Bournemouth Hospital",null,null,null,null,null,null,"RWFTW","St Thomas' Hospital"]
[null,null,null,null,null,null,null,null,null,null,null,null,null,null,null,null,null,null,null,null,"QWE","RVR","EPSOM AND ST HELIER UNIVERSITY HOSPITALS NHS TRUST","RVR50","Epsom Hospital",null,null,null,null,null,null,"RWFXXX","Stepping Hill Hospital"]
[null,null,null,null,null,null,null,null,null,null,null,null,null,null,null,null,null,null,null,null,"QWE","RVR","EPSOM AND ST HELIER UNIVERSITY HOSPITALS NHS TRUST","RVRXXX","Non-hospital site",null,null,null,null,null,null,"RWG02","Stoke Mandeville Hospital"]
[null,null,null,null,null,null,null,null,null,null,null,null,null,null,null,null,null,null,null,null,"QWE","RVR","EPSOM AND ST HELIER UNIVERSITY HOSPITALS NHS TRUST","RVR05","St Helier Hospital",null,null,null,null,null,null,"RWH01","Sunderland Royal Hospital"]
[null,null,null,null,null,null,null,null,null,null,null,null,null,null,null,null,null,null,null,null,"QWE","RAX","KINGSTON HOSPITAL NHS FOUNDATION TRUST","RAX01","Kingston Hospital",null,null,null,null,null,null,"RWHXXX","Tameside General Hospital"]
[null,null,null,null,null,null,null,null,null,null,null,null,null,null,null,null,null,null,null,null,"QWE","RJ7","ST GEORGE'S UNIVERSITY HOSPITALS NHS FOUNDATION TRUST","RJ701","St George's Hospital (Tooting)",null,null,null,null,null,null,"RWJ09","The Great Western Hospital"]
[null,null,null,null,null,null,null,null,null,null,null,null,null,null,null,null,null,null,null,null,"QWO","RAE","BRADFORD TEACHING HOSPITALS NHS FOUNDATION TRUST","RAE01","Bradford Royal Infirmary",null,null,null,null,null,null,"RWP01","The James Cook University Hospital"]
[null,null,null,null,null,null,null,null,null,null,null,null,null,null,null,null,null,null,null,null,"QWO","RWY","CALDERDALE AND HUDDERSFIELD NHS FOUNDATION TRUST","RWY02","Calderdale Royal Hospital",null,null,null,null,null,null,"RWP31","The Queen Elizabeth Hospital"]
[null,null,null,null,null,null,null,null,null,null,null,null,null,null,null,null,null,null,null,null,"QWO","RWY","CALDERDALE AND HUDDERSFIELD NHS FOUNDATION TRUST","RWY01","Huddersfield Royal Infirmary",null,null,null,null,null,null,"RWP50","The Royal London Hospital"]
[null,null,null,null,null,null,null,null,null,null,null,null,null,null,null,null,null,null,null,null,"QWO","RWY","CALDERDALE AND HUDDERSFIELD NHS FOUNDATION TRUST","RWYXXX","Non-hospital site",null,null,null,null,null,null,"RWWWH","The Royal Victoria Infirmary"]
[null,null,null,null,null,null,null,null,null,null,null,null,null,null,null,null,null,null,null,null,"QWO","RR8","LEEDS TEACHING HOSPITALS NHS TRUST","RR801","Leeds General Infirmary",null,null,null,null,null,null,"RWY01","The Tunbridge Wells Hospital"]
[null,null,null,null,null,null,null,null,null,null,null,null,null,null,null,null,null,null,null,null,"QWO","RR8","LEEDS TEACHING HOSPITALS NHS TRUST","RR8XXX","Non-hospital site",null,null,null,null,null,null,"RWY02","The Whittington Hospital"]
[null,null,null,null,null,null,null,null,null,null,null,null,null,null,null,null,null,null,null,null,"QWO","RR8","LEEDS TEACHING HOSPITALS NHS TRUST","RR813","St James's University Hospital",null,null,null,null,null,null,"RWYXXX","Torbay Hospital"]
[null,null,null,null,null,null,null,null,null,null,null,null,null,null,null,null,null,null,null,null,"QWO","RXF","MID YORKSHIRE TEACHING NHS TRUST","RXF10","Dewsbury and District Hospital",null,null,null,null,null,null,"RX1XXX","Trowbridge Community Hospital"]
[null,null,null,null,null,null,null,null,null,null,null,null,null,null,null,null,null,null,null,null,"QWO","RXF","MID YORKSHIRE TEACHING NHS TRUST","RXF05","Pinderfields General Hospital",null,null,null,null,null,null,"RXC01","University College Hospital Elizabeth Garrett Anderson Wing"]
[null,null,null,null,null,null,null,null,null,null,null,null,null,null,null,null,null,null,null,null,"QWO","RXF","MID YORKSHIRE TEACHING NHS TRUST","RXF03","Pontefract General Infirmary",null,null,null,null,null,null,"RXC02","University Hospital (Coventry)"]
[null,null,null,null,null,null,null,null,null,null,null,null,null,null,null,null,null,null,null,null,"QWU","RLT","GEORGE ELIOT HOSPITAL NHS TRUST","RLT01","George Eliot Hospital - Acute Services",null,null,null,null,null,null,"RXCXXX","University Hospital Lewisham"]
[null,null,null,null,null,null,null,null,null,null,null,null,null,null,null,null,null,null,null,null,"QWU","RJC","SOUTH WARWICKSHIRE UNIVERSITY NHS FOUNDATION TRUST","RJCXXX","Non-hospital site",null,null,null,null,null,null,"RXF03","University Hospital Of North Tees"]
[null,null,null,null,null,null,null,null,null,null,null,null,null,null,null,null,null,null,null,null,"QWU","RJC","SOUTH WARWICKSHIRE UNIVERSITY NHS FOUNDATION TRUST","RJC02","Warwick Hospital",null,null,null,null,null,null,"RXF05","Warrington Hospital"]
[null,null,null,null,null,null,null,null,null,null,null,null,null,null,null,null,null,null,null,null,"QWU","RKB","UNIVERSITY HOSPITALS COVENTRY AND WARWICKSHIRE NHS TRUST","RKB03","Hospital Of St Cross",null,null,null,null,null,null,"RXF10","Warwick Hospital"]
[null,null,null,null,null,null,null,null,null,null,null,null,null,null,null,null,null,null,null,null,"QWU","RKB","UNIVERSITY HOSPITALS COVENTRY AND WARWICKSHIRE NHS TRUST","RKBXXX","Non-hospital site",null,null,null,null,null,null,"RXK01","Watford General Hospital"]
[null,null,null,null,null,null,null,null,null,null,null,null,null,null,null,null,null,null,null,null,"QWU","RKB","UNIVERSITY HOSPITALS COVENTRY AND WARWICKSHIRE NHS TRUST","RKB01","University Hospital (Coventry)",null,null,null,null,null,null,"RXK02","West Cumberland Hospital"]
[null,null,null,null,null,null,null,null,null,null,null,null,null,null,null,null,null,null,null,null,"QXU","RTK","ASHFORD AND ST PETER'S HOSPITALS NHS FOUNDATION TRUST","RTK02","Ashford Hospital",null,null,null,null,null,null,"RXL01","West Middlesex University Hospital"]
[null,null,null,null,null,null,null,null,null,null,null,null,null,null,null,null,null,null,null,null,"QXU","RA2","ROYAL SURREY COUNTY HOSPITAL NHS FOUNDATION TRUST","RA201","Royal Surrey County Hospital",null,null,null,null,null,null,"RXN01","West Suffolk Hospital"]
[null,null,null,null,null,null,null,null,null,null,null,null,null,null,null,null,null,null,null,null,"QXU","RTP","SURREY AND SUSSEX HEALTHCARE NHS TRUST","RTP04","East Surrey Hospital",null,null,null,null,null,null,"RXN02","Whipps Cross University Hospital"]
[null,null,null,null,null,null,null,null,null,null,null,null,null,null,null,null,null,null,null,null,"QYG","REP","LIVERPOOL WOMEN'S NHS FOUNDATION TRUST","REP01","Liverpool Womens Hospital",null,null,null,null,null,null,"RXQ02","Whiston Hospital"]
[null,null,null,null,null,null,null,null,null,null,null,null,null,null,null,null,null,null,null,null,"QYG","RBN","MERSEY AND WEST LANCASHIRE TEACHING HOSPITALS NHS TRUST","RBN52","Ormskirk and District General Hospital",null,null,null,null,null,null,"RXQ50","William Harvey Hospital (Ashford)"]
[null,null,null,null,null,null,null,null,null,null,null,null,null,null,null,null,null,null,null,null,"QYG","RBN","MERSEY AND WEST LANCASHIRE TEACHING HOSPITALS NHS TRUST","RBN01","Whiston Hospital",null,null,null,null,null,null,"RXR20","Worcestershire Royal Hospital"]
[null,null,null,null,null,null,null,null,null,null,null,null,null,null,null,null,null,null,null,null,"QYG","RBT","MID CHESHIRE HOSPITALS NHS FOUNDATION TRUST","RBT20","Leighton Hospital",null,null,null,null,null,null,"RXWXXX","Wycombe Hospital"]
[null,null,null,null,null,null,null,null,null,null,null,null,null,null,null,null,null,null,null,null,"QYG","RWW","WARRINGTON AND HALTON TEACHING HOSPITALS NHS FOUNDATION TRUST","RWWWH","Warrington Hospital",null,null,null,null,null,null,"RYJ01","Yeovil District Hospital"]
[null,null,null,null,null,null,null,null,null,null,null,null,null,null,null,null,null,null,null,null,"QYG","RBL","WIRRAL UNIVERSITY TEACHING HOSPITAL NHS FOUNDATION TRUST","RBL14","Arrowe Park Hospital",null,null,null,null,null,null,"RYJ04","York Hospital"]

{"sheet":"BSQ2","index":14,"n_rows":208,"n_cols":33,"rows_kept":208,"cut":false,"hidden":true,"merged":[]}
[null,"Sort","ICB","ICB","Trusts","Trusts","Sites","Sites",null,"Sort ranges:","Sort range…","Sort range…","Sort range…","Reference Region List:","Code…","Name…","Linked Region List:","Code…","Name…","Reference Lists:","Code…","Code…","Name…","Code…","Name…","Trusts Linked Lists:","Code…","Name…","Site Linked Lists:","Code…","Name…","Code…","Name…"]
["ICB",1,1,1,"-","-","-","-",null,null,"ICB Code","ICB Code","ICB Code",null,"QE1","LANCASHIRE AND SOUTH CUMBRIA ICB",null,"QE1","LANCASHIRE AND SOUTH CUMBRIA ICB",null,"QE1","RXL","BLACKPOOL TEACHING HOSPITALS NHS FOUNDATION TRUST","RXL01","Blackpool Victoria Hospital",null,"R0A","AIREDALE NHS FOUNDATION TRUST",null,"R0A","AIREDALE NHS FOUNDATION TRUST","E0A3H","Airedale General Hospital"]
["Trusts",1,1,1,1,1,"-","-",null,null,"ICB Name","Trust Code","Trust Code",null,"QF7","SOUTH YORKSHIRE ICB",null,"QF7","SOUTH YORKSHIRE ICB",null,"QE1","RXR","EAST LANCASHIRE HOSPITALS NHS TRUST","RXR20","Royal Blackburn Hospital",null,"R0B","ASHFORD AND ST PETER'S HOSPITALS NHS FOUNDATION TRUST",null,"R0B","ASHFORD AND ST PETER'S HOSPITALS NHS FOUNDATION TRUST","N6J7V","Alnwick Infirmary"]
["Sites",1,1,1,1,1,1,1,null,null,"Total Responses","Trust Name","Trust Name",null,"QGH","HEREFORDSHIRE AND WORCESTERSHIRE ICB",null,"QGH","HEREFORDSHIRE AND WORCESTERSHIRE ICB",null,"QE1","RXN","LANCASHIRE TEACHING HOSPITALS NHS FOUNDATION TRUST","RXN01","Chorley and South Ribble Hospital",null,"R0D","BARKING, HAVERING AND REDBRIDGE UNIVERSITY HOSPITALS NHS TRUST",null,"R0D","BARKING, HAVERING AND REDBRIDGE UNIVERSITY HOSPITALS NHS TRUST","R0A05","Andover War Memorial Hospital"]
[null,null,null,null,null,null,null,null,null,null,"Total Eligible","Total Responses","Site Code",null,"QH8","MID AND SOUTH ESSEX ICB",null,"QH8","MID AND SOUTH ESSEX ICB",null,"QE1","RXN","LANCASHIRE TEACHING HOSPITALS NHS FOUNDATION TRUST","RXN02","Royal Preston Hospital",null,"R1F","BARNSLEY HOSPITAL NHS FOUNDATION TRUST",null,"R1F","BARNSLEY HOSPITAL NHS FOUNDATION TRUST","R0B01","Arrowe Park Hospital"]
[null,null,null,null,null,null,null,null,null,null,"Percentage Positive","Total Eligible","Site Name",null,"QHG","BEDFORDSHIRE, LUTON AND MILTON KEYNES ICB",null,"QHG","BEDFORDSHIRE, LUTON AND MILTON KEYNES ICB",null,"QE1","RTX","UNIVERSITY HOSPITALS OF MORECAMBE BAY NHS FOUNDATION TRUST","RTXBU","Furness General Hospital",null,"R1H","BARTS HEALTH NHS TRUST",null,"R1H","BARTS HEALTH NHS TRUST","R0B0Q","Barnet Hospital"]
[null,null,null,null,null,null,null,null,null,null,"Percentage Negative","Percentage Positive","Total Responses",null,"QHL","BIRMINGHAM AND SOLIHULL ICB",null,"QHL","BIRMINGHAM AND SOLIHULL ICB",null,"QE1","RTX","UNIVERSITY HOSPITALS OF MORECAMBE BAY NHS FOUNDATION TRUST","RTX02","Royal Lancaster Infirmary",null,"R1K","BEDFORDSHIRE HOSPITALS NHS FOUNDATION TRUST",null,"R1K","BEDFORDSHIRE HOSPITALS NHS FOUNDATION TRUST","R0D01","Barnsley Hospital NHS Foundation Trust HQ"]
[null,null,null,null,null,null,null,null,null,null,"Very Good","Percentage Negative","Percentage Positive",null,"QHM","NORTH EAST AND NORTH CUMBRIA ICB",null,"QHM","NORTH EAST AND NORTH CUMBRIA ICB",null,"QE1","RTX","UNIVERSITY HOSPITALS OF MORECAMBE BAY NHS FOUNDATION TRUST","RTXBW","Westmorland General Hospital",null,"RA2","BIRMINGHAM WOMEN'S AND CHILDREN'S NHS FOUNDATION TRUST",null,"RA2","BIRMINGHAM WOMEN'S AND CHILDREN'S NHS FOUNDATION TRUST","R0D02","BASILDON HOSPITAL"]
[null,null,null,null,null,null,null,null,null,null,"Good","Very Good","Percentage Negative",null,"QJ2","DERBY AND DERBYSHIRE ICB",null,"QJ2","DERBY AND DERBYSHIRE ICB",null,"QF7","RFF","BARNSLEY HOSPITAL NHS FOUNDATION TRUST","RFFAA","Barnsley Hospital NHS Foundation Trust HQ",null,"RA7","BLACKPOOL TEACHING HOSPITALS NHS FOUNDATION TRUST",null,"RA7","BLACKPOOL TEACHING HOSPITALS NHS FOUNDATION TRUST","R1F01","Basingstoke and North Hampshire Hospital"]
[null,null,null,null,null,null,null,null,null,null,"Neither Good nor Poor","Good","Very Good",null,"QJG","SUFFOLK AND NORTH EAST ESSEX ICB",null,"QJG","SUFFOLK AND NORTH EAST ESSEX ICB",null,"QF7","RP5","DONCASTER AND BASSETLAW TEACHING HOSPITALS NHS FOUNDATION TRUST","RP5BA","Bassetlaw Hospital",null,"RA9","BOLTON NHS FOUNDATION TRUST",null,"RA9","BOLTON NHS FOUNDATION TRUST","R1H12","Bassetlaw Hospital"]
[null,null,null,null,null,null,null,null,null,null,"Poor","Neither Good nor Poor","Good",null,"QJK","DEVON ICB",null,"QJK","DEVON ICB",null,"QF7","RP5","DONCASTER AND BASSETLAW TEACHING HOSPITALS NHS FOUNDATION TRUST","RP5DR","Doncaster Royal Infirmary",null,"RAE","BRADFORD TEACHING HOSPITALS NHS FOUNDATION TRUST",null,"RAE","BRADFORD TEACHING HOSPITALS NHS FOUNDATION TRUST","R1HKH","BEDFORD HOSPITAL SOUTH WING"]
[null,null,null,null,null,null,null,null,null,null,"Very Poor","Poor","Neither Good nor Poor",null,"QJM","LINCOLNSHIRE ICB",null,"QJM","LINCOLNSHIRE ICB",null,"QF7","RP5","DONCASTER AND BASSETLAW TEACHING HOSPITALS NHS FOUNDATION TRUST","RP5XXX","Non-hospital site",null,"RAJ","BUCKINGHAMSHIRE HEALTHCARE NHS TRUST",null,"RAJ","BUCKINGHAMSHIRE HEALTHCARE NHS TRUST","R1HNH","Berwick Infirmary"]
[null,null,null,null,null,null,null,null,null,null,"Don't Know","Very Poor","Poor",null,"QK1","LEICESTER, LEICESTERSHIRE AND RUTLAND ICB",null,"QK1","LEICESTER, LEICESTERSHIRE AND RUTLAND ICB",null,"QF7","RHQ","SHEFFIELD TEACHING HOSPITALS NHS FOUNDATION TRUST","RHQHH","Royal Hallamshire Hospital",null,"RAL","CALDERDALE AND HUDDERSFIELD NHS FOUNDATION TRUST",null,"RAL","CALDERDALE AND HUDDERSFIELD NHS FOUNDATION TRUST","R1K01","Birmingham Women's Hospital"]
[null,null,null,null,null,null,null,null,null,null,null,"Don't Know","Very Poor",null,"QKK","SOUTH EAST LONDON ICB",null,"QKK","SOUTH EAST LONDON ICB",null,"QF7","RFR","THE ROTHERHAM NHS FOUNDATION TRUST","RFRPA","Rotherham District General Hospital",null,"RAP","CAMBRIDGE UNIVERSITY HOSPITALS NHS FOUNDATION TRUST",null,"RAP","CAMBRIDGE UNIVERSITY HOSPITALS NHS FOUNDATION TRUST","RA201","Blackpool Victoria Hospital"]
[null,null,null,null,null,null,null,null,null,null,null,"Mode SMS","Don't Know",null,"QKS","KENT AND MEDWAY ICB",null,"QKS","KENT AND MEDWAY ICB",null,"QGH","RWP","WORCESTERSHIRE ACUTE HOSPITALS NHS TRUST","RWP50","Worcestershire Royal Hospital",null,"RAS","CHELSEA AND WESTMINSTER HOSPITAL NHS FOUNDATION TRUST",null,"RAS","CHELSEA AND WESTMINSTER HOSPITAL NHS FOUNDATION TRUST","RA707","Bradford Royal Infirmary"]
[null,null,null,null,null,null,null,null,null,null,null,"Mode Electronic Discharge",null,null,"QM7","HERTFORDSHIRE AND WEST ESSEX ICB",null,"QM7","HERTFORDSHIRE AND WEST ESSEX ICB",null,"QGH","RLQ","WYE VALLEY NHS TRUST","RLQ01","Hereford County Hospital",null,"RAX","CHESTERFIELD ROYAL HOSPITAL NHS FOUNDATION TRUST",null,"RAX","CHESTERFIELD ROYAL HOSPITAL NHS FOUNDATION TRUST","RA901","Bridgnorth Hospital (Maternity)"]
[null,null,null,null,null,null,null,null,null,null,null,"Mode Electronic Home",null,null,"QMF","NORTH EAST LONDON ICB",null,"QMF","NORTH EAST LONDON ICB",null,"QH8","RAJ","MID AND SOUTH ESSEX NHS FOUNDATION TRUST","RAJ12","BASILDON HOSPITAL",null,"RBD","COUNTY DURHAM AND DARLINGTON NHS FOUNDATION TRUST",null,"RBD","COUNTY DURHAM AND DARLINGTON NHS FOUNDATION TRUST","RAE01","Bridgwater Hospital"]
[null,null,null,null,null,null,null,null,null,null,null,"Mode Paper Discharge",null,null,"QMJ","NORTH CENTRAL LONDON ICB",null,"QMJ","NORTH CENTRAL LONDON ICB",null,"QH8","RAJ","MID AND SOUTH ESSEX NHS FOUNDATION TRUST","RAJ32","MID ESSEX HOSPITAL",null,"RBK","CROYDON HEALTH SERVICES NHS TRUST",null,"RBK","CROYDON HEALTH SERVICES NHS TRUST","RAJ01","Calderdale Royal Hospital"]
[null,null,null,null,null,null,null,null,null,null,null,"Mode Paper Home",null,null,"QMM","NORFOLK AND WAVENEY ICB",null,"QMM","NORFOLK AND WAVENEY ICB",null,"QH8","RAJ","MID AND SOUTH ESSEX NHS FOUNDATION TRUST","RAJ01","Southend Hospital",null,"RBL","DARTFORD AND GRAVESHAM NHS TRUST",null,"RBL","DARTFORD AND GRAVESHAM NHS TRUST","RAJ12","Chelsea and Westminster Hospital"]
[null,null,null,null,null,null,null,null,null,null,null,"Mode Telephone",null,null,"QNC","STAFFORDSHIRE AND STOKE-ON-TRENT ICB",null,"QNC","STAFFORDSHIRE AND STOKE-ON-TRENT ICB",null,"QHG","RC9","BEDFORDSHIRE HOSPITALS NHS FOUNDATION TRUST","RC979","BEDFORD HOSPITAL SOUTH WING",null,"RBN","DONCASTER AND BASSETLAW TEACHING HOSPITALS NHS FOUNDATION TRUST",null,"RBN","DONCASTER AND BASSETLAW TEACHING HOSPITALS NHS FOUNDATION TRUST","RAJ32","Chesterfield Royal Hospital"]
[null,null,null,null,null,null,null,null,null,null,null,"Mode Online",null,null,"QNQ","FRIMLEY ICB",null,"QNQ","FRIMLEY ICB",null,"QHG","RC9","BEDFORDSHIRE HOSPITALS NHS FOUNDATION TRUST","RC971","Luton and Dunstable Hospital",null,"RBT","DORSET COUNTY HOSPITAL NHS FOUNDATION TRUST",null,"RBT","DORSET COUNTY HOSPITAL NHS FOUNDATION TRUST","RAL01","Chippenham Community Hospital"]
[null,null,null,null,null,null,null,null,null,null,null,"Mode Other",null,null,"QNX","SUSSEX ICB",null,"QNX","SUSSEX ICB",null,"QHG","RD8","MILTON KEYNES UNIVERSITY HOSPITAL NHS FOUNDATION TRUST","RD816","Milton Keynes Hospital",null,"RC9","EAST AND NORTH HERTFORDSHIRE NHS TRUST",null,"RC9","EAST AND NORTH HERTFORDSHIRE NHS TRUST","RAL26","Chipping Norton Community Hospital"]
[null,null,null,null,null,null,null,null,null,null,null,null,null,null,"QOC","SHROPSHIRE, TELFORD AND WREKIN ICB",null,"QOC","SHROPSHIRE, TELFORD AND WREKIN ICB",null,"QHL","RQ3","BIRMINGHAM WOMEN'S AND CHILDREN'S NHS FOUNDATION TRUST","RQ370","Birmingham Women's Hospital",null,"RCB","EAST LANCASHIRE HOSPITALS NHS TRUST",null,"RCB","EAST LANCASHIRE HOSPITALS NHS TRUST","RAPNM","Chorley and South Ribble Hospital"]
[null,null,null,null,null,null,null,null,null,null,null,null,null,null,"QOP","GREATER MANCHESTER ICB",null,"QOP","GREATER MANCHESTER ICB",null,"QHL","RXK","SANDWELL AND WEST BIRMINGHAM HOSPITALS NHS TRUST","RXK02","City Hospital",null,"RCD","EAST SUFFOLK AND NORTH ESSEX NHS FOUNDATION TRUST",null,"RCD","EAST SUFFOLK AND NORTH ESSEX NHS FOUNDATION TRUST","RAS01","City Hospital"]
[null,null,null,null,null,null,null,null,null,null,null,null,null,null,"QOQ","HUMBER AND NORTH YORKSHIRE ICB",null,"QOQ","HUMBER AND NORTH YORKSHIRE ICB",null,"QHL","RRK","UNIVERSITY HOSPITALS BIRMINGHAM NHS FOUNDATION TRUST","RRK98","Good Hope Hospital",null,"RCF","EAST SUSSEX HEALTHCARE NHS TRUST",null,"RCF","EAST SUSSEX HEALTHCARE NHS TRUST","RASXXX","Clacton and District Hospital"]
[null,null,null,null,null,null,null,null,null,null,null,null,null,null,"QOX","BATH AND NORTH EAST SOMERSET, SWINDON AND WILTSHIRE ICB",null,"QOX","BATH AND NORTH EAST SOMERSET, SWINDON AND WILTSHIRE ICB",null,"QHL","RRK","UNIVERSITY HOSPITALS BIRMINGHAM NHS FOUNDATION TRUST","RRK97","Heartlands Hospital",null,"RCX","EPSOM AND ST HELIER UNIVERSITY HOSPITALS NHS TRUST",null,"RCX","EPSOM AND ST HELIER UNIVERSITY HOSPITALS NHS TRUST","RAX01","Colchester General Hospital"]
[null,null,null,null,null,null,null,null,null,null,null,null,null,null,"QPM","NORTHAMPTONSHIRE ICB",null,"QPM","NORTHAMPTONSHIRE ICB",null,"QHL","RRK","UNIVERSITY HOSPITALS BIRMINGHAM NHS FOUNDATION TRUST","RRK99","Solihull Hospital",null,"RD1","FRIMLEY HEALTH NHS FOUNDATION TRUST",null,"RD1","FRIMLEY HEALTH NHS FOUNDATION TRUST","RBD01","Conquest Hospital"]
[null,null,null,null,null,null,null,null,null,null,null,null,null,null,"QR1","GLOUCESTERSHIRE ICB",null,"QR1","GLOUCESTERSHIRE ICB",null,"QHM","RXP","COUNTY DURHAM AND DARLINGTON NHS FOUNDATION TRUST","RXPDA","Darlington Memorial Hospital",null,"RD8","GATESHEAD HEALTH NHS FOUNDATION TRUST",null,"RD8","GATESHEAD HEALTH NHS FOUNDATION TRUST","RBK02","Crowborough Birthing Centre"]
[null,null,null,null,null,null,null,null,null,null,null,null,null,null,"QRL","HAMPSHIRE AND ISLE OF WIGHT ICB",null,"QRL","HAMPSHIRE AND ISLE OF WIGHT ICB",null,"QHM","RXP","COUNTY DURHAM AND DARLINGTON NHS FOUNDATION TRUST","RXPCP","University Hospital Of North Durham",null,"RDE","GEORGE ELIOT HOSPITAL NHS TRUST",null,"RDE","GEORGE ELIOT HOSPITAL NHS TRUST","RBL14","Croydon University Hospital"]
[null,null,null,null,null,null,null,null,null,null,null,null,null,null,"QRV","NORTH WEST LONDON ICB",null,"QRV","NORTH WEST LONDON ICB",null,"QHM","RR7","GATESHEAD HEALTH NHS FOUNDATION TRUST","RR7EN","Queen Elizabeth Hospital",null,"RDU","GLOUCESTERSHIRE HOSPITALS NHS FOUNDATION TRUST",null,"RDU","GLOUCESTERSHIRE HOSPITALS NHS FOUNDATION TRUST","RBN01","Cumberland Infirmary"]
[null,null,null,null,null,null,null,null,null,null,null,null,null,null,"QSL","SOMERSET ICB",null,"QSL","SOMERSET ICB",null,"QHM","RNN","NORTH CUMBRIA INTEGRATED CARE NHS FOUNDATION TRUST","RNN62","Cumberland Infirmary",null,"REF","GREAT WESTERN HOSPITALS NHS FOUNDATION TRUST",null,"REF","GREAT WESTERN HOSPITALS NHS FOUNDATION TRUST","RBN52","Darent Valley Hospital"]
[null,null,null,null,null,null,null,null,null,null,null,null,null,null,"QT1","NOTTINGHAM AND NOTTINGHAMSHIRE ICB",null,"QT1","NOTTINGHAM AND NOTTINGHAMSHIRE ICB",null,"QHM","RNN","NORTH CUMBRIA INTEGRATED CARE NHS FOUNDATION TRUST","RNNBX","West Cumberland Hospital",null,"REP","GUY'S AND ST THOMAS' NHS FOUNDATION TRUST",null,"REP","GUY'S AND ST THOMAS' NHS FOUNDATION TRUST","RBT20","Darlington Memorial Hospital"]
[null,null,null,null,null,null,null,null,null,null,null,null,null,null,"QT6","CORNWALL AND THE ISLES OF SCILLY ICB",null,"QT6","CORNWALL AND THE ISLES OF SCILLY ICB",null,"QHM","RVW","NORTH TEES AND HARTLEPOOL NHS FOUNDATION TRUST","RVWXXX","Non-hospital site",null,"RF4","HAMPSHIRE HOSPITALS NHS FOUNDATION TRUST",null,"RF4","HAMPSHIRE HOSPITALS NHS FOUNDATION TRUST","RC971","Derriford Hospital"]
[null,null,null,null,null,null,null,null,null,null,null,null,null,null,"QU9","BUCKINGHAMSHIRE, OXFORDSHIRE AND BERKSHIRE WEST ICB",null,"QU9","BUCKINGHAMSHIRE, OXFORDSHIRE AND BERKSHIRE WEST ICB",null,"QHM","RTF","NORTHUMBRIA HEALTHCARE NHS FOUNDATION TRUST","RTFDJ","Alnwick Infirmary",null,"RFF","HARROGATE AND DISTRICT NHS FOUNDATION TRUST",null,"RFF","HARROGATE AND DISTRICT NHS FOUNDATION TRUST","RC979","Dewsbury and District Hospital"]
[null,null,null,null,null,null,null,null,null,null,null,null,null,null,"QUA","BLACK COUNTRY ICB",null,"QUA","BLACK COUNTRY ICB",null,"QHM","RTF","NORTHUMBRIA HEALTHCARE NHS FOUNDATION TRUST","RTFDH","Berwick Infirmary",null,"RFR","HOMERTON HEALTHCARE NHS FOUNDATION TRUST",null,"RFR","HOMERTON HEALTHCARE NHS FOUNDATION TRUST","RCB55","Diana, Princess Of Wales Hospital"]
[null,null,null,null,null,null,null,null,null,null,null,null,null,null,"QUE","CAMBRIDGESHIRE AND PETERBOROUGH ICB",null,"QUE","CAMBRIDGESHIRE AND PETERBOROUGH ICB",null,"QHM","RTF","NORTHUMBRIA HEALTHCARE NHS FOUNDATION TRUST","RTFDR","Hexham General Hospital",null,"RFS","HULL UNIVERSITY TEACHING HOSPITALS NHS TRUST",null,"RFS","HULL UNIVERSITY TEACHING HOSPITALS NHS TRUST","RCBCA","Doncaster Royal Infirmary"]
[null,null,null,null,null,null,null,null,null,null,null,null,null,null,"QUY","BRISTOL, NORTH SOMERSET AND SOUTH GLOUCESTERSHIRE ICB",null,"QUY","BRISTOL, NORTH SOMERSET AND SOUTH GLOUCESTERSHIRE ICB",null,"QHM","RTF","NORTHUMBRIA HEALTHCARE NHS FOUNDATION TRUST","RTFXXX","Non-hospital site",null,"RGN","IMPERIAL COLLEGE HEALTHCARE NHS TRUST",null,"RGN","IMPERIAL COLLEGE HEALTHCARE NHS TRUST","RCD01","Dorset County Hospital"]
[null,null,null,null,null,null,null,null,null,null,null,null,null,null,"QVV","DORSET ICB",null,"QVV","DORSET ICB",null,"QHM","RTF","NORTHUMBRIA HEALTHCARE NHS FOUNDATION TRUST","RTF86","The Northumbria",null,"RGP","ISLE OF WIGHT NHS TRUST",null,"RGP","ISLE OF WIGHT NHS TRUST","RCF22","East Surrey Hospital"]
[null,null,null,null,null,null,null,null,null,null,null,null,null,null,"QWE","SOUTH WEST LONDON ICB",null,"QWE","SOUTH WEST LONDON ICB",null,"QHM","RTR","SOUTH TEES HOSPITALS NHS FOUNDATION TRUST","RTR45","Friarage Hospital Site",null,"RGR","JAMES PAGET UNIVERSITY HOSPITALS NHS FOUNDATION TRUST",null,"RGR","JAMES PAGET UNIVERSITY HOSPITALS NHS FOUNDATION TRUST","RCX70","Eastbourne District General Hospital"]
[null,null,null,null,null,null,null,null,null,null,null,null,null,null,"QWO","WEST YORKSHIRE ICB",null,"QWO","WEST YORKSHIRE ICB",null,"QHM","RTR","SOUTH TEES HOSPITALS NHS FOUNDATION TRUST","RTRAT","The James Cook University Hospital",null,"RGT","KETTERING GENERAL HOSPITAL NHS FOUNDATION TRUST",null,"RGT","KETTERING GENERAL HOSPITAL NHS FOUNDATION TRUST","RCXXXX","Epsom Hospital"]
[null,null,null,null,null,null,null,null,null,null,null,null,null,null,"QWU","COVENTRY AND WARWICKSHIRE ICB",null,"QWU","COVENTRY AND WARWICKSHIRE ICB",null,"QHM","R0B","SOUTH TYNESIDE AND SUNDERLAND NHS FOUNDATION TRUST","R0B0Q","South Tyneside District Hospital",null,"RH5","KING'S COLLEGE HOSPITAL NHS FOUNDATION TRUST",null,"RH5","KING'S COLLEGE HOSPITAL NHS FOUNDATION TRUST","RD102","Friarage Hospital Site"]
[null,null,null,null,null,null,null,null,null,null,null,null,null,null,"QXU","SURREY HEARTLANDS ICB",null,"QXU","SURREY HEARTLANDS ICB",null,"QHM","R0B","SOUTH TYNESIDE AND SUNDERLAND NHS FOUNDATION TRUST","R0B01","Sunderland Royal Hospital",null,"RH8","KINGSTON HOSPITAL NHS FOUNDATION TRUST",null,"RH8","KINGSTON HOSPITAL NHS FOUNDATION TRUST","RD121","Frimley Park Hospital"]
[null,null,null,null,null,null,null,null,null,null,null,null,null,null,"QYG","CHESHIRE AND MERSEYSIDE ICB",null,"QYG","CHESHIRE AND MERSEYSIDE ICB",null,"QHM","RTD","THE NEWCASTLE UPON TYNE HOSPITALS NHS FOUNDATION TRUST","RTD02","The Royal Victoria Infirmary",null,"RHM","LANCASHIRE TEACHING HOSPITALS NHS FOUNDATION TRUST",null,"RHM","LANCASHIRE TEACHING HOSPITALS NHS FOUNDATION TRUST","RD130","Frome Community Hospital"]
[null,null,null,null,null,null,null,null,null,null,null,null,null,null,null,null,null,null,null,null,"QJ2","RFS","CHESTERFIELD ROYAL HOSPITAL NHS FOUNDATION TRUST","RFSDA","Chesterfield Royal Hospital",null,"RHQ","LEEDS TEACHING HOSPITALS NHS TRUST",null,"RHQ","LEEDS TEACHING HOSPITALS NHS TRUST","RD1XXX","Furness General Hospital"]
[null,null,null,null,null,null,null,null,null,null,null,null,null,null,null,null,null,null,null,null,"QJ2","RTG","UNIVERSITY HOSPITALS OF DERBY AND BURTON NHS FOUNDATION TRUST","RTG02","Queens Hospital, Burton Upon Trent",null,"RHU","LEWISHAM AND GREENWICH NHS TRUST",null,"RHU","LEWISHAM AND GREENWICH NHS TRUST","RD816","George Eliot Hospital - Acute Services"]
[null,null,null,null,null,null,null,null,null,null,null,null,null,null,null,null,null,null,null,null,"QJ2","RTG","UNIVERSITY HOSPITALS OF DERBY AND BURTON NHS FOUNDATION TRUST","RTGFG","Royal Derby Hospital",null,"RHW","LIVERPOOL WOMEN'S NHS FOUNDATION TRUST",null,"RHW","LIVERPOOL WOMEN'S NHS FOUNDATION TRUST","RDE03","Gloucestershire Royal Hospital"]
[null,null,null,null,null,null,null,null,null,null,null,null,null,null,null,null,null,null,null,null,"QJG","RDE","EAST SUFFOLK AND NORTH ESSEX NHS FOUNDATION TRUST","RDEE2","Clacton and District Hospital",null,"RJ1","LONDON NORTH WEST UNIVERSITY HEALTHCARE NHS TRUST",null,"RJ1","LONDON NORTH WEST UNIVERSITY HEALTHCARE NHS TRUST","RDEE2","Good Hope Hospital"]
[null,null,null,null,null,null,null,null,null,null,null,null,null,null,null,null,null,null,null,null,"QJG","RDE","EAST SUFFOLK AND NORTH ESSEX NHS FOUNDATION TRUST","RDEE4","Colchester General Hospital",null,"RJ2","MAIDSTONE AND TUNBRIDGE WELLS NHS TRUST",null,"RJ2","MAIDSTONE AND TUNBRIDGE WELLS NHS TRUST","RDEE4","Grantham and District Hospital"]
[null,null,null,null,null,null,null,null,null,null,null,null,null,null,null,null,null,null,null,null,"QJG","RDE","EAST SUFFOLK AND NORTH ESSEX NHS FOUNDATION TRUST","RDE03","Ipswich Hospital",null,"RJ6","MANCHESTER UNIVERSITY NHS FOUNDATION TRUST",null,"RJ6","MANCHESTER UNIVERSITY NHS FOUNDATION TRUST","RDEXXX","Harrogate District Hospital"]
[null,null,null,null,null,null,null,null,null,null,null,null,null,null,null,null,null,null,null,null,"QJG","RDE","EAST SUFFOLK AND NORTH ESSEX NHS FOUNDATION TRUST","RDEXXX","Non-hospital site",null,"RJ7","MEDWAY NHS FOUNDATION TRUST",null,"RJ7","MEDWAY NHS FOUNDATION TRUST","RDU01","Heartlands Hospital"]
[null,null,null,null,null,null,null,null,null,null,null,null,null,null,null,null,null,null,null,null,"QJG","RGR","WEST SUFFOLK NHS FOUNDATION TRUST","RGR50","West Suffolk Hospital",null,"RJC","MERSEY AND WEST LANCASHIRE TEACHING HOSPITALS NHS TRUST",null,"RJC","MERSEY AND WEST LANCASHIRE TEACHING HOSPITALS NHS TRUST","RDU50","Hereford County Hospital"]
[null,null,null,null,null,null,null,null,null,null,null,null,null,null,null,null,null,null,null,null,"QJK","RH8","ROYAL DEVON UNIVERSITY HEALTHCARE NHS FOUNDATION TRUST","RH8XXX","Non-hospital site",null,"RJE","MID AND SOUTH ESSEX NHS FOUNDATION TRUST",null,"RJE","MID AND SOUTH ESSEX NHS FOUNDATION TRUST","REF12","Hexham General Hospital"]
[null,null,null,null,null,null,null,null,null,null,null,null,null,null,null,null,null,null,null,null,"QJK","RH8","ROYAL DEVON UNIVERSITY HEALTHCARE NHS FOUNDATION TRUST","RH880","North Devon District Hospital",null,"RJL","MID CHESHIRE HOSPITALS NHS FOUNDATION TRUST",null,"RJL","MID CHESHIRE HOSPITALS NHS FOUNDATION TRUST","REFXXX","Hillingdon Hospital"]
[null,null,null,null,null,null,null,null,null,null,null,null,null,null,null,null,null,null,null,null,"QJK","RH8","ROYAL DEVON UNIVERSITY HEALTHCARE NHS FOUNDATION TRUST","RH801","Royal Devon and Exeter Hospital (Wonford)",null,"RJZ","MID YORKSHIRE TEACHING NHS TRUST",null,"RJZ","MID YORKSHIRE TEACHING NHS TRUST","REP01","Hinchingbrooke Hospital"]
[null,null,null,null,null,null,null,null,null,null,null,null,null,null,null,null,null,null,null,null,"QJK","RH8","ROYAL DEVON UNIVERSITY HEALTHCARE NHS FOUNDATION TRUST","RH853","Tiverton and District Hospital",null,"RK5","MILTON KEYNES UNIVERSITY HOSPITAL NHS FOUNDATION TRUST",null,"RK5","MILTON KEYNES UNIVERSITY HOSPITAL NHS FOUNDATION TRUST","RF4QH","Homerton University Hospital"]
[null,null,null,null,null,null,null,null,null,null,null,null,null,null,null,null,null,null,null,null,"QJK","RA9","TORBAY AND SOUTH DEVON NHS FOUNDATION TRUST","RA901","Torbay Hospital",null,"RK9","NORFOLK AND NORWICH UNIVERSITY HOSPITALS NHS FOUNDATION TRUST",null,"RK9","NORFOLK AND NORWICH UNIVERSITY HOSPITALS NHS FOUNDATION TRUST","RFFAA","Horton General Hospital"]
[null,null,null,null,null,null,null,null,null,null,null,null,null,null,null,null,null,null,null,null,"QJK","RK9","UNIVERSITY HOSPITALS PLYMOUTH NHS TRUST","RK950","Derriford Hospital",null,"RKB","NORTH BRISTOL NHS TRUST",null,"RKB","NORTH BRISTOL NHS TRUST","RFRPA","Hospital Of St Cross"]
[null,null,null,null,null,null,null,null,null,null,null,null,null,null,null,null,null,null,null,null,"QJM","RWD","UNITED LINCOLNSHIRE HOSPITALS NHS TRUST","RWDLP","Grantham and District Hospital",null,"RKE","NORTH CUMBRIA INTEGRATED CARE NHS FOUNDATION TRUST",null,"RKE","NORTH CUMBRIA INTEGRATED CARE NHS FOUNDATION TRUST","RFSDA","Hull Royal Infirmary"]
[null,null,null,null,null,null,null,null,null,null,null,null,null,null,null,null,null,null,null,null,"QJM","RWD","UNITED LINCOLNSHIRE HOSPITALS NHS TRUST","RWDDA","Lincoln County Hospital",null,"RL4","NORTH MIDDLESEX UNIVERSITY HOSPITAL NHS TRUST",null,"RL4","NORTH MIDDLESEX UNIVERSITY HOSPITAL NHS TRUST","RGN80","Ipswich Hospital"]
[null,null,null,null,null,null,null,null,null,null,null,null,null,null,null,null,null,null,null,null,"QJM","RWD","UNITED LINCOLNSHIRE HOSPITALS NHS TRUST","RWDLA","Pilgrim Hospital",null,"RLQ","NORTH TEES AND HARTLEPOOL NHS FOUNDATION TRUST",null,"RLQ","NORTH TEES AND HARTLEPOOL NHS FOUNDATION TRUST","RGN90","James Paget University Hospital"]
[null,null,null,null,null,null,null,null,null,null,null,null,null,null,null,null,null,null,null,null,"QK1","RWE","UNIVERSITY HOSPITALS OF LEICESTER NHS TRUST","RWEAK","Leicester General Hospital",null,"RLT","NORTH WEST ANGLIA NHS FOUNDATION TRUST",null,"RLT","NORTH WEST ANGLIA NHS FOUNDATION TRUST","RGP75","John Radcliffe Hospital"]
[null,null,null,null,null,null,null,null,null,null,null,null,null,null,null,null,null,null,null,null,"QK1","RWE","UNIVERSITY HOSPITALS OF LEICESTER NHS TRUST","RWEAA","Leicester Royal Infirmary",null,"RM1","NORTHAMPTON GENERAL HOSPITAL NHS TRUST",null,"RM1","NORTHAMPTON GENERAL HOSPITAL NHS TRUST","RGR50","Kettering General Hospital"]
[null,null,null,null,null,null,null,null,null,null,null,null,null,null,null,null,null,null,null,null,"QK1","RWE","UNIVERSITY HOSPITALS OF LEICESTER NHS TRUST","RWEXXX","Non-hospital site",null,"RMC","NORTHERN LINCOLNSHIRE AND GOOLE NHS FOUNDATION TRUST",null,"RMC","NORTHERN LINCOLNSHIRE AND GOOLE NHS FOUNDATION TRUST","RGT32","King's College Hospital (Denmark Hill)"]
[null,null,null,null,null,null,null,null,null,null,null,null,null,null,null,null,null,null,null,null,"QK1","RWE","UNIVERSITY HOSPITALS OF LEICESTER NHS TRUST","RWE10","St Mary's Hospital",null,"RMP","NORTHUMBRIA HEALTHCARE NHS FOUNDATION TRUST",null,"RMP","NORTHUMBRIA HEALTHCARE NHS FOUNDATION TRUST","RH5A8","King's Mill Hospital"]
[null,null,null,null,null,null,null,null,null,null,null,null,null,null,null,null,null,null,null,null,"QKK","RJ1","GUY'S AND ST THOMAS' NHS FOUNDATION TRUST","RJ1XXX","Non-hospital site",null,"RN3","NOTTINGHAM UNIVERSITY HOSPITALS NHS TRUST",null,"RN3","NOTTINGHAM UNIVERSITY HOSPITALS NHS TRUST","RH5K6","Kingston Hospital"]
[null,null,null,null,null,null,null,null,null,null,null,null,null,null,null,null,null,null,null,null,"QKK","RJ1","GUY'S AND ST THOMAS' NHS FOUNDATION TRUST","RJ122","St Thomas' Hospital",null,"RN5","OXFORD UNIVERSITY HOSPITALS NHS FOUNDATION TRUST",null,"RN5","OXFORD UNIVERSITY HOSPITALS NHS FOUNDATION TRUST","RH5O4","Leeds General Infirmary"]
[null,null,null,null,null,null,null,null,null,null,null,null,null,null,null,null,null,null,null,null,"QKK","RJZ","KING'S COLLEGE HOSPITAL NHS FOUNDATION TRUST","RJZ01","King's College Hospital (Denmark Hill)",null,"RN7","PORTSMOUTH HOSPITALS UNIVERSITY NATIONAL HEALTH SERVICE TRUST",null,"RN7","PORTSMOUTH HOSPITALS UNIVERSITY NATIONAL HEALTH SERVICE TRUST","RH5XXXX","Leicester General Hospital"]
[null,null,null,null,null,null,null,null,null,null,null,null,null,null,null,null,null,null,null,null,"QKK","RJZ","KING'S COLLEGE HOSPITAL NHS FOUNDATION TRUST","RJZ30","Princess Royal University Hospital",null,"RNA","ROYAL BERKSHIRE NHS FOUNDATION TRUST",null,"RNA","ROYAL BERKSHIRE NHS FOUNDATION TRUST","RH801","Leicester Royal Infirmary"]
[null,null,null,null,null,null,null,null,null,null,null,null,null,null,null,null,null,null,null,null,"QKK","RJ2","LEWISHAM AND GREENWICH NHS TRUST","RJ231","Queen Elizabeth Hospital",null,"RNN","ROYAL CORNWALL HOSPITALS NHS TRUST",null,"RNN","ROYAL CORNWALL HOSPITALS NHS TRUST","RH853","Leighton Hospital"]
[null,null,null,null,null,null,null,null,null,null,null,null,null,null,null,null,null,null,null,null,"QKK","RJ2","LEWISHAM AND GREENWICH NHS TRUST","RJ224","University Hospital Lewisham",null,"RNQ","ROYAL DEVON UNIVERSITY HEALTHCARE NHS FOUNDATION TRUST",null,"RNQ","ROYAL DEVON UNIVERSITY HEALTHCARE NHS FOUNDATION TRUST","RH880","Lincoln County Hospital"]
[null,null,null,null,null,null,null,null,null,null,null,null,null,null,null,null,null,null,null,null,"QKS","RN7","DARTFORD AND GRAVESHAM NHS TRUST","RN707","Darent Valley Hospital",null,"RNS","ROYAL FREE LONDON NHS FOUNDATION TRUST",null,"RNS","ROYAL FREE LONDON NHS FOUNDATION TRUST","RH8XXX","Lister Hospital"]
[null,null,null,null,null,null,null,null,null,null,null,null,null,null,null,null,null,null,null,null,"QKS","RWF","MAIDSTONE AND TUNBRIDGE WELLS NHS TRUST","RWF08","Crowborough Birthing Centre",null,"RNZ","ROYAL SURREY COUNTY HOSPITAL NHS FOUNDATION TRUST",null,"RNZ","ROYAL SURREY COUNTY HOSPITAL NHS FOUNDATION TRUST","RHM01","Liverpool Womens Hospital"]
[null,null,null,null,null,null,null,null,null,null,null,null,null,null,null,null,null,null,null,null,"QKS","RWF","MAIDSTONE AND TUNBRIDGE WELLS NHS TRUST","RWF03","Maidstone District General Hospital",null,"RP5","ROYAL UNITED HOSPITALS BATH NHS FOUNDATION TRUST",null,"RP5","ROYAL UNITED HOSPITALS BATH NHS FOUNDATION TRUST","RHQHH","Ludlow Hospital (Maternity)"]
[null,null,null,null,null,null,null,null,null,null,null,null,null,null,null,null,null,null,null,null,"QKS","RWF","MAIDSTONE AND TUNBRIDGE WELLS NHS TRUST","RWFXXX","Non-hospital site",null,"RPA","SALISBURY NHS FOUNDATION TRUST",null,"RPA","SALISBURY NHS FOUNDATION TRUST","RHU03","Luton and Dunstable Hospital"]
[null,null,null,null,null,null,null,null,null,null,null,null,null,null,null,null,null,null,null,null,"QKS","RWF","MAIDSTONE AND TUNBRIDGE WELLS NHS TRUST","RWFTW","The Tunbridge Wells Hospital",null,"RQ3","SANDWELL AND WEST BIRMINGHAM HOSPITALS NHS TRUST",null,"RQ3","SANDWELL AND WEST BIRMINGHAM HOSPITALS NHS TRUST","RHW01","Maidstone District General Hospital"]
[null,null,null,null,null,null,null,null,null,null,null,null,null,null,null,null,null,null,null,null,"QKS","RPA","MEDWAY NHS FOUNDATION TRUST","RPA02","Medway Maritime Hospital",null,"RQM","SHEFFIELD TEACHING HOSPITALS NHS FOUNDATION TRUST",null,"RQM","SHEFFIELD TEACHING HOSPITALS NHS FOUNDATION TRUST","RJ122","Manor Hospital"]
[null,null,null,null,null,null,null,null,null,null,null,null,null,null,null,null,null,null,null,null,"QM7","RWH","EAST AND NORTH HERTFORDSHIRE NHS TRUST","RWH01","Lister Hospital",null,"RQW","SHERWOOD FOREST HOSPITALS NHS FOUNDATION TRUST",null,"RQW","SHERWOOD FOREST HOSPITALS NHS FOUNDATION TRUST","RJ1XXX","Medway Maritime Hospital"]
[null,null,null,null,null,null,null,null,null,null,null,null,null,null,null,null,null,null,null,null,"QM7","RWH","EAST AND NORTH HERTFORDSHIRE NHS TRUST","RWHXXX","Non-hospital site",null,"RQX","SOMERSET NHS FOUNDATION TRUST",null,"RQX","SOMERSET NHS FOUNDATION TRUST","RJ224","MID ESSEX HOSPITAL"]
[null,null,null,null,null,null,null,null,null,null,null,null,null,null,null,null,null,null,null,null,"QM7","RQW","THE PRINCESS ALEXANDRA HOSPITAL NHS TRUST","RQWG0","Princess Alexandra Hospital",null,"RR7","SOUTH TEES HOSPITALS NHS FOUNDATION TRUST",null,"RR7","SOUTH TEES HOSPITALS NHS FOUNDATION TRUST","RJ231","Milton Keynes Hospital"]
[null,null,null,null,null,null,null,null,null,null,null,null,null,null,null,null,null,null,null,null,"QM7","RWG","WEST HERTFORDSHIRE TEACHING HOSPITALS NHS TRUST","RWG02","Watford General Hospital",null,"RR8","SOUTH TYNESIDE AND SUNDERLAND NHS FOUNDATION TRUST",null,"RR8","SOUTH TYNESIDE AND SUNDERLAND NHS FOUNDATION TRUST","RJ611","MUSGROVE PARK HOSPITAL"]
[null,null,null,null,null,null,null,null,null,null,null,null,null,null,null,null,null,null,null,null,"QMF","RF4","BARKING, HAVERING AND REDBRIDGE UNIVERSITY HOSPITALS NHS TRUST","RF4QH","Queen's Hospital",null,"RRF","SOUTH WARWICKSHIRE UNIVERSITY NHS FOUNDATION TRUST",null,"RRF","SOUTH WARWICKSHIRE UNIVERSITY NHS FOUNDATION TRUST","RJ701","New Cross Hospital"]
[null,null,null,null,null,null,null,null,null,null,null,null,null,null,null,null,null,null,null,null,"QMF","R1H","BARTS HEALTH NHS TRUST","R1HNH","Newham General Hospital",null,"RRK","ST GEORGE'S UNIVERSITY HOSPITALS NHS FOUNDATION TRUST",null,"RRK","ST GEORGE'S UNIVERSITY HOSPITALS NHS FOUNDATION TRUST","RJC02","Newham General Hospital"]
[null,null,null,null,null,null,null,null,null,null,null,null,null,null,null,null,null,null,null,null,"QMF","R1H","BARTS HEALTH NHS TRUST","R1H12","The Royal London Hospital",null,"RRV","STOCKPORT NHS FOUNDATION TRUST",null,"RRV","STOCKPORT NHS FOUNDATION TRUST","RJE01","Non Hospital Site"]
[null,null,null,null,null,null,null,null,null,null,null,null,null,null,null,null,null,null,null,null,"QMF","R1H","BARTS HEALTH NHS TRUST","R1HKH","Whipps Cross University Hospital",null,"RTD","SURREY AND SUSSEX HEALTHCARE NHS TRUST",null,"RTD","SURREY AND SUSSEX HEALTHCARE NHS TRUST","RJL30","Non-hospital site"]
[null,null,null,null,null,null,null,null,null,null,null,null,null,null,null,null,null,null,null,null,"QMF","RQX","HOMERTON HEALTHCARE NHS FOUNDATION TRUST","RQXM1","Homerton University Hospital",null,"RTE","TAMESIDE AND GLOSSOP INTEGRATED CARE NHS FOUNDATION TRUST",null,"RTE","TAMESIDE AND GLOSSOP INTEGRATED CARE NHS FOUNDATION TRUST","RJL32","Non-hospital site"]
[null,null,null,null,null,null,null,null,null,null,null,null,null,null,null,null,null,null,null,null,"QMJ","RAP","NORTH MIDDLESEX UNIVERSITY HOSPITAL NHS TRUST","RAPNM","North Middlesex Hospital",null,"RTF","THE DUDLEY GROUP NHS FOUNDATION TRUST",null,"RTF","THE DUDLEY GROUP NHS FOUNDATION TRUST","RJZ01","Non-hospital site"]
[null,null,null,null,null,null,null,null,null,null,null,null,null,null,null,null,null,null,null,null,"QMJ","RAL","ROYAL FREE LONDON NHS FOUNDATION TRUST","RAL26","Barnet Hospital",null,"RTG","THE HILLINGDON HOSPITALS NHS FOUNDATION TRUST",null,"RTG","THE HILLINGDON HOSPITALS NHS FOUNDATION TRUST","RJZ30","Non-hospital site"]
[null,null,null,null,null,null,null,null,null,null,null,null,null,null,null,null,null,null,null,null,"QMJ","RAL","ROYAL FREE LONDON NHS FOUNDATION TRUST","RAL01","Royal Free Hospital",null,"RTH","THE NEWCASTLE UPON TYNE HOSPITALS NHS FOUNDATION TRUST",null,"RTH","THE NEWCASTLE UPON TYNE HOSPITALS NHS FOUNDATION TRUST","RK5BC","Non-hospital site"]
[null,null,null,null,null,null,null,null,null,null,null,null,null,null,null,null,null,null,null,null,"QMJ","RRV","UNIVERSITY COLLEGE LONDON HOSPITALS NHS FOUNDATION TRUST","RRV03","University College Hospital",null,"RTK","THE PRINCESS ALEXANDRA HOSPITAL NHS TRUST",null,"RTK","THE PRINCESS ALEXANDRA HOSPITAL NHS TRUST","RK5XXX","Non-hospital site"]
[null,null,null,null,null,null,null,null,null,null,null,null,null,null,null,null,null,null,null,null,"QMJ","RKE","WHITTINGTON HEALTH NHS TRUST","RKEXXX","Non-hospital site",null,"RTP","THE QUEEN ELIZABETH HOSPITAL, KING'S LYNN, NHS FOUNDATION TRUST",null,"RTP","THE QUEEN ELIZABETH HOSPITAL, KING'S LYNN, NHS FOUNDATION TRUST","RK950","Non-hospital site"]
[null,null,null,null,null,null,null,null,null,null,null,null,null,null,null,null,null,null,null,null,"QMJ","RKE","WHITTINGTON HEALTH NHS TRUST","RKEQ4","The Whittington Hospital",null,"RTR","THE ROTHERHAM NHS FOUNDATION TRUST",null,"RTR","THE ROTHERHAM NHS FOUNDATION TRUST","RKB01","Non-hospital site"]
[null,null,null,null,null,null,null,null,null,null,null,null,null,null,null,null,null,null,null,null,"QMM","RGP","JAMES PAGET UNIVERSITY HOSPITALS NHS FOUNDATION TRUST","RGP75","James Paget University Hospital",null,"RTX","THE ROYAL WOLVERHAMPTON NHS TRUST",null,"RTX","THE ROYAL WOLVERHAMPTON NHS TRUST","RKB03","Non-hospital site"]
[null,null,null,null,null,null,null,null,null,null,null,null,null,null,null,null,null,null,null,null,"QMM","RM1","NORFOLK AND NORWICH UNIVERSITY HOSPITALS NHS FOUNDATION TRUST","RM102","Norfolk and Norwich University Hospital",null,"RVJ","THE SHREWSBURY AND TELFORD HOSPITAL NHS TRUST",null,"RVJ","THE SHREWSBURY AND TELFORD HOSPITAL NHS TRUST","RKBXXX","Non-hospital site"]
[null,null,null,null,null,null,null,null,null,null,null,null,null,null,null,null,null,null,null,null,"QMM","RCX","THE QUEEN ELIZABETH HOSPITAL, KING'S LYNN, NHS FOUNDATION TRUST","RCXXXX","Non-hospital site",null,"RVR","TORBAY AND SOUTH DEVON NHS FOUNDATION TRUST",null,"RVR","TORBAY AND SOUTH DEVON NHS FOUNDATION TRUST","RKEQ4","Non-hospital site"]
[null,null,null,null,null,null,null,null,null,null,null,null,null,null,null,null,null,null,null,null,"QMM","RCX","THE QUEEN ELIZABETH HOSPITAL, KING'S LYNN, NHS FOUNDATION TRUST","RCX70","The Queen Elizabeth Hospital",null,"RVW","UNITED LINCOLNSHIRE HOSPITALS NHS TRUST",null,"RVW","UNITED LINCOLNSHIRE HOSPITALS NHS TRUST","RKEXXX","Non-hospital site"]
[null,null,null,null,null,null,null,null,null,null,null,null,null,null,null,null,null,null,null,null,"QNC","RJE","UNIVERSITY HOSPITALS OF NORTH MIDLANDS NHS TRUST","RJE01","Royal Stoke University Hospital",null,"RWA","UNIVERSITY COLLEGE LONDON HOSPITALS NHS FOUNDATION TRUST",null,"RWA","UNIVERSITY COLLEGE LONDON HOSPITALS NHS FOUNDATION TRUST","RL403","Non-hospital site"]
[null,null,null,null,null,null,null,null,null,null,null,null,null,null,null,null,null,null,null,null,"QNQ","RDU","FRIMLEY HEALTH NHS FOUNDATION TRUST","RDU01","Frimley Park Hospital",null,"RWD","UNIVERSITY HOSPITAL SOUTHAMPTON NHS FOUNDATION TRUST",null,"RWD","UNIVERSITY HOSPITAL SOUTHAMPTON NHS FOUNDATION TRUST","RLQ01","Non-hospital site"]
[null,null,null,null,null,null,null,null,null,null,null,null,null,null,null,null,null,null,null,null,"QNQ","RDU","FRIMLEY HEALTH NHS FOUNDATION TRUST","RDU50","Wexham Park Hospital",null,"RWE","UNIVERSITY HOSPITALS BIRMINGHAM NHS FOUNDATION TRUST",null,"RWE","UNIVERSITY HOSPITALS BIRMINGHAM NHS FOUNDATION TRUST","RLT01","Non-hospital site"]
[null,null,null,null,null,null,null,null,null,null,null,null,null,null,null,null,null,null,null,null,"QNX","RXC","EAST SUSSEX HEALTHCARE NHS TRUST","RXC01","Conquest Hospital",null,"RWF","UNIVERSITY HOSPITALS BRISTOL AND WESTON NHS FOUNDATION TRUST",null,"RWF","UNIVERSITY HOSPITALS BRISTOL AND WESTON NHS FOUNDATION TRUST","RM102","Non-hospital site"]
[null,null,null,null,null,null,null,null,null,null,null,null,null,null,null,null,null,null,null,null,"QNX","RXC","EAST SUSSEX HEALTHCARE NHS TRUST","RXC02","Eastbourne District General Hospital",null,"RWG","UNIVERSITY HOSPITALS COVENTRY AND WARWICKSHIRE NHS TRUST",null,"RWG","UNIVERSITY HOSPITALS COVENTRY AND WARWICKSHIRE NHS TRUST","RMC01","Non-hospital site"]
[null,null,null,null,null,null,null,null,null,null,null,null,null,null,null,null,null,null,null,null,"QNX","RXC","EAST SUSSEX HEALTHCARE NHS TRUST","RXCXXX","Non-hospital site",null,"RWH","UNIVERSITY HOSPITALS DORSET NHS FOUNDATION TRUST",null,"RWH","UNIVERSITY HOSPITALS DORSET NHS FOUNDATION TRUST","RMP01","Non-hospital site"]
[null,null,null,null,null,null,null,null,null,null,null,null,null,null,null,null,null,null,null,null,"QNX","RYR","UNIVERSITY HOSPITALS SUSSEX NHS FOUNDATION TRUST","N6J7V","Princess Royal Hospital",null,"RWJ","UNIVERSITY HOSPITALS OF DERBY AND BURTON NHS FOUNDATION TRUST",null,"RWJ","UNIVERSITY HOSPITALS OF DERBY AND BURTON NHS FOUNDATION TRUST","RN325","Non-hospital site"]
[null,null,null,null,null,null,null,null,null,null,null,null,null,null,null,null,null,null,null,null,"QNX","RYR","UNIVERSITY HOSPITALS SUSSEX NHS FOUNDATION TRUST","E0A3H","Royal Sussex County Hospital",null,"RWP","UNIVERSITY HOSPITALS OF LEICESTER NHS TRUST",null,"RWP","UNIVERSITY HOSPITALS OF LEICESTER NHS TRUST","RN3XXX","Non-hospital site"]
[null,null,null,null,null,null,null,null,null,null,null,null,null,null,null,null,null,null,null,null,"QNX","RYR","UNIVERSITY HOSPITALS SUSSEX NHS FOUNDATION TRUST","RYR16","St Richard's Hospital",null,"RWW","UNIVERSITY HOSPITALS OF MORECAMBE BAY NHS FOUNDATION TRUST",null,"RWW","UNIVERSITY HOSPITALS OF MORECAMBE BAY NHS FOUNDATION TRUST","RN506","Non-hospital site"]
[null,null,null,null,null,null,null,null,null,null,null,null,null,null,null,null,null,null,null,null,"QNX","RYR","UNIVERSITY HOSPITALS SUSSEX NHS FOUNDATION TRUST","RYR18","Worthing Hospital",null,"RWY","UNIVERSITY HOSPITALS OF NORTH MIDLANDS NHS TRUST",null,"RWY","UNIVERSITY HOSPITALS OF NORTH MIDLANDS NHS TRUST","RN541","Non-hospital site"]
[null,null,null,null,null,null,null,null,null,null,null,null,null,null,null,null,null,null,null,null,"QOC","RXW","THE SHREWSBURY AND TELFORD HOSPITAL NHS TRUST","RXWMB","Bridgnorth Hospital (Maternity)",null,"RX1","UNIVERSITY HOSPITALS PLYMOUTH NHS TRUST",null,"RX1","UNIVERSITY HOSPITALS PLYMOUTH NHS TRUST","RN542","Non-hospital site"]
[null,null,null,null,null,null,null,null,null,null,null,null,null,null,null,null,null,null,null,null,"QOC","RXW","THE SHREWSBURY AND TELFORD HOSPITAL NHS TRUST","RXWML","Ludlow Hospital (Maternity)",null,"RXC","UNIVERSITY HOSPITALS SUSSEX NHS FOUNDATION TRUST",null,"RXC","UNIVERSITY HOSPITALS SUSSEX NHS FOUNDATION TRUST","RN707","Non-hospital site"]
[null,null,null,null,null,null,null,null,null,null,null,null,null,null,null,null,null,null,null,null,"QOC","RXW","THE SHREWSBURY AND TELFORD HOSPITAL NHS TRUST","RXWXXX","Non-hospital site",null,"RXF","WALSALL HEALTHCARE NHS TRUST",null,"RXF","WALSALL HEALTHCARE NHS TRUST","RNA01","Non-hospital site"]
[null,null,null,null,null,null,null,null,null,null,null,null,null,null,null,null,null,null,null,null,"QOC","RXW","THE SHREWSBURY AND TELFORD HOSPITAL NHS TRUST","RXWMJ","Robert Jones & Agnes Hunt Orthopaedic & District Hospital",null,"RXK","WARRINGTON AND HALTON TEACHING HOSPITALS NHS FOUNDATION TRUST",null,"RXK","WARRINGTON AND HALTON TEACHING HOSPITALS NHS FOUNDATION TRUST","RNN62","Non-hospital site"]
[null,null,null,null,null,null,null,null,null,null,null,null,null,null,null,null,null,null,null,null,"QOC","RXW","THE SHREWSBURY AND TELFORD HOSPITAL NHS TRUST","RXWAS","Royal Shrewsbury Hospital",null,"RXL","WEST HERTFORDSHIRE TEACHING HOSPITALS NHS TRUST",null,"RXL","WEST HERTFORDSHIRE TEACHING HOSPITALS NHS TRUST","RNNBX","Non-hospital site"]
[null,null,null,null,null,null,null,null,null,null,null,null,null,null,null,null,null,null,null,null,"QOC","RXW","THE SHREWSBURY AND TELFORD HOSPITAL NHS TRUST","RXWAT","The Princess Royal Hospital",null,"RXN","WEST SUFFOLK NHS FOUNDATION TRUST",null,"RXN","WEST SUFFOLK NHS FOUNDATION TRUST","RNQ51","Non-hospital site home/in-transit births"]
[null,null,null,null,null,null,null,null,null,null,null,null,null,null,null,null,null,null,null,null,"QOP","RMC","BOLTON NHS FOUNDATION TRUST","RMC01","Royal Bolton Hospital",null,"RXP","WHITTINGTON HEALTH NHS TRUST",null,"RXP","WHITTINGTON HEALTH NHS TRUST","RNS01","Norfolk and Norwich University Hospital"]
[null,null,null,null,null,null,null,null,null,null,null,null,null,null,null,null,null,null,null,null,"QOP","R0A","MANCHESTER UNIVERSITY NHS FOUNDATION TRUST","R0A05","St Mary's Hospital",null,"RXQ","WIRRAL UNIVERSITY TEACHING HOSPITAL NHS FOUNDATION TRUST",null,"RXQ","WIRRAL UNIVERSITY TEACHING HOSPITAL NHS FOUNDATION TRUST","RNZ02","North Devon District Hospital"]
[null,null,null,null,null,null,null,null,null,null,null,null,null,null,null,null,null,null,null,null,"QOP","RWJ","STOCKPORT NHS FOUNDATION TRUST","RWJXXX","Non-hospital site",null,"RXR","WORCESTERSHIRE ACUTE HOSPITALS NHS TRUST",null,"RXR","WORCESTERSHIRE ACUTE HOSPITALS NHS TRUST","RNZXXX","North Middlesex Hospital"]
[null,null,null,null,null,null,null,null,null,null,null,null,null,null,null,null,null,null,null,null,"QOP","RWJ","STOCKPORT NHS FOUNDATION TRUST","RWJ09","Stepping Hill Hospital",null,"RXW","WRIGHTINGTON, WIGAN AND LEIGH NHS FOUNDATION TRUST",null,"RXW","WRIGHTINGTON, WIGAN AND LEIGH NHS FOUNDATION TRUST","RP5BA","Northampton General Hospital (Acute)"]
[null,null,null,null,null,null,null,null,null,null,null,null,null,null,null,null,null,null,null,null,"QOP","RMP","TAMESIDE AND GLOSSOP INTEGRATED CARE NHS FOUNDATION TRUST","RMP01","Tameside General Hospital",null,"RYJ","WYE VALLEY NHS TRUST",null,"RYJ","WYE VALLEY NHS TRUST","RP5DR","Northwick Park Hospital"]
[null,null,null,null,null,null,null,null,null,null,null,null,null,null,null,null,null,null,null,null,"QOP","RRF","WRIGHTINGTON, WIGAN AND LEIGH NHS FOUNDATION TRUST","RRF02","Royal Albert Edward Infirmary",null,"RYR","YORK AND SCARBOROUGH TEACHING HOSPITALS NHS FOUNDATION TRUST",null,"RYR","YORK AND SCARBOROUGH TEACHING HOSPITALS NHS FOUNDATION TRUST","RP5XXX","Nottingham University Hospitals NHS Trust - City Campus"]
[null,null,null,null,null,null,null,null,null,null,null,null,null,null,null,null,null,null,null,null,"QOQ","RCD","HARROGATE AND DISTRICT NHS FOUNDATION TRUST","RCD01","Harrogate District Hospital",null,null,null,null,null,null,"RPA02","Nottingham University Hospitals NHS Trust - Queen's Medical Centre Campus"]
[null,null,null,null,null,null,null,null,null,null,null,null,null,null,null,null,null,null,null,null,"QOQ","RWA","HULL UNIVERSITY TEACHING HOSPITALS NHS TRUST","RWA01","Hull Royal Infirmary",null,null,null,null,null,null,"RQ370","Ormskirk and District General Hospital"]
[null,null,null,null,null,null,null,null,null,null,null,null,null,null,null,null,null,null,null,null,"QOQ","RJL","NORTHERN LINCOLNSHIRE AND GOOLE NHS FOUNDATION TRUST","RJL30","Diana, Princess Of Wales Hospital",null,null,null,null,null,null,"RQM01","Peterborough City Hospital"]
[null,null,null,null,null,null,null,null,null,null,null,null,null,null,null,null,null,null,null,null,"QOQ","RJL","NORTHERN LINCOLNSHIRE AND GOOLE NHS FOUNDATION TRUST","RJL32","Scunthorpe General Hospital",null,null,null,null,null,null,"RQM91","Pilgrim Hospital"]
[null,null,null,null,null,null,null,null,null,null,null,null,null,null,null,null,null,null,null,null,"QOQ","RCB","YORK AND SCARBOROUGH TEACHING HOSPITALS NHS FOUNDATION TRUST","RCBCA","Scarborough General Hospital",null,null,null,null,null,null,"RQWG0","Pinderfields General Hospital"]
[null,null,null,null,null,null,null,null,null,null,null,null,null,null,null,null,null,null,null,null,"QOQ","RCB","YORK AND SCARBOROUGH TEACHING HOSPITALS NHS FOUNDATION TRUST","RCB55","York Hospital",null,null,null,null,null,null,"RQXM1","Pontefract General Infirmary"]
[null,null,null,null,null,null,null,null,null,null,null,null,null,null,null,null,null,null,null,null,"QOX","RN3","GREAT WESTERN HOSPITALS NHS FOUNDATION TRUST","RN3XXX","Non-hospital site",null,null,null,null,null,null,"RR7EN","Poole Hospital"]
[null,null,null,null,null,null,null,null,null,null,null,null,null,null,null,null,null,null,null,null,"QOX","RN3","GREAT WESTERN HOSPITALS NHS FOUNDATION TRUST","RN325","The Great Western Hospital",null,null,null,null,null,null,"RR801","Princess Alexandra Hospital"]
[null,null,null,null,null,null,null,null,null,null,null,null,null,null,null,null,null,null,null,null,"QOX","RD1","ROYAL UNITED HOSPITALS BATH NHS FOUNDATION TRUST","RD102","Chippenham Community Hospital",null,null,null,null,null,null,"RR813","Princess Anne Wing RUH"]
[null,null,null,null,null,null,null,null,null,null,null,null,null,null,null,null,null,null,null,null,"QOX","RD1","ROYAL UNITED HOSPITALS BATH NHS FOUNDATION TRUST","RD121","Frome Community Hospital",null,null,null,null,null,null,"RR8XXX","Princess Royal Hospital"]
[null,null,null,null,null,null,null,null,null,null,null,null,null,null,null,null,null,null,null,null,"QOX","RD1","ROYAL UNITED HOSPITALS BATH NHS FOUNDATION TRUST","RD1XXX","Non Hospital Site",null,null,null,null,null,null,"RRF02","Princess Royal University Hospital"]
[null,null,null,null,null,null,null,null,null,null,null,null,null,null,null,null,null,null,null,null,"QOX","RD1","ROYAL UNITED HOSPITALS BATH NHS FOUNDATION TRUST","RD130","Princess Anne Wing RUH",null,null,null,null,null,null,"RRK97","Queen Alexandra Hospital"]
[null,null,null,null,null,null,null,null,null,null,null,null,null,null,null,null,null,null,null,null,"QOX","RNZ","SALISBURY NHS FOUNDATION TRUST","RNZXXX","Non-hospital site",null,null,null,null,null,null,"RRK98","Queen Charlotte's Hospital"]
[null,null,null,null,null,null,null,null,null,null,null,null,null,null,null,null,null,null,null,null,"QOX","RNZ","SALISBURY NHS FOUNDATION TRUST","RNZ02","Salisbury District Hospital",null,null,null,null,null,null,"RRK99","Queen Elizabeth Hospital"]
[null,null,null,null,null,null,null,null,null,null,null,null,null,null,null,null,null,null,null,null,"QPM","RNQ","KETTERING GENERAL HOSPITAL NHS FOUNDATION TRUST","RNQ51","Kettering General Hospital",null,null,null,null,null,null,"RRV03","Queen Elizabeth Hospital"]
[null,null,null,null,null,null,null,null,null,null,null,null,null,null,null,null,null,null,null,null,"QPM","RNS","NORTHAMPTON GENERAL HOSPITAL NHS TRUST","RNS01","Northampton General Hospital (Acute)",null,null,null,null,null,null,"RTD02","Queen's Hospital"]
[null,null,null,null,null,null,null,null,null,null,null,null,null,null,null,null,null,null,null,null,"QR1","RTE","GLOUCESTERSHIRE HOSPITALS NHS FOUNDATION TRUST","RTE03","Gloucestershire Royal Hospital",null,null,null,null,null,null,"RTE03","Queens Hospital, Burton Upon Trent"]
[null,null,null,null,null,null,null,null,null,null,null,null,null,null,null,null,null,null,null,null,"QR1","RTE","GLOUCESTERSHIRE HOSPITALS NHS FOUNDATION TRUST","RTEXXX","Non-hospital site",null,null,null,null,null,null,"RTEXXX","Robert Jones & Agnes Hunt Orthopaedic & District Hospital"]
[null,null,null,null,null,null,null,null,null,null,null,null,null,null,null,null,null,null,null,null,"QRL","RN5","HAMPSHIRE HOSPITALS NHS FOUNDATION TRUST","RN542","Andover War Memorial Hospital",null,null,null,null,null,null,"RTF86","Rosie Hospital"]
[null,null,null,null,null,null,null,null,null,null,null,null,null,null,null,null,null,null,null,null,"QRL","RN5","HAMPSHIRE HOSPITALS NHS FOUNDATION TRUST","RN506","Basingstoke and North Hampshire Hospital",null,null,null,null,null,null,"RTFDH","Rotherham District General Hospital"]
[null,null,null,null,null,null,null,null,null,null,null,null,null,null,null,null,null,null,null,null,"QRL","RN5","HAMPSHIRE HOSPITALS NHS FOUNDATION TRUST","RN541","Royal Hampshire County Hospital",null,null,null,null,null,null,"RTFDJ","Royal Albert Edward Infirmary"]
[null,null,null,null,null,null,null,null,null,null,null,null,null,null,null,null,null,null,null,null,"QRL","R1F","ISLE OF WIGHT NHS TRUST","R1F01","St Mary's Hospital",null,null,null,null,null,null,"RTFDR","Royal Berkshire Hospital"]
[null,null,null,null,null,null,null,null,null,null,null,null,null,null,null,null,null,null,null,null,"QRL","RHU","PORTSMOUTH HOSPITALS UNIVERSITY NATIONAL HEALTH SERVICE TRUST","RHU03","Queen Alexandra Hospital",null,null,null,null,null,null,"RTFXXX","Royal Blackburn Hospital"]
[null,null,null,null,null,null,null,null,null,null,null,null,null,null,null,null,null,null,null,null,"QRL","RHM","UNIVERSITY HOSPITAL SOUTHAMPTON NHS FOUNDATION TRUST","RHM01","Southampton General Hospital",null,null,null,null,null,null,"RTG02","Royal Bolton Hospital"]
[null,null,null,null,null,null,null,null,null,null,null,null,null,null,null,null,null,null,null,null,"QRV","RQM","CHELSEA AND WESTMINSTER HOSPITAL NHS FOUNDATION TRUST","RQM01","Chelsea and Westminster Hospital",null,null,null,null,null,null,"RTGFG","Royal Bournemouth Hospital"]
[null,null,null,null,null,null,null,null,null,null,null,null,null,null,null,null,null,null,null,null,"QRV","RQM","CHELSEA AND WESTMINSTER HOSPITAL NHS FOUNDATION TRUST","RQM91","West Middlesex University Hospital",null,null,null,null,null,null,"RTH05","Royal Cornwall Hospital (Treliske)"]
[null,null,null,null,null,null,null,null,null,null,null,null,null,null,null,null,null,null,null,null,"QRV","RYJ","IMPERIAL COLLEGE HEALTHCARE NHS TRUST","RYJ04","Queen Charlotte's Hospital",null,null,null,null,null,null,"RTH08","Royal Derby Hospital"]
[null,null,null,null,null,null,null,null,null,null,null,null,null,null,null,null,null,null,null,null,"QRV","RYJ","IMPERIAL COLLEGE HEALTHCARE NHS TRUST","RYJ01","St Mary's Hospital (HQ)",null,null,null,null,null,null,"RTH16","Royal Devon and Exeter Hospital (Wonford)"]
[null,null,null,null,null,null,null,null,null,null,null,null,null,null,null,null,null,null,null,null,"QRV","R1K","LONDON NORTH WEST UNIVERSITY HEALTHCARE NHS TRUST","R1K01","Northwick Park Hospital",null,null,null,null,null,null,"RTH19","Royal Free Hospital"]
[null,null,null,null,null,null,null,null,null,null,null,null,null,null,null,null,null,null,null,null,"QRV","RAS","THE HILLINGDON HOSPITALS NHS FOUNDATION TRUST","RAS01","Hillingdon Hospital",null,null,null,null,null,null,"RTK01","Royal Hallamshire Hospital"]
[null,null,null,null,null,null,null,null,null,null,null,null,null,null,null,null,null,null,null,null,"QRV","RAS","THE HILLINGDON HOSPITALS NHS FOUNDATION TRUST","RASXXX","Non-hospital site",null,null,null,null,null,null,"RTP04","Royal Hampshire County Hospital"]
[null,null,null,null,null,null,null,null,null,null,null,null,null,null,null,null,null,null,null,null,"QSL","RH5","SOMERSET NHS FOUNDATION TRUST","RH5K6","Bridgwater Hospital",null,null,null,null,null,null,"RTR45","Royal Lancaster Infirmary"]
[null,null,null,null,null,null,null,null,null,null,null,null,null,null,null,null,null,null,null,null,"QSL","RH5","SOMERSET NHS FOUNDATION TRUST","RH5A8","MUSGROVE PARK HOSPITAL",null,null,null,null,null,null,"RTRAT","Royal Preston Hospital"]
[null,null,null,null,null,null,null,null,null,null,null,null,null,null,null,null,null,null,null,null,"QSL","RH5","SOMERSET NHS FOUNDATION TRUST","RH5XXXX","Non-hospital site home/in-transit births",null,null,null,null,null,null,"RTX02","Royal Shrewsbury Hospital"]
[null,null,null,null,null,null,null,null,null,null,null,null,null,null,null,null,null,null,null,null,"QSL","RH5","SOMERSET NHS FOUNDATION TRUST","RH5O4","Yeovil District Hospital",null,null,null,null,null,null,"RTXBU","Royal Stoke University Hospital"]
[null,null,null,null,null,null,null,null,null,null,null,null,null,null,null,null,null,null,null,null,"QT1","RX1","NOTTINGHAM UNIVERSITY HOSPITALS NHS TRUST","RX1XXX","Non-hospital site",null,null,null,null,null,null,"RTXBW","Royal Surrey County Hospital"]
[null,null,null,null,null,null,null,null,null,null,null,null,null,null,null,null,null,null,null,null,"QT1","RX1","NOTTINGHAM UNIVERSITY HOSPITALS NHS TRUST","RX1CC","Nottingham University Hospitals NHS Trust - City Campus",null,null,null,null,null,null,"RVJ01","Royal Sussex County Hospital"]
[null,null,null,null,null,null,null,null,null,null,null,null,null,null,null,null,null,null,null,null,"QT1","RX1","NOTTINGHAM UNIVERSITY HOSPITALS NHS TRUST","RX1RA","Nottingham University Hospitals NHS Trust - Queen's Medical Centre Campus",null,null,null,null,null,null,"RVJXXX","Russells Hall Hospital"]
[null,null,null,null,null,null,null,null,null,null,null,null,null,null,null,null,null,null,null,null,"QT1","RK5","SHERWOOD FOREST HOSPITALS NHS FOUNDATION TRUST","RK5BC","King's Mill Hospital",null,null,null,null,null,null,"RVR05","Salisbury District Hospital"]
[null,null,null,null,null,null,null,null,null,null,null,null,null,null,null,null,null,null,null,null,"QT1","RK5","SHERWOOD FOREST HOSPITALS NHS FOUNDATION TRUST","RK5XXX","Non-hospital site",null,null,null,null,null,null,"RVR50","Scarborough General Hospital"]
[null,null,null,null,null,null,null,null,null,null,null,null,null,null,null,null,null,null,null,null,"QT6","REF","ROYAL CORNWALL HOSPITALS NHS TRUST","REFXXX","Non-hospital site",null,null,null,null,null,null,"RVRXXX","Scunthorpe General Hospital"]
[null,null,null,null,null,null,null,null,null,null,null,null,null,null,null,null,null,null,null,null,"QT6","REF","ROYAL CORNWALL HOSPITALS NHS TRUST","REF12","Royal Cornwall Hospital (Treliske)",null,null,null,null,null,null,"RVWXXX","Solihull Hospital"]
[null,null,null,null,null,null,null,null,null,null,null,null,null,null,null,null,null,null,null,null,"QU9","RXQ","BUCKINGHAMSHIRE HEALTHCARE NHS TRUST","RXQ02","Stoke Mandeville Hospital",null,null,null,null,null,null,"RWA01","South Tyneside District Hospital"]
[null,null,null,null,null,null,null,null,null,null,null,null,null,null,null,null,null,null,null,null,"QU9","RTH","OXFORD UNIVERSITY HOSPITALS NHS FOUNDATION TRUST","RTH19","Chipping Norton Community Hospital",null,null,null,null,null,null,"RWDDA","Southampton General Hospital"]
[null,null,null,null,null,null,null,null,null,null,null,null,null,null,null,null,null,null,null,null,"QU9","RTH","OXFORD UNIVERSITY HOSPITALS NHS FOUNDATION TRUST","RTH05","Horton General Hospital",null,null,null,null,null,null,"RWDLA","Southend Hospital"]
[null,null,null,null,null,null,null,null,null,null,null,null,null,null,null,null,null,null,null,null,"QU9","RTH","OXFORD UNIVERSITY HOSPITALS NHS FOUNDATION TRUST","RTH08","John Radcliffe Hospital",null,null,null,null,null,null,"RWDLP","Southmead Hospital"]
[null,null,null,null,null,null,null,null,null,null,null,null,null,null,null,null,null,null,null,null,"QU9","RTH","OXFORD UNIVERSITY HOSPITALS NHS FOUNDATION TRUST","RTH16","Wallingford Community Hospital",null,null,null,null,null,null,"RWE10","St George's Hospital (Tooting)"]
[null,null,null,null,null,null,null,null,null,null,null,null,null,null,null,null,null,null,null,null,"QU9","RHW","ROYAL BERKSHIRE NHS FOUNDATION TRUST","RHW01","Royal Berkshire Hospital",null,null,null,null,null,null,"RWEAA","St Helier Hospital"]
[null,null,null,null,null,null,null,null,null,null,null,null,null,null,null,null,null,null,null,null,"QUA","RNA","THE DUDLEY GROUP NHS FOUNDATION TRUST","RNA01","Russells Hall Hospital",null,null,null,null,null,null,"RWEAK","St James's University Hospital"]
[null,null,null,null,null,null,null,null,null,null,null,null,null,null,null,null,null,null,null,null,"QUA","RL4","THE ROYAL WOLVERHAMPTON NHS TRUST","RL403","New Cross Hospital",null,null,null,null,null,null,"RWEXXX","St Mary's Hospital"]
[null,null,null,null,null,null,null,null,null,null,null,null,null,null,null,null,null,null,null,null,"QUA","RBK","WALSALL HEALTHCARE NHS TRUST","RBK02","Manor Hospital",null,null,null,null,null,null,"RWF03","St Mary's Hospital"]
[null,null,null,null,null,null,null,null,null,null,null,null,null,null,null,null,null,null,null,null,"QUE","RGT","CAMBRIDGE UNIVERSITY HOSPITALS NHS FOUNDATION TRUST","RGT32","Rosie Hospital",null,null,null,null,null,null,"RWF08","St Mary's Hospital"]
[null,null,null,null,null,null,null,null,null,null,null,null,null,null,null,null,null,null,null,null,"QUE","RGN","NORTH WEST ANGLIA NHS FOUNDATION TRUST","RGN90","Hinchingbrooke Hospital",null,null,null,null,null,null,"RWFTW","St Mary's Hospital (HQ)"]
[null,null,null,null,null,null,null,null,null,null,null,null,null,null,null,null,null,null,null,null,"QUE","RGN","NORTH WEST ANGLIA NHS FOUNDATION TRUST","RGN80","Peterborough City Hospital",null,null,null,null,null,null,"RWFXXX","St Michael's Hospital"]
[null,null,null,null,null,null,null,null,null,null,null,null,null,null,null,null,null,null,null,null,"QUY","RVJ","NORTH BRISTOL NHS TRUST","RVJXXX","Non-hospital site",null,null,null,null,null,null,"RWG02","St Peter's Hospital"]
[null,null,null,null,null,null,null,null,null,null,null,null,null,null,null,null,null,null,null,null,"QUY","RVJ","NORTH BRISTOL NHS TRUST","RVJ01","Southmead Hospital",null,null,null,null,null,null,"RWH01","St Richard's Hospital"]
[null,null,null,null,null,null,null,null,null,null,null,null,null,null,null,null,null,null,null,null,"QUY","RA7","UNIVERSITY HOSPITALS BRISTOL AND WESTON NHS FOUNDATION TRUST","RA707","St Michael's Hospital",null,null,null,null,null,null,"RWHXXX","St Thomas' Hospital"]
[null,null,null,null,null,null,null,null,null,null,null,null,null,null,null,null,null,null,null,null,"QVV","RBD","DORSET COUNTY HOSPITAL NHS FOUNDATION TRUST","RBD01","Dorset County Hospital",null,null,null,null,null,null,"RWJ09","Stepping Hill Hospital"]
[null,null,null,null,null,null,null,null,null,null,null,null,null,null,null,null,null,null,null,null,"QVV","R0D","UNIVERSITY HOSPITALS DORSET NHS FOUNDATION TRUST","R0D01","Poole Hospital",null,null,null,null,null,null,"RWJXXX","Stoke Mandeville Hospital"]
[null,null,null,null,null,null,null,null,null,null,null,null,null,null,null,null,null,null,null,null,"QVV","R0D","UNIVERSITY HOSPITALS DORSET NHS FOUNDATION TRUST","R0D02","Royal Bournemouth Hospital",null,null,null,null,null,null,"RWP50","Sunderland Royal Hospital"]
[null,null,null,null,null,null,null,null,null,null,null,null,null,null,null,null,null,null,null,null,"QWE","RJ6","CROYDON HEALTH SERVICES NHS TRUST","RJ611","Croydon University Hospital",null,null,null,null,null,null,"RWWWH","Tameside General Hospital"]
[null,null,null,null,null,null,null,null,null,null,null,null,null,null,null,null,null,null,null,null,"QWE","RVR","EPSOM AND ST HELIER UNIVERSITY HOSPITALS NHS TRUST","RVR50","Epsom Hospital",null,null,null,null,null,null,"RWY02","The Great Western Hospital"]
[null,null,null,null,null,null,null,null,null,null,null,null,null,null,null,null,null,null,null,null,"QWE","RVR","EPSOM AND ST HELIER UNIVERSITY HOSPITALS NHS TRUST","RVRXXX","Non-hospital site",null,null,null,null,null,null,"RWYXXX","The James Cook University Hospital"]
[null,null,null,null,null,null,null,null,null,null,null,null,null,null,null,null,null,null,null,null,"QWE","RVR","EPSOM AND ST HELIER UNIVERSITY HOSPITALS NHS TRUST","RVR05","St Helier Hospital",null,null,null,null,null,null,"RX1CC","The Northumbria"]
[null,null,null,null,null,null,null,null,null,null,null,null,null,null,null,null,null,null,null,null,"QWE","RAX","KINGSTON HOSPITAL NHS FOUNDATION TRUST","RAX01","Kingston Hospital",null,null,null,null,null,null,"RX1RA","The Princess Royal Hospital"]
[null,null,null,null,null,null,null,null,null,null,null,null,null,null,null,null,null,null,null,null,"QWE","RJ7","ST GEORGE'S UNIVERSITY HOSPITALS NHS FOUNDATION TRUST","RJ701","St George's Hospital (Tooting)",null,null,null,null,null,null,"RX1XXX","The Queen Elizabeth Hospital"]
[null,null,null,null,null,null,null,null,null,null,null,null,null,null,null,null,null,null,null,null,"QWO","RCF","AIREDALE NHS FOUNDATION TRUST","RCF22","Airedale General Hospital",null,null,null,null,null,null,"RXC01","The Royal London Hospital"]
[null,null,null,null,null,null,null,null,null,null,null,null,null,null,null,null,null,null,null,null,"QWO","RAE","BRADFORD TEACHING HOSPITALS NHS FOUNDATION TRUST","RAE01","Bradford Royal Infirmary",null,null,null,null,null,null,"RXC02","The Royal Victoria Infirmary"]
[null,null,null,null,null,null,null,null,null,null,null,null,null,null,null,null,null,null,null,null,"QWO","RWY","CALDERDALE AND HUDDERSFIELD NHS FOUNDATION TRUST","RWY02","Calderdale Royal Hospital",null,null,null,null,null,null,"RXCXXX","The Tunbridge Wells Hospital"]
[null,null,null,null,null,null,null,null,null,null,null,null,null,null,null,null,null,null,null,null,"QWO","RWY","CALDERDALE AND HUDDERSFIELD NHS FOUNDATION TRUST","RWYXXX","Non-hospital site",null,null,null,null,null,null,"RXF03","The Whittington Hospital"]
[null,null,null,null,null,null,null,null,null,null,null,null,null,null,null,null,null,null,null,null,"QWO","RR8","LEEDS TEACHING HOSPITALS NHS TRUST","RR801","Leeds General Infirmary",null,null,null,null,null,null,"RXF05","Tiverton and District Hospital"]
[null,null,null,null,null,null,null,null,null,null,null,null,null,null,null,null,null,null,null,null,"QWO","RR8","LEEDS TEACHING HOSPITALS NHS TRUST","RR8XXX","Non-hospital site",null,null,null,null,null,null,"RXF10","Torbay Hospital"]
[null,null,null,null,null,null,null,null,null,null,null,null,null,null,null,null,null,null,null,null,"QWO","RR8","LEEDS TEACHING HOSPITALS NHS TRUST","RR813","St James's University Hospital",null,null,null,null,null,null,"RXFXXX","University College Hospital"]
[null,null,null,null,null,null,null,null,null,null,null,null,null,null,null,null,null,null,null,null,"QWO","RXF","MID YORKSHIRE TEACHING NHS TRUST","RXF10","Dewsbury and District Hospital",null,null,null,null,null,null,"RXK02","University Hospital (Coventry)"]
[null,null,null,null,null,null,null,null,null,null,null,null,null,null,null,null,null,null,null,null,"QWO","RXF","MID YORKSHIRE TEACHING NHS TRUST","RXFXXX","Non-hospital site",null,null,null,null,null,null,"RXL01","University Hospital Lewisham"]
[null,null,null,null,null,null,null,null,null,null,null,null,null,null,null,null,null,null,null,null,"QWO","RXF","MID YORKSHIRE TEACHING NHS TRUST","RXF05","Pinderfields General Hospital",null,null,null,null,null,null,"RXN01","University Hospital Of North Durham"]
[null,null,null,null,null,null,null,null,null,null,null,null,null,null,null,null,null,null,null,null,"QWO","RXF","MID YORKSHIRE TEACHING NHS TRUST","RXF03","Pontefract General Infirmary",null,null,null,null,null,null,"RXN02","Wallingford Community Hospital"]
[null,null,null,null,null,null,null,null,null,null,null,null,null,null,null,null,null,null,null,null,"QWU","RLT","GEORGE ELIOT HOSPITAL NHS TRUST","RLT01","George Eliot Hospital - Acute Services",null,null,null,null,null,null,"RXPCP","Warrington Hospital"]
[null,null,null,null,null,null,null,null,null,null,null,null,null,null,null,null,null,null,null,null,"QWU","RJC","SOUTH WARWICKSHIRE UNIVERSITY NHS FOUNDATION TRUST","RJC02","Warwick Hospital",null,null,null,null,null,null,"RXPDA","Warwick Hospital"]
[null,null,null,null,null,null,null,null,null,null,null,null,null,null,null,null,null,null,null,null,"QWU","RKB","UNIVERSITY HOSPITALS COVENTRY AND WARWICKSHIRE NHS TRUST","RKB03","Hospital Of St Cross",null,null,null,null,null,null,"RXQ02","Watford General Hospital"]
[null,null,null,null,null,null,null,null,null,null,null,null,null,null,null,null,null,null,null,null,"QWU","RKB","UNIVERSITY HOSPITALS COVENTRY AND WARWICKSHIRE NHS TRUST","RKBXXX","Non-hospital site",null,null,null,null,null,null,"RXR20","West Cumberland Hospital"]
[null,null,null,null,null,null,null,null,null,null,null,null,null,null,null,null,null,null,null,null,"QWU","RKB","UNIVERSITY HOSPITALS COVENTRY AND WARWICKSHIRE NHS TRUST","RKB01","University Hospital (Coventry)",null,null,null,null,null,null,"RXWAS","West Middlesex University Hospital"]
[null,null,null,null,null,null,null,null,null,null,null,null,null,null,null,null,null,null,null,null,"QXU","RTK","ASHFORD AND ST PETER'S HOSPITALS NHS FOUNDATION TRUST","RTK01","St Peter's Hospital",null,null,null,null,null,null,"RXWAT","West Suffolk Hospital"]
[null,null,null,null,null,null,null,null,null,null,null,null,null,null,null,null,null,null,null,null,"QXU","RA2","ROYAL SURREY COUNTY HOSPITAL NHS FOUNDATION TRUST","RA201","Royal Surrey County Hospital",null,null,null,null,null,null,"RXWMB","Westmorland General Hospital"]
[null,null,null,null,null,null,null,null,null,null,null,null,null,null,null,null,null,null,null,null,"QXU","RTP","SURREY AND SUSSEX HEALTHCARE NHS TRUST","RTP04","East Surrey Hospital",null,null,null,null,null,null,"RXWMJ","Wexham Park Hospital"]
[null,null,null,null,null,null,null,null,null,null,null,null,null,null,null,null,null,null,null,null,"QYG","REP","LIVERPOOL WOMEN'S NHS FOUNDATION TRUST","REP01","Liverpool Womens Hospital",null,null,null,null,null,null,"RXWML","Whipps Cross University Hospital"]
[null,null,null,null,null,null,null,null,null,null,null,null,null,null,null,null,null,null,null,null,"QYG","RBN","MERSEY AND WEST LANCASHIRE TEACHING HOSPITALS NHS TRUST","RBN52","Ormskirk and District General Hospital",null,null,null,null,null,null,"RXWXXX","Whiston Hospital"]
[null,null,null,null,null,null,null,null,null,null,null,null,null,null,null,null,null,null,null,null,"QYG","RBN","MERSEY AND WEST LANCASHIRE TEACHING HOSPITALS NHS TRUST","RBN01","Whiston Hospital",null,null,null,null,null,null,"RYJ01","Worcestershire Royal Hospital"]
[null,null,null,null,null,null,null,null,null,null,null,null,null,null,null,null,null,null,null,null,"QYG","RBT","MID CHESHIRE HOSPITALS NHS FOUNDATION TRUST","RBT20","Leighton Hospital",null,null,null,null,null,null,"RYJ04","Worthing Hospital"]
[null,null,null,null,null,null,null,null,null,null,null,null,null,null,null,null,null,null,null,null,"QYG","RWW","WARRINGTON AND HALTON TEACHING HOSPITALS NHS FOUNDATION TRUST","RWWWH","Warrington Hospital",null,null,null,null,null,null,"RYR16","Yeovil District Hospital"]
[null,null,null,null,null,null,null,null,null,null,null,null,null,null,null,null,null,null,null,null,"QYG","RBL","WIRRAL UNIVERSITY TEACHING HOSPITAL NHS FOUNDATION TRUST","RBL14","Arrowe Park Hospital",null,null,null,null,null,null,"RYR18","York Hospital"]

{"sheet":"BSQ3","index":15,"n_rows":165,"n_cols":33,"rows_kept":165,"cut":false,"hidden":true,"merged":[]}
[null,"Sort","ICB","ICB","Trusts","Trusts","Sites","Sites",null,"Sort ranges:","Sort range…","Sort range…","Sort range…","Reference Region List:","Code…","Name…","Linked Region List:","Code…","Name…","Reference Lists:","Code…","Code…","Name…","Code…","Name…","Trusts Linked Lists:","Code…","Name…","Site Linked Lists:","Code…","Name…","Code…","Name…"]
["ICB",1,1,1,"-","-","-","-",null,null,"ICB Code","ICB Code","ICB Code",null,"QE1","LANCASHIRE AND SOUTH CUMBRIA ICB",null,"QE1","LANCASHIRE AND SOUTH CUMBRIA ICB",null,"QE1","RXL","BLACKPOOL TEACHING HOSPITALS NHS FOUNDATION TRUST","RXL01","Blackpool Victoria Hospital",null,"R0A","ASHFORD AND ST PETER'S HOSPITALS NHS FOUNDATION TRUST",null,"R0A","ASHFORD AND ST PETER'S HOSPITALS NHS FOUNDATION TRUST","E0A3H","Arrowe Park Hospital"]
["Trusts",1,1,1,1,1,"-","-",null,null,"ICB Name","Trust Code","Trust Code",null,"QF7","SOUTH YORKSHIRE ICB",null,"QF7","SOUTH YORKSHIRE ICB",null,"QE1","RXR","EAST LANCASHIRE HOSPITALS NHS TRUST","RXR20","Royal Blackburn Hospital",null,"R0B","BARKING, HAVERING AND REDBRIDGE UNIVERSITY HOSPITALS NHS TRUST",null,"R0B","BARKING, HAVERING AND REDBRIDGE UNIVERSITY HOSPITALS NHS TRUST","N6J7V","Ashford Hospital"]
["Sites",1,1,1,1,1,1,1,null,null,"Total Responses","Trust Name","Trust Name",null,"QGH","HEREFORDSHIRE AND WORCESTERSHIRE ICB",null,"QGH","HEREFORDSHIRE AND WORCESTERSHIRE ICB",null,"QE1","RXN","LANCASHIRE TEACHING HOSPITALS NHS FOUNDATION TRUST","RXN01","Chorley and South Ribble Hospital",null,"R0D","BARNSLEY HOSPITAL NHS FOUNDATION TRUST",null,"R0D","BARNSLEY HOSPITAL NHS FOUNDATION TRUST","R0A05","Barnet Hospital"]
[null,null,null,null,null,null,null,null,null,null,"Percentage Positive","Total Responses","Site Code",null,"QH8","MID AND SOUTH ESSEX ICB",null,"QH8","MID AND SOUTH ESSEX ICB",null,"QE1","RXN","LANCASHIRE TEACHING HOSPITALS NHS FOUNDATION TRUST","RXN02","Royal Preston Hospital",null,"R1F","BARTS HEALTH NHS TRUST",null,"R1F","BARTS HEALTH NHS TRUST","R0B01","Barnsley Hospital NHS Foundation Trust HQ"]
[null,null,null,null,null,null,null,null,null,null,"Percentage Negative","Percentage Positive","Site Name",null,"QHG","BEDFORDSHIRE, LUTON AND MILTON KEYNES ICB",null,"QHG","BEDFORDSHIRE, LUTON AND MILTON KEYNES ICB",null,"QE1","RTX","UNIVERSITY HOSPITALS OF MORECAMBE BAY NHS FOUNDATION TRUST","RTXBU","Furness General Hospital",null,"R1H","BEDFORDSHIRE HOSPITALS NHS FOUNDATION TRUST",null,"R1H","BEDFORDSHIRE HOSPITALS NHS FOUNDATION TRUST","R0D01","BASILDON HOSPITAL"]
[null,null,null,null,null,null,null,null,null,null,"Very Good","Percentage Negative","Total Responses",null,"QHL","BIRMINGHAM AND SOLIHULL ICB",null,"QHL","BIRMINGHAM AND SOLIHULL ICB",null,"QE1","RTX","UNIVERSITY HOSPITALS OF MORECAMBE BAY NHS FOUNDATION TRUST","RTX02","Royal Lancaster Infirmary",null,"R1K","BIRMINGHAM WOMEN'S AND CHILDREN'S NHS FOUNDATION TRUST",null,"R1K","BIRMINGHAM WOMEN'S AND CHILDREN'S NHS FOUNDATION TRUST","R0D02","Basingstoke and North Hampshire Hospital"]
[null,null,null,null,null,null,null,null,null,null,"Good","Very Good","Percentage Positive",null,"QHM","NORTH EAST AND NORTH CUMBRIA ICB",null,"QHM","NORTH EAST AND NORTH CUMBRIA ICB",null,"QF7","RFF","BARNSLEY HOSPITAL NHS FOUNDATION TRUST","RFFAA","Barnsley Hospital NHS Foundation Trust HQ",null,"RA2","BLACKPOOL TEACHING HOSPITALS NHS FOUNDATION TRUST",null,"RA2","BLACKPOOL TEACHING HOSPITALS NHS FOUNDATION TRUST","R1F01","Bassetlaw Hospital"]
[null,null,null,null,null,null,null,null,null,null,"Neither Good nor Poor","Good","Percentage Negative",null,"QJ2","DERBY AND DERBYSHIRE ICB",null,"QJ2","DERBY AND DERBYSHIRE ICB",null,"QF7","RP5","DONCASTER AND BASSETLAW TEACHING HOSPITALS NHS FOUNDATION TRUST","RP5BA","Bassetlaw Hospital",null,"RA7","BOLTON NHS FOUNDATION TRUST",null,"RA7","BOLTON NHS FOUNDATION TRUST","R1H12","BEDFORD HOSPITAL SOUTH WING"]
[null,null,null,null,null,null,null,null,null,null,"Poor","Neither Good nor Poor","Very Good",null,"QJG","SUFFOLK AND NORTH EAST ESSEX ICB",null,"QJG","SUFFOLK AND NORTH EAST ESSEX ICB",null,"QF7","RP5","DONCASTER AND BASSETLAW TEACHING HOSPITALS NHS FOUNDATION TRUST","RP5DR","Doncaster Royal Infirmary",null,"RA9","BRADFORD TEACHING HOSPITALS NHS FOUNDATION TRUST",null,"RA9","BRADFORD TEACHING HOSPITALS NHS FOUNDATION TRUST","R1HKH","Birmingham Treatment Centre"]
[null,null,null,null,null,null,null,null,null,null,"Very Poor","Poor","Good",null,"QJK","DEVON ICB",null,"QJK","DEVON ICB",null,"QF7","RHQ","SHEFFIELD TEACHING HOSPITALS NHS FOUNDATION TRUST","RHQHH","Royal Hallamshire Hospital",null,"RAE","BUCKINGHAMSHIRE HEALTHCARE NHS TRUST",null,"RAE","BUCKINGHAMSHIRE HEALTHCARE NHS TRUST","R1HNH","Birmingham Women's Hospital"]
[null,null,null,null,null,null,null,null,null,null,"Don't Know","Very Poor","Neither Good nor Poor",null,"QJM","LINCOLNSHIRE ICB",null,"QJM","LINCOLNSHIRE ICB",null,"QF7","RFR","THE ROTHERHAM NHS FOUNDATION TRUST","RFRPA","Rotherham District General Hospital",null,"RAJ","CALDERDALE AND HUDDERSFIELD NHS FOUNDATION TRUST",null,"RAJ","CALDERDALE AND HUDDERSFIELD NHS FOUNDATION TRUST","R1K01","Blackpool Victoria Hospital"]
[null,null,null,null,null,null,null,null,null,null,null,"Don't Know","Poor",null,"QK1","LEICESTER, LEICESTERSHIRE AND RUTLAND ICB",null,"QK1","LEICESTER, LEICESTERSHIRE AND RUTLAND ICB",null,"QGH","RWP","WORCESTERSHIRE ACUTE HOSPITALS NHS TRUST","RWP50","Worcestershire Royal Hospital",null,"RAL","CAMBRIDGE UNIVERSITY HOSPITALS NHS FOUNDATION TRUST",null,"RAL","CAMBRIDGE UNIVERSITY HOSPITALS NHS FOUNDATION TRUST","RA201","Bradford Royal Infirmary"]
[null,null,null,null,null,null,null,null,null,null,null,"Mode SMS","Very Poor",null,"QKK","SOUTH EAST LONDON ICB",null,"QKK","SOUTH EAST LONDON ICB",null,"QGH","RLQ","WYE VALLEY NHS TRUST","RLQ01","Hereford County Hospital",null,"RAP","CHELSEA AND WESTMINSTER HOSPITAL NHS FOUNDATION TRUST",null,"RAP","CHELSEA AND WESTMINSTER HOSPITAL NHS FOUNDATION TRUST","RA707","Bridgnorth Hospital (Maternity)"]
[null,null,null,null,null,null,null,null,null,null,null,"Mode Electronic Discharge","Don't Know",null,"QKS","KENT AND MEDWAY ICB",null,"QKS","KENT AND MEDWAY ICB",null,"QH8","RAJ","MID AND SOUTH ESSEX NHS FOUNDATION TRUST","RAJ12","BASILDON HOSPITAL",null,"RAS","CHESTERFIELD ROYAL HOSPITAL NHS FOUNDATION TRUST",null,"RAS","CHESTERFIELD ROYAL HOSPITAL NHS FOUNDATION TRUST","RA901","Bridgwater Hospital"]
[null,null,null,null,null,null,null,null,null,null,null,"Mode Electronic Home",null,null,"QM7","HERTFORDSHIRE AND WEST ESSEX ICB",null,"QM7","HERTFORDSHIRE AND WEST ESSEX ICB",null,"QH8","RAJ","MID AND SOUTH ESSEX NHS FOUNDATION TRUST","RAJ32","MID ESSEX HOSPITAL",null,"RAX","COUNTY DURHAM AND DARLINGTON NHS FOUNDATION TRUST",null,"RAX","COUNTY DURHAM AND DARLINGTON NHS FOUNDATION TRUST","RAE01","Calderdale Royal Hospital"]
[null,null,null,null,null,null,null,null,null,null,null,"Mode Paper Discharge",null,null,"QMF","NORTH EAST LONDON ICB",null,"QMF","NORTH EAST LONDON ICB",null,"QH8","RAJ","MID AND SOUTH ESSEX NHS FOUNDATION TRUST","RAJ01","Southend Hospital",null,"RBD","DARTFORD AND GRAVESHAM NHS TRUST",null,"RBD","DARTFORD AND GRAVESHAM NHS TRUST","RAJ01","Chelsea and Westminster Hospital"]
[null,null,null,null,null,null,null,null,null,null,null,"Mode Paper Home",null,null,"QMJ","NORTH CENTRAL LONDON ICB",null,"QMJ","NORTH CENTRAL LONDON ICB",null,"QHG","RC9","BEDFORDSHIRE HOSPITALS NHS FOUNDATION TRUST","RC979","BEDFORD HOSPITAL SOUTH WING",null,"RBK","DONCASTER AND BASSETLAW TEACHING HOSPITALS NHS FOUNDATION TRUST",null,"RBK","DONCASTER AND BASSETLAW TEACHING HOSPITALS NHS FOUNDATION TRUST","RAJ12","Chesterfield Royal Hospital"]
[null,null,null,null,null,null,null,null,null,null,null,"Mode Telephone",null,null,"QMM","NORFOLK AND WAVENEY ICB",null,"QMM","NORFOLK AND WAVENEY ICB",null,"QHG","RC9","BEDFORDSHIRE HOSPITALS NHS FOUNDATION TRUST","RC971","Luton and Dunstable Hospital",null,"RBL","DORSET COUNTY HOSPITAL NHS FOUNDATION TRUST",null,"RBL","DORSET COUNTY HOSPITAL NHS FOUNDATION TRUST","RAJ32","Chippenham Community Hospital"]
[null,null,null,null,null,null,null,null,null,null,null,"Mode Online",null,null,"QNC","STAFFORDSHIRE AND STOKE-ON-TRENT ICB",null,"QNC","STAFFORDSHIRE AND STOKE-ON-TRENT ICB",null,"QHG","RD8","MILTON KEYNES UNIVERSITY HOSPITAL NHS FOUNDATION TRUST","RD816","Milton Keynes Hospital",null,"RBN","EAST AND NORTH HERTFORDSHIRE NHS TRUST",null,"RBN","EAST AND NORTH HERTFORDSHIRE NHS TRUST","RAL01","Chipping Norton Community Hospital"]
[null,null,null,null,null,null,null,null,null,null,null,"Mode Other",null,null,"QNQ","FRIMLEY ICB",null,"QNQ","FRIMLEY ICB",null,"QHL","RQ3","BIRMINGHAM WOMEN'S AND CHILDREN'S NHS FOUNDATION TRUST","RQ370","Birmingham Women's Hospital",null,"RBT","EAST LANCASHIRE HOSPITALS NHS TRUST",null,"RBT","EAST LANCASHIRE HOSPITALS NHS TRUST","RAL26","Chorley and South Ribble Hospital"]
[null,null,null,null,null,null,null,null,null,null,null,null,null,null,"QNX","SUSSEX ICB",null,"QNX","SUSSEX ICB",null,"QHL","RXK","SANDWELL AND WEST BIRMINGHAM HOSPITALS NHS TRUST","RXKTC","Birmingham Treatment Centre",null,"RC9","EAST SUFFOLK AND NORTH ESSEX NHS FOUNDATION TRUST",null,"RC9","EAST SUFFOLK AND NORTH ESSEX NHS FOUNDATION TRUST","RAPNM","City Hospital"]
[null,null,null,null,null,null,null,null,null,null,null,null,null,null,"QOC","SHROPSHIRE, TELFORD AND WREKIN ICB",null,"QOC","SHROPSHIRE, TELFORD AND WREKIN ICB",null,"QHL","RXK","SANDWELL AND WEST BIRMINGHAM HOSPITALS NHS TRUST","RXK02","City Hospital",null,"RCB","EAST SUSSEX HEALTHCARE NHS TRUST",null,"RCB","EAST SUSSEX HEALTHCARE NHS TRUST","RAS01","Colchester General Hospital"]
[null,null,null,null,null,null,null,null,null,null,null,null,null,null,"QOP","GREATER MANCHESTER ICB",null,"QOP","GREATER MANCHESTER ICB",null,"QHL","RRK","UNIVERSITY HOSPITALS BIRMINGHAM NHS FOUNDATION TRUST","RRK98","Good Hope Hospital",null,"RCD","EPSOM AND ST HELIER UNIVERSITY HOSPITALS NHS TRUST",null,"RCD","EPSOM AND ST HELIER UNIVERSITY HOSPITALS NHS TRUST","RAX01","Conquest Hospital"]
[null,null,null,null,null,null,null,null,null,null,null,null,null,null,"QOQ","HUMBER AND NORTH YORKSHIRE ICB",null,"QOQ","HUMBER AND NORTH YORKSHIRE ICB",null,"QHL","RRK","UNIVERSITY HOSPITALS BIRMINGHAM NHS FOUNDATION TRUST","RRK97","Heartlands Hospital",null,"RCX","GATESHEAD HEALTH NHS FOUNDATION TRUST",null,"RCX","GATESHEAD HEALTH NHS FOUNDATION TRUST","RBD01","Cumberland Infirmary"]
[null,null,null,null,null,null,null,null,null,null,null,null,null,null,"QOX","BATH AND NORTH EAST SOMERSET, SWINDON AND WILTSHIRE ICB",null,"QOX","BATH AND NORTH EAST SOMERSET, SWINDON AND WILTSHIRE ICB",null,"QHL","RRK","UNIVERSITY HOSPITALS BIRMINGHAM NHS FOUNDATION TRUST","RRK99","Solihull Hospital",null,"RD1","GEORGE ELIOT HOSPITAL NHS TRUST",null,"RD1","GEORGE ELIOT HOSPITAL NHS TRUST","RBK02","Darent Valley Hospital"]
[null,null,null,null,null,null,null,null,null,null,null,null,null,null,"QPM","NORTHAMPTONSHIRE ICB",null,"QPM","NORTHAMPTONSHIRE ICB",null,"QHM","RXP","COUNTY DURHAM AND DARLINGTON NHS FOUNDATION TRUST","RXPDA","Darlington Memorial Hospital",null,"RD8","GLOUCESTERSHIRE HOSPITALS NHS FOUNDATION TRUST",null,"RD8","GLOUCESTERSHIRE HOSPITALS NHS FOUNDATION TRUST","RBL14","Darlington Memorial Hospital"]
[null,null,null,null,null,null,null,null,null,null,null,null,null,null,"QR1","GLOUCESTERSHIRE ICB",null,"QR1","GLOUCESTERSHIRE ICB",null,"QHM","RXP","COUNTY DURHAM AND DARLINGTON NHS FOUNDATION TRUST","RXPCP","University Hospital Of North Durham",null,"RDE","GREAT WESTERN HOSPITALS NHS FOUNDATION TRUST",null,"RDE","GREAT WESTERN HOSPITALS NHS FOUNDATION TRUST","RBN01","Derriford Hospital"]
[null,null,null,null,null,null,null,null,null,null,null,null,null,null,"QRL","HAMPSHIRE AND ISLE OF WIGHT ICB",null,"QRL","HAMPSHIRE AND ISLE OF WIGHT ICB",null,"QHM","RR7","GATESHEAD HEALTH NHS FOUNDATION TRUST","RR7EN","Queen Elizabeth Hospital",null,"REF","GUY'S AND ST THOMAS' NHS FOUNDATION TRUST",null,"REF","GUY'S AND ST THOMAS' NHS FOUNDATION TRUST","RBN52","Doncaster Royal Infirmary"]
[null,null,null,null,null,null,null,null,null,null,null,null,null,null,"QRV","NORTH WEST LONDON ICB",null,"QRV","NORTH WEST LONDON ICB",null,"QHM","RNN","NORTH CUMBRIA INTEGRATED CARE NHS FOUNDATION TRUST","RNN62","Cumberland Infirmary",null,"REP","HAMPSHIRE HOSPITALS NHS FOUNDATION TRUST",null,"REP","HAMPSHIRE HOSPITALS NHS FOUNDATION TRUST","RBT20","Dorset County Hospital"]
[null,null,null,null,null,null,null,null,null,null,null,null,null,null,"QSL","SOMERSET ICB",null,"QSL","SOMERSET ICB",null,"QHM","RNN","NORTH CUMBRIA INTEGRATED CARE NHS FOUNDATION TRUST","RNNBX","West Cumberland Hospital",null,"RF4","HARROGATE AND DISTRICT NHS FOUNDATION TRUST",null,"RF4","HARROGATE AND DISTRICT NHS FOUNDATION TRUST","RC971","East Surrey Hospital"]
[null,null,null,null,null,null,null,null,null,null,null,null,null,null,"QT1","NOTTINGHAM AND NOTTINGHAMSHIRE ICB",null,"QT1","NOTTINGHAM AND NOTTINGHAMSHIRE ICB",null,"QHM","RVW","NORTH TEES AND HARTLEPOOL NHS FOUNDATION TRUST","RVWAE","University Hospital Of North Tees",null,"RFF","HOMERTON HEALTHCARE NHS FOUNDATION TRUST",null,"RFF","HOMERTON HEALTHCARE NHS FOUNDATION TRUST","RC979","Eastbourne District General Hospital"]
[null,null,null,null,null,null,null,null,null,null,null,null,null,null,"QT6","CORNWALL AND THE ISLES OF SCILLY ICB",null,"QT6","CORNWALL AND THE ISLES OF SCILLY ICB",null,"QHM","RTF","NORTHUMBRIA HEALTHCARE NHS FOUNDATION TRUST","RTF86","The Northumbria",null,"RFR","HULL UNIVERSITY TEACHING HOSPITALS NHS TRUST",null,"RFR","HULL UNIVERSITY TEACHING HOSPITALS NHS TRUST","RCB55","Epsom Hospital"]
[null,null,null,null,null,null,null,null,null,null,null,null,null,null,"QU9","BUCKINGHAMSHIRE, OXFORDSHIRE AND BERKSHIRE WEST ICB",null,"QU9","BUCKINGHAMSHIRE, OXFORDSHIRE AND BERKSHIRE WEST ICB",null,"QHM","RTR","SOUTH TEES HOSPITALS NHS FOUNDATION TRUST","RTR45","Friarage Hospital Site",null,"RFS","IMPERIAL COLLEGE HEALTHCARE NHS TRUST",null,"RFS","IMPERIAL COLLEGE HEALTHCARE NHS TRUST","RCBCA","Friarage Hospital Site"]
[null,null,null,null,null,null,null,null,null,null,null,null,null,null,"QUA","BLACK COUNTRY ICB",null,"QUA","BLACK COUNTRY ICB",null,"QHM","RTR","SOUTH TEES HOSPITALS NHS FOUNDATION TRUST","RTRAT","The James Cook University Hospital",null,"RGN","ISLE OF WIGHT NHS TRUST",null,"RGN","ISLE OF WIGHT NHS TRUST","RCD01","Furness General Hospital"]
[null,null,null,null,null,null,null,null,null,null,null,null,null,null,"QUE","CAMBRIDGESHIRE AND PETERBOROUGH ICB",null,"QUE","CAMBRIDGESHIRE AND PETERBOROUGH ICB",null,"QHM","R0B","SOUTH TYNESIDE AND SUNDERLAND NHS FOUNDATION TRUST","R0B01","Sunderland Royal Hospital",null,"RGP","JAMES PAGET UNIVERSITY HOSPITALS NHS FOUNDATION TRUST",null,"RGP","JAMES PAGET UNIVERSITY HOSPITALS NHS FOUNDATION TRUST","RCX70","George Eliot Hospital - Acute Services"]
[null,null,null,null,null,null,null,null,null,null,null,null,null,null,"QUY","BRISTOL, NORTH SOMERSET AND SOUTH GLOUCESTERSHIRE ICB",null,"QUY","BRISTOL, NORTH SOMERSET AND SOUTH GLOUCESTERSHIRE ICB",null,"QHM","RTD","THE NEWCASTLE UPON TYNE HOSPITALS NHS FOUNDATION TRUST","RTD02","The Royal Victoria Infirmary",null,"RGR","KETTERING GENERAL HOSPITAL NHS FOUNDATION TRUST",null,"RGR","KETTERING GENERAL HOSPITAL NHS FOUNDATION TRUST","RD102","Gloucestershire Royal Hospital"]
[null,null,null,null,null,null,null,null,null,null,null,null,null,null,"QVV","DORSET ICB",null,"QVV","DORSET ICB",null,"QJ2","RFS","CHESTERFIELD ROYAL HOSPITAL NHS FOUNDATION TRUST","RFSDA","Chesterfield Royal Hospital",null,"RGT","KING'S COLLEGE HOSPITAL NHS FOUNDATION TRUST",null,"RGT","KING'S COLLEGE HOSPITAL NHS FOUNDATION TRUST","RD130","Good Hope Hospital"]
[null,null,null,null,null,null,null,null,null,null,null,null,null,null,"QWE","SOUTH WEST LONDON ICB",null,"QWE","SOUTH WEST LONDON ICB",null,"QJ2","RTG","UNIVERSITY HOSPITALS OF DERBY AND BURTON NHS FOUNDATION TRUST","RTG02","Queens Hospital, Burton Upon Trent",null,"RH5","KINGSTON HOSPITAL NHS FOUNDATION TRUST",null,"RH5","KINGSTON HOSPITAL NHS FOUNDATION TRUST","RD816","Grantham and District Hospital"]
[null,null,null,null,null,null,null,null,null,null,null,null,null,null,"QWO","WEST YORKSHIRE ICB",null,"QWO","WEST YORKSHIRE ICB",null,"QJ2","RTG","UNIVERSITY HOSPITALS OF DERBY AND BURTON NHS FOUNDATION TRUST","RTGFG","Royal Derby Hospital",null,"RH8","LANCASHIRE TEACHING HOSPITALS NHS FOUNDATION TRUST",null,"RH8","LANCASHIRE TEACHING HOSPITALS NHS FOUNDATION TRUST","RDE03","Harrogate District Hospital"]
[null,null,null,null,null,null,null,null,null,null,null,null,null,null,"QWU","COVENTRY AND WARWICKSHIRE ICB",null,"QWU","COVENTRY AND WARWICKSHIRE ICB",null,"QJG","RDE","EAST SUFFOLK AND NORTH ESSEX NHS FOUNDATION TRUST","RDEE4","Colchester General Hospital",null,"RHM","LEEDS TEACHING HOSPITALS NHS TRUST",null,"RHM","LEEDS TEACHING HOSPITALS NHS TRUST","RDEE4","Heartlands Hospital"]
[null,null,null,null,null,null,null,null,null,null,null,null,null,null,"QXU","SURREY HEARTLANDS ICB",null,"QXU","SURREY HEARTLANDS ICB",null,"QJG","RDE","EAST SUFFOLK AND NORTH ESSEX NHS FOUNDATION TRUST","RDE03","Ipswich Hospital",null,"RHQ","LEWISHAM AND GREENWICH NHS TRUST",null,"RHQ","LEWISHAM AND GREENWICH NHS TRUST","REF12","Hereford County Hospital"]
[null,null,null,null,null,null,null,null,null,null,null,null,null,null,"QYG","CHESHIRE AND MERSEYSIDE ICB",null,"QYG","CHESHIRE AND MERSEYSIDE ICB",null,"QJG","RGR","WEST SUFFOLK NHS FOUNDATION TRUST","RGR50","West Suffolk Hospital",null,"RHU","LIVERPOOL WOMEN'S NHS FOUNDATION TRUST",null,"RHU","LIVERPOOL WOMEN'S NHS FOUNDATION TRUST","REP01","Hillingdon Hospital"]
[null,null,null,null,null,null,null,null,null,null,null,null,null,null,null,null,null,null,null,null,"QJK","RH8","ROYAL DEVON UNIVERSITY HEALTHCARE NHS FOUNDATION TRUST","RH880","North Devon District Hospital",null,"RHW","LONDON NORTH WEST UNIVERSITY HEALTHCARE NHS TRUST",null,"RHW","LONDON NORTH WEST UNIVERSITY HEALTHCARE NHS TRUST","RF4QH","Hinchingbrooke Hospital"]
[null,null,null,null,null,null,null,null,null,null,null,null,null,null,null,null,null,null,null,null,"QJK","RH8","ROYAL DEVON UNIVERSITY HEALTHCARE NHS FOUNDATION TRUST","RH801","Royal Devon and Exeter Hospital (Wonford)",null,"RJ1","MAIDSTONE AND TUNBRIDGE WELLS NHS TRUST",null,"RJ1","MAIDSTONE AND TUNBRIDGE WELLS NHS TRUST","RFFAA","Homerton University Hospital"]
[null,null,null,null,null,null,null,null,null,null,null,null,null,null,null,null,null,null,null,null,"QJK","RA9","TORBAY AND SOUTH DEVON NHS FOUNDATION TRUST","RA901","Torbay Hospital",null,"RJ2","MANCHESTER UNIVERSITY NHS FOUNDATION TRUST",null,"RJ2","MANCHESTER UNIVERSITY NHS FOUNDATION TRUST","RFRPA","Horton General Hospital"]
[null,null,null,null,null,null,null,null,null,null,null,null,null,null,null,null,null,null,null,null,"QJK","RK9","UNIVERSITY HOSPITALS PLYMOUTH NHS TRUST","RK950","Derriford Hospital",null,"RJ7","MEDWAY NHS FOUNDATION TRUST",null,"RJ7","MEDWAY NHS FOUNDATION TRUST","RFSDA","Hull Royal Infirmary"]
[null,null,null,null,null,null,null,null,null,null,null,null,null,null,null,null,null,null,null,null,"QJM","RWD","UNITED LINCOLNSHIRE HOSPITALS NHS TRUST","RWDLP","Grantham and District Hospital",null,"RJC","MERSEY AND WEST LANCASHIRE TEACHING HOSPITALS NHS TRUST",null,"RJC","MERSEY AND WEST LANCASHIRE TEACHING HOSPITALS NHS TRUST","RGN80","Ipswich Hospital"]
[null,null,null,null,null,null,null,null,null,null,null,null,null,null,null,null,null,null,null,null,"QJM","RWD","UNITED LINCOLNSHIRE HOSPITALS NHS TRUST","RWDDA","Lincoln County Hospital",null,"RJE","MID AND SOUTH ESSEX NHS FOUNDATION TRUST",null,"RJE","MID AND SOUTH ESSEX NHS FOUNDATION TRUST","RGN90","James Paget University Hospital"]
[null,null,null,null,null,null,null,null,null,null,null,null,null,null,null,null,null,null,null,null,"QJM","RWD","UNITED LINCOLNSHIRE HOSPITALS NHS TRUST","RWDLA","Pilgrim Hospital",null,"RJL","MID CHESHIRE HOSPITALS NHS FOUNDATION TRUST",null,"RJL","MID CHESHIRE HOSPITALS NHS FOUNDATION TRUST","RGP75","John Radcliffe Hospital"]
[null,null,null,null,null,null,null,null,null,null,null,null,null,null,null,null,null,null,null,null,"QK1","RWE","UNIVERSITY HOSPITALS OF LEICESTER NHS TRUST","RWEAK","Leicester General Hospital",null,"RJZ","MID YORKSHIRE TEACHING NHS TRUST",null,"RJZ","MID YORKSHIRE TEACHING NHS TRUST","RGR50","Kettering General Hospital"]
[null,null,null,null,null,null,null,null,null,null,null,null,null,null,null,null,null,null,null,null,"QK1","RWE","UNIVERSITY HOSPITALS OF LEICESTER NHS TRUST","RWEAA","Leicester Royal Infirmary",null,"RK5","MILTON KEYNES UNIVERSITY HOSPITAL NHS FOUNDATION TRUST",null,"RK5","MILTON KEYNES UNIVERSITY HOSPITAL NHS FOUNDATION TRUST","RGT32","King's College Hospital (Denmark Hill)"]
[null,null,null,null,null,null,null,null,null,null,null,null,null,null,null,null,null,null,null,null,"QK1","RWE","UNIVERSITY HOSPITALS OF LEICESTER NHS TRUST","RWE10","St Mary's Hospital",null,"RK9","NORFOLK AND NORWICH UNIVERSITY HOSPITALS NHS FOUNDATION TRUST",null,"RK9","NORFOLK AND NORWICH UNIVERSITY HOSPITALS NHS FOUNDATION TRUST","RH5A8","King's Mill Hospital"]
[null,null,null,null,null,null,null,null,null,null,null,null,null,null,null,null,null,null,null,null,"QKK","RJ1","GUY'S AND ST THOMAS' NHS FOUNDATION TRUST","RJ122","St Thomas' Hospital",null,"RKB","NORTH BRISTOL NHS TRUST",null,"RKB","NORTH BRISTOL NHS TRUST","RH5K6","Kingston Hospital"]
[null,null,null,null,null,null,null,null,null,null,null,null,null,null,null,null,null,null,null,null,"QKK","RJZ","KING'S COLLEGE HOSPITAL NHS FOUNDATION TRUST","RJZ01","King's College Hospital (Denmark Hill)",null,"RKE","NORTH CUMBRIA INTEGRATED CARE NHS FOUNDATION TRUST",null,"RKE","NORTH CUMBRIA INTEGRATED CARE NHS FOUNDATION TRUST","RH5O4","Leeds General Infirmary"]
[null,null,null,null,null,null,null,null,null,null,null,null,null,null,null,null,null,null,null,null,"QKK","RJZ","KING'S COLLEGE HOSPITAL NHS FOUNDATION TRUST","RJZ30","Princess Royal University Hospital",null,"RL4","NORTH MIDDLESEX UNIVERSITY HOSPITAL NHS TRUST",null,"RL4","NORTH MIDDLESEX UNIVERSITY HOSPITAL NHS TRUST","RH5XXXX","Leicester General Hospital"]
[null,null,null,null,null,null,null,null,null,null,null,null,null,null,null,null,null,null,null,null,"QKK","RJ2","LEWISHAM AND GREENWICH NHS TRUST","RJ231","Queen Elizabeth Hospital",null,"RLQ","NORTH TEES AND HARTLEPOOL NHS FOUNDATION TRUST",null,"RLQ","NORTH TEES AND HARTLEPOOL NHS FOUNDATION TRUST","RH801","Leicester Royal Infirmary"]
[null,null,null,null,null,null,null,null,null,null,null,null,null,null,null,null,null,null,null,null,"QKK","RJ2","LEWISHAM AND GREENWICH NHS TRUST","RJ224","University Hospital Lewisham",null,"RLT","NORTH WEST ANGLIA NHS FOUNDATION TRUST",null,"RLT","NORTH WEST ANGLIA NHS FOUNDATION TRUST","RH880","Leighton Hospital"]
[null,null,null,null,null,null,null,null,null,null,null,null,null,null,null,null,null,null,null,null,"QKS","RN7","DARTFORD AND GRAVESHAM NHS TRUST","RN707","Darent Valley Hospital",null,"RM1","NORTHAMPTON GENERAL HOSPITAL NHS TRUST",null,"RM1","NORTHAMPTON GENERAL HOSPITAL NHS TRUST","RHM01","Lincoln County Hospital"]
[null,null,null,null,null,null,null,null,null,null,null,null,null,null,null,null,null,null,null,null,"QKS","RWF","MAIDSTONE AND TUNBRIDGE WELLS NHS TRUST","RWFTW","The Tunbridge Wells Hospital",null,"RM3","NORTHERN CARE ALLIANCE NHS FOUNDATION TRUST",null,"RM3","NORTHERN CARE ALLIANCE NHS FOUNDATION TRUST","RHQHH","Lister Hospital"]
[null,null,null,null,null,null,null,null,null,null,null,null,null,null,null,null,null,null,null,null,"QKS","RPA","MEDWAY NHS FOUNDATION TRUST","RPA02","Medway Maritime Hospital",null,"RMC","NORTHERN LINCOLNSHIRE AND GOOLE NHS FOUNDATION TRUST",null,"RMC","NORTHERN LINCOLNSHIRE AND GOOLE NHS FOUNDATION TRUST","RHU02","Liverpool Womens Hospital"]
[null,null,null,null,null,null,null,null,null,null,null,null,null,null,null,null,null,null,null,null,"QM7","RWH","EAST AND NORTH HERTFORDSHIRE NHS TRUST","RWH01","Lister Hospital",null,"RMP","NORTHUMBRIA HEALTHCARE NHS FOUNDATION TRUST",null,"RMP","NORTHUMBRIA HEALTHCARE NHS FOUNDATION TRUST","RHU03","Ludlow Hospital (Maternity)"]
[null,null,null,null,null,null,null,null,null,null,null,null,null,null,null,null,null,null,null,null,"QM7","RQW","THE PRINCESS ALEXANDRA HOSPITAL NHS TRUST","RQWG0","Princess Alexandra Hospital",null,"RN3","NOTTINGHAM UNIVERSITY HOSPITALS NHS TRUST",null,"RN3","NOTTINGHAM UNIVERSITY HOSPITALS NHS TRUST","RHW01","Luton and Dunstable Hospital"]
[null,null,null,null,null,null,null,null,null,null,null,null,null,null,null,null,null,null,null,null,"QM7","RWG","WEST HERTFORDSHIRE TEACHING HOSPITALS NHS TRUST","RWG02","Watford General Hospital",null,"RN5","OXFORD UNIVERSITY HOSPITALS NHS FOUNDATION TRUST",null,"RN5","OXFORD UNIVERSITY HOSPITALS NHS FOUNDATION TRUST","RJ122","Manor Hospital"]
[null,null,null,null,null,null,null,null,null,null,null,null,null,null,null,null,null,null,null,null,"QMF","RF4","BARKING, HAVERING AND REDBRIDGE UNIVERSITY HOSPITALS NHS TRUST","RF4QH","Queen's Hospital",null,"RN7","PORTSMOUTH HOSPITALS UNIVERSITY NATIONAL HEALTH SERVICE TRUST",null,"RN7","PORTSMOUTH HOSPITALS UNIVERSITY NATIONAL HEALTH SERVICE TRUST","RJ224","Medway Maritime Hospital"]
[null,null,null,null,null,null,null,null,null,null,null,null,null,null,null,null,null,null,null,null,"QMF","R1H","BARTS HEALTH NHS TRUST","R1HNH","Newham General Hospital",null,"RNA","ROYAL BERKSHIRE NHS FOUNDATION TRUST",null,"RNA","ROYAL BERKSHIRE NHS FOUNDATION TRUST","RJ231","MID ESSEX HOSPITAL"]
[null,null,null,null,null,null,null,null,null,null,null,null,null,null,null,null,null,null,null,null,"QMF","R1H","BARTS HEALTH NHS TRUST","R1H12","The Royal London Hospital",null,"RNN","ROYAL CORNWALL HOSPITALS NHS TRUST",null,"RNN","ROYAL CORNWALL HOSPITALS NHS TRUST","RJ701","Milton Keynes Hospital"]
[null,null,null,null,null,null,null,null,null,null,null,null,null,null,null,null,null,null,null,null,"QMF","R1H","BARTS HEALTH NHS TRUST","R1HKH","Whipps Cross University Hospital",null,"RNQ","ROYAL DEVON UNIVERSITY HEALTHCARE NHS FOUNDATION TRUST",null,"RNQ","ROYAL DEVON UNIVERSITY HEALTHCARE NHS FOUNDATION TRUST","RJC02","MUSGROVE PARK HOSPITAL"]
[null,null,null,null,null,null,null,null,null,null,null,null,null,null,null,null,null,null,null,null,"QMF","RQX","HOMERTON HEALTHCARE NHS FOUNDATION TRUST","RQXM1","Homerton University Hospital",null,"RNS","ROYAL FREE LONDON NHS FOUNDATION TRUST",null,"RNS","ROYAL FREE LONDON NHS FOUNDATION TRUST","RJE01","New Cross Hospital"]
[null,null,null,null,null,null,null,null,null,null,null,null,null,null,null,null,null,null,null,null,"QMJ","RAP","NORTH MIDDLESEX UNIVERSITY HOSPITAL NHS TRUST","RAPNM","North Middlesex Hospital",null,"RNZ","ROYAL SURREY COUNTY HOSPITAL NHS FOUNDATION TRUST",null,"RNZ","ROYAL SURREY COUNTY HOSPITAL NHS FOUNDATION TRUST","RJL32","Newham General Hospital"]
[null,null,null,null,null,null,null,null,null,null,null,null,null,null,null,null,null,null,null,null,"QMJ","RAL","ROYAL FREE LONDON NHS FOUNDATION TRUST","RAL26","Barnet Hospital",null,"RP5","ROYAL UNITED HOSPITALS BATH NHS FOUNDATION TRUST",null,"RP5","ROYAL UNITED HOSPITALS BATH NHS FOUNDATION TRUST","RJZ01","Non-hospital site"]
[null,null,null,null,null,null,null,null,null,null,null,null,null,null,null,null,null,null,null,null,"QMJ","RAL","ROYAL FREE LONDON NHS FOUNDATION TRUST","RAL01","Royal Free Hospital",null,"RPA","SALISBURY NHS FOUNDATION TRUST",null,"RPA","SALISBURY NHS FOUNDATION TRUST","RJZ30","Non-hospital site home/in-transit births"]
[null,null,null,null,null,null,null,null,null,null,null,null,null,null,null,null,null,null,null,null,"QMJ","RKE","WHITTINGTON HEALTH NHS TRUST","RKEXXX","Non-hospital site",null,"RQ3","SANDWELL AND WEST BIRMINGHAM HOSPITALS NHS TRUST",null,"RQ3","SANDWELL AND WEST BIRMINGHAM HOSPITALS NHS TRUST","RK5BC","Norfolk and Norwich University Hospital"]
[null,null,null,null,null,null,null,null,null,null,null,null,null,null,null,null,null,null,null,null,"QMJ","RKE","WHITTINGTON HEALTH NHS TRUST","RKEQ4","The Whittington Hospital",null,"RQM","SHEFFIELD TEACHING HOSPITALS NHS FOUNDATION TRUST",null,"RQM","SHEFFIELD TEACHING HOSPITALS NHS FOUNDATION TRUST","RK950","North Devon District Hospital"]
[null,null,null,null,null,null,null,null,null,null,null,null,null,null,null,null,null,null,null,null,"QMM","RGP","JAMES PAGET UNIVERSITY HOSPITALS NHS FOUNDATION TRUST","RGP75","James Paget University Hospital",null,"RQW","SHERWOOD FOREST HOSPITALS NHS FOUNDATION TRUST",null,"RQW","SHERWOOD FOREST HOSPITALS NHS FOUNDATION TRUST","RKB01","North Middlesex Hospital"]
[null,null,null,null,null,null,null,null,null,null,null,null,null,null,null,null,null,null,null,null,"QMM","RM1","NORFOLK AND NORWICH UNIVERSITY HOSPITALS NHS FOUNDATION TRUST","RM102","Norfolk and Norwich University Hospital",null,"RQX","SOMERSET NHS FOUNDATION TRUST",null,"RQX","SOMERSET NHS FOUNDATION TRUST","RKEQ4","Northampton General Hospital (Acute)"]
[null,null,null,null,null,null,null,null,null,null,null,null,null,null,null,null,null,null,null,null,"QMM","RCX","THE QUEEN ELIZABETH HOSPITAL, KING'S LYNN, NHS FOUNDATION TRUST","RCX70","The Queen Elizabeth Hospital",null,"RR7","SOUTH TEES HOSPITALS NHS FOUNDATION TRUST",null,"RR7","SOUTH TEES HOSPITALS NHS FOUNDATION TRUST","RKEXXX","Northwick Park Hospital"]
[null,null,null,null,null,null,null,null,null,null,null,null,null,null,null,null,null,null,null,null,"QNC","RJE","UNIVERSITY HOSPITALS OF NORTH MIDLANDS NHS TRUST","RJE01","Royal Stoke University Hospital",null,"RR8","SOUTH TYNESIDE AND SUNDERLAND NHS FOUNDATION TRUST",null,"RR8","SOUTH TYNESIDE AND SUNDERLAND NHS FOUNDATION TRUST","RL403","Nottingham University Hospitals NHS Trust - City Campus"]
[null,null,null,null,null,null,null,null,null,null,null,null,null,null,null,null,null,null,null,null,"QNX","RXC","EAST SUSSEX HEALTHCARE NHS TRUST","RXC01","Conquest Hospital",null,"RRF","SOUTH WARWICKSHIRE UNIVERSITY NHS FOUNDATION TRUST",null,"RRF","SOUTH WARWICKSHIRE UNIVERSITY NHS FOUNDATION TRUST","RLQ01","Nottingham University Hospitals NHS Trust - Queen's Medical Centre Campus"]
[null,null,null,null,null,null,null,null,null,null,null,null,null,null,null,null,null,null,null,null,"QNX","RXC","EAST SUSSEX HEALTHCARE NHS TRUST","RXC02","Eastbourne District General Hospital",null,"RRK","ST GEORGE'S UNIVERSITY HOSPITALS NHS FOUNDATION TRUST",null,"RRK","ST GEORGE'S UNIVERSITY HOSPITALS NHS FOUNDATION TRUST","RLT01","Ormskirk and District General Hospital"]
[null,null,null,null,null,null,null,null,null,null,null,null,null,null,null,null,null,null,null,null,"QNX","RYR","UNIVERSITY HOSPITALS SUSSEX NHS FOUNDATION TRUST","N6J7V","Princess Royal Hospital",null,"RTD","STOCKPORT NHS FOUNDATION TRUST",null,"RTD","STOCKPORT NHS FOUNDATION TRUST","RM102","Peterborough City Hospital"]
[null,null,null,null,null,null,null,null,null,null,null,null,null,null,null,null,null,null,null,null,"QNX","RYR","UNIVERSITY HOSPITALS SUSSEX NHS FOUNDATION TRUST","E0A3H","Royal Sussex County Hospital",null,"RTE","SURREY AND SUSSEX HEALTHCARE NHS TRUST",null,"RTE","SURREY AND SUSSEX HEALTHCARE NHS TRUST","RMC01","Pilgrim Hospital"]
[null,null,null,null,null,null,null,null,null,null,null,null,null,null,null,null,null,null,null,null,"QNX","RYR","UNIVERSITY HOSPITALS SUSSEX NHS FOUNDATION TRUST","RYR16","St Richard's Hospital",null,"RTF","TAMESIDE AND GLOSSOP INTEGRATED CARE NHS FOUNDATION TRUST",null,"RTF","TAMESIDE AND GLOSSOP INTEGRATED CARE NHS FOUNDATION TRUST","RMP01","Pinderfields General Hospital"]
[null,null,null,null,null,null,null,null,null,null,null,null,null,null,null,null,null,null,null,null,"QNX","RYR","UNIVERSITY HOSPITALS SUSSEX NHS FOUNDATION TRUST","RYR18","Worthing Hospital",null,"RTG","THE DUDLEY GROUP NHS FOUNDATION TRUST",null,"RTG","THE DUDLEY GROUP NHS FOUNDATION TRUST","RN325","Poole Hospital"]
[null,null,null,null,null,null,null,null,null,null,null,null,null,null,null,null,null,null,null,null,"QOC","RXW","THE SHREWSBURY AND TELFORD HOSPITAL NHS TRUST","RXWMB","Bridgnorth Hospital (Maternity)",null,"RTH","THE HILLINGDON HOSPITALS NHS FOUNDATION TRUST",null,"RTH","THE HILLINGDON HOSPITALS NHS FOUNDATION TRUST","RN506","Princess Alexandra Hospital"]
[null,null,null,null,null,null,null,null,null,null,null,null,null,null,null,null,null,null,null,null,"QOC","RXW","THE SHREWSBURY AND TELFORD HOSPITAL NHS TRUST","RXWML","Ludlow Hospital (Maternity)",null,"RTK","THE NEWCASTLE UPON TYNE HOSPITALS NHS FOUNDATION TRUST",null,"RTK","THE NEWCASTLE UPON TYNE HOSPITALS NHS FOUNDATION TRUST","RN541","Princess Anne Wing RUH"]
[null,null,null,null,null,null,null,null,null,null,null,null,null,null,null,null,null,null,null,null,"QOC","RXW","THE SHREWSBURY AND TELFORD HOSPITAL NHS TRUST","RXWMJ","Robert Jones & Agnes Hunt Orthopaedic & District Hospital",null,"RTP","THE PRINCESS ALEXANDRA HOSPITAL NHS TRUST",null,"RTP","THE PRINCESS ALEXANDRA HOSPITAL NHS TRUST","RN707","Princess Royal Hospital"]
[null,null,null,null,null,null,null,null,null,null,null,null,null,null,null,null,null,null,null,null,"QOC","RXW","THE SHREWSBURY AND TELFORD HOSPITAL NHS TRUST","RXWAS","Royal Shrewsbury Hospital",null,"RTR","THE QUEEN ELIZABETH HOSPITAL, KING'S LYNN, NHS FOUNDATION TRUST",null,"RTR","THE QUEEN ELIZABETH HOSPITAL, KING'S LYNN, NHS FOUNDATION TRUST","RNA01","Princess Royal University Hospital"]
[null,null,null,null,null,null,null,null,null,null,null,null,null,null,null,null,null,null,null,null,"QOC","RXW","THE SHREWSBURY AND TELFORD HOSPITAL NHS TRUST","RXWAT","The Princess Royal Hospital",null,"RTX","THE ROTHERHAM NHS FOUNDATION TRUST",null,"RTX","THE ROTHERHAM NHS FOUNDATION TRUST","RNN62","Queen Alexandra Hospital"]
[null,null,null,null,null,null,null,null,null,null,null,null,null,null,null,null,null,null,null,null,"QOP","RMC","BOLTON NHS FOUNDATION TRUST","RMC01","Royal Bolton Hospital",null,"RVJ","THE ROYAL WOLVERHAMPTON NHS TRUST",null,"RVJ","THE ROYAL WOLVERHAMPTON NHS TRUST","RNNBX","Queen Charlotte's Hospital"]
[null,null,null,null,null,null,null,null,null,null,null,null,null,null,null,null,null,null,null,null,"QOP","R0A","MANCHESTER UNIVERSITY NHS FOUNDATION TRUST","R0A05","St Mary's Hospital",null,"RVR","THE SHREWSBURY AND TELFORD HOSPITAL NHS TRUST",null,"RVR","THE SHREWSBURY AND TELFORD HOSPITAL NHS TRUST","RNQ51","Queen Elizabeth Hospital"]
[null,null,null,null,null,null,null,null,null,null,null,null,null,null,null,null,null,null,null,null,"QOP","RM3","NORTHERN CARE ALLIANCE NHS FOUNDATION TRUST","RW603","Royal Oldham Hospital",null,"RVW","TORBAY AND SOUTH DEVON NHS FOUNDATION TRUST",null,"RVW","TORBAY AND SOUTH DEVON NHS FOUNDATION TRUST","RNS01","Queen Elizabeth Hospital"]
[null,null,null,null,null,null,null,null,null,null,null,null,null,null,null,null,null,null,null,null,"QOP","RWJ","STOCKPORT NHS FOUNDATION TRUST","RWJ09","Stepping Hill Hospital",null,"RWA","UNITED LINCOLNSHIRE HOSPITALS NHS TRUST",null,"RWA","UNITED LINCOLNSHIRE HOSPITALS NHS TRUST","RNZ02","Queen's Hospital"]
[null,null,null,null,null,null,null,null,null,null,null,null,null,null,null,null,null,null,null,null,"QOP","RMP","TAMESIDE AND GLOSSOP INTEGRATED CARE NHS FOUNDATION TRUST","RMP01","Tameside General Hospital",null,"RWD","UNIVERSITY HOSPITAL SOUTHAMPTON NHS FOUNDATION TRUST",null,"RWD","UNIVERSITY HOSPITAL SOUTHAMPTON NHS FOUNDATION TRUST","RP5BA","Queens Hospital, Burton Upon Trent"]
[null,null,null,null,null,null,null,null,null,null,null,null,null,null,null,null,null,null,null,null,"QOP","RRF","WRIGHTINGTON, WIGAN AND LEIGH NHS FOUNDATION TRUST","RRF02","Royal Albert Edward Infirmary",null,"RWE","UNIVERSITY HOSPITALS BIRMINGHAM NHS FOUNDATION TRUST",null,"RWE","UNIVERSITY HOSPITALS BIRMINGHAM NHS FOUNDATION TRUST","RP5DR","Robert Jones & Agnes Hunt Orthopaedic & District Hospital"]
[null,null,null,null,null,null,null,null,null,null,null,null,null,null,null,null,null,null,null,null,"QOQ","RCD","HARROGATE AND DISTRICT NHS FOUNDATION TRUST","RCD01","Harrogate District Hospital",null,"RWF","UNIVERSITY HOSPITALS BRISTOL AND WESTON NHS FOUNDATION TRUST",null,"RWF","UNIVERSITY HOSPITALS BRISTOL AND WESTON NHS FOUNDATION TRUST","RPA02","Rosie Hospital"]
[null,null,null,null,null,null,null,null,null,null,null,null,null,null,null,null,null,null,null,null,"QOQ","RWA","HULL UNIVERSITY TEACHING HOSPITALS NHS TRUST","RWA01","Hull Royal Infirmary",null,"RWG","UNIVERSITY HOSPITALS COVENTRY AND WARWICKSHIRE NHS TRUST",null,"RWG","UNIVERSITY HOSPITALS COVENTRY AND WARWICKSHIRE NHS TRUST","RQ370","Rotherham District General Hospital"]
[null,null,null,null,null,null,null,null,null,null,null,null,null,null,null,null,null,null,null,null,"QOQ","RJL","NORTHERN LINCOLNSHIRE AND GOOLE NHS FOUNDATION TRUST","RJL32","Scunthorpe General Hospital",null,"RWH","UNIVERSITY HOSPITALS DORSET NHS FOUNDATION TRUST",null,"RWH","UNIVERSITY HOSPITALS DORSET NHS FOUNDATION TRUST","RQM01","Royal Albert Edward Infirmary"]
[null,null,null,null,null,null,null,null,null,null,null,null,null,null,null,null,null,null,null,null,"QOQ","RCB","YORK AND SCARBOROUGH TEACHING HOSPITALS NHS FOUNDATION TRUST","RCBCA","Scarborough General Hospital",null,"RWJ","UNIVERSITY HOSPITALS OF DERBY AND BURTON NHS FOUNDATION TRUST",null,"RWJ","UNIVERSITY HOSPITALS OF DERBY AND BURTON NHS FOUNDATION TRUST","RQM91","Royal Berkshire Hospital"]
[null,null,null,null,null,null,null,null,null,null,null,null,null,null,null,null,null,null,null,null,"QOQ","RCB","YORK AND SCARBOROUGH TEACHING HOSPITALS NHS FOUNDATION TRUST","RCB55","York Hospital",null,"RWP","UNIVERSITY HOSPITALS OF LEICESTER NHS TRUST",null,"RWP","UNIVERSITY HOSPITALS OF LEICESTER NHS TRUST","RQWG0","Royal Blackburn Hospital"]
[null,null,null,null,null,null,null,null,null,null,null,null,null,null,null,null,null,null,null,null,"QOX","RN3","GREAT WESTERN HOSPITALS NHS FOUNDATION TRUST","RN325","The Great Western Hospital",null,"RWW","UNIVERSITY HOSPITALS OF MORECAMBE BAY NHS FOUNDATION TRUST",null,"RWW","UNIVERSITY HOSPITALS OF MORECAMBE BAY NHS FOUNDATION TRUST","RQXM1","Royal Bolton Hospital"]
[null,null,null,null,null,null,null,null,null,null,null,null,null,null,null,null,null,null,null,null,"QOX","RD1","ROYAL UNITED HOSPITALS BATH NHS FOUNDATION TRUST","RD102","Chippenham Community Hospital",null,"RWY","UNIVERSITY HOSPITALS OF NORTH MIDLANDS NHS TRUST",null,"RWY","UNIVERSITY HOSPITALS OF NORTH MIDLANDS NHS TRUST","RR7EN","Royal Bournemouth Hospital"]
[null,null,null,null,null,null,null,null,null,null,null,null,null,null,null,null,null,null,null,null,"QOX","RD1","ROYAL UNITED HOSPITALS BATH NHS FOUNDATION TRUST","RD130","Princess Anne Wing RUH",null,"RX1","UNIVERSITY HOSPITALS PLYMOUTH NHS TRUST",null,"RX1","UNIVERSITY HOSPITALS PLYMOUTH NHS TRUST","RR801","Royal Cornwall Hospital (Treliske)"]
[null,null,null,null,null,null,null,null,null,null,null,null,null,null,null,null,null,null,null,null,"QOX","RNZ","SALISBURY NHS FOUNDATION TRUST","RNZ02","Salisbury District Hospital",null,"RXC","UNIVERSITY HOSPITALS SUSSEX NHS FOUNDATION TRUST",null,"RXC","UNIVERSITY HOSPITALS SUSSEX NHS FOUNDATION TRUST","RR813","Royal Derby Hospital"]
[null,null,null,null,null,null,null,null,null,null,null,null,null,null,null,null,null,null,null,null,"QPM","RNQ","KETTERING GENERAL HOSPITAL NHS FOUNDATION TRUST","RNQ51","Kettering General Hospital",null,"RXF","WALSALL HEALTHCARE NHS TRUST",null,"RXF","WALSALL HEALTHCARE NHS TRUST","RRF02","Royal Devon and Exeter Hospital (Wonford)"]
[null,null,null,null,null,null,null,null,null,null,null,null,null,null,null,null,null,null,null,null,"QPM","RNS","NORTHAMPTON GENERAL HOSPITAL NHS TRUST","RNS01","Northampton General Hospital (Acute)",null,"RXK","WARRINGTON AND HALTON TEACHING HOSPITALS NHS FOUNDATION TRUST",null,"RXK","WARRINGTON AND HALTON TEACHING HOSPITALS NHS FOUNDATION TRUST","RRK97","Royal Free Hospital"]
[null,null,null,null,null,null,null,null,null,null,null,null,null,null,null,null,null,null,null,null,"QR1","RTE","GLOUCESTERSHIRE HOSPITALS NHS FOUNDATION TRUST","RTE03","Gloucestershire Royal Hospital",null,"RXL","WEST HERTFORDSHIRE TEACHING HOSPITALS NHS TRUST",null,"RXL","WEST HERTFORDSHIRE TEACHING HOSPITALS NHS TRUST","RRK98","Royal Hallamshire Hospital"]
[null,null,null,null,null,null,null,null,null,null,null,null,null,null,null,null,null,null,null,null,"QRL","RN5","HAMPSHIRE HOSPITALS NHS FOUNDATION TRUST","RN506","Basingstoke and North Hampshire Hospital",null,"RXN","WEST SUFFOLK NHS FOUNDATION TRUST",null,"RXN","WEST SUFFOLK NHS FOUNDATION TRUST","RRK99","Royal Hampshire County Hospital"]
[null,null,null,null,null,null,null,null,null,null,null,null,null,null,null,null,null,null,null,null,"QRL","RN5","HAMPSHIRE HOSPITALS NHS FOUNDATION TRUST","RN541","Royal Hampshire County Hospital",null,"RXP","WHITTINGTON HEALTH NHS TRUST",null,"RXP","WHITTINGTON HEALTH NHS TRUST","RTD02","Royal Lancaster Infirmary"]
[null,null,null,null,null,null,null,null,null,null,null,null,null,null,null,null,null,null,null,null,"QRL","R1F","ISLE OF WIGHT NHS TRUST","R1F01","St Mary's Hospital",null,"RXQ","WIRRAL UNIVERSITY TEACHING HOSPITAL NHS FOUNDATION TRUST",null,"RXQ","WIRRAL UNIVERSITY TEACHING HOSPITAL NHS FOUNDATION TRUST","RTE03","Royal Oldham Hospital"]
[null,null,null,null,null,null,null,null,null,null,null,null,null,null,null,null,null,null,null,null,"QRL","RHU","PORTSMOUTH HOSPITALS UNIVERSITY NATIONAL HEALTH SERVICE TRUST","RHU03","Queen Alexandra Hospital",null,"RXR","WORCESTERSHIRE ACUTE HOSPITALS NHS TRUST",null,"RXR","WORCESTERSHIRE ACUTE HOSPITALS NHS TRUST","RTF86","Royal Preston Hospital"]
[null,null,null,null,null,null,null,null,null,null,null,null,null,null,null,null,null,null,null,null,"QRL","RHU","PORTSMOUTH HOSPITALS UNIVERSITY NATIONAL HEALTH SERVICE TRUST","RHU02","St Mary's Hospital",null,"RXW","WRIGHTINGTON, WIGAN AND LEIGH NHS FOUNDATION TRUST",null,"RXW","WRIGHTINGTON, WIGAN AND LEIGH NHS FOUNDATION TRUST","RTG02","Royal Shrewsbury Hospital"]
[null,null,null,null,null,null,null,null,null,null,null,null,null,null,null,null,null,null,null,null,"QRL","RHM","UNIVERSITY HOSPITAL SOUTHAMPTON NHS FOUNDATION TRUST","RHM01","Southampton General Hospital",null,"RYJ","WYE VALLEY NHS TRUST",null,"RYJ","WYE VALLEY NHS TRUST","RTGFG","Royal Stoke University Hospital"]
[null,null,null,null,null,null,null,null,null,null,null,null,null,null,null,null,null,null,null,null,"QRV","RQM","CHELSEA AND WESTMINSTER HOSPITAL NHS FOUNDATION TRUST","RQM01","Chelsea and Westminster Hospital",null,"RYR","YORK AND SCARBOROUGH TEACHING HOSPITALS NHS FOUNDATION TRUST",null,"RYR","YORK AND SCARBOROUGH TEACHING HOSPITALS NHS FOUNDATION TRUST","RTH05","Royal Surrey County Hospital"]
[null,null,null,null,null,null,null,null,null,null,null,null,null,null,null,null,null,null,null,null,"QRV","RQM","CHELSEA AND WESTMINSTER HOSPITAL NHS FOUNDATION TRUST","RQM91","West Middlesex University Hospital",null,null,null,null,null,null,"RTH08","Royal Sussex County Hospital"]
[null,null,null,null,null,null,null,null,null,null,null,null,null,null,null,null,null,null,null,null,"QRV","RYJ","IMPERIAL COLLEGE HEALTHCARE NHS TRUST","RYJ04","Queen Charlotte's Hospital",null,null,null,null,null,null,"RTH16","Russells Hall Hospital"]
[null,null,null,null,null,null,null,null,null,null,null,null,null,null,null,null,null,null,null,null,"QRV","RYJ","IMPERIAL COLLEGE HEALTHCARE NHS TRUST","RYJ01","St Mary's Hospital (HQ)",null,null,null,null,null,null,"RTH19","Salisbury District Hospital"]
[null,null,null,null,null,null,null,null,null,null,null,null,null,null,null,null,null,null,null,null,"QRV","R1K","LONDON NORTH WEST UNIVERSITY HEALTHCARE NHS TRUST","R1K01","Northwick Park Hospital",null,null,null,null,null,null,"RTK02","Scarborough General Hospital"]
[null,null,null,null,null,null,null,null,null,null,null,null,null,null,null,null,null,null,null,null,"QRV","RAS","THE HILLINGDON HOSPITALS NHS FOUNDATION TRUST","RAS01","Hillingdon Hospital",null,null,null,null,null,null,"RTP04","Scunthorpe General Hospital"]
[null,null,null,null,null,null,null,null,null,null,null,null,null,null,null,null,null,null,null,null,"QSL","RH5","SOMERSET NHS FOUNDATION TRUST","RH5K6","Bridgwater Hospital",null,null,null,null,null,null,"RTR45","Solihull Hospital"]
[null,null,null,null,null,null,null,null,null,null,null,null,null,null,null,null,null,null,null,null,"QSL","RH5","SOMERSET NHS FOUNDATION TRUST","RH5A8","MUSGROVE PARK HOSPITAL",null,null,null,null,null,null,"RTRAT","Southampton General Hospital"]
[null,null,null,null,null,null,null,null,null,null,null,null,null,null,null,null,null,null,null,null,"QSL","RH5","SOMERSET NHS FOUNDATION TRUST","RH5XXXX","Non-hospital site home/in-transit births",null,null,null,null,null,null,"RTX02","Southend Hospital"]
[null,null,null,null,null,null,null,null,null,null,null,null,null,null,null,null,null,null,null,null,"QSL","RH5","SOMERSET NHS FOUNDATION TRUST","RH5O4","Yeovil District Hospital",null,null,null,null,null,null,"RTXBU","Southmead Hospital"]
[null,null,null,null,null,null,null,null,null,null,null,null,null,null,null,null,null,null,null,null,"QT1","RX1","NOTTINGHAM UNIVERSITY HOSPITALS NHS TRUST","RX1CC","Nottingham University Hospitals NHS Trust - City Campus",null,null,null,null,null,null,"RVJ01","St George's Hospital (Tooting)"]
[null,null,null,null,null,null,null,null,null,null,null,null,null,null,null,null,null,null,null,null,"QT1","RX1","NOTTINGHAM UNIVERSITY HOSPITALS NHS TRUST","RX1RA","Nottingham University Hospitals NHS Trust - Queen's Medical Centre Campus",null,null,null,null,null,null,"RVR05","St Helier Hospital"]
[null,null,null,null,null,null,null,null,null,null,null,null,null,null,null,null,null,null,null,null,"QT1","RK5","SHERWOOD FOREST HOSPITALS NHS FOUNDATION TRUST","RK5BC","King's Mill Hospital",null,null,null,null,null,null,"RVR50","St James's University Hospital"]
[null,null,null,null,null,null,null,null,null,null,null,null,null,null,null,null,null,null,null,null,"QT6","REF","ROYAL CORNWALL HOSPITALS NHS TRUST","REF12","Royal Cornwall Hospital (Treliske)",null,null,null,null,null,null,"RVWAE","St Mary's Hospital"]
[null,null,null,null,null,null,null,null,null,null,null,null,null,null,null,null,null,null,null,null,"QU9","RXQ","BUCKINGHAMSHIRE HEALTHCARE NHS TRUST","RXQ02","Stoke Mandeville Hospital",null,null,null,null,null,null,"RW603","St Mary's Hospital"]
[null,null,null,null,null,null,null,null,null,null,null,null,null,null,null,null,null,null,null,null,"QU9","RTH","OXFORD UNIVERSITY HOSPITALS NHS FOUNDATION TRUST","RTH19","Chipping Norton Community Hospital",null,null,null,null,null,null,"RWA01","St Mary's Hospital"]
[null,null,null,null,null,null,null,null,null,null,null,null,null,null,null,null,null,null,null,null,"QU9","RTH","OXFORD UNIVERSITY HOSPITALS NHS FOUNDATION TRUST","RTH05","Horton General Hospital",null,null,null,null,null,null,"RWDDA","St Mary's Hospital"]
[null,null,null,null,null,null,null,null,null,null,null,null,null,null,null,null,null,null,null,null,"QU9","RTH","OXFORD UNIVERSITY HOSPITALS NHS FOUNDATION TRUST","RTH08","John Radcliffe Hospital",null,null,null,null,null,null,"RWDLA","St Mary's Hospital (HQ)"]
[null,null,null,null,null,null,null,null,null,null,null,null,null,null,null,null,null,null,null,null,"QU9","RTH","OXFORD UNIVERSITY HOSPITALS NHS FOUNDATION TRUST","RTH16","Wallingford Community Hospital",null,null,null,null,null,null,"RWDLP","St Michael's Hospital"]
[null,null,null,null,null,null,null,null,null,null,null,null,null,null,null,null,null,null,null,null,"QU9","RHW","ROYAL BERKSHIRE NHS FOUNDATION TRUST","RHW01","Royal Berkshire Hospital",null,null,null,null,null,null,"RWE10","St Richard's Hospital"]
[null,null,null,null,null,null,null,null,null,null,null,null,null,null,null,null,null,null,null,null,"QUA","RNA","THE DUDLEY GROUP NHS FOUNDATION TRUST","RNA01","Russells Hall Hospital",null,null,null,null,null,null,"RWEAA","St Thomas' Hospital"]
[null,null,null,null,null,null,null,null,null,null,null,null,null,null,null,null,null,null,null,null,"QUA","RL4","THE ROYAL WOLVERHAMPTON NHS TRUST","RL403","New Cross Hospital",null,null,null,null,null,null,"RWEAK","Stepping Hill Hospital"]
[null,null,null,null,null,null,null,null,null,null,null,null,null,null,null,null,null,null,null,null,"QUA","RBK","WALSALL HEALTHCARE NHS TRUST","RBK02","Manor Hospital",null,null,null,null,null,null,"RWFTW","Stoke Mandeville Hospital"]
[null,null,null,null,null,null,null,null,null,null,null,null,null,null,null,null,null,null,null,null,"QUE","RGT","CAMBRIDGE UNIVERSITY HOSPITALS NHS FOUNDATION TRUST","RGT32","Rosie Hospital",null,null,null,null,null,null,"RWG02","Sunderland Royal Hospital"]
[null,null,null,null,null,null,null,null,null,null,null,null,null,null,null,null,null,null,null,null,"QUE","RGN","NORTH WEST ANGLIA NHS FOUNDATION TRUST","RGN90","Hinchingbrooke Hospital",null,null,null,null,null,null,"RWH01","Tameside General Hospital"]
[null,null,null,null,null,null,null,null,null,null,null,null,null,null,null,null,null,null,null,null,"QUE","RGN","NORTH WEST ANGLIA NHS FOUNDATION TRUST","RGN80","Peterborough City Hospital",null,null,null,null,null,null,"RWJ09","The Great Western Hospital"]
[null,null,null,null,null,null,null,null,null,null,null,null,null,null,null,null,null,null,null,null,"QUY","RVJ","NORTH BRISTOL NHS TRUST","RVJ01","Southmead Hospital",null,null,null,null,null,null,"RWP50","The James Cook University Hospital"]
[null,null,null,null,null,null,null,null,null,null,null,null,null,null,null,null,null,null,null,null,"QUY","RA7","UNIVERSITY HOSPITALS BRISTOL AND WESTON NHS FOUNDATION TRUST","RA707","St Michael's Hospital",null,null,null,null,null,null,"RWWWH","The Northumbria"]
[null,null,null,null,null,null,null,null,null,null,null,null,null,null,null,null,null,null,null,null,"QVV","RBD","DORSET COUNTY HOSPITAL NHS FOUNDATION TRUST","RBD01","Dorset County Hospital",null,null,null,null,null,null,"RWY02","The Princess Royal Hospital"]
[null,null,null,null,null,null,null,null,null,null,null,null,null,null,null,null,null,null,null,null,"QVV","R0D","UNIVERSITY HOSPITALS DORSET NHS FOUNDATION TRUST","R0D01","Poole Hospital",null,null,null,null,null,null,"RX1CC","The Queen Elizabeth Hospital"]
[null,null,null,null,null,null,null,null,null,null,null,null,null,null,null,null,null,null,null,null,"QVV","R0D","UNIVERSITY HOSPITALS DORSET NHS FOUNDATION TRUST","R0D02","Royal Bournemouth Hospital",null,null,null,null,null,null,"RX1RA","The Royal London Hospital"]
[null,null,null,null,null,null,null,null,null,null,null,null,null,null,null,null,null,null,null,null,"QWE","RVR","EPSOM AND ST HELIER UNIVERSITY HOSPITALS NHS TRUST","RVR50","Epsom Hospital",null,null,null,null,null,null,"RXC01","The Royal Victoria Infirmary"]
[null,null,null,null,null,null,null,null,null,null,null,null,null,null,null,null,null,null,null,null,"QWE","RVR","EPSOM AND ST HELIER UNIVERSITY HOSPITALS NHS TRUST","RVR05","St Helier Hospital",null,null,null,null,null,null,"RXC02","The Tunbridge Wells Hospital"]
[null,null,null,null,null,null,null,null,null,null,null,null,null,null,null,null,null,null,null,null,"QWE","RAX","KINGSTON HOSPITAL NHS FOUNDATION TRUST","RAX01","Kingston Hospital",null,null,null,null,null,null,"RXF05","The Whittington Hospital"]
[null,null,null,null,null,null,null,null,null,null,null,null,null,null,null,null,null,null,null,null,"QWE","RJ7","ST GEORGE'S UNIVERSITY HOSPITALS NHS FOUNDATION TRUST","RJ701","St George's Hospital (Tooting)",null,null,null,null,null,null,"RXK02","Torbay Hospital"]
[null,null,null,null,null,null,null,null,null,null,null,null,null,null,null,null,null,null,null,null,"QWO","RAE","BRADFORD TEACHING HOSPITALS NHS FOUNDATION TRUST","RAE01","Bradford Royal Infirmary",null,null,null,null,null,null,"RXKTC","University Hospital (Coventry)"]
[null,null,null,null,null,null,null,null,null,null,null,null,null,null,null,null,null,null,null,null,"QWO","RWY","CALDERDALE AND HUDDERSFIELD NHS FOUNDATION TRUST","RWY02","Calderdale Royal Hospital",null,null,null,null,null,null,"RXL01","University Hospital Lewisham"]
[null,null,null,null,null,null,null,null,null,null,null,null,null,null,null,null,null,null,null,null,"QWO","RR8","LEEDS TEACHING HOSPITALS NHS TRUST","RR801","Leeds General Infirmary",null,null,null,null,null,null,"RXN01","University Hospital Of North Durham"]
[null,null,null,null,null,null,null,null,null,null,null,null,null,null,null,null,null,null,null,null,"QWO","RR8","LEEDS TEACHING HOSPITALS NHS TRUST","RR813","St James's University Hospital",null,null,null,null,null,null,"RXN02","University Hospital Of North Tees"]
[null,null,null,null,null,null,null,null,null,null,null,null,null,null,null,null,null,null,null,null,"QWO","RXF","MID YORKSHIRE TEACHING NHS TRUST","RXF05","Pinderfields General Hospital",null,null,null,null,null,null,"RXPCP","Wallingford Community Hospital"]
[null,null,null,null,null,null,null,null,null,null,null,null,null,null,null,null,null,null,null,null,"QWU","RLT","GEORGE ELIOT HOSPITAL NHS TRUST","RLT01","George Eliot Hospital - Acute Services",null,null,null,null,null,null,"RXPDA","Warrington Hospital"]
[null,null,null,null,null,null,null,null,null,null,null,null,null,null,null,null,null,null,null,null,"QWU","RJC","SOUTH WARWICKSHIRE UNIVERSITY NHS FOUNDATION TRUST","RJC02","Warwick Hospital",null,null,null,null,null,null,"RXQ02","Warwick Hospital"]
[null,null,null,null,null,null,null,null,null,null,null,null,null,null,null,null,null,null,null,null,"QWU","RKB","UNIVERSITY HOSPITALS COVENTRY AND WARWICKSHIRE NHS TRUST","RKB01","University Hospital (Coventry)",null,null,null,null,null,null,"RXR20","Watford General Hospital"]
[null,null,null,null,null,null,null,null,null,null,null,null,null,null,null,null,null,null,null,null,"QXU","RTK","ASHFORD AND ST PETER'S HOSPITALS NHS FOUNDATION TRUST","RTK02","Ashford Hospital",null,null,null,null,null,null,"RXWAS","West Cumberland Hospital"]
[null,null,null,null,null,null,null,null,null,null,null,null,null,null,null,null,null,null,null,null,"QXU","RA2","ROYAL SURREY COUNTY HOSPITAL NHS FOUNDATION TRUST","RA201","Royal Surrey County Hospital",null,null,null,null,null,null,"RXWAT","West Middlesex University Hospital"]
[null,null,null,null,null,null,null,null,null,null,null,null,null,null,null,null,null,null,null,null,"QXU","RTP","SURREY AND SUSSEX HEALTHCARE NHS TRUST","RTP04","East Surrey Hospital",null,null,null,null,null,null,"RXWMB","West Suffolk Hospital"]
[null,null,null,null,null,null,null,null,null,null,null,null,null,null,null,null,null,null,null,null,"QYG","REP","LIVERPOOL WOMEN'S NHS FOUNDATION TRUST","REP01","Liverpool Womens Hospital",null,null,null,null,null,null,"RXWMJ","Whipps Cross University Hospital"]
[null,null,null,null,null,null,null,null,null,null,null,null,null,null,null,null,null,null,null,null,"QYG","RBN","MERSEY AND WEST LANCASHIRE TEACHING HOSPITALS NHS TRUST","RBN52","Ormskirk and District General Hospital",null,null,null,null,null,null,"RXWML","Whiston Hospital"]
[null,null,null,null,null,null,null,null,null,null,null,null,null,null,null,null,null,null,null,null,"QYG","RBN","MERSEY AND WEST LANCASHIRE TEACHING HOSPITALS NHS TRUST","RBN01","Whiston Hospital",null,null,null,null,null,null,"RYJ01","Worcestershire Royal Hospital"]
[null,null,null,null,null,null,null,null,null,null,null,null,null,null,null,null,null,null,null,null,"QYG","RBT","MID CHESHIRE HOSPITALS NHS FOUNDATION TRUST","RBT20","Leighton Hospital",null,null,null,null,null,null,"RYJ04","Worthing Hospital"]
[null,null,null,null,null,null,null,null,null,null,null,null,null,null,null,null,null,null,null,null,"QYG","RWW","WARRINGTON AND HALTON TEACHING HOSPITALS NHS FOUNDATION TRUST","RWWWH","Warrington Hospital",null,null,null,null,null,null,"RYR16","Yeovil District Hospital"]
[null,null,null,null,null,null,null,null,null,null,null,null,null,null,null,null,null,null,null,null,"QYG","RBL","WIRRAL UNIVERSITY TEACHING HOSPITAL NHS FOUNDATION TRUST","RBL14","Arrowe Park Hospital",null,null,null,null,null,null,"RYR18","York Hospital"]

{"sheet":"BSQ4","index":16,"n_rows":119,"n_cols":28,"rows_kept":119,"cut":false,"hidden":true,"merged":[]}
[null,"Sort","ICB","ICB","Trusts","Trusts",null,null,null,"Sort ranges:","Sort range…","Sort range…",null,"Reference Region List:","Code…","Name…","Linked Region List:","Code…","Name…","Reference Lists:","Code…","Code…","Name…",null,null,"Trusts Linked Lists:","Code…","Name…"]
["ICB",1,1,1,"-","-",null,null,null,null,"ICB Code","ICB Code",null,null,"QE1","LANCASHIRE AND SOUTH CUMBRIA ICB",null,"QE1","LANCASHIRE AND SOUTH CUMBRIA ICB",null,"QE1","RTX","UNIVERSITY HOSPITALS OF MORECAMBE BAY NHS FOUNDATION TRUST",null,null,null,"R0A","AIREDALE NHS FOUNDATION TRUST"]
["Trusts",1,1,1,1,1,null,null,null,null,"ICB Name","Trust Code",null,null,"QF7","SOUTH YORKSHIRE ICB",null,"QF7","SOUTH YORKSHIRE ICB",null,"QE1","RXR","EAST LANCASHIRE HOSPITALS NHS TRUST",null,null,null,"R0B","ASHFORD AND ST PETER'S HOSPITALS NHS FOUNDATION TRUST"]
[null,null,null,null,null,null,null,null,null,null,"Total Responses","Trust Name",null,null,"QGH","HEREFORDSHIRE AND WORCESTERSHIRE ICB",null,"QGH","HEREFORDSHIRE AND WORCESTERSHIRE ICB",null,"QE1","RXL","BLACKPOOL TEACHING HOSPITALS NHS FOUNDATION TRUST",null,null,null,"R0D","BARKING, HAVERING AND REDBRIDGE UNIVERSITY HOSPITALS NHS TRUST"]
[null,null,null,null,null,null,null,null,null,null,"Percentage Positive","Total Responses",null,null,"QH8","MID AND SOUTH ESSEX ICB",null,"QH8","MID AND SOUTH ESSEX ICB",null,"QE1","RXN","LANCASHIRE TEACHING HOSPITALS NHS FOUNDATION TRUST",null,null,null,"R1F","BARNSLEY HOSPITAL NHS FOUNDATION TRUST"]
[null,null,null,null,null,null,null,null,null,null,"Percentage Negative","Percentage Positive",null,null,"QHG","BEDFORDSHIRE, LUTON AND MILTON KEYNES ICB",null,"QHG","BEDFORDSHIRE, LUTON AND MILTON KEYNES ICB",null,"QF7","RFR","THE ROTHERHAM NHS FOUNDATION TRUST",null,null,null,"R1H","BARTS HEALTH NHS TRUST"]
[null,null,null,null,null,null,null,null,null,null,"Very Good","Percentage Negative",null,null,"QHL","BIRMINGHAM AND SOLIHULL ICB",null,"QHL","BIRMINGHAM AND SOLIHULL ICB",null,"QF7","RFF","BARNSLEY HOSPITAL NHS FOUNDATION TRUST",null,null,null,"R1K","BEDFORDSHIRE HOSPITALS NHS FOUNDATION TRUST"]
[null,null,null,null,null,null,null,null,null,null,"Good","Very Good",null,null,"QHM","NORTH EAST AND NORTH CUMBRIA ICB",null,"QHM","NORTH EAST AND NORTH CUMBRIA ICB",null,"QF7","RP5","DONCASTER AND BASSETLAW TEACHING HOSPITALS NHS FOUNDATION TRUST",null,null,null,"RA2","BIRMINGHAM WOMEN'S AND CHILDREN'S NHS FOUNDATION TRUST"]
[null,null,null,null,null,null,null,null,null,null,"Neither Good nor Poor","Good",null,null,"QJ2","DERBY AND DERBYSHIRE ICB",null,"QJ2","DERBY AND DERBYSHIRE ICB",null,"QF7","RHQ","SHEFFIELD TEACHING HOSPITALS NHS FOUNDATION TRUST",null,null,null,"RA7","BLACKPOOL TEACHING HOSPITALS NHS FOUNDATION TRUST"]
[null,null,null,null,null,null,null,null,null,null,"Poor","Neither Good nor Poor",null,null,"QJG","SUFFOLK AND NORTH EAST ESSEX ICB",null,"QJG","SUFFOLK AND NORTH EAST ESSEX ICB",null,"QGH","RLQ","WYE VALLEY NHS TRUST",null,null,null,"RA9","BOLTON NHS FOUNDATION TRUST"]
[null,null,null,null,null,null,null,null,null,null,"Very Poor","Poor",null,null,"QJK","DEVON ICB",null,"QJK","DEVON ICB",null,"QGH","RWP","WORCESTERSHIRE ACUTE HOSPITALS NHS TRUST",null,null,null,"RAE","BRADFORD TEACHING HOSPITALS NHS FOUNDATION TRUST"]
[null,null,null,null,null,null,null,null,null,null,"Don't Know","Very Poor",null,null,"QJM","LINCOLNSHIRE ICB",null,"QJM","LINCOLNSHIRE ICB",null,"QH8","RAJ","MID AND SOUTH ESSEX NHS FOUNDATION TRUST",null,null,null,"RAJ","BUCKINGHAMSHIRE HEALTHCARE NHS TRUST"]
[null,null,null,null,null,null,null,null,null,null,null,"Don't Know",null,null,"QK1","LEICESTER, LEICESTERSHIRE AND RUTLAND ICB",null,"QK1","LEICESTER, LEICESTERSHIRE AND RUTLAND ICB",null,"QHG","RD8","MILTON KEYNES UNIVERSITY HOSPITAL NHS FOUNDATION TRUST",null,null,null,"RAL","CALDERDALE AND HUDDERSFIELD NHS FOUNDATION TRUST"]
[null,null,null,null,null,null,null,null,null,null,null,"Mode SMS",null,null,"QKK","SOUTH EAST LONDON ICB",null,"QKK","SOUTH EAST LONDON ICB",null,"QHG","RC9","BEDFORDSHIRE HOSPITALS NHS FOUNDATION TRUST",null,null,null,"RAP","CAMBRIDGE UNIVERSITY HOSPITALS NHS FOUNDATION TRUST"]
[null,null,null,null,null,null,null,null,null,null,null,"Mode Electronic Discharge",null,null,"QKS","KENT AND MEDWAY ICB",null,"QKS","KENT AND MEDWAY ICB",null,"QHL","RRK","UNIVERSITY HOSPITALS BIRMINGHAM NHS FOUNDATION TRUST",null,null,null,"RAS","CHELSEA AND WESTMINSTER HOSPITAL NHS FOUNDATION TRUST"]
[null,null,null,null,null,null,null,null,null,null,null,"Mode Electronic Home",null,null,"QM7","HERTFORDSHIRE AND WEST ESSEX ICB",null,"QM7","HERTFORDSHIRE AND WEST ESSEX ICB",null,"QHL","RXK","SANDWELL AND WEST BIRMINGHAM HOSPITALS NHS TRUST",null,null,null,"RAX","CHESTERFIELD ROYAL HOSPITAL NHS FOUNDATION TRUST"]
[null,null,null,null,null,null,null,null,null,null,null,"Mode Paper Discharge",null,null,"QMF","NORTH EAST LONDON ICB",null,"QMF","NORTH EAST LONDON ICB",null,"QHL","RQ3","BIRMINGHAM WOMEN'S AND CHILDREN'S NHS FOUNDATION TRUST",null,null,null,"RBD","COUNTY DURHAM AND DARLINGTON NHS FOUNDATION TRUST"]
[null,null,null,null,null,null,null,null,null,null,null,"Mode Paper Home",null,null,"QMJ","NORTH CENTRAL LONDON ICB",null,"QMJ","NORTH CENTRAL LONDON ICB",null,"QHM","RR7","GATESHEAD HEALTH NHS FOUNDATION TRUST",null,null,null,"RBK","CROYDON HEALTH SERVICES NHS TRUST"]
[null,null,null,null,null,null,null,null,null,null,null,"Mode Telephone",null,null,"QMM","NORFOLK AND WAVENEY ICB",null,"QMM","NORFOLK AND WAVENEY ICB",null,"QHM","RTD","THE NEWCASTLE UPON TYNE HOSPITALS NHS FOUNDATION TRUST",null,null,null,"RBL","DARTFORD AND GRAVESHAM NHS TRUST"]
[null,null,null,null,null,null,null,null,null,null,null,"Mode Online",null,null,"QNC","STAFFORDSHIRE AND STOKE-ON-TRENT ICB",null,"QNC","STAFFORDSHIRE AND STOKE-ON-TRENT ICB",null,"QHM","RVW","NORTH TEES AND HARTLEPOOL NHS FOUNDATION TRUST",null,null,null,"RBN","DONCASTER AND BASSETLAW TEACHING HOSPITALS NHS FOUNDATION TRUST"]
[null,null,null,null,null,null,null,null,null,null,null,"Mode Other",null,null,"QNQ","FRIMLEY ICB",null,"QNQ","FRIMLEY ICB",null,"QHM","RXP","COUNTY DURHAM AND DARLINGTON NHS FOUNDATION TRUST",null,null,null,"RBT","DORSET COUNTY HOSPITAL NHS FOUNDATION TRUST"]
[null,null,null,null,null,null,null,null,null,null,null,null,null,null,"QNX","SUSSEX ICB",null,"QNX","SUSSEX ICB",null,"QHM","R0B","SOUTH TYNESIDE AND SUNDERLAND NHS FOUNDATION TRUST",null,null,null,"RC9","EAST AND NORTH HERTFORDSHIRE NHS TRUST"]
[null,null,null,null,null,null,null,null,null,null,null,null,null,null,"QOC","SHROPSHIRE, TELFORD AND WREKIN ICB",null,"QOC","SHROPSHIRE, TELFORD AND WREKIN ICB",null,"QHM","RNN","NORTH CUMBRIA INTEGRATED CARE NHS FOUNDATION TRUST",null,null,null,"RCB","EAST KENT HOSPITALS UNIVERSITY NHS FOUNDATION TRUST"]
[null,null,null,null,null,null,null,null,null,null,null,null,null,null,"QOP","GREATER MANCHESTER ICB",null,"QOP","GREATER MANCHESTER ICB",null,"QHM","RTR","SOUTH TEES HOSPITALS NHS FOUNDATION TRUST",null,null,null,"RCD","EAST LANCASHIRE HOSPITALS NHS TRUST"]
[null,null,null,null,null,null,null,null,null,null,null,null,null,null,"QOQ","HUMBER AND NORTH YORKSHIRE ICB",null,"QOQ","HUMBER AND NORTH YORKSHIRE ICB",null,"QHM","RTF","NORTHUMBRIA HEALTHCARE NHS FOUNDATION TRUST",null,null,null,"RCF","EAST SUFFOLK AND NORTH ESSEX NHS FOUNDATION TRUST"]
[null,null,null,null,null,null,null,null,null,null,null,null,null,null,"QOX","BATH AND NORTH EAST SOMERSET, SWINDON AND WILTSHIRE ICB",null,"QOX","BATH AND NORTH EAST SOMERSET, SWINDON AND WILTSHIRE ICB",null,"QJ2","RTG","UNIVERSITY HOSPITALS OF DERBY AND BURTON NHS FOUNDATION TRUST",null,null,null,"RCX","EAST SUSSEX HEALTHCARE NHS TRUST"]
[null,null,null,null,null,null,null,null,null,null,null,null,null,null,"QPM","NORTHAMPTONSHIRE ICB",null,"QPM","NORTHAMPTONSHIRE ICB",null,"QJ2","RFS","CHESTERFIELD ROYAL HOSPITAL NHS FOUNDATION TRUST",null,null,null,"RD1","EPSOM AND ST HELIER UNIVERSITY HOSPITALS NHS TRUST"]
[null,null,null,null,null,null,null,null,null,null,null,null,null,null,"QR1","GLOUCESTERSHIRE ICB",null,"QR1","GLOUCESTERSHIRE ICB",null,"QJG","RDE","EAST SUFFOLK AND NORTH ESSEX NHS FOUNDATION TRUST",null,null,null,"RD8","FRIMLEY HEALTH NHS FOUNDATION TRUST"]
[null,null,null,null,null,null,null,null,null,null,null,null,null,null,"QRL","HAMPSHIRE AND ISLE OF WIGHT ICB",null,"QRL","HAMPSHIRE AND ISLE OF WIGHT ICB",null,"QJG","RGR","WEST SUFFOLK NHS FOUNDATION TRUST",null,null,null,"RDE","GATESHEAD HEALTH NHS FOUNDATION TRUST"]
[null,null,null,null,null,null,null,null,null,null,null,null,null,null,"QRV","NORTH WEST LONDON ICB",null,"QRV","NORTH WEST LONDON ICB",null,"QJK","RA9","TORBAY AND SOUTH DEVON NHS FOUNDATION TRUST",null,null,null,"RDU","GEORGE ELIOT HOSPITAL NHS TRUST"]
[null,null,null,null,null,null,null,null,null,null,null,null,null,null,"QSL","SOMERSET ICB",null,"QSL","SOMERSET ICB",null,"QJK","RK9","UNIVERSITY HOSPITALS PLYMOUTH NHS TRUST",null,null,null,"REF","GLOUCESTERSHIRE HOSPITALS NHS FOUNDATION TRUST"]
[null,null,null,null,null,null,null,null,null,null,null,null,null,null,"QT1","NOTTINGHAM AND NOTTINGHAMSHIRE ICB",null,"QT1","NOTTINGHAM AND NOTTINGHAMSHIRE ICB",null,"QJK","RH8","ROYAL DEVON UNIVERSITY HEALTHCARE NHS FOUNDATION TRUST",null,null,null,"REP","GREAT WESTERN HOSPITALS NHS FOUNDATION TRUST"]
[null,null,null,null,null,null,null,null,null,null,null,null,null,null,"QT6","CORNWALL AND THE ISLES OF SCILLY ICB",null,"QT6","CORNWALL AND THE ISLES OF SCILLY ICB",null,"QJM","RWD","UNITED LINCOLNSHIRE HOSPITALS NHS TRUST",null,null,null,"RF4","GUY'S AND ST THOMAS' NHS FOUNDATION TRUST"]
[null,null,null,null,null,null,null,null,null,null,null,null,null,null,"QU9","BUCKINGHAMSHIRE, OXFORDSHIRE AND BERKSHIRE WEST ICB",null,"QU9","BUCKINGHAMSHIRE, OXFORDSHIRE AND BERKSHIRE WEST ICB",null,"QK1","RWE","UNIVERSITY HOSPITALS OF LEICESTER NHS TRUST",null,null,null,"RFF","HAMPSHIRE HOSPITALS NHS FOUNDATION TRUST"]
[null,null,null,null,null,null,null,null,null,null,null,null,null,null,"QUA","BLACK COUNTRY ICB",null,"QUA","BLACK COUNTRY ICB",null,"QKK","RJ1","GUY'S AND ST THOMAS' NHS FOUNDATION TRUST",null,null,null,"RFR","HARROGATE AND DISTRICT NHS FOUNDATION TRUST"]
[null,null,null,null,null,null,null,null,null,null,null,null,null,null,"QUE","CAMBRIDGESHIRE AND PETERBOROUGH ICB",null,"QUE","CAMBRIDGESHIRE AND PETERBOROUGH ICB",null,"QKK","RJ2","LEWISHAM AND GREENWICH NHS TRUST",null,null,null,"RFS","HOMERTON HEALTHCARE NHS FOUNDATION TRUST"]
[null,null,null,null,null,null,null,null,null,null,null,null,null,null,"QUY","BRISTOL, NORTH SOMERSET AND SOUTH GLOUCESTERSHIRE ICB",null,"QUY","BRISTOL, NORTH SOMERSET AND SOUTH GLOUCESTERSHIRE ICB",null,"QKK","RJZ","KING'S COLLEGE HOSPITAL NHS FOUNDATION TRUST",null,null,null,"RGN","HULL UNIVERSITY TEACHING HOSPITALS NHS TRUST"]
[null,null,null,null,null,null,null,null,null,null,null,null,null,null,"QVV","DORSET ICB",null,"QVV","DORSET ICB",null,"QKS","RVV","EAST KENT HOSPITALS UNIVERSITY NHS FOUNDATION TRUST",null,null,null,"RGP","IMPERIAL COLLEGE HEALTHCARE NHS TRUST"]
[null,null,null,null,null,null,null,null,null,null,null,null,null,null,"QWE","SOUTH WEST LONDON ICB",null,"QWE","SOUTH WEST LONDON ICB",null,"QKS","RPA","MEDWAY NHS FOUNDATION TRUST",null,null,null,"RGR","ISLE OF WIGHT NHS TRUST"]
[null,null,null,null,null,null,null,null,null,null,null,null,null,null,"QWO","WEST YORKSHIRE ICB",null,"QWO","WEST YORKSHIRE ICB",null,"QKS","RN7","DARTFORD AND GRAVESHAM NHS TRUST",null,null,null,"RGT","JAMES PAGET UNIVERSITY HOSPITALS NHS FOUNDATION TRUST"]
[null,null,null,null,null,null,null,null,null,null,null,null,null,null,"QWU","COVENTRY AND WARWICKSHIRE ICB",null,"QWU","COVENTRY AND WARWICKSHIRE ICB",null,"QKS","RWF","MAIDSTONE AND TUNBRIDGE WELLS NHS TRUST",null,null,null,"RH5","KETTERING GENERAL HOSPITAL NHS FOUNDATION TRUST"]
[null,null,null,null,null,null,null,null,null,null,null,null,null,null,"QXU","SURREY HEARTLANDS ICB",null,"QXU","SURREY HEARTLANDS ICB",null,"QM7","RQW","THE PRINCESS ALEXANDRA HOSPITAL NHS TRUST",null,null,null,"RH8","KING'S COLLEGE HOSPITAL NHS FOUNDATION TRUST"]
[null,null,null,null,null,null,null,null,null,null,null,null,null,null,"QYG","CHESHIRE AND MERSEYSIDE ICB",null,"QYG","CHESHIRE AND MERSEYSIDE ICB",null,"QM7","RWG","WEST HERTFORDSHIRE TEACHING HOSPITALS NHS TRUST",null,null,null,"RHM","KINGSTON HOSPITAL NHS FOUNDATION TRUST"]
[null,null,null,null,null,null,null,null,null,null,null,null,null,null,null,null,null,null,null,null,"QM7","RWH","EAST AND NORTH HERTFORDSHIRE NHS TRUST",null,null,null,"RHQ","LANCASHIRE TEACHING HOSPITALS NHS FOUNDATION TRUST"]
[null,null,null,null,null,null,null,null,null,null,null,null,null,null,null,null,null,null,null,null,"QMF","RQX","HOMERTON HEALTHCARE NHS FOUNDATION TRUST",null,null,null,"RHU","LEEDS TEACHING HOSPITALS NHS TRUST"]
[null,null,null,null,null,null,null,null,null,null,null,null,null,null,null,null,null,null,null,null,"QMF","RF4","BARKING, HAVERING AND REDBRIDGE UNIVERSITY HOSPITALS NHS TRUST",null,null,null,"RHW","LEWISHAM AND GREENWICH NHS TRUST"]
[null,null,null,null,null,null,null,null,null,null,null,null,null,null,null,null,null,null,null,null,"QMF","R1H","BARTS HEALTH NHS TRUST",null,null,null,"RJ1","LIVERPOOL WOMEN'S NHS FOUNDATION TRUST"]
[null,null,null,null,null,null,null,null,null,null,null,null,null,null,null,null,null,null,null,null,"QMJ","RAP","NORTH MIDDLESEX UNIVERSITY HOSPITAL NHS TRUST",null,null,null,"RJ2","LONDON NORTH WEST UNIVERSITY HEALTHCARE NHS TRUST"]
[null,null,null,null,null,null,null,null,null,null,null,null,null,null,null,null,null,null,null,null,"QMJ","RRV","UNIVERSITY COLLEGE LONDON HOSPITALS NHS FOUNDATION TRUST",null,null,null,"RJ6","MAIDSTONE AND TUNBRIDGE WELLS NHS TRUST"]
[null,null,null,null,null,null,null,null,null,null,null,null,null,null,null,null,null,null,null,null,"QMJ","RAL","ROYAL FREE LONDON NHS FOUNDATION TRUST",null,null,null,"RJ7","MANCHESTER UNIVERSITY NHS FOUNDATION TRUST"]
[null,null,null,null,null,null,null,null,null,null,null,null,null,null,null,null,null,null,null,null,"QMJ","RKE","WHITTINGTON HEALTH NHS TRUST",null,null,null,"RJC","MEDWAY NHS FOUNDATION TRUST"]
[null,null,null,null,null,null,null,null,null,null,null,null,null,null,null,null,null,null,null,null,"QMM","RGP","JAMES PAGET UNIVERSITY HOSPITALS NHS FOUNDATION TRUST",null,null,null,"RJE","MERSEY AND WEST LANCASHIRE TEACHING HOSPITALS NHS TRUST"]
[null,null,null,null,null,null,null,null,null,null,null,null,null,null,null,null,null,null,null,null,"QMM","RM1","NORFOLK AND NORWICH UNIVERSITY HOSPITALS NHS FOUNDATION TRUST",null,null,null,"RJL","MID AND SOUTH ESSEX NHS FOUNDATION TRUST"]
[null,null,null,null,null,null,null,null,null,null,null,null,null,null,null,null,null,null,null,null,"QMM","RCX","THE QUEEN ELIZABETH HOSPITAL, KING'S LYNN, NHS FOUNDATION TRUST",null,null,null,"RJZ","MID CHESHIRE HOSPITALS NHS FOUNDATION TRUST"]
[null,null,null,null,null,null,null,null,null,null,null,null,null,null,null,null,null,null,null,null,"QNC","RJE","UNIVERSITY HOSPITALS OF NORTH MIDLANDS NHS TRUST",null,null,null,"RK5","MID YORKSHIRE TEACHING NHS TRUST"]
[null,null,null,null,null,null,null,null,null,null,null,null,null,null,null,null,null,null,null,null,"QNQ","RDU","FRIMLEY HEALTH NHS FOUNDATION TRUST",null,null,null,"RK9","MILTON KEYNES UNIVERSITY HOSPITAL NHS FOUNDATION TRUST"]
[null,null,null,null,null,null,null,null,null,null,null,null,null,null,null,null,null,null,null,null,"QNX","RXC","EAST SUSSEX HEALTHCARE NHS TRUST",null,null,null,"RKB","NORFOLK AND NORWICH UNIVERSITY HOSPITALS NHS FOUNDATION TRUST"]
[null,null,null,null,null,null,null,null,null,null,null,null,null,null,null,null,null,null,null,null,"QNX","RYR","UNIVERSITY HOSPITALS SUSSEX NHS FOUNDATION TRUST",null,null,null,"RKE","NORTH BRISTOL NHS TRUST"]
[null,null,null,null,null,null,null,null,null,null,null,null,null,null,null,null,null,null,null,null,"QOC","RXW","THE SHREWSBURY AND TELFORD HOSPITAL NHS TRUST",null,null,null,"RL4","NORTH CUMBRIA INTEGRATED CARE NHS FOUNDATION TRUST"]
[null,null,null,null,null,null,null,null,null,null,null,null,null,null,null,null,null,null,null,null,"QOP","RM3","NORTHERN CARE ALLIANCE NHS FOUNDATION TRUST",null,null,null,"RLQ","NORTH MIDDLESEX UNIVERSITY HOSPITAL NHS TRUST"]
[null,null,null,null,null,null,null,null,null,null,null,null,null,null,null,null,null,null,null,null,"QOP","RMP","TAMESIDE AND GLOSSOP INTEGRATED CARE NHS FOUNDATION TRUST",null,null,null,"RLT","NORTH TEES AND HARTLEPOOL NHS FOUNDATION TRUST"]
[null,null,null,null,null,null,null,null,null,null,null,null,null,null,null,null,null,null,null,null,"QOP","RWJ","STOCKPORT NHS FOUNDATION TRUST",null,null,null,"RM1","NORTH WEST ANGLIA NHS FOUNDATION TRUST"]
[null,null,null,null,null,null,null,null,null,null,null,null,null,null,null,null,null,null,null,null,"QOP","RRF","WRIGHTINGTON, WIGAN AND LEIGH NHS FOUNDATION TRUST",null,null,null,"RM3","NORTHAMPTON GENERAL HOSPITAL NHS TRUST"]
[null,null,null,null,null,null,null,null,null,null,null,null,null,null,null,null,null,null,null,null,"QOP","R0A","MANCHESTER UNIVERSITY NHS FOUNDATION TRUST",null,null,null,"RMC","NORTHERN CARE ALLIANCE NHS FOUNDATION TRUST"]
[null,null,null,null,null,null,null,null,null,null,null,null,null,null,null,null,null,null,null,null,"QOP","RMC","BOLTON NHS FOUNDATION TRUST",null,null,null,"RMP","NORTHERN LINCOLNSHIRE AND GOOLE NHS FOUNDATION TRUST"]
[null,null,null,null,null,null,null,null,null,null,null,null,null,null,null,null,null,null,null,null,"QOQ","RCB","YORK AND SCARBOROUGH TEACHING HOSPITALS NHS FOUNDATION TRUST",null,null,null,"RN3","NORTHUMBRIA HEALTHCARE NHS FOUNDATION TRUST"]
[null,null,null,null,null,null,null,null,null,null,null,null,null,null,null,null,null,null,null,null,"QOQ","RCD","HARROGATE AND DISTRICT NHS FOUNDATION TRUST",null,null,null,"RN5","NOTTINGHAM UNIVERSITY HOSPITALS NHS TRUST"]
[null,null,null,null,null,null,null,null,null,null,null,null,null,null,null,null,null,null,null,null,"QOQ","RJL","NORTHERN LINCOLNSHIRE AND GOOLE NHS FOUNDATION TRUST",null,null,null,"RN7","OXFORD UNIVERSITY HOSPITALS NHS FOUNDATION TRUST"]
[null,null,null,null,null,null,null,null,null,null,null,null,null,null,null,null,null,null,null,null,"QOQ","RWA","HULL UNIVERSITY TEACHING HOSPITALS NHS TRUST",null,null,null,"RNA","PORTSMOUTH HOSPITALS UNIVERSITY NATIONAL HEALTH SERVICE TRUST"]
[null,null,null,null,null,null,null,null,null,null,null,null,null,null,null,null,null,null,null,null,"QOX","RNZ","SALISBURY NHS FOUNDATION TRUST",null,null,null,"RNN","ROYAL BERKSHIRE NHS FOUNDATION TRUST"]
[null,null,null,null,null,null,null,null,null,null,null,null,null,null,null,null,null,null,null,null,"QOX","RD1","ROYAL UNITED HOSPITALS BATH NHS FOUNDATION TRUST",null,null,null,"RNQ","ROYAL CORNWALL HOSPITALS NHS TRUST"]
[null,null,null,null,null,null,null,null,null,null,null,null,null,null,null,null,null,null,null,null,"QOX","RN3","GREAT WESTERN HOSPITALS NHS FOUNDATION TRUST",null,null,null,"RNS","ROYAL DEVON UNIVERSITY HEALTHCARE NHS FOUNDATION TRUST"]
[null,null,null,null,null,null,null,null,null,null,null,null,null,null,null,null,null,null,null,null,"QPM","RNS","NORTHAMPTON GENERAL HOSPITAL NHS TRUST",null,null,null,"RNZ","ROYAL FREE LONDON NHS FOUNDATION TRUST"]
[null,null,null,null,null,null,null,null,null,null,null,null,null,null,null,null,null,null,null,null,"QPM","RNQ","KETTERING GENERAL HOSPITAL NHS FOUNDATION TRUST",null,null,null,"RP5","ROYAL SURREY COUNTY HOSPITAL NHS FOUNDATION TRUST"]
[null,null,null,null,null,null,null,null,null,null,null,null,null,null,null,null,null,null,null,null,"QR1","RTE","GLOUCESTERSHIRE HOSPITALS NHS FOUNDATION TRUST",null,null,null,"RPA","ROYAL UNITED HOSPITALS BATH NHS FOUNDATION TRUST"]
[null,null,null,null,null,null,null,null,null,null,null,null,null,null,null,null,null,null,null,null,"QRL","R1F","ISLE OF WIGHT NHS TRUST",null,null,null,"RQ3","SALISBURY NHS FOUNDATION TRUST"]
[null,null,null,null,null,null,null,null,null,null,null,null,null,null,null,null,null,null,null,null,"QRL","RN5","HAMPSHIRE HOSPITALS NHS FOUNDATION TRUST",null,null,null,"RQM","SANDWELL AND WEST BIRMINGHAM HOSPITALS NHS TRUST"]
[null,null,null,null,null,null,null,null,null,null,null,null,null,null,null,null,null,null,null,null,"QRL","RHU","PORTSMOUTH HOSPITALS UNIVERSITY NATIONAL HEALTH SERVICE TRUST",null,null,null,"RQW","SHEFFIELD TEACHING HOSPITALS NHS FOUNDATION TRUST"]
[null,null,null,null,null,null,null,null,null,null,null,null,null,null,null,null,null,null,null,null,"QRL","RHM","UNIVERSITY HOSPITAL SOUTHAMPTON NHS FOUNDATION TRUST",null,null,null,"RQX","SHERWOOD FOREST HOSPITALS NHS FOUNDATION TRUST"]
[null,null,null,null,null,null,null,null,null,null,null,null,null,null,null,null,null,null,null,null,"QRV","R1K","LONDON NORTH WEST UNIVERSITY HEALTHCARE NHS TRUST",null,null,null,"RR7","SOMERSET NHS FOUNDATION TRUST"]
[null,null,null,null,null,null,null,null,null,null,null,null,null,null,null,null,null,null,null,null,"QRV","RQM","CHELSEA AND WESTMINSTER HOSPITAL NHS FOUNDATION TRUST",null,null,null,"RR8","SOUTH TEES HOSPITALS NHS FOUNDATION TRUST"]
[null,null,null,null,null,null,null,null,null,null,null,null,null,null,null,null,null,null,null,null,"QRV","RAS","THE HILLINGDON HOSPITALS NHS FOUNDATION TRUST",null,null,null,"RRF","SOUTH TYNESIDE AND SUNDERLAND NHS FOUNDATION TRUST"]
[null,null,null,null,null,null,null,null,null,null,null,null,null,null,null,null,null,null,null,null,"QRV","RYJ","IMPERIAL COLLEGE HEALTHCARE NHS TRUST",null,null,null,"RRK","SOUTH WARWICKSHIRE UNIVERSITY NHS FOUNDATION TRUST"]
[null,null,null,null,null,null,null,null,null,null,null,null,null,null,null,null,null,null,null,null,"QSL","RH5","SOMERSET NHS FOUNDATION TRUST",null,null,null,"RRV","ST GEORGE'S UNIVERSITY HOSPITALS NHS FOUNDATION TRUST"]
[null,null,null,null,null,null,null,null,null,null,null,null,null,null,null,null,null,null,null,null,"QT1","RK5","SHERWOOD FOREST HOSPITALS NHS FOUNDATION TRUST",null,null,null,"RTD","STOCKPORT NHS FOUNDATION TRUST"]
[null,null,null,null,null,null,null,null,null,null,null,null,null,null,null,null,null,null,null,null,"QT1","RX1","NOTTINGHAM UNIVERSITY HOSPITALS NHS TRUST",null,null,null,"RTE","SURREY AND SUSSEX HEALTHCARE NHS TRUST"]
[null,null,null,null,null,null,null,null,null,null,null,null,null,null,null,null,null,null,null,null,"QT6","REF","ROYAL CORNWALL HOSPITALS NHS TRUST",null,null,null,"RTF","TAMESIDE AND GLOSSOP INTEGRATED CARE NHS FOUNDATION TRUST"]
[null,null,null,null,null,null,null,null,null,null,null,null,null,null,null,null,null,null,null,null,"QU9","RTH","OXFORD UNIVERSITY HOSPITALS NHS FOUNDATION TRUST",null,null,null,"RTG","THE DUDLEY GROUP NHS FOUNDATION TRUST"]
[null,null,null,null,null,null,null,null,null,null,null,null,null,null,null,null,null,null,null,null,"QU9","RHW","ROYAL BERKSHIRE NHS FOUNDATION TRUST",null,null,null,"RTH","THE HILLINGDON HOSPITALS NHS FOUNDATION TRUST"]
[null,null,null,null,null,null,null,null,null,null,null,null,null,null,null,null,null,null,null,null,"QU9","RXQ","BUCKINGHAMSHIRE HEALTHCARE NHS TRUST",null,null,null,"RTK","THE NEWCASTLE UPON TYNE HOSPITALS NHS FOUNDATION TRUST"]
[null,null,null,null,null,null,null,null,null,null,null,null,null,null,null,null,null,null,null,null,"QUA","RNA","THE DUDLEY GROUP NHS FOUNDATION TRUST",null,null,null,"RTP","THE PRINCESS ALEXANDRA HOSPITAL NHS TRUST"]
[null,null,null,null,null,null,null,null,null,null,null,null,null,null,null,null,null,null,null,null,"QUA","RL4","THE ROYAL WOLVERHAMPTON NHS TRUST",null,null,null,"RTR","THE QUEEN ELIZABETH HOSPITAL, KING'S LYNN, NHS FOUNDATION TRUST"]
[null,null,null,null,null,null,null,null,null,null,null,null,null,null,null,null,null,null,null,null,"QUA","RBK","WALSALL HEALTHCARE NHS TRUST",null,null,null,"RTX","THE ROTHERHAM NHS FOUNDATION TRUST"]
[null,null,null,null,null,null,null,null,null,null,null,null,null,null,null,null,null,null,null,null,"QUE","RGN","NORTH WEST ANGLIA NHS FOUNDATION TRUST",null,null,null,"RVJ","THE ROYAL WOLVERHAMPTON NHS TRUST"]
[null,null,null,null,null,null,null,null,null,null,null,null,null,null,null,null,null,null,null,null,"QUE","RGT","CAMBRIDGE UNIVERSITY HOSPITALS NHS FOUNDATION TRUST",null,null,null,"RVR","THE SHREWSBURY AND TELFORD HOSPITAL NHS TRUST"]
[null,null,null,null,null,null,null,null,null,null,null,null,null,null,null,null,null,null,null,null,"QUY","RA7","UNIVERSITY HOSPITALS BRISTOL AND WESTON NHS FOUNDATION TRUST",null,null,null,"RVV","TORBAY AND SOUTH DEVON NHS FOUNDATION TRUST"]
[null,null,null,null,null,null,null,null,null,null,null,null,null,null,null,null,null,null,null,null,"QUY","RVJ","NORTH BRISTOL NHS TRUST",null,null,null,"RVW","UNITED LINCOLNSHIRE HOSPITALS NHS TRUST"]
[null,null,null,null,null,null,null,null,null,null,null,null,null,null,null,null,null,null,null,null,"QVV","RBD","DORSET COUNTY HOSPITAL NHS FOUNDATION TRUST",null,null,null,"RWA","UNIVERSITY COLLEGE LONDON HOSPITALS NHS FOUNDATION TRUST"]
[null,null,null,null,null,null,null,null,null,null,null,null,null,null,null,null,null,null,null,null,"QVV","R0D","UNIVERSITY HOSPITALS DORSET NHS FOUNDATION TRUST",null,null,null,"RWD","UNIVERSITY HOSPITAL SOUTHAMPTON NHS FOUNDATION TRUST"]
[null,null,null,null,null,null,null,null,null,null,null,null,null,null,null,null,null,null,null,null,"QWE","RJ6","CROYDON HEALTH SERVICES NHS TRUST",null,null,null,"RWE","UNIVERSITY HOSPITALS BIRMINGHAM NHS FOUNDATION TRUST"]
[null,null,null,null,null,null,null,null,null,null,null,null,null,null,null,null,null,null,null,null,"QWE","RJ7","ST GEORGE'S UNIVERSITY HOSPITALS NHS FOUNDATION TRUST",null,null,null,"RWF","UNIVERSITY HOSPITALS BRISTOL AND WESTON NHS FOUNDATION TRUST"]
[null,null,null,null,null,null,null,null,null,null,null,null,null,null,null,null,null,null,null,null,"QWE","RVR","EPSOM AND ST HELIER UNIVERSITY HOSPITALS NHS TRUST",null,null,null,"RWG","UNIVERSITY HOSPITALS COVENTRY AND WARWICKSHIRE NHS TRUST"]
[null,null,null,null,null,null,null,null,null,null,null,null,null,null,null,null,null,null,null,null,"QWE","RAX","KINGSTON HOSPITAL NHS FOUNDATION TRUST",null,null,null,"RWH","UNIVERSITY HOSPITALS DORSET NHS FOUNDATION TRUST"]
[null,null,null,null,null,null,null,null,null,null,null,null,null,null,null,null,null,null,null,null,"QWO","RAE","BRADFORD TEACHING HOSPITALS NHS FOUNDATION TRUST",null,null,null,"RWJ","UNIVERSITY HOSPITALS OF DERBY AND BURTON NHS FOUNDATION TRUST"]
[null,null,null,null,null,null,null,null,null,null,null,null,null,null,null,null,null,null,null,null,"QWO","RCF","AIREDALE NHS FOUNDATION TRUST",null,null,null,"RWP","UNIVERSITY HOSPITALS OF LEICESTER NHS TRUST"]
[null,null,null,null,null,null,null,null,null,null,null,null,null,null,null,null,null,null,null,null,"QWO","RWY","CALDERDALE AND HUDDERSFIELD NHS FOUNDATION TRUST",null,null,null,"RWW","UNIVERSITY HOSPITALS OF MORECAMBE BAY NHS FOUNDATION TRUST"]
[null,null,null,null,null,null,null,null,null,null,null,null,null,null,null,null,null,null,null,null,"QWO","RR8","LEEDS TEACHING HOSPITALS NHS TRUST",null,null,null,"RWY","UNIVERSITY HOSPITALS OF NORTH MIDLANDS NHS TRUST"]
[null,null,null,null,null,null,null,null,null,null,null,null,null,null,null,null,null,null,null,null,"QWO","RXF","MID YORKSHIRE TEACHING NHS TRUST",null,null,null,"RX1","UNIVERSITY HOSPITALS PLYMOUTH NHS TRUST"]
[null,null,null,null,null,null,null,null,null,null,null,null,null,null,null,null,null,null,null,null,"QWU","RJC","SOUTH WARWICKSHIRE UNIVERSITY NHS FOUNDATION TRUST",null,null,null,"RXC","UNIVERSITY HOSPITALS SUSSEX NHS FOUNDATION TRUST"]
[null,null,null,null,null,null,null,null,null,null,null,null,null,null,null,null,null,null,null,null,"QWU","RLT","GEORGE ELIOT HOSPITAL NHS TRUST",null,null,null,"RXF","WALSALL HEALTHCARE NHS TRUST"]
[null,null,null,null,null,null,null,null,null,null,null,null,null,null,null,null,null,null,null,null,"QWU","RKB","UNIVERSITY HOSPITALS COVENTRY AND WARWICKSHIRE NHS TRUST",null,null,null,"RXK","WARRINGTON AND HALTON TEACHING HOSPITALS NHS FOUNDATION TRUST"]
[null,null,null,null,null,null,null,null,null,null,null,null,null,null,null,null,null,null,null,null,"QXU","RTK","ASHFORD AND ST PETER'S HOSPITALS NHS FOUNDATION TRUST",null,null,null,"RXL","WEST HERTFORDSHIRE TEACHING HOSPITALS NHS TRUST"]
[null,null,null,null,null,null,null,null,null,null,null,null,null,null,null,null,null,null,null,null,"QXU","RA2","ROYAL SURREY COUNTY HOSPITAL NHS FOUNDATION TRUST",null,null,null,"RXN","WEST SUFFOLK NHS FOUNDATION TRUST"]
[null,null,null,null,null,null,null,null,null,null,null,null,null,null,null,null,null,null,null,null,"QXU","RTP","SURREY AND SUSSEX HEALTHCARE NHS TRUST",null,null,null,"RXP","WHITTINGTON HEALTH NHS TRUST"]
[null,null,null,null,null,null,null,null,null,null,null,null,null,null,null,null,null,null,null,null,"QYG","RBL","WIRRAL UNIVERSITY TEACHING HOSPITAL NHS FOUNDATION TRUST",null,null,null,"RXQ","WIRRAL UNIVERSITY TEACHING HOSPITAL NHS FOUNDATION TRUST"]
[null,null,null,null,null,null,null,null,null,null,null,null,null,null,null,null,null,null,null,null,"QYG","RBT","MID CHESHIRE HOSPITALS NHS FOUNDATION TRUST",null,null,null,"RXR","WORCESTERSHIRE ACUTE HOSPITALS NHS TRUST"]
[null,null,null,null,null,null,null,null,null,null,null,null,null,null,null,null,null,null,null,null,"QYG","RWW","WARRINGTON AND HALTON TEACHING HOSPITALS NHS FOUNDATION TRUST",null,null,null,"RXW","WRIGHTINGTON, WIGAN AND LEIGH NHS FOUNDATION TRUST"]
[null,null,null,null,null,null,null,null,null,null,null,null,null,null,null,null,null,null,null,null,"QYG","RBN","MERSEY AND WEST LANCASHIRE TEACHING HOSPITALS NHS TRUST",null,null,null,"RYJ","WYE VALLEY NHS TRUST"]
[null,null,null,null,null,null,null,null,null,null,null,null,null,null,null,null,null,null,null,null,"QYG","REP","LIVERPOOL WOMEN'S NHS FOUNDATION TRUST",null,null,null,"RYR","YORK AND SCARBOROUGH TEACHING HOSPITALS NHS FOUNDATION TRUST"]